Workbook

Sheet Visor
A1: Resultado del programa del PAEF - Micro y Pequeños empleadores
A2: Reporte por sector económico - consolidado nominas de Abr a Nov 2021. Incluye errores operativos y procesos de auditoria
A4: Seleccione el sector económico | D4: Industrias manufactureras | N4: =IFERROR(VLOOKUP(D4,Hoja4!$C$2:$D$23,2,FALSE),"") -> C
E8: Total Empleadores beneficiados | I8: % | K8: Total Empleadores beneficiados | O8: % | Q8: Recursos asociados en Millones
B10: General | E10: =Hoja4!I24 -> 49989 | I10: =E10/$E$10 -> 1 | K10: =Hoja4!K24 -> 465564 | O10: =K10/$K$10 -> 1 | Q10: =Hoja4!M24/1000000 -> 714681.199
B11: ="Sección "&N4 -> Sección C | E11: =VLOOKUP(N4,Hoja4!$H$1:$M$24,2,FALSE) -> 7510 | I11: =E11/$E$10 -> 0.1502330513 | K11: =VLOOKUP(N4,Hoja4!$H$1:$M$24,4,FALSE) -> 79745 | O11: =K11/$K$10 -> 0.1712868693 | Q11: =VLOOKUP(N4,Hoja4!$H$1:$M$24,6,FALSE)/1000000 -> 117957.073
B30: Empleadores | E30: Natural | H30: Jurídica | L30: Recurso en millones | O30: Natural | R30: Jurídica
B31: ="Total sección "&N4 -> Total sección C | E31: =COUNTIFS(insumos2!$AN$1:$AN$399999,"Aprobado con subsidio",insumos2!$AK$1:$AK$399999,"Natural") -> 1329 | H31: =COUNTIFS(insumos2!$AN$1:$AN$399999,"Aprobado con subsidio",insumos2!$AK$1:$AK$399999,"Jurídica") -> 6181 | L31: ="Total sección "&N4 -> Total sección C | O31: =SUMIFS(insumos1!$K$2:$K$372158,insumos1!$H$2:$H$372158,Visor!N4,insumos1!$I$2:$I$372158,"Natural")/1000000 -> 18225.248 | R31: =SUMIFS(insumos1!$K$2:$K$372158,insumos1!$H$2:$H$372158,Visor!N4,insumos1!$I$2:$I$372158,"Jurídica")/1000000 -> 99731.825
B32: ="% sección "&N4 -> % sección C | E32: =E31/(E31+H31) -> 0.1769640479 | H32: =H31/(E31+H31) -> 0.8230359521 | L32: ="% sección "&N4 -> % sección C | O32: =O31/(O31+R31) -> 0.1545074622 | R32: =R31/(O31+R31) -> 0.8454925378
B33: ="% general" -> % general | E33: 0.1646 | H33: 0.8354 | L33: ="% general" -> % general | O33: 0.0563 | R33: 0.9437
C36: Tamaño | E36: Empleadores | H36: % | J36: Empleados | N36: % | P36: Recursos en millones
C37: Micro | E37: =COUNTIFS(insumos2!$AN$2:$AN$399999,"Aprobado con subsidio",insumos2!$AO$2:$AO$399999,"MICRO") -> 4993 | H37: =E37/$E$39 -> 0.6648468708 | J37: =SUMIFS(insumos2!$AI$2:$AI$399999,insumos2!$AN$2:$AN$399999,"Aprobado con subsidio",insumos2!$AO$2:$AO$399999,"MICRO") -> 26122 | N37: =J37/$J$39 -> 0.3275691266 | P37: =SUMIFS(insumos1!$K$2:$K$372158,insumos1!$H$2:$H$372158,Visor!N4,insumos1!$J$2:$J$372158,"MICRO")/1000000 -> 43081.354
C38: Pequeña | E38: =COUNTIFS(insumos2!$AN$2:$AN$399999,"Aprobado con subsidio",insumos2!$AO$2:$AO$399999,"PEQUEÑA") -> 2517 | H38: =E38/$E$39 -> 0.3351531292 | J38: =SUMIFS(insumos2!$AI$2:$AI$399999,insumos2!$AN$2:$AN$399999,"Aprobado con subsidio",insumos2!$AO$2:$AO$399999,"PEQUEÑA") -> 53623 | N38: =J38/$J$39 -> 0.6724308734 | P38: =SUMIFS(insumos1!$K$2:$K$372158,insumos1!$H$2:$H$372158,Visor!N4,insumos1!$J$2:$J$372158,"PEQUEÑA")/1000000 -> 74875.719
C39: Total | E39: =COUNTIFS(insumos2!$AN$2:$AN$399999,"Aprobado con subsidio") -> 7510 | H39: =E39/$E$39 -> 1 | J39: =SUMIFS(insumos2!$AI$2:$AI$399999,insumos2!$AN$2:$AN$399999,"Aprobado con subsidio") -> 79745 | N39: =J39/$J$39 -> 1 | P39: =P37+P38 -> 117957.073
B41: Tamaño | C41: ="Sección "&N4 -> Sección C | D41: general | E41: ="Sección "&N4 -> Sección C | F41: general
B42: Micro | C42: =H37 -> 0.6648468708 | D42: 0.6376801371 | E42: =N37 -> 0.3275691266 | F42: 0.104427293
B43: Pequeña | C43: =H38 -> 0.3351531292 | D43: 0.2743797922 | E43: =N38 -> 0.6724308734 | F43: 0.1894298344
B44: Mediana | C44: =#REF! ->  | D44: 0.06616490439 | E44: =#REF! ->  | F44: 0.1934365931
B45: Grande | C45: =#REF! ->  | D45: 0.01371264116 | E45: =#REF! ->  | F45: 0.1301781558
B46: Muy Grande | C46: =#REF! ->  | D46: 0.008062525129 | E46: =#REF! ->  | F46: 0.3835281237
G61: Actividad económica | J61: =D4 -> Industrias manufactureras | U61: =N4 -> C
A66: Distribución Departamental | K66: Distribución en los principales municipios del País
A67: Departamento | D67: Empleadores | F67: % | G67: Empleados | I67: % | K67: Departamento | M67: Municipio | P67: Empleadores | R67: % | S67: Empleados | U67: %
A68: =IFERROR(insumos2!BE2,"") -> Bogotá | D68: =insumos2!BF2 -> 2834 | F68: =IFERROR(D68/$D$96,"") -> 0.3773635153 | G68: =insumos2!BG2 -> 26775 | I68: =G68/$G$96 -> 0.3357577278 | K68: =IFERROR(insumos2!BN2,"") -> Bogotá | M68: =IFERROR(insumos2!BO2,"") -> Bogotá, d.c. | P68: =IF(K68<>"",insumos2!BP2,"") -> 2834 | R68: =IFERROR(P68/$P$96,"") -> 0.3773635153 | S68: =IF(K68<>"",insumos2!BQ2,"") -> 26775 | U68: =IFERROR(S68/$S$96,"") -> 0.3357577278
A69: =IFERROR(insumos2!BE3,"") -> Antioquia | D69: =insumos2!BF3 -> 1737 | F69: =IFERROR(D69/$D$96,"") -> 0.2312916112 | G69: =insumos2!BG3 -> 19958 | I69: 0.2502727444 | K69: =IFERROR(insumos2!BN3,"") -> Antioquia | M69: =IFERROR(insumos2!BO3,"") -> Medellín | P69: =IF(K69<>"",insumos2!BP3,"") -> 1055 | R69: =IFERROR(P69/$P$96,"") -> 0.1404793609 | S69: =IF(K69<>"",insumos2!BQ3,"") -> 11441 | U69: =IFERROR(S69/$S$96,"") -> 0.14346981
A70: =IFERROR(insumos2!BE4,"") -> Valle del cauca | D70: =insumos2!BF4 -> 851 | F70: 0.1133155792 | G70: =insumos2!BG4 -> 9703 | I70: 0.1216753401 | K70: =IFERROR(insumos2!BN4,"") -> Valle del cauca | M70: =IFERROR(insumos2!BO4,"") -> Cali | P70: =IF(K70<>"",insumos2!BP4,"") -> 619 | R70: 0.08242343542 | S70: =IF(K70<>"",insumos2!BQ4,"") -> 6625 | U70: 0.08307730892
A71: =IFERROR(insumos2!BE5,"") -> Santander | D71: =insumos2!BF5 -> 377 | F71: 0.05019973369 | G71: =insumos2!BG5 -> 3759 | I71: 0.04713775158 | K71: =IFERROR(insumos2!BN5,"") -> Santander | M71: =IFERROR(insumos2!BO5,"") -> Bucaramanga | P71: =IF(K71<>"",insumos2!BP5,"") -> 257 | R71: 0.03422103862 | S71: =IF(K71<>"",insumos2!BQ5,"") -> 2453 | U71: 0.03076054925
A72: =IFERROR(insumos2!BE6,"") -> Cundinamarca | D72: =insumos2!BF6 -> 293 | F72: 0.03901464714 | G72: =insumos2!BG6 -> 3642 | I72: 0.04567057496 | K72: =IFERROR(insumos2!BN6,"") -> Atlántico | M72: =IFERROR(insumos2!BO6,"") -> Barranquilla | P72: =IF(K72<>"",insumos2!BP6,"") -> 245 | R72: 0.03262316911 | S72: =IF(K72<>"",insumos2!BQ6,"") -> 2604 | U72: 0.0326540849
A73: =IFERROR(insumos2!BE7,"") -> Atlántico | D73: =insumos2!BF7 -> 282 | F73: 0.03754993342 | G73: =insumos2!BG7 -> 2942 | I73: 0.03689259515 | K73: =IFERROR(insumos2!BN7,"") -> Antioquia | M73: =IFERROR(insumos2!BO7,"") -> Itagüí | P73: =IF(K73<>"",insumos2!BP7,"") -> 187 | R73: 0.02490013316 | S73: =IF(K73<>"",insumos2!BQ7,"") -> 2368 | U73: 0.0296946517
A74: =IFERROR(insumos2!BE8,"") -> Risaralda | D74: =insumos2!BF8 -> 176 | F74: 0.02343541944 | G74: =insumos2!BG8 -> 2352 | I74: 0.02949401216 | K74: =IFERROR(insumos2!BN8,"") -> Risaralda | M74: =IFERROR(insumos2!BO8,"") -> Pereira | P74: =IF(K74<>"",insumos2!BP8,"") -> 100 | R74: 0.01331557923 | S74: =IF(K74<>"",insumos2!BQ8,"") -> 1375 | U74: 0.01724246034
A75: =IFERROR(insumos2!BE9,"") -> Norte de stder | D75: =insumos2!BF9 -> 120 | F75: 0.01597869507 | G75: =insumos2!BG9 -> 1297 | I75: 0.01626434259 | K75: =IFERROR(insumos2!BN9,"") -> Norte de stder | M75: =IFERROR(insumos2!BO9,"") -> Cucuta | P75: =IF(K75<>"",insumos2!BP9,"") -> 95 | R75: 0.01264980027 | S75: =IF(K75<>"",insumos2!BQ9,"") -> 910 | U75: 0.01141137375
A76: =IFERROR(insumos2!BE10,"") -> Bolívar | D76: =insumos2!BF10 -> 105 | F76: 0.01398135819 | G76: =insumos2!BG10 -> 1146 | I76: 0.01437080695 | K76: =IFERROR(insumos2!BN10,"") -> Bolívar | M76: =IFERROR(insumos2!BO10,"") -> Cartagena de ind | P76: =IF(K76<>"",insumos2!BP10,"") -> 92 | R76: 0.01225033289 | S76: =IF(K76<>"",insumos2!BQ10,"") -> 1017 | U76: 0.01275315067
A77: =IFERROR(insumos2!BE11,"") -> Caldas | D77: =insumos2!BF11 -> 88 | F77: 0.01171770972 | G77: =insumos2!BG11 -> 1312 | I77: 0.01645244216 | K77: =IFERROR(insumos2!BN11,"") -> Valle del cauca | M77: =IFERROR(insumos2!BO11,"") -> Yumbo | P77: =IF(K77<>"",insumos2!BP11,"") -> 70 | R77: 0.009320905459 | S77: =IF(K77<>"",insumos2!BQ11,"") -> 1210 | U77: 0.0151733651
A78: =IFERROR(insumos2!BE12,"") -> Boyacá | D78: =insumos2!BF12 -> 77 | F78: 0.01025299601 | G78: =insumos2!BG12 -> 804 | I78: 0.01008213681 | K78: =IFERROR(insumos2!BN12,"") -> Caldas | M78: =IFERROR(insumos2!BO12,"") -> Manizales | P78: =IF(K78<>"",insumos2!BP12,"") -> 69 | R78: 0.009187749667 | S78: =IF(K78<>"",insumos2!BQ12,"") -> 1080 | U78: 0.01354316885
A79: =IFERROR(insumos2!BE13,"") -> Tolima | D79: =insumos2!BF13 -> 77 | F79: 0.01025299601 | G79: =insumos2!BG13 -> 945 | I79: 0.01185027274 | K79: =IFERROR(insumos2!BN13,"") -> Antioquia | M79: =IFERROR(insumos2!BO13,"") -> Envigado | P79: =IF(K79<>"",insumos2!BP13,"") -> 66 | R79: 0.00878828229 | S79: =IF(K79<>"",insumos2!BQ13,"") -> 699 | U79: 0.008765439839
A80: =IFERROR(insumos2!BE14,"") -> Huila | D80: =insumos2!BF14 -> 74 | F80: 0.009853528628 | G80: =insumos2!BG14 -> 717 | I80: 0.00899115932 | K80: =IFERROR(insumos2!BN14,"") -> Tolima | M80: =IFERROR(insumos2!BO14,"") -> Ibagué | P80: =IF(K80<>"",insumos2!BP14,"") -> 65 | R80: 0.008655126498 | S80: =IF(K80<>"",insumos2!BQ14,"") -> 882 | U80: 0.01106025456
A81: =IFERROR(insumos2!BE15,"") -> Quindío | D81: =insumos2!BF15 -> 70 | F81: 0.009320905459 | G81: =insumos2!BG15 -> 741 | I81: 0.009292118628 | K81: =IFERROR(insumos2!BN15,"") -> Risaralda | M81: =IFERROR(insumos2!BO15,"") -> Dosquebradas | P81: =IF(K81<>"",insumos2!BP15,"") -> 63 | R81: 0.008388814913 | S81: =IF(K81<>"",insumos2!BQ15,"") -> 868 | U81: 0.01088469497
A82: =IFERROR(insumos2!BE16,"") -> Nariño | D82: =insumos2!BF16 -> 63 | F82: 0.008388814913 | G82: =insumos2!BG16 -> 735 | I82: 0.009216878801 | K82: =IFERROR(insumos2!BN16,"") -> Antioquia | M82: =IFERROR(insumos2!BO16,"") -> Bello | P82: =IF(K82<>"",insumos2!BP16,"") -> 61 | R82: 0.008122503329 | S82: =IF(K82<>"",insumos2!BQ16,"") -> 713 | U82: 0.008940999436
A83: =IFERROR(insumos2!BE17,"") -> Meta | D83: =insumos2!BF17 -> 59 | F83: 0.007856191744 | G83: =insumos2!BG17 -> 540 | I83: 0.006771584425 | K83: =IFERROR(insumos2!BN17,"") -> Valle del cauca | M83: =IFERROR(insumos2!BO17,"") -> Palmira | P83: =IF(K83<>"",insumos2!BP17,"") -> 59 | R83: 0.007856191744 | S83: =IF(K83<>"",insumos2!BQ17,"") -> 721 | U83: 0.009041319205
A84: =IFERROR(insumos2!BE18,"") -> Magdalena | D84: =insumos2!BF18 -> 47 | F84: 0.006258322237 | G84: =insumos2!BG18 -> 546 | I84: 0.006846824252 | K84: =IFERROR(insumos2!BN18,"") -> Cundinamarca | M84: =IFERROR(insumos2!BO18,"") -> Soacha | P84: =IF(K84<>"",insumos2!BP18,"") -> 58 | R84: 0.007723035952 | S84: =IF(K84<>"",insumos2!BQ18,"") -> 598 | U84: 0.007498902753
A85: =IFERROR(insumos2!BE19,"") -> Córdoba | D85: =insumos2!BF19 -> 40 | F85: 0.005326231691 | G85: =insumos2!BG19 -> 411 | I85: 0.005153928146 | K85: =IFERROR(insumos2!BN19,"") -> Antioquia | M85: =IFERROR(insumos2!BO19,"") -> La estrella | P85: =IF(K85<>"",insumos2!BP19,"") -> 56 | R85: 0.007456724368 | S85: =IF(K85<>"",insumos2!BQ19,"") -> 705 | U85: 0.008840679666
A86: =IFERROR(insumos2!BE20,"") -> Cesar | D86: =insumos2!BF20 -> 36 | F86: 0.004793608522 | G86: =insumos2!BG20 -> 327 | I86: 0.004100570569 | K86: =IFERROR(insumos2!BN20,"") -> Nariño | M86: =IFERROR(insumos2!BO20,"") -> Pasto | P86: =IF(K86<>"",insumos2!BP20,"") -> 54 | R86: 0.007190412783 | S86: =IF(K86<>"",insumos2!BQ20,"") -> 642 | U86: 0.008050661483
A87: =IFERROR(insumos2!BE21,"") -> Cauca | D87: =insumos2!BF21 -> 30 | F87: 0.003994673768 | G87: =insumos2!BG21 -> 382 | I87: 0.004790268982 | K87: =IFERROR(insumos2!BN21,"") -> Huila | M87: =IFERROR(insumos2!BO21,"") -> Neiva | P87: =IF(K87<>"",insumos2!BP21,"") -> 54 | R87: 0.007190412783 | S87: =IF(K87<>"",insumos2!BQ21,"") -> 550 | U87: 0.006896984137
A88: =IFERROR(insumos2!BE22,"") -> Casanare | D88: =insumos2!BF22 -> 23 | F88: 0.003062583222 | G88: =insumos2!BG22 -> 203 | I88: 0.002545614145 | K88: =IFERROR(insumos2!BN22,"") -> Quindío | M88: =IFERROR(insumos2!BO22,"") -> Armenia | P88: =IF(K88<>"",insumos2!BP22,"") -> 52 | R88: 0.006924101198 | S88: =IF(K88<>"",insumos2!BQ22,"") -> 585 | U88: 0.007335883127
A89: =IFERROR(insumos2!BE23,"") -> Sucre | D89: =insumos2!BF23 -> 21 | F89: 0.002796271638 | G89: =insumos2!BG23 -> 228 | I89: 0.002859113424 | K89: =IFERROR(insumos2!BN23,"") -> Antioquia | M89: =IFERROR(insumos2!BO23,"") -> Rionegro | P89: =IF(K89<>"",insumos2!BP23,"") -> 50 | R89: 0.006657789614 | S89: =IF(K89<>"",insumos2!BQ23,"") -> 691 | U89: 0.00866512007
A90: =IFERROR(insumos2!BE24,"") -> Caquetá | D90: =insumos2!BF24 -> 11 | F90: 0.001464713715 | G90: =insumos2!BG24 -> 89 | I90: 0.001116057433 | K90: =IFERROR(insumos2!BN24,"") -> Meta | M90: =IFERROR(insumos2!BO24,"") -> Villavicencio | P90: =IF(K90<>"",insumos2!BP24,"") -> 46 | R90: 0.006125166445 | S90: =IF(K90<>"",insumos2!BQ24,"") -> 435 | U90: 0.005454887454
A91: =IFERROR(insumos2!BE25,"") -> La guajira | D91: =insumos2!BF25 -> 6 | F91: 0.0007989347537 | G91: =insumos2!BG25 -> 60 | I91: 0.0007523982695 | K91: =IFERROR(insumos2!BN25,"") -> Antioquia | M91: =IFERROR(insumos2!BO25,"") -> Sabaneta | P91: =IF(K91<>"",insumos2!BP25,"") -> 42 | R91: 0.005592543276 | S91: =IF(K91<>"",insumos2!BQ25,"") -> 668 | U91: 0.008376700734
A92: =IFERROR(insumos2!BE26,"") -> Arauca | D92: =insumos2!BF26 -> 3 | F92: =D92/$D$96 -> 0.0003994673768 | G92: =insumos2!BG26 -> 46 | I92: 0.0005768386733 | K92: =IFERROR(insumos2!BN26,"") -> Cundinamarca | M92: =IFERROR(insumos2!BO26,"") -> Mosquera | P92: =IF(K92<>"",insumos2!BP26,"") -> 42 | R92: 0.005592543276 | S92: =IF(K92<>"",insumos2!BQ26,"") -> 664 | U92: 0.008326540849
A93: =IFERROR(insumos2!BE27,"") -> San Andrés | D93: =insumos2!BF27 -> 3 | F93: 0.0003994673768 | G93: =insumos2!BG27 -> 25 | I93: 0.000313499279 | K93: =IFERROR(insumos2!BN27,"") -> Magdalena | M93: =IFERROR(insumos2!BO27,"") -> Santa marta | P93: =IF(K93<>"",insumos2!BP27,"") -> 39 | R93: 0.005193075899 | S93: =IF(K93<>"",insumos2!BQ27,"") -> 451 | U93: 0.005655526992
A94: =IFERROR(insumos2!BE28,"") -> Chocó | D94: =insumos2!BF28 -> 2 | F94: 0.0002663115846 | G94: =insumos2!BG28 -> 36 | I94: 0.0004514389617 | K94: =IFERROR(insumos2!BN28,"") -> Cundinamarca | M94: =IFERROR(insumos2!BO28,"") -> Cota | P94: =IF(K94<>"",insumos2!BP28,"") -> 32 | R94: 0.004260985353 | S94: =IF(K94<>"",insumos2!BQ28,"") -> 531 | U94: 0.006658724685
A95: =IFERROR(insumos2!BE29,"") -> Otros | D95: =insumos2!BF29 -> 5 | F95: 0.0006657789614 | G95: =insumos2!BG29 -> 24 | I95: 0.0003009593078 | K95: =IF(K94="","",IFERROR(insumos2!BN29,"")) -> Otros | M95: =IF(M94="","",IFERROR(insumos2!BO29,"")) -> Otros | P95: =IF(K95<>"",insumos2!BP29,"") -> 1048 | R95: 0.1395472703 | S95: =IF(K95<>"",insumos2!BQ29,"") -> 11484 | U95: 0.1440090288
A96: =insumos2!BE30 -> Total | D96: =insumos2!BF30 -> 7510 | F96: =D96/$D$96 -> 1 | G96: =insumos2!BG30 -> 79745 | I96: 1 | K96: =insumos2!BN30 -> Total | P96: =insumos2!BP30 -> 7510 | R96: =P96/$P$96 -> 1 | S96: =insumos2!BQ30 -> 79745 | U96: =S96/$S$96 -> 1
G127: Actividad económica | J127: =J61 -> Industrias manufactureras | U127: =U61 -> C
B131: Sexo | D131: ="Total empleadores sección "&N4 -> Total empleadores sección C | G131: %
B133: Hombres | D133: =VLOOKUP(N4,Hoja4!$H$2:$P$23,7,FALSE) -> 47885 | G133: =D133/$D$136 -> 0.6004765189
B134: Mujeres | D134: =VLOOKUP(N4,Hoja4!$H$2:$P$23,8,FALSE) -> 31860 | G134: =D134/$D$136 -> 0.3995234811
B135: No disponible | D135: =VLOOKUP(N4,Hoja4!$H$2:$P$23,9,FALSE) -> 0 | G135: =D135/$D$136 -> 0
B136: Total | D136: =D135+D134+D133 -> 79745 | G136: =D136/$D$136 -> 1
B139: =IFERROR("Para la Sección "&U127&" hay "&ROUND(VLOOKUP(U127,Hoja4!$H$2:$R$23,11,FALSE),0)&" mujeres por cada 100 hombres beneficiados del Programa.","") -> Para la Sección C hay 67 mujeres por cada 100 hombres beneficiados del Programa.
B152: ="Grupo o División de la sección "&U127 -> Grupo o División de la sección C | I152: Empleadores | M152: % | O152: Empleados | S152: %
B153: =IF(insumos2!BV2=0,"",insumos2!BV2) -> Elaboración de productos alimenticios | I153: =IF(insumos2!BV2=0,"",insumos2!BW2) -> 1167 | M153: =IFERROR(I153/insumos2!$BT$28,"") -> 0.1553928096 | O153: =IF(insumos2!BX2=0,"",insumos2!BX2) -> 12955 | S153: =IFERROR(O153/insumos2!$BU$28,"") -> 0.1624553264
B154: =IF(insumos2!BV3=0,"",insumos2!BV3) -> Confección de prendas de vestir | I154: =IF(insumos2!BV3=0,"",insumos2!BW3) -> 1012 | M154: =IFERROR(I154/insumos2!$BT$28,"") -> 0.1347536618 | O154: =IF(insumos2!BX3=0,"",insumos2!BX3) -> 12200 | S154: =IFERROR(O154/insumos2!$BU$28,"") -> 0.1529876481
B155: =IF(insumos2!BV4=0,"",insumos2!BV4) -> Instalación, mantenimiento y reparación especializado de maquinaria y equipo | I155: =IF(insumos2!BV4=0,"",insumos2!BW4) -> 897 | M155: =IFERROR(I155/insumos2!$BT$28,"") -> 0.1194407457 | O155: =IF(insumos2!BX4=0,"",insumos2!BX4) -> 7445 | S155: =IFERROR(O155/insumos2!$BU$28,"") -> 0.09336008527
B156: =IF(insumos2!BV5=0,"",insumos2!BV5) -> Fabricación de productos elaborados de metal, excepto maquinaria y equipo | I156: =IF(insumos2!BV5=0,"",insumos2!BW5) -> 750 | M156: =IFERROR(I156/insumos2!$BT$28,"") -> 0.09986684421 | O156: =IF(insumos2!BX5=0,"",insumos2!BX5) -> 8603 | S156: =IFERROR(O156/insumos2!$BU$28,"") -> 0.1078813719
B157: =IF(insumos2!BV6=0,"",insumos2!BV6) -> Actividades de impresión y de producción de copias a partir de grabaciones originales | I157: =IF(insumos2!BV6=0,"",insumos2!BW6) -> 496 | M157: =IFERROR(I157/insumos2!$BT$28,"") -> 0.06604527297 | O157: =IF(insumos2!BX6=0,"",insumos2!BX6) -> 4004 | S157: =IFERROR(O157/insumos2!$BU$28,"") -> 0.05021004452
B158: =IF(insumos2!BV7=0,"",insumos2!BV7) -> Fabricación de muebles, colchones y somieres | I158: =IF(insumos2!BV7=0,"",insumos2!BW7) -> 439 | M158: =IFERROR(I158/insumos2!$BT$28,"") -> 0.05845539281 | O158: =IF(insumos2!BX7=0,"",insumos2!BX7) -> 4544 | S158: =IFERROR(O158/insumos2!$BU$28,"") -> 0.05698162894
B159: =IF(insumos2!BV8=0,"",insumos2!BV8) -> Fabricación de productos de caucho y de plástico | I159: =IF(insumos2!BV8=0,"",insumos2!BW8) -> 312 | M159: =IFERROR(I159/insumos2!$BT$28,"") -> 0.04154460719 | O159: =IF(insumos2!BX8=0,"",insumos2!BX8) -> 3358 | S159: =IFERROR(O159/insumos2!$BU$28,"") -> 0.04210922315
B160: =IF(insumos2!BV9=0,"",insumos2!BV9) -> Curtido y recurtido de cueros; fabricación de calzado; fabricación de artículos de viaje, maletas, bolsos de mano y artículos similares, y fabricación de artículos de talabartería y guarnicionería; adobo y teñido de pieles | I160: =IF(insumos2!BV9=0,"",insumos2!BW9) -> 300 | M160: =IFERROR(I160/insumos2!$BT$28,"") -> 0.03994673768 | O160: =IF(insumos2!BX9=0,"",insumos2!BX9) -> 3446 | S160: =IFERROR(O160/insumos2!$BU$28,"") -> 0.04321274061
B161: =IF(insumos2!BV10=0,"",insumos2!BV10) -> Otras industrias manufactureras | I161: =IF(insumos2!BV10=0,"",insumos2!BW10) -> 289 | M161: =IFERROR(I161/insumos2!$BT$28,"") -> 0.03848202397 | O161: =IF(insumos2!BX10=0,"",insumos2!BX10) -> 2982 | S161: =IFERROR(O161/insumos2!$BU$28,"") -> 0.03739419399
B162: =IF(insumos2!BV11=0,"",insumos2!BV11) -> Transformación de la madera y fabricación de productos de madera y de corcho, excepto muebles; fabricación de artículos de cestería y espartería | I162: =IF(insumos2!BV11=0,"",insumos2!BW11) -> 250 | M162: =IFERROR(I162/insumos2!$BT$28,"") -> 0.03328894807 | O162: =IF(insumos2!BX11=0,"",insumos2!BX11) -> 2612 | S162: =IFERROR(O162/insumos2!$BU$28,"") -> 0.03275440466
B163: =IF(insumos2!BV12=0,"",insumos2!BV12) -> Fabricación de maquinaria y equipo n.c.p. | I163: =IF(insumos2!BV12=0,"",insumos2!BW12) -> 249 | M163: =IFERROR(I163/insumos2!$BT$28,"") -> 0.03315579228 | O163: =IF(insumos2!BX12=0,"",insumos2!BX12) -> 2921 | S163: =IFERROR(O163/insumos2!$BU$28,"") -> 0.03662925575
B164: =IF(insumos2!BV13=0,"",insumos2!BV13) -> Fabricación de sustancias y productos químicos | I164: =IF(insumos2!BV13=0,"",insumos2!BW13) -> 236 | M164: =IFERROR(I164/insumos2!$BT$28,"") -> 0.03142476698 | O164: =IF(insumos2!BX13=0,"",insumos2!BX13) -> 2254 | S164: =IFERROR(O164/insumos2!$BU$28,"") -> 0.02826509499
B165: =IF(insumos2!BV14=0,"",insumos2!BV14) -> Fabricación de productos textiles | I165: =IF(insumos2!BV14=0,"",insumos2!BW14) -> 211 | M165: =IFERROR(I165/insumos2!$BT$28,"") -> 0.02809587217 | O165: =IF(insumos2!BX14=0,"",insumos2!BX14) -> 1951 | S165: =IFERROR(O165/insumos2!$BU$28,"") -> 0.02446548373
B166: =IF(insumos2!BV15=0,"",insumos2!BV15) -> Fabricación de otros productos minerales no metálicos | I166: =IF(insumos2!BV15=0,"",insumos2!BW15) -> 188 | M166: =IFERROR(I166/insumos2!$BT$28,"") -> 0.02503328895 | O166: =IF(insumos2!BX15=0,"",insumos2!BX15) -> 2686 | S166: =IFERROR(O166/insumos2!$BU$28,"") -> 0.03368236253
B167: =IF(insumos2!BV16=0,"",insumos2!BV16) -> Fabricación de papel, cartón y productos de papel y cartón | I167: =IF(insumos2!BV16=0,"",insumos2!BW16) -> 173 | M167: =IFERROR(I167/insumos2!$BT$28,"") -> 0.02303595206 | O167: =IF(insumos2!BX16=0,"",insumos2!BX16) -> 1684 | S167: =IFERROR(O167/insumos2!$BU$28,"") -> 0.02111731143
B168: =IF(insumos2!BV17=0,"",insumos2!BV17) -> Fabricación de productos metalúrgicos básicos | I168: =IF(insumos2!BV17=0,"",insumos2!BW17) -> 129 | M168: =IFERROR(I168/insumos2!$BT$28,"") -> 0.0171770972 | O168: =IF(insumos2!BX17=0,"",insumos2!BX17) -> 1396 | S168: =IFERROR(O168/insumos2!$BU$28,"") -> 0.01750579974
B169: =IF(insumos2!BV18=0,"",insumos2!BV18) -> Fabricación de vehículos automotores, remolques y semirremolques | I169: =IF(insumos2!BV18=0,"",insumos2!BW18) -> 111 | M169: =IFERROR(I169/insumos2!$BT$28,"") -> 0.01478029294 | O169: =IF(insumos2!BX18=0,"",insumos2!BX18) -> 1553 | S169: =IFERROR(O169/insumos2!$BU$28,"") -> 0.01947457521
B170: =IF(insumos2!BV19=0,"",insumos2!BV19) -> Fabricación de aparatos y equipo eléctrico | I170: =IF(insumos2!BV19=0,"",insumos2!BW19) -> 105 | M170: =IFERROR(I170/insumos2!$BT$28,"") -> 0.01398135819 | O170: =IF(insumos2!BX19=0,"",insumos2!BX19) -> 1294 | S170: =IFERROR(O170/insumos2!$BU$28,"") -> 0.01622672268
B171: =IF(insumos2!BV20=0,"",insumos2!BV20) -> Elaboración de bebidas | I171: =IF(insumos2!BV20=0,"",insumos2!BW20) -> 88 | M171: =IFERROR(I171/insumos2!$BT$28,"") -> 0.01171770972 | O171: =IF(insumos2!BX20=0,"",insumos2!BX20) -> 750 | S171: =IFERROR(O171/insumos2!$BU$28,"") -> 0.009404978369
B172: =IF(insumos2!BV21=0,"",insumos2!BV21) -> Fabricación de productos informáticos, electrónicos y ópticos | I172: =IF(insumos2!BV21=0,"",insumos2!BW21) -> 35 | M172: =IFERROR(I172/insumos2!$BT$28,"") -> 0.00466045273 | O172: =IF(insumos2!BX21=0,"",insumos2!BX21) -> 347 | S172: =IFERROR(O172/insumos2!$BU$28,"") -> 0.004351369992
B173: =IF(insumos2!BV22=0,"",insumos2!BV22) -> Fabricación de productos farmacéuticos, sustancias químicas medicinales y productos botánicos de uso farmacéutico | I173: =IF(insumos2!BV22=0,"",insumos2!BW22) -> 30 | M173: =IFERROR(I173/insumos2!$BT$28,"") -> 0.003994673768 | O173: =IF(insumos2!BX22=0,"",insumos2!BX22) -> 231 | S173: =IFERROR(O173/insumos2!$BU$28,"") -> 0.002896733338
B174: =IF(insumos2!BV23=0,"",insumos2!BV23) -> Coquización, fabricación de productos de la refinación del petróleo y actividad de mezcla de combustibles | I174: =IF(insumos2!BV23=0,"",insumos2!BW23) -> 24 | M174: =IFERROR(I174/insumos2!$BT$28,"") -> 0.003195739015 | O174: =IF(insumos2!BX23=0,"",insumos2!BX23) -> 309 | S174: =IFERROR(O174/insumos2!$BU$28,"") -> 0.003874851088
B175: =IF(insumos2!BV24=0,"",insumos2!BV24) -> Fabricación de otros tipos de equipo de transporte | I175: =IF(insumos2!BV24=0,"",insumos2!BW24) -> 17 | M175: =IFERROR(I175/insumos2!$BT$28,"") -> 0.002263648469 | O175: =IF(insumos2!BX24=0,"",insumos2!BX24) -> 202 | S175: =IFERROR(O175/insumos2!$BU$28,"") -> 0.002533074174
B176: =IF(insumos2!BV25=0,"",insumos2!BV25) -> Elaboración de productos de tabaco | I176: =IF(insumos2!BV25=0,"",insumos2!BW25) -> 2 | M176: =IFERROR(I176/insumos2!$BT$28,"") -> 0.0002663115846 | O176: =IF(insumos2!BX25=0,"",insumos2!BX25) -> 18 | S176: =IFERROR(O176/insumos2!$BU$28,"") -> 0.0002257194808
B177: =IF(insumos2!BV26=0,"",insumos2!BV26) ->  | I177: =IF(insumos2!BV26=0,"",insumos2!BW26) ->  | M177: =IFERROR(I177/insumos2!$BT$28,"") ->  | O177: =IF(insumos2!BX26=0,"",insumos2!BX26) ->  | S177: =IFERROR(O177/insumos2!$BU$28,"") -> 
B180: Postulaciones recibidas en la sección | F180: Cantidad | I180: % | L180: Empleados postulados en la sección | P180: Cantidad | S180: %
B181: Total solicitudes | F181: =COUNT(insumos2!$AI$2:$AI$399999) -> 8208 | I181: =F181/$F$181 -> 1 | L181: Total empleados | P181: =SUM(insumos2!$AI$2:$AJ$399999) -> 99392 | S181: =P181/$P$181 -> 1
B182: Empleadores con beneficiados | F182: =COUNTIFS(insumos2!$AN$2:$AN$399999,"Aprobado con subsidio") -> 7510 | I182: =F182/$F$181 -> 0.9149610136 | L182: Conformidad | P182: =SUMIFS(insumos2!$AI$2:$AI$399999,insumos2!$AN$2:$AN$399999,"Aprobado con subsidio") -> 79745 | S182: =P182/$P$181 -> 0.8023281552
B183: Empleadores sin beneficio | F183: =F181-F182 -> 698 | I183: =F183/$F$181 -> 0.08503898635 | L183: No conformidad | P183: =P181-P182 -> 19647 | S183: =P183/$P$181 -> 0.1976718448

Sheet insumos1 (hidden)
A1: Ciclo | B1: DIVIPOLA1 | C1: MpioNOM | D1: Depto | E1: DeptoNOM | F1: NOM_AECONOMICA1 | G1: SECTOR_ECONOMICO1 | H1: actividad | I1: TIPO_PERSONA1 | J1: SIZE1 | K1: Suma de RECURSOS1 | Q1: Suma de Suma de RECURSOS1 | R1: Etiquetas de columna
B2: 66001 | C2: PEREIRA | D2: 66 | E2: =VLOOKUP(D2,'[1]DIVIPOLA MPIO'!$B$5:$C$1129,2,0) -> RISARALDA | F2: COMERCIO AL POR MAYOR Y AL POR MENOR; REPARACIÓN DE VEHÍCULOS AUTOMOTORES Y MOTOCICLETAS | G2: 4719 | H2: G | I2: Natural | J2: MICRO | K2: 908000 | Q2: Etiquetas de fila | R2: (en blanco) | S2: Total general
B3: 66001 | C3: PEREIRA | D3: 66 | E3: =VLOOKUP(D3,'[1]DIVIPOLA MPIO'!$B$5:$C$1129,2,0) -> RISARALDA | F3: EDUCACIÓN | G3: 8512 | H3: P | I3: Natural | J3: MICRO | K3: 28055000 | Q3: ACTIVIDADES ARTÍSTICAS, DE ENTRETENIMIENTO Y RECREACIÓN | R3: 753769500 | S3: 753769500
B4: 11001 | C4: BOGOTÁ, D.C. | D4: 11 | E4: =VLOOKUP(D4,'[1]DIVIPOLA MPIO'!$B$5:$C$1129,2,0) -> BOGOTÁ, D.C. | F4: COMERCIO AL POR MAYOR Y AL POR MENOR; REPARACIÓN DE VEHÍCULOS AUTOMOTORES Y MOTOCICLETAS | G4: 4729 | H4: G | I4: Natural | J4: MICRO | K4: 3267000 | Q4: ACTIVIDADES DE ATENCIÓN DE LA SALUD HUMANA Y DE ASISTENCIA SOCIAL | R4: 2381098500 | S4: 2381098500
B5: 11001 | C5: BOGOTÁ, D.C. | D5: 11 | E5: =VLOOKUP(D5,'[1]DIVIPOLA MPIO'!$B$5:$C$1129,2,0) -> BOGOTÁ, D.C. | F5: ALOJAMIENTO Y SERVICIOS DE COMIDA | G5: 5613 | H5: I | I5: Natural | J5: MICRO | K5: 6718000 | Q5: ACTIVIDADES DE LOS HOGARES INDIVIDUALES EN CALIDAD DE EMPLEADORES; ACTIVIDADES NO DIFERENCIADAS DE LOS HOGARES INDIVIDUALES COMO PRODUCTORES DE BIENES Y SERVICIOS PARA USO PROPIO | R5: 17424000 | S5: 17424000
B6: 66170 | C6: DOSQUEBRADAS | D6: 66 | E6: =VLOOKUP(D6,'[1]DIVIPOLA MPIO'!$B$5:$C$1129,2,0) -> RISARALDA | F6: ACTIVIDADES DE SERVICIOS ADMINISTRATIVOS Y DE APOYO | G6: 8129 | H6: N | I6: Natural | J6: MICRO | K6: 5355000 | Q6: ACTIVIDADES DE SERVICIOS ADMINISTRATIVOS Y DE APOYO | R6: 10798161000 | S6: 10798161000
B7: 5001 | C7: MEDELLÍN | D7: 5 | E7: =VLOOKUP(D7,'[1]DIVIPOLA MPIO'!$B$5:$C$1129,2,0) -> ANTIOQUIA | F7: ACTIVIDADES DE ATENCIÓN DE LA SALUD HUMANA Y DE ASISTENCIA SOCIAL | G7: 8730 | H7: Q | I7: Natural | J7: MICRO | K7: 7264000 | Q7: ACTIVIDADES FINANCIERAS Y DE SEGUROS | R7: 617644500 | S7: 617644500
B8: 5088 | C8: BELLO | D8: 5 | E8: =VLOOKUP(D8,'[1]DIVIPOLA MPIO'!$B$5:$C$1129,2,0) -> ANTIOQUIA | F8: COMERCIO AL POR MAYOR Y AL POR MENOR; REPARACIÓN DE VEHÍCULOS AUTOMOTORES Y MOTOCICLETAS | G8: 4711 | H8: G | I8: Natural | J8: PEQUEÑA | K8: 31042000 | Q8: ACTIVIDADES INMOBILIARIAS | R8: 522357000 | S8: 522357000
B9: 66001 | C9: PEREIRA | D9: 66 | E9: =VLOOKUP(D9,'[1]DIVIPOLA MPIO'!$B$5:$C$1129,2,0) -> RISARALDA | F9: TRANSPORTE Y ALMACENAMIENTO | G9: 5320 | H9: H | I9: Natural | J9: MICRO | K9: 6354000 | Q9: ACTIVIDADES PROFESIONALES, CIENTÍFICAS Y TÉCNICAS | R9: 5504169000 | S9: 5504169000
B10: 50001 | C10: VILLAVICENCIO | D10: 50 | E10: =VLOOKUP(D10,'[1]DIVIPOLA MPIO'!$B$5:$C$1129,2,0) -> META | F10: ALOJAMIENTO Y SERVICIOS DE COMIDA | G10: 5514 | H10: I | I10: Natural | J10: MICRO | K10: 10896000 | Q10: ADMINISTRACIÓN PÚBLICA Y DEFENSA; PLANES DE SEGURIDAD SOCIAL DE AFILIACIÓN OBLIGATORIA | R10: 109263000 | S10: 109263000
B11: 66001 | C11: PEREIRA | D11: 66 | E11: =VLOOKUP(D11,'[1]DIVIPOLA MPIO'!$B$5:$C$1129,2,0) -> RISARALDA | F11: ACTIVIDADES FINANCIERAS Y DE SEGUROS | G11: 6619 | H11: K | I11: Natural | J11: MICRO | K11: 2724000 | Q11: AGRICULTURA, GANADERÍA, CAZA, SILVICULTURA Y PESCA | R11: 4285033500 | S11: 4285033500
B12: 50001 | C12: VILLAVICENCIO | D12: 50 | E12: =VLOOKUP(D12,'[1]DIVIPOLA MPIO'!$B$5:$C$1129,2,0) -> META | F12: COMERCIO AL POR MAYOR Y AL POR MENOR; REPARACIÓN DE VEHÍCULOS AUTOMOTORES Y MOTOCICLETAS | G12: 4541 | H12: G | I12: Natural | J12: PEQUEÑA | K12: 6354000 | Q12: ALOJAMIENTO Y SERVICIOS DE COMIDA | R12: 3928567500 | S12: 3928567500
B13: 5360 | C13: ITAGUI | D13: 5 | E13: =VLOOKUP(D13,'[1]DIVIPOLA MPIO'!$B$5:$C$1129,2,0) -> ANTIOQUIA | F13: ALOJAMIENTO Y SERVICIOS DE COMIDA | G13: 5619 | H13: I | I13: Natural | J13: MICRO | K13: 8172000 | Q13: COMERCIO AL POR MAYOR Y AL POR MENOR; REPARACIÓN DE VEHÍCULOS AUTOMOTORES Y MOTOCICLETAS | R13: 21186495000 | S13: 21186495000
B14: 5001 | C14: MEDELLÍN | D14: 5 | E14: =VLOOKUP(D14,'[1]DIVIPOLA MPIO'!$B$5:$C$1129,2,0) -> ANTIOQUIA | F14: COMERCIO AL POR MAYOR Y AL POR MENOR; REPARACIÓN DE VEHÍCULOS AUTOMOTORES Y MOTOCICLETAS | G14: 4541 | H14: G | I14: Natural | J14: MICRO | K14: 8349000 | Q14: CONSTRUCCIÓN | R14: 9549078000 | S14: 9549078000
B15: 66001 | C15: PEREIRA | D15: 66 | E15: =VLOOKUP(D15,'[1]DIVIPOLA MPIO'!$B$5:$C$1129,2,0) -> RISARALDA | F15: COMERCIO AL POR MAYOR Y AL POR MENOR; REPARACIÓN DE VEHÍCULOS AUTOMOTORES Y MOTOCICLETAS | G15: 4719 | H15: G | I15: Natural | J15: PEQUEÑA | K15: 14254000 | Q15: DISTRIBUCIÓN DE AGUA; EVACUACIÓN Y TRATAMIENTO DE AGUAS RESIDUALES, GESTIÓN DE DESECHOS Y ACTIVIDADES DE SANEAMIENTO AMBIENTAL | R15: 246477000 | S15: 246477000
B16: 76001 | C16: CALI | D16: 76 | E16: =VLOOKUP(D16,'[1]DIVIPOLA MPIO'!$B$5:$C$1129,2,0) -> VALLE DEL CAUCA | F16: COMERCIO AL POR MAYOR Y AL POR MENOR; REPARACIÓN DE VEHÍCULOS AUTOMOTORES Y MOTOCICLETAS | G16: 4649 | H16: G | I16: Natural | J16: MICRO | K16: 2814000 | Q16: EDUCACIÓN | R16: 1614442500 | S16: 1614442500
B17: 94001 | C17: INÍRIDA | D17: 94 | E17: =VLOOKUP(D17,'[1]DIVIPOLA MPIO'!$B$5:$C$1129,2,0) -> GUAINÍA | F17: ACTIVIDADES DE ATENCIÓN DE LA SALUD HUMANA Y DE ASISTENCIA SOCIAL | G17: 8899 | H17: Q | I17: Natural | J17: MICRO | K17: 4085000 | Q17: EXPLOTACIÓN DE MINAS Y CANTERAS | R17: 571906500 | S17: 571906500
B18: 63130 | C18: CALARCA | D18: 63 | E18: =VLOOKUP(D18,'[1]DIVIPOLA MPIO'!$B$5:$C$1129,2,0) -> QUINDÍO | F18: INDUSTRIAS MANUFACTURERAS | G18: 1511 | H18: C | I18: Natural | J18: MICRO | K18: 1452000 | Q18: INDUSTRIAS MANUFACTURERAS | R18: 28151013000 | S18: 28151013000
B19: 5001 | C19: MEDELLÍN | D19: 5 | E19: =VLOOKUP(D19,'[1]DIVIPOLA MPIO'!$B$5:$C$1129,2,0) -> ANTIOQUIA | F19: ACTIVIDADES PROFESIONALES, CIENTÍFICAS Y TÉCNICAS | G19: 7310 | H19: M | I19: Natural | J19: MICRO | K19: 8712000 | Q19: INFORMACIÓN Y COMUNICACIONES | R19: 1208790000 | S19: 1208790000
B20: 76001 | C20: CALI | D20: 76 | E20: =VLOOKUP(D20,'[1]DIVIPOLA MPIO'!$B$5:$C$1129,2,0) -> VALLE DEL CAUCA | F20: ALOJAMIENTO Y SERVICIOS DE COMIDA | G20: 5611 | H20: I | I20: Natural | J20: MICRO | K20: 9534000 | Q20: OTRAS | R20: 676995000 | S20: 676995000
B21: 8001 | C21: BARRANQUILLA | D21: 8 | E21: =VLOOKUP(D21,'[1]DIVIPOLA MPIO'!$B$5:$C$1129,2,0) -> ATLÁNTICO | F21: COMERCIO AL POR MAYOR Y AL POR MENOR; REPARACIÓN DE VEHÍCULOS AUTOMOTORES Y MOTOCICLETAS | G21: 4520 | H21: G | I21: Natural | J21: MICRO | K21: 5082000 | Q21: OTRAS ACTIVIDADES DE SERVICIOS | R21: 965217000 | S21: 965217000
B22: 73001 | C22: IBAGUÉ | D22: 73 | E22: =VLOOKUP(D22,'[1]DIVIPOLA MPIO'!$B$5:$C$1129,2,0) -> TOLIMA | F22: COMERCIO AL POR MAYOR Y AL POR MENOR; REPARACIÓN DE VEHÍCULOS AUTOMOTORES Y MOTOCICLETAS | G22: 4659 | H22: G | I22: Natural | J22: MICRO | K22: 4902000 | Q22: SUMINISTRO DE ELECTRICIDAD, GAS, VAPOR Y AIRE ACONDICIONADO | R22: 43015500 | S22: 43015500
B23: 8001 | C23: BARRANQUILLA | D23: 8 | E23: =VLOOKUP(D23,'[1]DIVIPOLA MPIO'!$B$5:$C$1129,2,0) -> ATLÁNTICO | F23: COMERCIO AL POR MAYOR Y AL POR MENOR; REPARACIÓN DE VEHÍCULOS AUTOMOTORES Y MOTOCICLETAS | G23: 4729 | H23: G | I23: Natural | J23: MICRO | K23: 11616000 | Q23: TRANSPORTE Y ALMACENAMIENTO | R23: 14265537000 | S23: 14265537000
B24: 13001 | C24: CARTAGENA | D24: 13 | E24: =VLOOKUP(D24,'[1]DIVIPOLA MPIO'!$B$5:$C$1129,2,0) -> BOLÍVAR | F24: ALOJAMIENTO Y SERVICIOS DE COMIDA | G24: 5611 | H24: I | I24: Natural | J24: MICRO | K24: 10896000 | Q24: (en blanco)
B25: 76001 | C25: CALI | D25: 76 | E25: =VLOOKUP(D25,'[1]DIVIPOLA MPIO'!$B$5:$C$1129,2,0) -> VALLE DEL CAUCA | F25: ALOJAMIENTO Y SERVICIOS DE COMIDA | G25: 5611 | H25: I | I25: Natural | J25: MICRO | K25: 8172000 | Q25: Total general | R25: 107396454000 | S25: 107396454000
B26: 66001 | C26: PEREIRA | D26: 66 | E26: =VLOOKUP(D26,'[1]DIVIPOLA MPIO'!$B$5:$C$1129,2,0) -> RISARALDA | F26: INDUSTRIAS MANUFACTURERAS | G26: 1081 | H26: C | I26: Natural | J26: PEQUEÑA | K26: 99507000
B27: 25126 | C27: CAJICÁ | D27: 25 | E27: =VLOOKUP(D27,'[1]DIVIPOLA MPIO'!$B$5:$C$1129,2,0) -> CUNDINAMARCA | F27: ACTIVIDADES DE ATENCIÓN DE LA SALUD HUMANA Y DE ASISTENCIA SOCIAL | G27: 8899 | H27: Q | I27: Natural | J27: MICRO | K27: 1180000
B28: 5360 | C28: ITAGUI | D28: 5 | E28: =VLOOKUP(D28,'[1]DIVIPOLA MPIO'!$B$5:$C$1129,2,0) -> ANTIOQUIA | F28: COMERCIO AL POR MAYOR Y AL POR MENOR; REPARACIÓN DE VEHÍCULOS AUTOMOTORES Y MOTOCICLETAS | G28: 4631 | H28: G | I28: Natural | J28: MICRO | K28: 3540000
B29: 17001 | C29: MANIZALES | D29: 17 | E29: =VLOOKUP(D29,'[1]DIVIPOLA MPIO'!$B$5:$C$1129,2,0) -> CALDAS | F29: TRANSPORTE Y ALMACENAMIENTO | G29: 5221 | H29: H | I29: Natural | J29: MICRO | K29: 2178000
B30: 19001 | C30: POPAYÁN | D30: 19 | E30: =VLOOKUP(D30,'[1]DIVIPOLA MPIO'!$B$5:$C$1129,2,0) -> CAUCA | F30: COMERCIO AL POR MAYOR Y AL POR MENOR; REPARACIÓN DE VEHÍCULOS AUTOMOTORES Y MOTOCICLETAS | G30: 4762 | H30: G | I30: Natural | J30: MICRO | K30: 2178000
B31: 5212 | C31: COPACABANA | D31: 5 | E31: =VLOOKUP(D31,'[1]DIVIPOLA MPIO'!$B$5:$C$1129,2,0) -> ANTIOQUIA | F31: COMERCIO AL POR MAYOR Y AL POR MENOR; REPARACIÓN DE VEHÍCULOS AUTOMOTORES Y MOTOCICLETAS | G31: 4775 | H31: G | I31: Natural | J31: PEQUEÑA | K31: 6534000
B32: 66001 | C32: PEREIRA | D32: 66 | E32: =VLOOKUP(D32,'[1]DIVIPOLA MPIO'!$B$5:$C$1129,2,0) -> RISARALDA | F32: INDUSTRIAS MANUFACTURERAS | G32: 2599 | H32: C | I32: Natural | J32: MICRO | K32: 16520000
B33: 76001 | C33: CALI | D33: 76 | E33: =VLOOKUP(D33,'[1]DIVIPOLA MPIO'!$B$5:$C$1129,2,0) -> VALLE DEL CAUCA | F33: COMERCIO AL POR MAYOR Y AL POR MENOR; REPARACIÓN DE VEHÍCULOS AUTOMOTORES Y MOTOCICLETAS | G33: 4771 | H33: G | I33: Natural | J33: MICRO | K33: 7262000
B34: 13001 | C34: CARTAGENA | D34: 13 | E34: =VLOOKUP(D34,'[1]DIVIPOLA MPIO'!$B$5:$C$1129,2,0) -> BOLÍVAR | F34: COMERCIO AL POR MAYOR Y AL POR MENOR; REPARACIÓN DE VEHÍCULOS AUTOMOTORES Y MOTOCICLETAS | G34: 4711 | H34: G | I34: Natural | J34: MICRO | K34: 6899000
B35: 52356 | C35: IPIALES | D35: 52 | E35: =VLOOKUP(D35,'[1]DIVIPOLA MPIO'!$B$5:$C$1129,2,0) -> NARIÑO | F35: COMERCIO AL POR MAYOR Y AL POR MENOR; REPARACIÓN DE VEHÍCULOS AUTOMOTORES Y MOTOCICLETAS | G35: 4719 | H35: G | I35: Natural | J35: MICRO | K35: 19067000
B36: 76001 | C36: CALI | D36: 76 | E36: =VLOOKUP(D36,'[1]DIVIPOLA MPIO'!$B$5:$C$1129,2,0) -> VALLE DEL CAUCA | F36: COMERCIO AL POR MAYOR Y AL POR MENOR; REPARACIÓN DE VEHÍCULOS AUTOMOTORES Y MOTOCICLETAS | G36: 4771 | H36: G | I36: Natural | J36: MICRO | K36: 2724000
B37: 47189 | C37: CIÉNAGA | D37: 47 | E37: =VLOOKUP(D37,'[1]DIVIPOLA MPIO'!$B$5:$C$1129,2,0) -> MAGDALENA | F37: COMERCIO AL POR MAYOR Y AL POR MENOR; REPARACIÓN DE VEHÍCULOS AUTOMOTORES Y MOTOCICLETAS | G37: 4663 | H37: G | I37: Natural | J37: MICRO | K37: 1543000
B38: 41551 | C38: PITALITO | D38: 41 | E38: =VLOOKUP(D38,'[1]DIVIPOLA MPIO'!$B$5:$C$1129,2,0) -> HUILA | F38: INDUSTRIAS MANUFACTURERAS | G38: 2392 | H38: C | I38: Natural | J38: MICRO | K38: 363000
B39: 66001 | C39: PEREIRA | D39: 66 | E39: =VLOOKUP(D39,'[1]DIVIPOLA MPIO'!$B$5:$C$1129,2,0) -> RISARALDA | F39: COMERCIO AL POR MAYOR Y AL POR MENOR; REPARACIÓN DE VEHÍCULOS AUTOMOTORES Y MOTOCICLETAS | G39: 4772 | H39: G | I39: Natural | J39: MICRO | K39: 2541000
B40: 66170 | C40: DOSQUEBRADAS | D40: 66 | E40: =VLOOKUP(D40,'[1]DIVIPOLA MPIO'!$B$5:$C$1129,2,0) -> RISARALDA | F40: CONSTRUCCIÓN | G40: 4330 | H40: F | I40: Natural | J40: MICRO | K40: 18333000
B41: 66001 | C41: PEREIRA | D41: 66 | E41: =VLOOKUP(D41,'[1]DIVIPOLA MPIO'!$B$5:$C$1129,2,0) -> RISARALDA | F41: ACTIVIDADES INMOBILIARIAS | G41: 6810 | H41: L | I41: Natural | J41: MICRO | K41: 10164000
B42: 66001 | C42: PEREIRA | D42: 66 | E42: =VLOOKUP(D42,'[1]DIVIPOLA MPIO'!$B$5:$C$1129,2,0) -> RISARALDA | F42: INDUSTRIAS MANUFACTURERAS | G42: 1521 | H42: C | I42: Natural | J42: MICRO | K42: 5991000
B43: 73001 | C43: IBAGUÉ | D43: 73 | E43: =VLOOKUP(D43,'[1]DIVIPOLA MPIO'!$B$5:$C$1129,2,0) -> TOLIMA | F43: COMERCIO AL POR MAYOR Y AL POR MENOR; REPARACIÓN DE VEHÍCULOS AUTOMOTORES Y MOTOCICLETAS | G43: 4773 | H43: G | I43: Natural | J43: MICRO | K43: 7264000
B44: 25123 | C44: CACHIPAY | D44: 25 | E44: =VLOOKUP(D44,'[1]DIVIPOLA MPIO'!$B$5:$C$1129,2,0) -> CUNDINAMARCA | F44: INDUSTRIAS MANUFACTURERAS | G44: 1081 | H44: C | I44: Natural | J44: MICRO | K44: 16613000
B45: 76001 | C45: CALI | D45: 76 | E45: =VLOOKUP(D45,'[1]DIVIPOLA MPIO'!$B$5:$C$1129,2,0) -> VALLE DEL CAUCA | F45: ALOJAMIENTO Y SERVICIOS DE COMIDA | G45: 5613 | H45: I | I45: Natural | J45: MICRO | K45: 4540000
B46: 66170 | C46: DOSQUEBRADAS | D46: 66 | E46: =VLOOKUP(D46,'[1]DIVIPOLA MPIO'!$B$5:$C$1129,2,0) -> RISARALDA | F46: ALOJAMIENTO Y SERVICIOS DE COMIDA | G46: 5530 | H46: I | I46: Natural | J46: MICRO | K46: 9080000
B47: 76001 | C47: CALI | D47: 76 | E47: =VLOOKUP(D47,'[1]DIVIPOLA MPIO'!$B$5:$C$1129,2,0) -> VALLE DEL CAUCA | F47: COMERCIO AL POR MAYOR Y AL POR MENOR; REPARACIÓN DE VEHÍCULOS AUTOMOTORES Y MOTOCICLETAS | G47: 4772 | H47: G | I47: Natural | J47: PEQUEÑA | K47: 46759000
B48: 63001 | C48: ARMENIA | D48: 63 | E48: =VLOOKUP(D48,'[1]DIVIPOLA MPIO'!$B$5:$C$1129,2,0) -> QUINDÍO | F48: INDUSTRIAS MANUFACTURERAS | G48: 1020 | H48: C | I48: Natural | J48: PEQUEÑA | K48: 20239000
B49: 66001 | C49: PEREIRA | D49: 66 | E49: =VLOOKUP(D49,'[1]DIVIPOLA MPIO'!$B$5:$C$1129,2,0) -> RISARALDA | F49: ACTIVIDADES DE ATENCIÓN DE LA SALUD HUMANA Y DE ASISTENCIA SOCIAL | G49: 8899 | H49: Q | I49: Natural | J49: MICRO | K49: 1362000
B50: 76147 | C50: CARTAGO | D50: 76 | E50: =VLOOKUP(D50,'[1]DIVIPOLA MPIO'!$B$5:$C$1129,2,0) -> VALLE DEL CAUCA | F50: COMERCIO AL POR MAYOR Y AL POR MENOR; REPARACIÓN DE VEHÍCULOS AUTOMOTORES Y MOTOCICLETAS | G50: 4751 | H50: G | I50: Natural | J50: MICRO | K50: 2542000
B51: 11001 | C51: BOGOTÁ, D.C. | D51: 11 | E51: =VLOOKUP(D51,'[1]DIVIPOLA MPIO'!$B$5:$C$1129,2,0) -> BOGOTÁ, D.C. | F51: ACTIVIDADES ARTÍSTICAS, DE ENTRETENIMIENTO Y RECREACIÓN | G51: 9329 | H51: R | I51: Natural | J51: MICRO | K51: 8172000
B52: 73001 | C52: IBAGUÉ | D52: 73 | E52: =VLOOKUP(D52,'[1]DIVIPOLA MPIO'!$B$5:$C$1129,2,0) -> TOLIMA | F52: CONSTRUCCIÓN | G52: 4330 | H52: F | I52: Natural | J52: MICRO | K52: 17424000
B53: 17174 | C53: CHINCHINÁ | D53: 17 | E53: =VLOOKUP(D53,'[1]DIVIPOLA MPIO'!$B$5:$C$1129,2,0) -> CALDAS | F53: ACTIVIDADES DE ATENCIÓN DE LA SALUD HUMANA Y DE ASISTENCIA SOCIAL | G53: 8899 | H53: Q | I53: Natural | J53: MICRO | K53: 6264000
B54: 66170 | C54: DOSQUEBRADAS | D54: 66 | E54: =VLOOKUP(D54,'[1]DIVIPOLA MPIO'!$B$5:$C$1129,2,0) -> RISARALDA | F54: ACTIVIDADES INMOBILIARIAS | G54: 6820 | H54: L | I54: Natural | J54: PEQUEÑA | K54: 17429000
B55: 66001 | C55: PEREIRA | D55: 66 | E55: =VLOOKUP(D55,'[1]DIVIPOLA MPIO'!$B$5:$C$1129,2,0) -> RISARALDA | F55: ALOJAMIENTO Y SERVICIOS DE COMIDA | G55: 5612 | H55: I | I55: Natural | J55: MICRO | K55: 14528000
B56: 66682 | C56: SANTA ROSA DE CABAL | D56: 66 | E56: =VLOOKUP(D56,'[1]DIVIPOLA MPIO'!$B$5:$C$1129,2,0) -> RISARALDA | F56: INDUSTRIAS MANUFACTURERAS | G56: 2712 | H56: C | I56: Natural | J56: PEQUEÑA | K56: 4357000
B57: 66001 | C57: PEREIRA | D57: 66 | E57: =VLOOKUP(D57,'[1]DIVIPOLA MPIO'!$B$5:$C$1129,2,0) -> RISARALDA | F57: COMERCIO AL POR MAYOR Y AL POR MENOR; REPARACIÓN DE VEHÍCULOS AUTOMOTORES Y MOTOCICLETAS | G57: 4711 | H57: G | I57: Natural | J57: PEQUEÑA | K57: 35673000
B58: 66170 | C58: DOSQUEBRADAS | D58: 66 | E58: =VLOOKUP(D58,'[1]DIVIPOLA MPIO'!$B$5:$C$1129,2,0) -> RISARALDA | F58: COMERCIO AL POR MAYOR Y AL POR MENOR; REPARACIÓN DE VEHÍCULOS AUTOMOTORES Y MOTOCICLETAS | G58: 4762 | H58: G | I58: Natural | J58: MICRO | K58: 2995000
B59: 76147 | C59: CARTAGO | D59: 76 | E59: =VLOOKUP(D59,'[1]DIVIPOLA MPIO'!$B$5:$C$1129,2,0) -> VALLE DEL CAUCA | F59: INDUSTRIAS MANUFACTURERAS | G59: 3110 | H59: C | I59: Natural | J59: MICRO | K59: 11436000
B60: 66001 | C60: PEREIRA | D60: 66 | E60: =VLOOKUP(D60,'[1]DIVIPOLA MPIO'!$B$5:$C$1129,2,0) -> RISARALDA | F60: ACTIVIDADES DE SERVICIOS ADMINISTRATIVOS Y DE APOYO | G60: 8020 | H60: N | I60: Natural | J60: MICRO | K60: 1271000
B61: 66170 | C61: DOSQUEBRADAS | D61: 66 | E61: =VLOOKUP(D61,'[1]DIVIPOLA MPIO'!$B$5:$C$1129,2,0) -> RISARALDA | F61: ACTIVIDADES DE SERVICIOS ADMINISTRATIVOS Y DE APOYO | G61: 7730 | H61: N | I61: Natural | J61: MICRO | K61: 21056000
B62: 11001 | C62: BOGOTÁ, D.C. | D62: 11 | E62: =VLOOKUP(D62,'[1]DIVIPOLA MPIO'!$B$5:$C$1129,2,0) -> BOGOTÁ, D.C. | F62: COMERCIO AL POR MAYOR Y AL POR MENOR; REPARACIÓN DE VEHÍCULOS AUTOMOTORES Y MOTOCICLETAS | G62: 4663 | H62: G | I62: Natural | J62: MICRO | K62: 15613000
B63: 66682 | C63: SANTA ROSA DE CABAL | D63: 66 | E63: =VLOOKUP(D63,'[1]DIVIPOLA MPIO'!$B$5:$C$1129,2,0) -> RISARALDA | F63: COMERCIO AL POR MAYOR Y AL POR MENOR; REPARACIÓN DE VEHÍCULOS AUTOMOTORES Y MOTOCICLETAS | G63: 4731 | H63: G | I63: Natural | J63: MICRO | K63: 3358000
B64: 11001 | C64: BOGOTÁ, D.C. | D64: 11 | E64: =VLOOKUP(D64,'[1]DIVIPOLA MPIO'!$B$5:$C$1129,2,0) -> BOGOTÁ, D.C. | F64: INDUSTRIAS MANUFACTURERAS | G64: 1081 | H64: C | I64: Natural | J64: MICRO | K64: 24696000
B65: 11001 | C65: BOGOTÁ, D.C. | D65: 11 | E65: =VLOOKUP(D65,'[1]DIVIPOLA MPIO'!$B$5:$C$1129,2,0) -> BOGOTÁ, D.C. | F65: COMERCIO AL POR MAYOR Y AL POR MENOR; REPARACIÓN DE VEHÍCULOS AUTOMOTORES Y MOTOCICLETAS | G65: 4723 | H65: G | I65: Natural | J65: PEQUEÑA | K65: 20514000
B66: 66001 | C66: PEREIRA | D66: 66 | E66: =VLOOKUP(D66,'[1]DIVIPOLA MPIO'!$B$5:$C$1129,2,0) -> RISARALDA | F66: ACTIVIDADES DE SERVICIOS ADMINISTRATIVOS Y DE APOYO | G66: 7730 | H66: N | I66: Natural | J66: MICRO | K66: 16701000
B67: 13001 | C67: CARTAGENA | D67: 13 | E67: =VLOOKUP(D67,'[1]DIVIPOLA MPIO'!$B$5:$C$1129,2,0) -> BOLÍVAR | F67: COMERCIO AL POR MAYOR Y AL POR MENOR; REPARACIÓN DE VEHÍCULOS AUTOMOTORES Y MOTOCICLETAS | G67: 4771 | H67: G | I67: Natural | J67: MICRO | K67: 7444000
B68: 11001 | C68: BOGOTÁ, D.C. | D68: 11 | E68: =VLOOKUP(D68,'[1]DIVIPOLA MPIO'!$B$5:$C$1129,2,0) -> BOGOTÁ, D.C. | F68: COMERCIO AL POR MAYOR Y AL POR MENOR; REPARACIÓN DE VEHÍCULOS AUTOMOTORES Y MOTOCICLETAS | G68: 4774 | H68: G | I68: Natural | J68: MICRO | K68: 908000
B69: 66001 | C69: PEREIRA | D69: 66 | E69: =VLOOKUP(D69,'[1]DIVIPOLA MPIO'!$B$5:$C$1129,2,0) -> RISARALDA | F69: COMERCIO AL POR MAYOR Y AL POR MENOR; REPARACIÓN DE VEHÍCULOS AUTOMOTORES Y MOTOCICLETAS | G69: 4721 | H69: G | I69: Natural | J69: MICRO | K69: 4356000
B70: 66001 | C70: PEREIRA | D70: 66 | E70: =VLOOKUP(D70,'[1]DIVIPOLA MPIO'!$B$5:$C$1129,2,0) -> RISARALDA | F70: COMERCIO AL POR MAYOR Y AL POR MENOR; REPARACIÓN DE VEHÍCULOS AUTOMOTORES Y MOTOCICLETAS | G70: 4774 | H70: G | I70: Natural | J70: MICRO | K70: 2088000
B71: 66001 | C71: PEREIRA | D71: 66 | E71: =VLOOKUP(D71,'[1]DIVIPOLA MPIO'!$B$5:$C$1129,2,0) -> RISARALDA | F71: ACTIVIDADES DE ATENCIÓN DE LA SALUD HUMANA Y DE ASISTENCIA SOCIAL | G71: 8899 | H71: Q | I71: Natural | J71: MICRO | K71: 4356000
B72: 66001 | C72: PEREIRA | D72: 66 | E72: =VLOOKUP(D72,'[1]DIVIPOLA MPIO'!$B$5:$C$1129,2,0) -> RISARALDA | F72: ACTIVIDADES PROFESIONALES, CIENTÍFICAS Y TÉCNICAS | G72: 7020 | H72: M | I72: Natural | J72: MICRO | K72: 11164000
B73: 66170 | C73: DOSQUEBRADAS | D73: 66 | E73: =VLOOKUP(D73,'[1]DIVIPOLA MPIO'!$B$5:$C$1129,2,0) -> RISARALDA | F73: INDUSTRIAS MANUFACTURERAS | G73: 3092 | H73: C | I73: Natural | J73: MICRO | K73: 7260000
B74: 66001 | C74: PEREIRA | D74: 66 | E74: =VLOOKUP(D74,'[1]DIVIPOLA MPIO'!$B$5:$C$1129,2,0) -> RISARALDA | F74: INDUSTRIAS MANUFACTURERAS | G74: 2221 | H74: C | I74: Natural | J74: MICRO | K74: 3267000
B75: 66001 | C75: PEREIRA | D75: 66 | E75: =VLOOKUP(D75,'[1]DIVIPOLA MPIO'!$B$5:$C$1129,2,0) -> RISARALDA | F75: ACTIVIDADES INMOBILIARIAS | G75: 6810 | H75: L | I75: Natural | J75: MICRO | K75: 5445000
B76: 76147 | C76: CARTAGO | D76: 76 | E76: =VLOOKUP(D76,'[1]DIVIPOLA MPIO'!$B$5:$C$1129,2,0) -> VALLE DEL CAUCA | F76: COMERCIO AL POR MAYOR Y AL POR MENOR; REPARACIÓN DE VEHÍCULOS AUTOMOTORES Y MOTOCICLETAS | G76: 4530 | H76: G | I76: Natural | J76: MICRO | K76: 11345000
B77: 66001 | C77: PEREIRA | D77: 66 | E77: =VLOOKUP(D77,'[1]DIVIPOLA MPIO'!$B$5:$C$1129,2,0) -> RISARALDA | F77: CONSTRUCCIÓN | G77: 4290 | H77: F | I77: Natural | J77: PEQUEÑA | K77: 6534000
B78: 13001 | C78: CARTAGENA | D78: 13 | E78: =VLOOKUP(D78,'[1]DIVIPOLA MPIO'!$B$5:$C$1129,2,0) -> BOLÍVAR | F78: COMERCIO AL POR MAYOR Y AL POR MENOR; REPARACIÓN DE VEHÍCULOS AUTOMOTORES Y MOTOCICLETAS | G78: 4755 | H78: G | I78: Natural | J78: PEQUEÑA | K78: 50383000
B79: 66170 | C79: DOSQUEBRADAS | D79: 66 | E79: =VLOOKUP(D79,'[1]DIVIPOLA MPIO'!$B$5:$C$1129,2,0) -> RISARALDA | F79: INDUSTRIAS MANUFACTURERAS | G79: 2229 | H79: C | I79: Natural | J79: MICRO | K79: 2269000
B80: 66001 | C80: PEREIRA | D80: 66 | E80: =VLOOKUP(D80,'[1]DIVIPOLA MPIO'!$B$5:$C$1129,2,0) -> RISARALDA | F80: ACTIVIDADES INMOBILIARIAS | G80: 6810 | H80: L | I80: Natural | J80: MICRO | K80: 3541000
B81: 76001 | C81: CALI | D81: 76 | E81: =VLOOKUP(D81,'[1]DIVIPOLA MPIO'!$B$5:$C$1129,2,0) -> VALLE DEL CAUCA | F81: INFORMACIÓN Y COMUNICACIONES | G81: 5811 | H81: J | I81: Natural | J81: MICRO | K81: 5084000
B82: 66001 | C82: PEREIRA | D82: 66 | E82: =VLOOKUP(D82,'[1]DIVIPOLA MPIO'!$B$5:$C$1129,2,0) -> RISARALDA | F82: COMERCIO AL POR MAYOR Y AL POR MENOR; REPARACIÓN DE VEHÍCULOS AUTOMOTORES Y MOTOCICLETAS | G82: 4690 | H82: G | I82: Natural | J82: MICRO | K82: 16524000
B83: 76147 | C83: CARTAGO | D83: 76 | E83: =VLOOKUP(D83,'[1]DIVIPOLA MPIO'!$B$5:$C$1129,2,0) -> VALLE DEL CAUCA | F83: COMERCIO AL POR MAYOR Y AL POR MENOR; REPARACIÓN DE VEHÍCULOS AUTOMOTORES Y MOTOCICLETAS | G83: 4752 | H83: G | I83: Natural | J83: MICRO | K83: 5808000
B84: 66001 | C84: PEREIRA | D84: 66 | E84: =VLOOKUP(D84,'[1]DIVIPOLA MPIO'!$B$5:$C$1129,2,0) -> RISARALDA | F84: CONSTRUCCIÓN | G84: 4330 | H84: F | I84: Natural | J84: MICRO | K84: 1815000
B85: 66001 | C85: PEREIRA | D85: 66 | E85: =VLOOKUP(D85,'[1]DIVIPOLA MPIO'!$B$5:$C$1129,2,0) -> RISARALDA | F85: COMERCIO AL POR MAYOR Y AL POR MENOR; REPARACIÓN DE VEHÍCULOS AUTOMOTORES Y MOTOCICLETAS | G85: 4530 | H85: G | I85: Natural | J85: MICRO | K85: 7624000
B86: 11001 | C86: BOGOTÁ, D.C. | D86: 11 | E86: =VLOOKUP(D86,'[1]DIVIPOLA MPIO'!$B$5:$C$1129,2,0) -> BOGOTÁ, D.C. | F86: INDUSTRIAS MANUFACTURERAS | G86: 1081 | H86: C | I86: Natural | J86: MICRO | K86: 5084000
B87: 11001 | C87: BOGOTÁ, D.C. | D87: 11 | E87: =VLOOKUP(D87,'[1]DIVIPOLA MPIO'!$B$5:$C$1129,2,0) -> BOGOTÁ, D.C. | F87: ACTIVIDADES PROFESIONALES, CIENTÍFICAS Y TÉCNICAS | G87: 7110 | H87: M | I87: Natural | J87: MICRO | K87: 10168000
B88: 11001 | C88: BOGOTÁ, D.C. | D88: 11 | E88: =VLOOKUP(D88,'[1]DIVIPOLA MPIO'!$B$5:$C$1129,2,0) -> BOGOTÁ, D.C. | F88: ALOJAMIENTO Y SERVICIOS DE COMIDA | G88: 5611 | H88: I | I88: Natural | J88: MICRO | K88: 3813000
B89: 11001 | C89: BOGOTÁ, D.C. | D89: 11 | E89: =VLOOKUP(D89,'[1]DIVIPOLA MPIO'!$B$5:$C$1129,2,0) -> BOGOTÁ, D.C. | F89: ACTIVIDADES PROFESIONALES, CIENTÍFICAS Y TÉCNICAS | G89: 7120 | H89: M | I89: Natural | J89: MICRO | K89: 2360000
B90: 76001 | C90: CALI | D90: 76 | E90: =VLOOKUP(D90,'[1]DIVIPOLA MPIO'!$B$5:$C$1129,2,0) -> VALLE DEL CAUCA | F90: INDUSTRIAS MANUFACTURERAS | G90: 1089 | H90: C | I90: Natural | J90: MICRO | K90: 15431000
B91: 66001 | C91: PEREIRA | D91: 66 | E91: =VLOOKUP(D91,'[1]DIVIPOLA MPIO'!$B$5:$C$1129,2,0) -> RISARALDA | F91: ACTIVIDADES DE ATENCIÓN DE LA SALUD HUMANA Y DE ASISTENCIA SOCIAL | G91: 8691 | H91: Q | I91: Natural | J91: MICRO | K91: 2088000
B92: 66001 | C92: PEREIRA | D92: 66 | E92: =VLOOKUP(D92,'[1]DIVIPOLA MPIO'!$B$5:$C$1129,2,0) -> RISARALDA | F92: TRANSPORTE Y ALMACENAMIENTO | G92: 5012 | H92: H | I92: Natural | J92: PEQUEÑA | K92: 48747000
B93: 5001 | C93: MEDELLÍN | D93: 5 | E93: =VLOOKUP(D93,'[1]DIVIPOLA MPIO'!$B$5:$C$1129,2,0) -> ANTIOQUIA | F93: ACTIVIDADES DE ATENCIÓN DE LA SALUD HUMANA Y DE ASISTENCIA SOCIAL | G93: 8899 | H93: Q | I93: Natural | J93: PEQUEÑA | K93: 33592000
B94: 66001 | C94: PEREIRA | D94: 66 | E94: =VLOOKUP(D94,'[1]DIVIPOLA MPIO'!$B$5:$C$1129,2,0) -> RISARALDA | F94: CONSTRUCCIÓN | G94: 4111 | H94: F | I94: Natural | J94: PEQUEÑA | K94: 8712000
B95: 66001 | C95: PEREIRA | D95: 66 | E95: =VLOOKUP(D95,'[1]DIVIPOLA MPIO'!$B$5:$C$1129,2,0) -> RISARALDA | F95: INDUSTRIAS MANUFACTURERAS | G95: 1020 | H95: C | I95: Natural | J95: PEQUEÑA | K95: 22144000
B96: 76001 | C96: CALI | D96: 76 | E96: =VLOOKUP(D96,'[1]DIVIPOLA MPIO'!$B$5:$C$1129,2,0) -> VALLE DEL CAUCA | F96: COMERCIO AL POR MAYOR Y AL POR MENOR; REPARACIÓN DE VEHÍCULOS AUTOMOTORES Y MOTOCICLETAS | G96: 4723 | H96: G | I96: Natural | J96: MICRO | K96: 18791000
B97: 5001 | C97: MEDELLÍN | D97: 5 | E97: =VLOOKUP(D97,'[1]DIVIPOLA MPIO'!$B$5:$C$1129,2,0) -> ANTIOQUIA | F97: INDUSTRIAS MANUFACTURERAS | G97: 2511 | H97: C | I97: Natural | J97: MICRO | K97: 19965000
B98: 11001 | C98: BOGOTÁ, D.C. | D98: 11 | E98: =VLOOKUP(D98,'[1]DIVIPOLA MPIO'!$B$5:$C$1129,2,0) -> BOGOTÁ, D.C. | F98: COMERCIO AL POR MAYOR Y AL POR MENOR; REPARACIÓN DE VEHÍCULOS AUTOMOTORES Y MOTOCICLETAS | G98: 4773 | H98: G | I98: Natural | J98: MICRO | K98: 10168000
B99: 11001 | C99: BOGOTÁ, D.C. | D99: 11 | E99: =VLOOKUP(D99,'[1]DIVIPOLA MPIO'!$B$5:$C$1129,2,0) -> BOGOTÁ, D.C. | F99: INDUSTRIAS MANUFACTURERAS | G99: 2511 | H99: C | I99: Natural | J99: MICRO | K99: 8894000
B100: 11001 | C100: BOGOTÁ, D.C. | D100: 11 | E100: =VLOOKUP(D100,'[1]DIVIPOLA MPIO'!$B$5:$C$1129,2,0) -> BOGOTÁ, D.C. | F100: INDUSTRIAS MANUFACTURERAS | G100: 1410 | H100: C | I100: Natural | J100: PEQUEÑA | K100: 1634000
B101: 11001 | C101: BOGOTÁ, D.C. | D101: 11 | E101: =VLOOKUP(D101,'[1]DIVIPOLA MPIO'!$B$5:$C$1129,2,0) -> BOGOTÁ, D.C. | F101: ALOJAMIENTO Y SERVICIOS DE COMIDA | G101: 5611 | H101: I | I101: Natural | J101: MICRO | K101: 2178000
B102: 11001 | C102: BOGOTÁ, D.C. | D102: 11 | E102: =VLOOKUP(D102,'[1]DIVIPOLA MPIO'!$B$5:$C$1129,2,0) -> BOGOTÁ, D.C. | F102: INDUSTRIAS MANUFACTURERAS | G102: 1521 | H102: C | I102: Natural | J102: MICRO | K102: 10168000
B103: 11001 | C103: BOGOTÁ, D.C. | D103: 11 | E103: =VLOOKUP(D103,'[1]DIVIPOLA MPIO'!$B$5:$C$1129,2,0) -> BOGOTÁ, D.C. | F103: INDUSTRIAS MANUFACTURERAS | G103: 1410 | H103: C | I103: Natural | J103: MICRO | K103: 5082000
B104: 11001 | C104: BOGOTÁ, D.C. | D104: 11 | E104: =VLOOKUP(D104,'[1]DIVIPOLA MPIO'!$B$5:$C$1129,2,0) -> BOGOTÁ, D.C. | F104: INDUSTRIAS MANUFACTURERAS | G104: 3290 | H104: C | I104: Natural | J104: PEQUEÑA | K104: 21699000
B105: 5088 | C105: BELLO | D105: 5 | E105: =VLOOKUP(D105,'[1]DIVIPOLA MPIO'!$B$5:$C$1129,2,0) -> ANTIOQUIA | F105: ALOJAMIENTO Y SERVICIOS DE COMIDA | G105: 5613 | H105: I | I105: Natural | J105: PEQUEÑA | K105: 35773000
B106: 66001 | C106: PEREIRA | D106: 66 | E106: =VLOOKUP(D106,'[1]DIVIPOLA MPIO'!$B$5:$C$1129,2,0) -> RISARALDA | F106: COMERCIO AL POR MAYOR Y AL POR MENOR; REPARACIÓN DE VEHÍCULOS AUTOMOTORES Y MOTOCICLETAS | G106: 4620 | H106: G | I106: Natural | J106: PEQUEÑA | K106: 32496000
B107: 66001 | C107: PEREIRA | D107: 66 | E107: =VLOOKUP(D107,'[1]DIVIPOLA MPIO'!$B$5:$C$1129,2,0) -> RISARALDA | F107: COMERCIO AL POR MAYOR Y AL POR MENOR; REPARACIÓN DE VEHÍCULOS AUTOMOTORES Y MOTOCICLETAS | G107: 4741 | H107: G | I107: Natural | J107: MICRO | K107: 13614000
B108: 5088 | C108: BELLO | D108: 5 | E108: =VLOOKUP(D108,'[1]DIVIPOLA MPIO'!$B$5:$C$1129,2,0) -> ANTIOQUIA | F108: INDUSTRIAS MANUFACTURERAS | G108: 1081 | H108: C | I108: Natural | J108: MICRO | K108: 4902000
B109: 66001 | C109: PEREIRA | D109: 66 | E109: =VLOOKUP(D109,'[1]DIVIPOLA MPIO'!$B$5:$C$1129,2,0) -> RISARALDA | F109: COMERCIO AL POR MAYOR Y AL POR MENOR; REPARACIÓN DE VEHÍCULOS AUTOMOTORES Y MOTOCICLETAS | G109: 4752 | H109: G | I109: Natural | J109: MICRO | K109: 8803000
B110: 66170 | C110: DOSQUEBRADAS | D110: 66 | E110: =VLOOKUP(D110,'[1]DIVIPOLA MPIO'!$B$5:$C$1129,2,0) -> RISARALDA | F110: INDUSTRIAS MANUFACTURERAS | G110: 3110 | H110: C | I110: Natural | J110: MICRO | K110: 7715000
B111: 11001 | C111: BOGOTÁ, D.C. | D111: 11 | E111: =VLOOKUP(D111,'[1]DIVIPOLA MPIO'!$B$5:$C$1129,2,0) -> BOGOTÁ, D.C. | F111: ALOJAMIENTO Y SERVICIOS DE COMIDA | G111: 5611 | H111: I | I111: Natural | J111: MICRO | K111: 9080000
B112: 11001 | C112: BOGOTÁ, D.C. | D112: 11 | E112: =VLOOKUP(D112,'[1]DIVIPOLA MPIO'!$B$5:$C$1129,2,0) -> BOGOTÁ, D.C. | F112: ALOJAMIENTO Y SERVICIOS DE COMIDA | G112: 5611 | H112: I | I112: Natural | J112: MICRO | K112: 2724000
B113: 11001 | C113: BOGOTÁ, D.C. | D113: 11 | E113: =VLOOKUP(D113,'[1]DIVIPOLA MPIO'!$B$5:$C$1129,2,0) -> BOGOTÁ, D.C. | F113: INDUSTRIAS MANUFACTURERAS | G113: 1081 | H113: C | I113: Natural | J113: MICRO | K113: 23604000
B114: 11001 | C114: BOGOTÁ, D.C. | D114: 11 | E114: =VLOOKUP(D114,'[1]DIVIPOLA MPIO'!$B$5:$C$1129,2,0) -> BOGOTÁ, D.C. | F114: ACTIVIDADES DE SERVICIOS ADMINISTRATIVOS Y DE APOYO | G114: 8299 | H114: N | I114: Natural | J114: MICRO | K114: 14524000
B115: 66001 | C115: PEREIRA | D115: 66 | E115: =VLOOKUP(D115,'[1]DIVIPOLA MPIO'!$B$5:$C$1129,2,0) -> RISARALDA | F115: COMERCIO AL POR MAYOR Y AL POR MENOR; REPARACIÓN DE VEHÍCULOS AUTOMOTORES Y MOTOCICLETAS | G115: 4541 | H115: G | I115: Natural | J115: MICRO | K115: 9892000
B116: 11001 | C116: BOGOTÁ, D.C. | D116: 11 | E116: =VLOOKUP(D116,'[1]DIVIPOLA MPIO'!$B$5:$C$1129,2,0) -> BOGOTÁ, D.C. | F116: INDUSTRIAS MANUFACTURERAS | G116: 1081 | H116: C | I116: Natural | J116: MICRO | K116: 2451000
B117: 11001 | C117: BOGOTÁ, D.C. | D117: 11 | E117: =VLOOKUP(D117,'[1]DIVIPOLA MPIO'!$B$5:$C$1129,2,0) -> BOGOTÁ, D.C. | F117: INDUSTRIAS MANUFACTURERAS | G117: 1410 | H117: C | I117: Natural | J117: MICRO | K117: 14528000
B118: 11001 | C118: BOGOTÁ, D.C. | D118: 11 | E118: =VLOOKUP(D118,'[1]DIVIPOLA MPIO'!$B$5:$C$1129,2,0) -> BOGOTÁ, D.C. | F118: INDUSTRIAS MANUFACTURERAS | G118: 1081 | H118: C | I118: Natural | J118: MICRO | K118: 22425000
B119: 11001 | C119: BOGOTÁ, D.C. | D119: 11 | E119: =VLOOKUP(D119,'[1]DIVIPOLA MPIO'!$B$5:$C$1129,2,0) -> BOGOTÁ, D.C. | F119: ALOJAMIENTO Y SERVICIOS DE COMIDA | G119: 5611 | H119: I | I119: Natural | J119: MICRO | K119: 2724000
B120: 5030 | C120: AMAGÁ | D120: 5 | E120: =VLOOKUP(D120,'[1]DIVIPOLA MPIO'!$B$5:$C$1129,2,0) -> ANTIOQUIA | F120: EXPLOTACIÓN DE MINAS Y CANTERAS | G120: 510 | H120: B | I120: Natural | J120: PEQUEÑA | K120: 21330000
B121: 5036 | C121: ANGELÓPOLIS | D121: 5 | E121: =VLOOKUP(D121,'[1]DIVIPOLA MPIO'!$B$5:$C$1129,2,0) -> ANTIOQUIA | F121: EXPLOTACIÓN DE MINAS Y CANTERAS | G121: 510 | H121: B | I121: Natural | J121: MICRO | K121: 19239000
B122: 11001 | C122: BOGOTÁ, D.C. | D122: 11 | E122: =VLOOKUP(D122,'[1]DIVIPOLA MPIO'!$B$5:$C$1129,2,0) -> BOGOTÁ, D.C. | F122: COMERCIO AL POR MAYOR Y AL POR MENOR; REPARACIÓN DE VEHÍCULOS AUTOMOTORES Y MOTOCICLETAS | G122: 4723 | H122: G | I122: Natural | J122: PEQUEÑA | K122: 22148000
B123: 11001 | C123: BOGOTÁ, D.C. | D123: 11 | E123: =VLOOKUP(D123,'[1]DIVIPOLA MPIO'!$B$5:$C$1129,2,0) -> BOGOTÁ, D.C. | F123: ALOJAMIENTO Y SERVICIOS DE COMIDA | G123: 5511 | H123: I | I123: Natural | J123: MICRO | K123: 10896000
B124: 11001 | C124: BOGOTÁ, D.C. | D124: 11 | E124: =VLOOKUP(D124,'[1]DIVIPOLA MPIO'!$B$5:$C$1129,2,0) -> BOGOTÁ, D.C. | F124: ALOJAMIENTO Y SERVICIOS DE COMIDA | G124: 5629 | H124: I | I124: Natural | J124: MICRO | K124: 6810000
B125: 11001 | C125: BOGOTÁ, D.C. | D125: 11 | E125: =VLOOKUP(D125,'[1]DIVIPOLA MPIO'!$B$5:$C$1129,2,0) -> BOGOTÁ, D.C. | F125: INDUSTRIAS MANUFACTURERAS | G125: 1410 | H125: C | I125: Natural | J125: MICRO | K125: 7264000
B126: 11001 | C126: BOGOTÁ, D.C. | D126: 11 | E126: =VLOOKUP(D126,'[1]DIVIPOLA MPIO'!$B$5:$C$1129,2,0) -> BOGOTÁ, D.C. | F126: ALOJAMIENTO Y SERVICIOS DE COMIDA | G126: 5611 | H126: I | I126: Natural | J126: MICRO | K126: 18160000
B127: 11001 | C127: BOGOTÁ, D.C. | D127: 11 | E127: =VLOOKUP(D127,'[1]DIVIPOLA MPIO'!$B$5:$C$1129,2,0) -> BOGOTÁ, D.C. | F127: COMERCIO AL POR MAYOR Y AL POR MENOR; REPARACIÓN DE VEHÍCULOS AUTOMOTORES Y MOTOCICLETAS | G127: 4530 | H127: G | I127: Natural | J127: MICRO | K127: 5718000
B128: 25269 | C128: FACATATIVÁ | D128: 25 | E128: =VLOOKUP(D128,'[1]DIVIPOLA MPIO'!$B$5:$C$1129,2,0) -> CUNDINAMARCA | F128: ALOJAMIENTO Y SERVICIOS DE COMIDA | G128: 5511 | H128: I | I128: Natural | J128: MICRO | K128: 5902000
B129: 54518 | C129: PAMPLONA | D129: 54 | E129: =VLOOKUP(D129,'[1]DIVIPOLA MPIO'!$B$5:$C$1129,2,0) -> NORTE DE SANTANDER | F129: COMERCIO AL POR MAYOR Y AL POR MENOR; REPARACIÓN DE VEHÍCULOS AUTOMOTORES Y MOTOCICLETAS | G129: 4719 | H129: G | I129: Natural | J129: MICRO | K129: 4629000
B130: 25875 | C130: VILLETA | D130: 25 | E130: =VLOOKUP(D130,'[1]DIVIPOLA MPIO'!$B$5:$C$1129,2,0) -> CUNDINAMARCA | F130: OTRAS ACTIVIDADES DE SERVICIOS | G130: 9412 | H130: S | I130: Natural | J130: MICRO | K130: 4629000
B131: 13001 | C131: CARTAGENA | D131: 13 | E131: =VLOOKUP(D131,'[1]DIVIPOLA MPIO'!$B$5:$C$1129,2,0) -> BOLÍVAR | F131: COMERCIO AL POR MAYOR Y AL POR MENOR; REPARACIÓN DE VEHÍCULOS AUTOMOTORES Y MOTOCICLETAS | G131: 4752 | H131: G | I131: Natural | J131: MICRO | K131: 9440000
B132: 5001 | C132: MEDELLÍN | D132: 5 | E132: =VLOOKUP(D132,'[1]DIVIPOLA MPIO'!$B$5:$C$1129,2,0) -> ANTIOQUIA | F132: ALOJAMIENTO Y SERVICIOS DE COMIDA | G132: 5629 | H132: I | I132: Natural | J132: MICRO | K132: 21792000
B133: 5001 | C133: MEDELLÍN | D133: 5 | E133: =VLOOKUP(D133,'[1]DIVIPOLA MPIO'!$B$5:$C$1129,2,0) -> ANTIOQUIA | F133: INFORMACIÓN Y COMUNICACIONES | G133: 6190 | H133: J | I133: Natural | J133: MICRO | K133: 5448000
B134: 5001 | C134: MEDELLÍN | D134: 5 | E134: =VLOOKUP(D134,'[1]DIVIPOLA MPIO'!$B$5:$C$1129,2,0) -> ANTIOQUIA | F134: COMERCIO AL POR MAYOR Y AL POR MENOR; REPARACIÓN DE VEHÍCULOS AUTOMOTORES Y MOTOCICLETAS | G134: 4723 | H134: G | I134: Natural | J134: MICRO | K134: 3540000
B135: 50006 | C135: ACACÍAS | D135: 50 | E135: =VLOOKUP(D135,'[1]DIVIPOLA MPIO'!$B$5:$C$1129,2,0) -> META | F135: EDUCACIÓN | G135: 8560 | H135: P | I135: Natural | J135: MICRO | K135: 34958000
B136: 5001 | C136: MEDELLÍN | D136: 5 | E136: =VLOOKUP(D136,'[1]DIVIPOLA MPIO'!$B$5:$C$1129,2,0) -> ANTIOQUIA | F136: INDUSTRIAS MANUFACTURERAS | G136: 2229 | H136: C | I136: Natural | J136: MICRO | K136: 4993000
B137: 5001 | C137: MEDELLÍN | D137: 5 | E137: =VLOOKUP(D137,'[1]DIVIPOLA MPIO'!$B$5:$C$1129,2,0) -> ANTIOQUIA | F137: CONSTRUCCIÓN | G137: 4330 | H137: F | I137: Natural | J137: MICRO | K137: 3086000
B138: 5001 | C138: MEDELLÍN | D138: 5 | E138: =VLOOKUP(D138,'[1]DIVIPOLA MPIO'!$B$5:$C$1129,2,0) -> ANTIOQUIA | F138: ACTIVIDADES DE ATENCIÓN DE LA SALUD HUMANA Y DE ASISTENCIA SOCIAL | G138: 8899 | H138: Q | I138: Natural | J138: MICRO | K138: 817000
B139: 5001 | C139: MEDELLÍN | D139: 5 | E139: =VLOOKUP(D139,'[1]DIVIPOLA MPIO'!$B$5:$C$1129,2,0) -> ANTIOQUIA | F139: AGRICULTURA, GANADERÍA, CAZA, SILVICULTURA Y PESCA | G139: 141 | H139: A | I139: Natural | J139: PEQUEÑA | K139: 24321000
B140: 5045 | C140: APARTADÓ | D140: 5 | E140: =VLOOKUP(D140,'[1]DIVIPOLA MPIO'!$B$5:$C$1129,2,0) -> ANTIOQUIA | F140: ALOJAMIENTO Y SERVICIOS DE COMIDA | G140: 5611 | H140: I | I140: Natural | J140: MICRO | K140: 3632000
B141: 5001 | C141: MEDELLÍN | D141: 5 | E141: =VLOOKUP(D141,'[1]DIVIPOLA MPIO'!$B$5:$C$1129,2,0) -> ANTIOQUIA | F141: ALOJAMIENTO Y SERVICIOS DE COMIDA | G141: 5511 | H141: I | I141: Natural | J141: MICRO | K141: 908000
B142: 5001 | C142: MEDELLÍN | D142: 5 | E142: =VLOOKUP(D142,'[1]DIVIPOLA MPIO'!$B$5:$C$1129,2,0) -> ANTIOQUIA | F142: ALOJAMIENTO Y SERVICIOS DE COMIDA | G142: 5611 | H142: I | I142: Natural | J142: MICRO | K142: 23608000
B143: 5001 | C143: MEDELLÍN | D143: 5 | E143: =VLOOKUP(D143,'[1]DIVIPOLA MPIO'!$B$5:$C$1129,2,0) -> ANTIOQUIA | F143: INDUSTRIAS MANUFACTURERAS | G143: 1410 | H143: C | I143: Natural | J143: MICRO | K143: 17251000
B144: 5001 | C144: MEDELLÍN | D144: 5 | E144: =VLOOKUP(D144,'[1]DIVIPOLA MPIO'!$B$5:$C$1129,2,0) -> ANTIOQUIA | F144: ALOJAMIENTO Y SERVICIOS DE COMIDA | G144: 5611 | H144: I | I144: Natural | J144: MICRO | K144: 10896000
B145: 5001 | C145: MEDELLÍN | D145: 5 | E145: =VLOOKUP(D145,'[1]DIVIPOLA MPIO'!$B$5:$C$1129,2,0) -> ANTIOQUIA | F145: COMERCIO AL POR MAYOR Y AL POR MENOR; REPARACIÓN DE VEHÍCULOS AUTOMOTORES Y MOTOCICLETAS | G145: 4520 | H145: G | I145: Natural | J145: MICRO | K145: 1906000
B146: 5001 | C146: MEDELLÍN | D146: 5 | E146: =VLOOKUP(D146,'[1]DIVIPOLA MPIO'!$B$5:$C$1129,2,0) -> ANTIOQUIA | F146: ALOJAMIENTO Y SERVICIOS DE COMIDA | G146: 5611 | H146: I | I146: Natural | J146: MICRO | K146: 18160000
B147: 63001 | C147: ARMENIA | D147: 63 | E147: =VLOOKUP(D147,'[1]DIVIPOLA MPIO'!$B$5:$C$1129,2,0) -> QUINDÍO | F147: ACTIVIDADES DE ATENCIÓN DE LA SALUD HUMANA Y DE ASISTENCIA SOCIAL | G147: 8899 | H147: Q | I147: Natural | J147: MICRO | K147: 6356000
B148: 5001 | C148: MEDELLÍN | D148: 5 | E148: =VLOOKUP(D148,'[1]DIVIPOLA MPIO'!$B$5:$C$1129,2,0) -> ANTIOQUIA | F148: ACTIVIDADES DE SERVICIOS ADMINISTRATIVOS Y DE APOYO | G148: 8299 | H148: N | I148: Natural | J148: PEQUEÑA | K148: 21792000
B149: 5001 | C149: MEDELLÍN | D149: 5 | E149: =VLOOKUP(D149,'[1]DIVIPOLA MPIO'!$B$5:$C$1129,2,0) -> ANTIOQUIA | F149: ALOJAMIENTO Y SERVICIOS DE COMIDA | G149: 5612 | H149: I | I149: Natural | J149: MICRO | K149: 10896000
B150: 70001 | C150: SINCELEJO | D150: 70 | E150: =VLOOKUP(D150,'[1]DIVIPOLA MPIO'!$B$5:$C$1129,2,0) -> SUCRE | F150: COMERCIO AL POR MAYOR Y AL POR MENOR; REPARACIÓN DE VEHÍCULOS AUTOMOTORES Y MOTOCICLETAS | G150: 4711 | H150: G | I150: Natural | J150: PEQUEÑA | K150: 41845000
B151: 5001 | C151: MEDELLÍN | D151: 5 | E151: =VLOOKUP(D151,'[1]DIVIPOLA MPIO'!$B$5:$C$1129,2,0) -> ANTIOQUIA | F151: COMERCIO AL POR MAYOR Y AL POR MENOR; REPARACIÓN DE VEHÍCULOS AUTOMOTORES Y MOTOCICLETAS | G151: 4773 | H151: G | I151: Natural | J151: MICRO | K151: 7626000
B152: 5001 | C152: MEDELLÍN | D152: 5 | E152: =VLOOKUP(D152,'[1]DIVIPOLA MPIO'!$B$5:$C$1129,2,0) -> ANTIOQUIA | F152: ALOJAMIENTO Y SERVICIOS DE COMIDA | G152: 5511 | H152: I | I152: Natural | J152: PEQUEÑA | K152: 38136000
B153: 23001 | C153: MONTERÍA | D153: 23 | E153: =VLOOKUP(D153,'[1]DIVIPOLA MPIO'!$B$5:$C$1129,2,0) -> CÓRDOBA | F153: ALOJAMIENTO Y SERVICIOS DE COMIDA | G153: 5612 | H153: I | I153: Natural | J153: PEQUEÑA | K153: 39498000
B154: 23001 | C154: MONTERÍA | D154: 23 | E154: =VLOOKUP(D154,'[1]DIVIPOLA MPIO'!$B$5:$C$1129,2,0) -> CÓRDOBA | F154: ACTIVIDADES ARTÍSTICAS, DE ENTRETENIMIENTO Y RECREACIÓN | G154: 9311 | H154: R | I154: Natural | J154: MICRO | K154: 23608000
B155: 13001 | C155: CARTAGENA | D155: 13 | E155: =VLOOKUP(D155,'[1]DIVIPOLA MPIO'!$B$5:$C$1129,2,0) -> BOLÍVAR | F155: COMERCIO AL POR MAYOR Y AL POR MENOR; REPARACIÓN DE VEHÍCULOS AUTOMOTORES Y MOTOCICLETAS | G155: 4723 | H155: G | I155: Natural | J155: PEQUEÑA | K155: 16700000
B156: 5266 | C156: ENVIGADO | D156: 5 | E156: =VLOOKUP(D156,'[1]DIVIPOLA MPIO'!$B$5:$C$1129,2,0) -> ANTIOQUIA | F156: TRANSPORTE Y ALMACENAMIENTO | G156: 4923 | H156: H | I156: Natural | J156: MICRO | K156: 14520000
B157: 5001 | C157: MEDELLÍN | D157: 5 | E157: =VLOOKUP(D157,'[1]DIVIPOLA MPIO'!$B$5:$C$1129,2,0) -> ANTIOQUIA | F157: COMERCIO AL POR MAYOR Y AL POR MENOR; REPARACIÓN DE VEHÍCULOS AUTOMOTORES Y MOTOCICLETAS | G157: 4771 | H157: G | I157: Natural | J157: MICRO | K157: 454000
B158: 5001 | C158: MEDELLÍN | D158: 5 | E158: =VLOOKUP(D158,'[1]DIVIPOLA MPIO'!$B$5:$C$1129,2,0) -> ANTIOQUIA | F158: ALOJAMIENTO Y SERVICIOS DE COMIDA | G158: 5619 | H158: I | I158: Natural | J158: MICRO | K158: 10896000
B159: 5088 | C159: BELLO | D159: 5 | E159: =VLOOKUP(D159,'[1]DIVIPOLA MPIO'!$B$5:$C$1129,2,0) -> ANTIOQUIA | F159: ALOJAMIENTO Y SERVICIOS DE COMIDA | G159: 5613 | H159: I | I159: Natural | J159: MICRO | K159: 7264000
B160: 17380 | C160: LA DORADA | D160: 17 | E160: =VLOOKUP(D160,'[1]DIVIPOLA MPIO'!$B$5:$C$1129,2,0) -> CALDAS | F160: INDUSTRIAS MANUFACTURERAS | G160: 1610 | H160: C | I160: Natural | J160: MICRO | K160: 5808000
B161: 17380 | C161: LA DORADA | D161: 17 | E161: =VLOOKUP(D161,'[1]DIVIPOLA MPIO'!$B$5:$C$1129,2,0) -> CALDAS | F161: COMERCIO AL POR MAYOR Y AL POR MENOR; REPARACIÓN DE VEHÍCULOS AUTOMOTORES Y MOTOCICLETAS | G161: 4541 | H161: G | I161: Natural | J161: MICRO | K161: 6989000
B162: 17380 | C162: LA DORADA | D162: 17 | E162: =VLOOKUP(D162,'[1]DIVIPOLA MPIO'!$B$5:$C$1129,2,0) -> CALDAS | F162: TRANSPORTE Y ALMACENAMIENTO | G162: 4923 | H162: H | I162: Natural | J162: MICRO | K162: 363000
B163: 5310 | C163: GÓMEZ PLATA | D163: 5 | E163: =VLOOKUP(D163,'[1]DIVIPOLA MPIO'!$B$5:$C$1129,2,0) -> ANTIOQUIA | F163: COMERCIO AL POR MAYOR Y AL POR MENOR; REPARACIÓN DE VEHÍCULOS AUTOMOTORES Y MOTOCICLETAS | G163: 4661 | H163: G | I163: Natural | J163: MICRO | K163: 2996000
B164: 11001 | C164: BOGOTÁ, D.C. | D164: 11 | E164: =VLOOKUP(D164,'[1]DIVIPOLA MPIO'!$B$5:$C$1129,2,0) -> BOGOTÁ, D.C. | F164: OTRAS ACTIVIDADES DE SERVICIOS | G164: 9601 | H164: S | I164: Natural | J164: MICRO | K164: 908000
B165: 11001 | C165: BOGOTÁ, D.C. | D165: 11 | E165: =VLOOKUP(D165,'[1]DIVIPOLA MPIO'!$B$5:$C$1129,2,0) -> BOGOTÁ, D.C. | F165: COMERCIO AL POR MAYOR Y AL POR MENOR; REPARACIÓN DE VEHÍCULOS AUTOMOTORES Y MOTOCICLETAS | G165: 4774 | H165: G | I165: Natural | J165: MICRO | K165: 6810000
B166: 11001 | C166: BOGOTÁ, D.C. | D166: 11 | E166: =VLOOKUP(D166,'[1]DIVIPOLA MPIO'!$B$5:$C$1129,2,0) -> BOGOTÁ, D.C. | F166: COMERCIO AL POR MAYOR Y AL POR MENOR; REPARACIÓN DE VEHÍCULOS AUTOMOTORES Y MOTOCICLETAS | G166: 4774 | H166: G | I166: Natural | J166: MICRO | K166: 1816000
B167: 19001 | C167: POPAYÁN | D167: 19 | E167: =VLOOKUP(D167,'[1]DIVIPOLA MPIO'!$B$5:$C$1129,2,0) -> CAUCA | F167: COMERCIO AL POR MAYOR Y AL POR MENOR; REPARACIÓN DE VEHÍCULOS AUTOMOTORES Y MOTOCICLETAS | G167: 4651 | H167: G | I167: Natural | J167: MICRO | K167: 4720000
B168: 68001 | C168: BUCARAMANGA | D168: 68 | E168: =VLOOKUP(D168,'[1]DIVIPOLA MPIO'!$B$5:$C$1129,2,0) -> SANTANDER | F168: EDUCACIÓN | G168: 8511 | H168: P | I168: Natural | J168: MICRO | K168: 2270000
B169: 52001 | C169: PASTO | D169: 52 | E169: =VLOOKUP(D169,'[1]DIVIPOLA MPIO'!$B$5:$C$1129,2,0) -> NARIÑO | F169: ALOJAMIENTO Y SERVICIOS DE COMIDA | G169: 5611 | H169: I | I169: Natural | J169: PEQUEÑA | K169: 12712000
B170: 41551 | C170: PITALITO | D170: 41 | E170: =VLOOKUP(D170,'[1]DIVIPOLA MPIO'!$B$5:$C$1129,2,0) -> HUILA | F170: COMERCIO AL POR MAYOR Y AL POR MENOR; REPARACIÓN DE VEHÍCULOS AUTOMOTORES Y MOTOCICLETAS | G170: 4719 | H170: G | I170: Natural | J170: MICRO | K170: 10258000
B171: 11001 | C171: BOGOTÁ, D.C. | D171: 11 | E171: =VLOOKUP(D171,'[1]DIVIPOLA MPIO'!$B$5:$C$1129,2,0) -> BOGOTÁ, D.C. | F171: ALOJAMIENTO Y SERVICIOS DE COMIDA | G171: 5511 | H171: I | I171: Natural | J171: MICRO | K171: 20066000
B172: 11001 | C172: BOGOTÁ, D.C. | D172: 11 | E172: =VLOOKUP(D172,'[1]DIVIPOLA MPIO'!$B$5:$C$1129,2,0) -> BOGOTÁ, D.C. | F172: OTRAS ACTIVIDADES DE SERVICIOS | G172: 9601 | H172: S | I172: Natural | J172: MICRO | K172: 2724000
B173: 50573 | C173: PUERTO LÓPEZ | D173: 50 | E173: =VLOOKUP(D173,'[1]DIVIPOLA MPIO'!$B$5:$C$1129,2,0) -> META | F173: COMERCIO AL POR MAYOR Y AL POR MENOR; REPARACIÓN DE VEHÍCULOS AUTOMOTORES Y MOTOCICLETAS | G173: 4631 | H173: G | I173: Natural | J173: PEQUEÑA | K173: 35861000
B174: 52001 | C174: PASTO | D174: 52 | E174: =VLOOKUP(D174,'[1]DIVIPOLA MPIO'!$B$5:$C$1129,2,0) -> NARIÑO | F174: ALOJAMIENTO Y SERVICIOS DE COMIDA | G174: 5611 | H174: I | I174: Natural | J174: MICRO | K174: 14528000
B175: 5045 | C175: APARTADÓ | D175: 5 | E175: =VLOOKUP(D175,'[1]DIVIPOLA MPIO'!$B$5:$C$1129,2,0) -> ANTIOQUIA | F175: COMERCIO AL POR MAYOR Y AL POR MENOR; REPARACIÓN DE VEHÍCULOS AUTOMOTORES Y MOTOCICLETAS | G175: 4752 | H175: G | I175: Natural | J175: PEQUEÑA | K175: 53463000
B176: 17380 | C176: LA DORADA | D176: 17 | E176: =VLOOKUP(D176,'[1]DIVIPOLA MPIO'!$B$5:$C$1129,2,0) -> CALDAS | F176: ACTIVIDADES DE ATENCIÓN DE LA SALUD HUMANA Y DE ASISTENCIA SOCIAL | G176: 8699 | H176: Q | I176: Natural | J176: MICRO | K176: 4539000
B177: 11001 | C177: BOGOTÁ, D.C. | D177: 11 | E177: =VLOOKUP(D177,'[1]DIVIPOLA MPIO'!$B$5:$C$1129,2,0) -> BOGOTÁ, D.C. | F177: COMERCIO AL POR MAYOR Y AL POR MENOR; REPARACIÓN DE VEHÍCULOS AUTOMOTORES Y MOTOCICLETAS | G177: 4520 | H177: G | I177: Natural | J177: MICRO | K177: 14520000
B178: 19517 | C178: PAEZ | D178: 19 | E178: =VLOOKUP(D178,'[1]DIVIPOLA MPIO'!$B$5:$C$1129,2,0) -> CAUCA | F178: ACTIVIDADES DE ATENCIÓN DE LA SALUD HUMANA Y DE ASISTENCIA SOCIAL | G178: 8899 | H178: Q | I178: Natural | J178: MICRO | K178: 4085000
B179: 11001 | C179: BOGOTÁ, D.C. | D179: 11 | E179: =VLOOKUP(D179,'[1]DIVIPOLA MPIO'!$B$5:$C$1129,2,0) -> BOGOTÁ, D.C. | F179: COMERCIO AL POR MAYOR Y AL POR MENOR; REPARACIÓN DE VEHÍCULOS AUTOMOTORES Y MOTOCICLETAS | G179: 4719 | H179: G | I179: Natural | J179: PEQUEÑA | K179: 12710000
B180: 41001 | C180: NEIVA | D180: 41 | E180: =VLOOKUP(D180,'[1]DIVIPOLA MPIO'!$B$5:$C$1129,2,0) -> HUILA | F180: ACTIVIDADES DE ATENCIÓN DE LA SALUD HUMANA Y DE ASISTENCIA SOCIAL | G180: 8899 | H180: Q | I180: Natural | J180: PEQUEÑA | K180: 4540000
B181: 66400 | C181: LA VIRGINIA | D181: 66 | E181: =VLOOKUP(D181,'[1]DIVIPOLA MPIO'!$B$5:$C$1129,2,0) -> RISARALDA | F181: INDUSTRIAS MANUFACTURERAS | G181: 1610 | H181: C | I181: Natural | J181: MICRO | K181: 8712000
B182: 5088 | C182: BELLO | D182: 5 | E182: =VLOOKUP(D182,'[1]DIVIPOLA MPIO'!$B$5:$C$1129,2,0) -> ANTIOQUIA | F182: COMERCIO AL POR MAYOR Y AL POR MENOR; REPARACIÓN DE VEHÍCULOS AUTOMOTORES Y MOTOCICLETAS | G182: 4771 | H182: G | I182: Natural | J182: MICRO | K182: 5900000
B183: 5001 | C183: MEDELLÍN | D183: 5 | E183: =VLOOKUP(D183,'[1]DIVIPOLA MPIO'!$B$5:$C$1129,2,0) -> ANTIOQUIA | F183: ACTIVIDADES DE ATENCIÓN DE LA SALUD HUMANA Y DE ASISTENCIA SOCIAL | G183: 8899 | H183: Q | I183: Natural | J183: MICRO | K183: 3267000
B184: 5088 | C184: BELLO | D184: 5 | E184: =VLOOKUP(D184,'[1]DIVIPOLA MPIO'!$B$5:$C$1129,2,0) -> ANTIOQUIA | F184: COMERCIO AL POR MAYOR Y AL POR MENOR; REPARACIÓN DE VEHÍCULOS AUTOMOTORES Y MOTOCICLETAS | G184: 4724 | H184: G | I184: Natural | J184: MICRO | K184: 18882000
B185: 5088 | C185: BELLO | D185: 5 | E185: =VLOOKUP(D185,'[1]DIVIPOLA MPIO'!$B$5:$C$1129,2,0) -> ANTIOQUIA | F185: TRANSPORTE Y ALMACENAMIENTO | G185: 4923 | H185: H | I185: Natural | J185: MICRO | K185: 10529000
B186: 5088 | C186: BELLO | D186: 5 | E186: =VLOOKUP(D186,'[1]DIVIPOLA MPIO'!$B$5:$C$1129,2,0) -> ANTIOQUIA | F186: ALOJAMIENTO Y SERVICIOS DE COMIDA | G186: 5511 | H186: I | I186: Natural | J186: MICRO | K186: 29964000
B187: 13001 | C187: CARTAGENA | D187: 13 | E187: =VLOOKUP(D187,'[1]DIVIPOLA MPIO'!$B$5:$C$1129,2,0) -> BOLÍVAR | F187: COMERCIO AL POR MAYOR Y AL POR MENOR; REPARACIÓN DE VEHÍCULOS AUTOMOTORES Y MOTOCICLETAS | G187: 4711 | H187: G | I187: Natural | J187: MICRO | K187: 24688000
B188: 5088 | C188: BELLO | D188: 5 | E188: =VLOOKUP(D188,'[1]DIVIPOLA MPIO'!$B$5:$C$1129,2,0) -> ANTIOQUIA | F188: COMERCIO AL POR MAYOR Y AL POR MENOR; REPARACIÓN DE VEHÍCULOS AUTOMOTORES Y MOTOCICLETAS | G188: 4719 | H188: G | I188: Natural | J188: MICRO | K188: 32688000
B189: 5001 | C189: MEDELLÍN | D189: 5 | E189: =VLOOKUP(D189,'[1]DIVIPOLA MPIO'!$B$5:$C$1129,2,0) -> ANTIOQUIA | F189: COMERCIO AL POR MAYOR Y AL POR MENOR; REPARACIÓN DE VEHÍCULOS AUTOMOTORES Y MOTOCICLETAS | G189: 4520 | H189: G | I189: Natural | J189: MICRO | K189: 1906000
B190: 5001 | C190: MEDELLÍN | D190: 5 | E190: =VLOOKUP(D190,'[1]DIVIPOLA MPIO'!$B$5:$C$1129,2,0) -> ANTIOQUIA | F190: EDUCACIÓN | G190: 8512 | H190: P | I190: Natural | J190: MICRO | K190: 11804000
B191: 5001 | C191: MEDELLÍN | D191: 5 | E191: =VLOOKUP(D191,'[1]DIVIPOLA MPIO'!$B$5:$C$1129,2,0) -> ANTIOQUIA | F191: COMERCIO AL POR MAYOR Y AL POR MENOR; REPARACIÓN DE VEHÍCULOS AUTOMOTORES Y MOTOCICLETAS | G191: 4669 | H191: G | I191: Natural | J191: MICRO | K191: 3268000
B192: 5266 | C192: ENVIGADO | D192: 5 | E192: =VLOOKUP(D192,'[1]DIVIPOLA MPIO'!$B$5:$C$1129,2,0) -> ANTIOQUIA | F192: COMERCIO AL POR MAYOR Y AL POR MENOR; REPARACIÓN DE VEHÍCULOS AUTOMOTORES Y MOTOCICLETAS | G192: 4520 | H192: G | I192: Natural | J192: MICRO | K192: 5808000
B193: 5001 | C193: MEDELLÍN | D193: 5 | E193: =VLOOKUP(D193,'[1]DIVIPOLA MPIO'!$B$5:$C$1129,2,0) -> ANTIOQUIA | F193: ALOJAMIENTO Y SERVICIOS DE COMIDA | G193: 5619 | H193: I | I193: Natural | J193: MICRO | K193: 14074000
B194: 5088 | C194: BELLO | D194: 5 | E194: =VLOOKUP(D194,'[1]DIVIPOLA MPIO'!$B$5:$C$1129,2,0) -> ANTIOQUIA | F194: COMERCIO AL POR MAYOR Y AL POR MENOR; REPARACIÓN DE VEHÍCULOS AUTOMOTORES Y MOTOCICLETAS | G194: 4741 | H194: G | I194: Natural | J194: MICRO | K194: 2724000
B195: 5001 | C195: MEDELLÍN | D195: 5 | E195: =VLOOKUP(D195,'[1]DIVIPOLA MPIO'!$B$5:$C$1129,2,0) -> ANTIOQUIA | F195: COMERCIO AL POR MAYOR Y AL POR MENOR; REPARACIÓN DE VEHÍCULOS AUTOMOTORES Y MOTOCICLETAS | G195: 4719 | H195: G | I195: Natural | J195: MICRO | K195: 1089000
B196: 5001 | C196: MEDELLÍN | D196: 5 | E196: =VLOOKUP(D196,'[1]DIVIPOLA MPIO'!$B$5:$C$1129,2,0) -> ANTIOQUIA | F196: CONSTRUCCIÓN | G196: 4330 | H196: F | I196: Natural | J196: PEQUEÑA | K196: 36028000
B197: 5088 | C197: BELLO | D197: 5 | E197: =VLOOKUP(D197,'[1]DIVIPOLA MPIO'!$B$5:$C$1129,2,0) -> ANTIOQUIA | F197: COMERCIO AL POR MAYOR Y AL POR MENOR; REPARACIÓN DE VEHÍCULOS AUTOMOTORES Y MOTOCICLETAS | G197: 4771 | H197: G | I197: Natural | J197: MICRO | K197: 8172000
B198: 5360 | C198: ITAGUI | D198: 5 | E198: =VLOOKUP(D198,'[1]DIVIPOLA MPIO'!$B$5:$C$1129,2,0) -> ANTIOQUIA | F198: INDUSTRIAS MANUFACTURERAS | G198: 1630 | H198: C | I198: Natural | J198: MICRO | K198: 4629000
B199: 5088 | C199: BELLO | D199: 5 | E199: =VLOOKUP(D199,'[1]DIVIPOLA MPIO'!$B$5:$C$1129,2,0) -> ANTIOQUIA | F199: CONSTRUCCIÓN | G199: 4312 | H199: F | I199: Natural | J199: MICRO | K199: 10892000
B200: 5308 | C200: GIRARDOTA | D200: 5 | E200: =VLOOKUP(D200,'[1]DIVIPOLA MPIO'!$B$5:$C$1129,2,0) -> ANTIOQUIA | F200: COMERCIO AL POR MAYOR Y AL POR MENOR; REPARACIÓN DE VEHÍCULOS AUTOMOTORES Y MOTOCICLETAS | G200: 4724 | H200: G | I200: Natural | J200: MICRO | K200: 5084000
... 4300 more rows

Sheet insumos2 (hidden)
A1: TIPO DE IDENTIFICACION POSTULANTE | B1: NUMERO IDENTIFICACION EMPRESA | C1: CIUDAD - DIVIPOLA - R | D1: Municipio | E1: TOTAL COTIZANTES CON CONCEPTO DE CONFORMIDAD TOTAL A GIRAR | F1: TOTAL COTIZANTES CON CONCEPTO DE NO CONFORMIDAD | G1: TIPO DE PERSONA | H1: Departamento DIVIPOLA (P) | I1: Nombre dpto | J1: ESTADO_TOTAL A GIRAR | K1: Tamaño del Empleador | L1: STRCODPAR_CIIU_EMPRESA | M1: ACTIVIDAD ECONOMICA | N1: ACTIVIDAD ECONOMICA | O1: Division 3DC_TD 3D | P1: grupo especial 2DC_TD 3D | Q1: SEXO_F_ | R1: SEXO_M_ | S1: SEXO_ND_ | U1: Departamentos | V1: empleadores | W1: Departamentos | X1: empleadores | AE1: TIPO DE IDENTIFICACION POSTULANTE | AF1: NUMERO IDENTIFICACION EMPRESA | AG1: CIUDAD - DIVIPOLA - R | AH1: Municipio | AI1: TOTAL COTIZANTES CON CONCEPTO DE CONFORMIDAD TOTAL A GIRAR | AJ1: TOTAL COTIZANTES CON CONCEPTO DE NO CONFORMIDAD | AK1: TIPO DE PERSONA | AL1: Departamento DIVIPOLA (P) | AM1: Nombre dpto | AN1: ESTADO_TOTAL A GIRAR | AO1: Tamaño del Empleador | AP1: STRCODPAR_CIIU_EMPRESA | AQ1: ACTIVIDAD ECONOMICA | AR1: ACTIVIDAD ECONOMICA | AS1: Division | AT1: Grupo | AU1: SEXO_F_ | AV1: SEXO_M_ | AW1: SEXO_ND_ | AY1: Departamentos | AZ1: empleadores | BA1: Departamentos | BB1: empleadores | BC1: nomdpto | BE1: =BC1 -> nomdpto | BF1: empleadores | BG1: empleados | BI1: codmunicipio | BJ1: aportantes | BK1: codmunicipio | BL1: aportantes | BM1: cod_dpto | BN1: nom_dpto | BO1: nom_mpio | BP1: empleadores | BQ1: empleados | BS1: Grupo | BT1: empleadores | BU1: empleados | BV1: Grupo | BW1: empleadores | BX1: empleados
C2: 66001 | D2: PEREIRA | E2: 2 | F2: 0 | G2: Natural | H2: 66 | I2: RISARALDA | J2: Aprobado con subsidio | K2: MICRO | L2: 4719 | M2: COMERCIO AL POR MAYOR Y AL POR MENOR; REPARACIÓN DE VEHÍCULOS AUTOMOTORES Y MOTOCICLETAS | N2: G | O2: Comercio al por menor en establecimientos no especializados | P2: Comercio al por menor en establecimientos no especializados | Q2: 2 | R2: 0 | S2: 0 | U2: 68 | V2: =COUNTIFS($J$2:$J$399999,"Aprobado con subsidio",$H$2:$H$399999,U2) -> 2125 | W2: =_xlfn._xlws.SORT($U$2:$V$34,2,-1) -> 11 | X2: 18092 | Y2: =VLOOKUP(W2,Hoja4!$A$29:$B$61,2,FALSE) -> Bogotá | AE2: =_xlfn._xlws.FILTER($A$2:$S$399999,$N$2:$N$399999=Visor!$N$4,"") -> 0 | AF2: 0 | AG2: 63130 | AH2: CALARCA | AI2: 4 | AJ2: 1 | AK2: Natural | AL2: 63 | AM2: QUINDÍO | AN2: Aprobado con subsidio | AO2: MICRO | AP2: 1511 | AQ2: INDUSTRIAS MANUFACTURERAS | AR2: C | AS2: Curtido y recurtido de cueros; fabricación de artículos de viaje, bolsos de mano y artículos similares, y fabricación de artículos de talabartería y guarnicionería; adobo y teñido de pieles | AT2: Curtido y recurtido de cueros; fabricación de calzado; fabricación de artículos de viaje, maletas, bolsos de mano y artículos similares, y fabricación de artículos de talabartería y guarnicionería; adobo y teñido de pieles | AU2: 0 | AV2: 4 | AW2: 0 | AY2: 68 | AZ2: =COUNTIFS($AN$2:$AN$399999,"Aprobado con subsidio",$AL$2:$AL$399999,AY2) -> 377 | BA2: =_xlfn._xlws.SORT($AY$2:$AZ$34,2,-1) -> 11 | BB2: 2834 | BC2: =VLOOKUP(BA2,Hoja4!$A$29:$B$61,2,FALSE) -> Bogotá | BE2: =BC2 -> Bogotá | BF2: =BB2 -> 2834 | BG2: =SUMIFS($AI$2:$AI$399999,$AN$2:$AN$399999,"Aprobado con subsidio",$AL$2:$AL$399999,BA2) -> 26775 | BI2: =_xlfn.UNIQUE($AG$2:$AG$399999) -> 63130 | BJ2: =COUNTIFS($AN$2:$AN$399999,"Aprobado con subsidio",$AG$2:$AG$399999,BI2) -> 12 | BK2: =_xlfn._xlws.SORT($BI$2:$BJ$1122,2,-1) -> 11001 | BL2: 2834 | BM2: =IF(LEN(BK2)=5,MID(BK2,1,2),MID(BK2,1,1))*1 -> 11 | BN2: =VLOOKUP(BM2,Hoja4!$A$29:$B$61,2,FALSE) -> Bogotá | BO2: =VLOOKUP(BK2,Hoja4!$D$29:$E$1150,2,FALSE) -> Bogotá, d.c. | BP2: =BL2 -> 2834 | BQ2: =SUMIFS($AI$2:$AI$399999,$AG$2:$AG$399999,BK2) -> 26775 | BS2: =_xlfn.UNIQUE($AT$2:$AT$399999) -> Curtido y recurtido de cueros; fabricación de calzado; fabricación de artículos de viaje, maletas, bolsos de mano y artículos similares, y fabricación de artículos de talabartería y guarnicionería; adobo y teñido de pieles | BT2: =COUNTIFS($AT$2:$AT$399999,BS2,$AN$2:$AN$399999,"Aprobado con subsidio") -> 300 | BU2: =SUMIFS($AI$2:$AI$399999,$AT$2:$AT$399999,BS2,$AN$2:$AN$399999,"Aprobado con subsidio") -> 3446 | BV2: =_xlfn._xlws.SORT(BS2:BU26,2,-1) -> Elaboración de productos alimenticios | BW2: 1167 | BX2: 12955
C3: 66001 | D3: PEREIRA | E3: 9 | F3: 2 | G3: Natural | H3: 66 | I3: RISARALDA | J3: Aprobado con subsidio | K3: MICRO | L3: 8512 | M3: EDUCACIÓN | N3: P | O3: Educación de la primera infancia, preescolar y básica primaria | P3: Educación de la primera infancia, preescolar y básica primaria | Q3: 7 | R3: 2 | S3: 0 | U3: 13 | V3: =COUNTIFS($J$2:$J$399999,"Aprobado con subsidio",$H$2:$H$399999,U3) -> 1392 | W3: 5 | X3: 9592 | Y3: =VLOOKUP(W3,Hoja4!$A$29:$B$61,2,FALSE) -> Antioquia | AE3: 0 | AF3: 0 | AG3: 66001 | AH3: PEREIRA | AI3: 47 | AJ3: 9 | AK3: Natural | AL3: 66 | AM3: RISARALDA | AN3: Aprobado con subsidio | AO3: PEQUEÑA | AP3: 1081 | AQ3: INDUSTRIAS MANUFACTURERAS | AR3: C | AS3: Elaboración de otros productos alimenticios | AT3: Elaboración de productos alimenticios | AU3: 35 | AV3: 12 | AW3: 0 | AY3: 13 | AZ3: 105 | BA3: 5 | BB3: 1737 | BC3: =VLOOKUP(BA3,Hoja4!$A$29:$B$61,2,FALSE) -> Antioquia | BE3: =BC3 -> Antioquia | BF3: =BB3 -> 1737 | BG3: 19958 | BI3: 66001 | BJ3: 100 | BK3: 5001 | BL3: 1055 | BM3: =IF(LEN(BK3)=5,MID(BK3,1,2),MID(BK3,1,1))*1 -> 5 | BN3: =VLOOKUP(BM3,Hoja4!$A$29:$B$61,2,FALSE) -> Antioquia | BO3: =VLOOKUP(BK3,Hoja4!$D$29:$E$1150,2,FALSE) -> Medellín | BP3: 1055 | BQ3: 11441 | BS3: Elaboración de productos alimenticios | BT3: 1167 | BU3: 12955 | BV3: Confección de prendas de vestir | BW3: 1012 | BX3: 12200
C4: 11001 | D4: BOGOTÁ, D.C. | E4: 3 | F4: 1 | G4: Natural | H4: 11 | I4: BOGOTÁ, D.C. | J4: Aprobado con subsidio | K4: MICRO | L4: 4729 | M4: COMERCIO AL POR MAYOR Y AL POR MENOR; REPARACIÓN DE VEHÍCULOS AUTOMOTORES Y MOTOCICLETAS | N4: G | O4: Comercio al por menor de alimentos (víveres en general), bebidas y tabaco, en establecimientos especializados | P4: Comercio al por menor de alimentos (víveres en general), bebidas y tabaco, en establecimientos especializados | Q4: 0 | R4: 3 | S4: 0 | U4: 15 | V4: 682 | W4: 76 | X4: 5281 | Y4: =VLOOKUP(W4,Hoja4!$A$29:$B$61,2,FALSE) -> Valle del cauca | AE4: 0 | AF4: 0 | AG4: 66001 | AH4: PEREIRA | AI4: 6 | AJ4: 0 | AK4: Natural | AL4: 66 | AM4: RISARALDA | AN4: Aprobado con subsidio | AO4: MICRO | AP4: 2599 | AQ4: INDUSTRIAS MANUFACTURERAS | AR4: C | AS4: Fabricación de otros productos elaborados de metal y actividades de servicios relacionadas con el trabajo de metales | AT4: Fabricación de productos elaborados de metal, excepto maquinaria y equipo | AU4: 2 | AV4: 4 | AW4: 0 | AY4: 15 | AZ4: 77 | BA4: 76 | BB4: 851 | BC4: =VLOOKUP(BA4,Hoja4!$A$29:$B$61,2,FALSE) -> Valle del cauca | BE4: Valle del cauca | BF4: 851 | BG4: 9703 | BI4: 41551 | BJ4: 11 | BK4: 76001 | BL4: 619 | BM4: 76 | BN4: =VLOOKUP(BM4,Hoja4!$A$29:$B$61,2,FALSE) -> Valle del cauca | BO4: =VLOOKUP(BK4,Hoja4!$D$29:$E$1150,2,FALSE) -> Cali | BP4: 619 | BQ4: 6625 | BS4: Fabricación de productos elaborados de metal, excepto maquinaria y equipo | BT4: 750 | BU4: 8603 | BV4: Instalación, mantenimiento y reparación especializado de maquinaria y equipo | BW4: 897 | BX4: 7445
C5: 11001 | D5: BOGOTÁ, D.C. | E5: 3 | F5: 2 | G5: Natural | H5: 11 | I5: BOGOTÁ, D.C. | J5: Aprobado con subsidio | K5: MICRO | L5: 5613 | M5: ALOJAMIENTO Y SERVICIOS DE COMIDA | N5: I | O5: Actividades de restaurantes, cafeterías y servicio móvil de comidas | P5: Actividades de restaurantes, cafeterías y servicio móvil de comidas | Q5: 1 | R5: 2 | S5: 0 | U5: 5 | V5: 9592 | W5: 8 | X5: 2222 | Y5: =VLOOKUP(W5,Hoja4!$A$29:$B$61,2,FALSE) -> Atlántico | AE5: 0 | AF5: 0 | AG5: 41551 | AH5: PITALITO | AI5: 1 | AJ5: 6 | AK5: Natural | AL5: 41 | AM5: HUILA | AN5: Aprobado con subsidio | AO5: MICRO | AP5: 2392 | AQ5: INDUSTRIAS MANUFACTURERAS | AR5: C | AS5: Fabricación de productos minerales no metálicos n.c.p. | AT5: Fabricación de otros productos minerales no metálicos | AU5: 0 | AV5: 1 | AW5: 0 | AY5: 5 | AZ5: 1737 | BA5: 68 | BB5: 377 | BC5: =VLOOKUP(BA5,Hoja4!$A$29:$B$61,2,FALSE) -> Santander | BE5: Santander | BF5: 377 | BG5: 3759 | BI5: 25123 | BJ5: 1 | BK5: 68001 | BL5: 257 | BM5: 68 | BN5: =VLOOKUP(BM5,Hoja4!$A$29:$B$61,2,FALSE) -> Santander | BO5: =VLOOKUP(BK5,Hoja4!$D$29:$E$1150,2,FALSE) -> Bucaramanga | BP5: 257 | BQ5: 2453 | BS5: Fabricación de otros productos minerales no metálicos | BT5: 188 | BU5: 2686 | BV5: Fabricación de productos elaborados de metal, excepto maquinaria y equipo | BW5: 750 | BX5: 8603
C6: 11001 | D6: BOGOTÁ, D.C. | E6: 0 | F6: 0 | G6: Natural | H6: 11 | I6: BOGOTÁ, D.C. | J6: 0 | K6: 0 | L6: 9601 | M6: OTRAS ACTIVIDADES DE SERVICIOS | N6: S | O6: Otras actividades de servicios personales | P6: Otras actividades de servicios personales | Q6: 0 | R6: 0 | S6: 0 | U6: 76 | V6: 5281 | W6: 68 | X6: 2125 | Y6: =VLOOKUP(W6,Hoja4!$A$29:$B$61,2,FALSE) -> Santander | AE6: 0 | AF6: 0 | AG6: 63130 | AH6: CALARCA | AI6: 0 | AJ6: 5 | AK6: Natural | AL6: 63 | AM6: QUINDÍO | AN6: 0 | AO6: MICRO | AP6: 1511 | AQ6: INDUSTRIAS MANUFACTURERAS | AR6: C | AS6: Curtido y recurtido de cueros; fabricación de artículos de viaje, bolsos de mano y artículos similares, y fabricación de artículos de talabartería y guarnicionería; adobo y teñido de pieles | AT6: Curtido y recurtido de cueros; fabricación de calzado; fabricación de artículos de viaje, maletas, bolsos de mano y artículos similares, y fabricación de artículos de talabartería y guarnicionería; adobo y teñido de pieles | AU6: 0 | AV6: 0 | AW6: 0 | AY6: 76 | AZ6: 851 | BA6: 25 | BB6: 293 | BC6: =VLOOKUP(BA6,Hoja4!$A$29:$B$61,2,FALSE) -> Cundinamarca | BE6: Cundinamarca | BF6: 293 | BG6: 3642 | BI6: 63001 | BJ6: 52 | BK6: 8001 | BL6: 245 | BM6: 8 | BN6: =VLOOKUP(BM6,Hoja4!$A$29:$B$61,2,FALSE) -> Atlántico | BO6: =VLOOKUP(BK6,Hoja4!$D$29:$E$1150,2,FALSE) -> Barranquilla | BP6: 245 | BQ6: 2604 | BS6: Fabricación de aparatos y equipo eléctrico | BT6: 105 | BU6: 1294 | BV6: Actividades de impresión y de producción de copias a partir de grabaciones originales | BW6: 496 | BX6: 4004
C7: 11001 | D7: BOGOTÁ, D.C. | E7: 0 | F7: 0 | G7: Natural | H7: 11 | I7: BOGOTÁ, D.C. | J7: 0 | K7: MICRO | L7: 5619 | M7: ALOJAMIENTO Y SERVICIOS DE COMIDA | N7: I | O7: Actividades de restaurantes, cafeterías y servicio móvil de comidas | P7: Actividades de restaurantes, cafeterías y servicio móvil de comidas | Q7: 0 | R7: 0 | S7: 0 | U7: 54 | V7: 884 | W7: 25 | X7: 1896 | Y7: =VLOOKUP(W7,Hoja4!$A$29:$B$61,2,FALSE) -> Cundinamarca | AE7: 0 | AF7: 0 | AG7: 66001 | AH7: PEREIRA | AI7: 6 | AJ7: 1 | AK7: Natural | AL7: 66 | AM7: RISARALDA | AN7: Aprobado con subsidio | AO7: MICRO | AP7: 1521 | AQ7: INDUSTRIAS MANUFACTURERAS | AR7: C | AS7: Fabricación de calzado | AT7: Curtido y recurtido de cueros; fabricación de calzado; fabricación de artículos de viaje, maletas, bolsos de mano y artículos similares, y fabricación de artículos de talabartería y guarnicionería; adobo y teñido de pieles | AU7: 2 | AV7: 4 | AW7: 0 | AY7: 54 | AZ7: 120 | BA7: 8 | BB7: 282 | BC7: =VLOOKUP(BA7,Hoja4!$A$29:$B$61,2,FALSE) -> Atlántico | BE7: Atlántico | BF7: 282 | BG7: 2942 | BI7: 66682 | BJ7: 8 | BK7: 5360 | BL7: 187 | BM7: 5 | BN7: =VLOOKUP(BM7,Hoja4!$A$29:$B$61,2,FALSE) -> Antioquia | BO7: =VLOOKUP(BK7,Hoja4!$D$29:$E$1150,2,FALSE) -> Itagüí | BP7: 187 | BQ7: 2368 | BS7: Fabricación de muebles, colchones y somieres | BT7: 439 | BU7: 4544 | BV7: Fabricación de muebles, colchones y somieres | BW7: 439 | BX7: 4544
C8: 66170 | D8: DOSQUEBRADAS | E8: 8 | F8: 4 | G8: Natural | H8: 66 | I8: RISARALDA | J8: Aprobado con subsidio | K8: MICRO | L8: 8129 | M8: ACTIVIDADES DE SERVICIOS ADMINISTRATIVOS Y DE APOYO | N8: N | O8: Actividades de limpieza | P8: Actividades de limpieza | Q8: 2 | R8: 6 | S8: 0 | U8: 11 | V8: 18092 | W8: 13 | X8: 1392 | Y8: =VLOOKUP(W8,Hoja4!$A$29:$B$61,2,FALSE) -> Bolívar | AE8: 0 | AF8: 0 | AG8: 25123 | AH8: CACHIPAY | AI8: 7 | AJ8: 4 | AK8: Natural | AL8: 25 | AM8: CUNDINAMARCA | AN8: Aprobado con subsidio | AO8: MICRO | AP8: 1081 | AQ8: INDUSTRIAS MANUFACTURERAS | AR8: C | AS8: Elaboración de otros productos alimenticios | AT8: Elaboración de productos alimenticios | AU8: 4 | AV8: 3 | AW8: 0 | AY8: 11 | AZ8: 2834 | BA8: 66 | BB8: 176 | BC8: =VLOOKUP(BA8,Hoja4!$A$29:$B$61,2,FALSE) -> Risaralda | BE8: Risaralda | BF8: 176 | BG8: 2352 | BI8: 76147 | BJ8: 21 | BK8: 66001 | BL8: 100 | BM8: 66 | BN8: =VLOOKUP(BM8,Hoja4!$A$29:$B$61,2,FALSE) -> Risaralda | BO8: =VLOOKUP(BK8,Hoja4!$D$29:$E$1150,2,FALSE) -> Pereira | BP8: 100 | BQ8: 1375 | BS8: Fabricación de otros tipos de equipo de transporte | BT8: 17 | BU8: 202 | BV8: Fabricación de productos de caucho y de plástico | BW8: 312 | BX8: 3358
C9: 5001 | D9: MEDELLÍN | E9: 3 | F9: 5 | G9: Natural | H9: 5 | I9: ANTIOQUIA | J9: Aprobado con subsidio | K9: MICRO | L9: 8730 | M9: ACTIVIDADES DE ATENCIÓN DE LA SALUD HUMANA Y DE ASISTENCIA SOCIAL | N9: Q | O9: Actividades de atención en instituciones para el cuidado de personas mayores y/o discapacitadas | P9: Actividades de atención en instituciones para el cuidado de personas mayores y/o discapacitadas | Q9: 3 | R9: 0 | S9: 0 | U9: 66 | V9: 1045 | W9: 66 | X9: 1045 | Y9: =VLOOKUP(W9,Hoja4!$A$29:$B$61,2,FALSE) -> Risaralda | AE9: 0 | AF9: 0 | AG9: 63001 | AH9: ARMENIA | AI9: 20 | AJ9: 0 | AK9: Natural | AL9: 63 | AM9: QUINDÍO | AN9: Aprobado con subsidio | AO9: PEQUEÑA | AP9: 1020 | AQ9: INDUSTRIAS MANUFACTURERAS | AR9: C | AS9: Procesamiento y conservación de frutas, legumbres, hortalizas y tubérculos | AT9: Elaboración de productos alimenticios | AU9: 3 | AV9: 17 | AW9: 0 | AY9: 66 | AZ9: 176 | BA9: 54 | BB9: 120 | BC9: =VLOOKUP(BA9,Hoja4!$A$29:$B$61,2,FALSE) -> Norte de stder | BE9: Norte de stder | BF9: 120 | BG9: 1297 | BI9: 11001 | BJ9: 2834 | BK9: 54001 | BL9: 95 | BM9: 54 | BN9: =VLOOKUP(BM9,Hoja4!$A$29:$B$61,2,FALSE) -> Norte de stder | BO9: =VLOOKUP(BK9,Hoja4!$D$29:$E$1150,2,FALSE) -> Cucuta | BP9: 95 | BQ9: 910 | BS9: Fabricación de productos de caucho y de plástico | BT9: 312 | BU9: 3358 | BV9: Curtido y recurtido de cueros; fabricación de calzado; fabricación de artículos de viaje, maletas, bolsos de mano y artículos similares, y fabricación de artículos de talabartería y guarnicionería; adobo y teñido de pieles | BW9: 300 | BX9: 3446
C10: 5088 | D10: BELLO | E10: 12 | F10: 4 | G10: Natural | H10: 5 | I10: ANTIOQUIA | J10: Aprobado con subsidio | K10: PEQUEÑA | L10: 4711 | M10: COMERCIO AL POR MAYOR Y AL POR MENOR; REPARACIÓN DE VEHÍCULOS AUTOMOTORES Y MOTOCICLETAS | N10: G | O10: Comercio al por menor en establecimientos no especializados | P10: Comercio al por menor en establecimientos no especializados | Q10: 3 | R10: 9 | S10: 0 | U10: 52 | V10: 568 | W10: 54 | X10: 884 | Y10: =VLOOKUP(W10,Hoja4!$A$29:$B$61,2,FALSE) -> Norte de stder | AE10: 0 | AF10: 0 | AG10: 66682 | AH10: SANTA ROSA DE CABAL | AI10: 11 | AJ10: 0 | AK10: Natural | AL10: 66 | AM10: RISARALDA | AN10: Aprobado con subsidio | AO10: PEQUEÑA | AP10: 2712 | AQ10: INDUSTRIAS MANUFACTURERAS | AR10: C | AS10: Fabricación de motores, generadores y transformadores eléctricos y de aparatos de distribución y control de la energía eléctrica | AT10: Fabricación de aparatos y equipo eléctrico | AU10: 4 | AV10: 7 | AW10: 0 | AY10: 52 | AZ10: 63 | BA10: 13 | BB10: 105 | BC10: =VLOOKUP(BA10,Hoja4!$A$29:$B$61,2,FALSE) -> Bolívar | BE10: Bolívar | BF10: 105 | BG10: 1146 | BI10: 66170 | BJ10: 63 | BK10: 13001 | BL10: 92 | BM10: 13 | BN10: =VLOOKUP(BM10,Hoja4!$A$29:$B$61,2,FALSE) -> Bolívar | BO10: =VLOOKUP(BK10,Hoja4!$D$29:$E$1150,2,FALSE) -> Cartagena de ind | BP10: 92 | BQ10: 1017 | BS10: Instalación, mantenimiento y reparación especializado de maquinaria y equipo | BT10: 897 | BU10: 7445 | BV10: Otras industrias manufactureras | BW10: 289 | BX10: 2982
C11: 66001 | D11: PEREIRA | E11: 6 | F11: 1 | G11: Natural | H11: 66 | I11: RISARALDA | J11: Aprobado con subsidio | K11: MICRO | L11: 5320 | M11: TRANSPORTE Y ALMACENAMIENTO | N11: H | O11: Actividades de mensajería | P11: Actividades de mensajería | Q11: 2 | R11: 4 | S11: 0 | U11: 19 | V11: 370 | W11: 50 | X11: 730 | Y11: =VLOOKUP(W11,Hoja4!$A$29:$B$61,2,FALSE) -> Meta | AE11: 0 | AF11: 0 | AG11: 76147 | AH11: CARTAGO | AI11: 5 | AJ11: 6 | AK11: Natural | AL11: 76 | AM11: VALLE DEL CAUCA | AN11: Aprobado con subsidio | AO11: MICRO | AP11: 3110 | AQ11: INDUSTRIAS MANUFACTURERAS | AR11: C | AS11: Fabricación de muebles | AT11: Fabricación de muebles, colchones y somieres | AU11: 1 | AV11: 4 | AW11: 0 | AY11: 19 | AZ11: 30 | BA11: 17 | BB11: 88 | BC11: =VLOOKUP(BA11,Hoja4!$A$29:$B$61,2,FALSE) -> Caldas | BE11: Caldas | BF11: 88 | BG11: 1312 | BI11: 76001 | BJ11: 619 | BK11: 76892 | BL11: 70 | BM11: 76 | BN11: =VLOOKUP(BM11,Hoja4!$A$29:$B$61,2,FALSE) -> Valle del cauca | BO11: =VLOOKUP(BK11,Hoja4!$D$29:$E$1150,2,FALSE) -> Yumbo | BP11: 70 | BQ11: 1210 | BS11: Confección de prendas de vestir | BT11: 1012 | BU11: 12200 | BV11: Transformación de la madera y fabricación de productos de madera y de corcho, excepto muebles; fabricación de artículos de cestería y espartería | BW11: 250 | BX11: 2612
C12: 50001 | D12: VILLAVICENCIO | E12: 9 | F12: 1 | G12: Natural | H12: 50 | I12: META | J12: Aprobado con subsidio | K12: MICRO | L12: 5514 | M12: ALOJAMIENTO Y SERVICIOS DE COMIDA | N12: I | O12: Actividades de alojamiento de estancias cortas | P12: Actividades de alojamiento de estancias cortas | Q12: 6 | R12: 3 | S12: 0 | U12: 47 | V12: 534 | W12: 73 | X12: 684 | Y12: =VLOOKUP(W12,Hoja4!$A$29:$B$61,2,FALSE) -> Tolima | AE12: 0 | AF12: 0 | AG12: 11001 | AH12: BOGOTÁ, D.C. | AI12: 8 | AJ12: 3 | AK12: Natural | AL12: 11 | AM12: BOGOTÁ, D.C. | AN12: Aprobado con subsidio | AO12: MICRO | AP12: 1081 | AQ12: INDUSTRIAS MANUFACTURERAS | AR12: C | AS12: Elaboración de otros productos alimenticios | AT12: Elaboración de productos alimenticios | AU12: 6 | AV12: 2 | AW12: 0 | AY12: 47 | AZ12: 47 | BA12: 15 | BB12: 77 | BC12: =VLOOKUP(BA12,Hoja4!$A$29:$B$61,2,FALSE) -> Boyacá | BE12: Boyacá | BF12: 77 | BG12: 804 | BI12: 5001 | BJ12: 1055 | BK12: 17001 | BL12: 69 | BM12: 17 | BN12: =VLOOKUP(BM12,Hoja4!$A$29:$B$61,2,FALSE) -> Caldas | BO12: =VLOOKUP(BK12,Hoja4!$D$29:$E$1150,2,FALSE) -> Manizales | BP12: 69 | BQ12: 1080 | BS12: Otras industrias manufactureras | BT12: 289 | BU12: 2982 | BV12: Fabricación de maquinaria y equipo n.c.p. | BW12: 249 | BX12: 2921
C13: 66001 | D13: PEREIRA | E13: 2 | F13: 2 | G13: Natural | H13: 66 | I13: RISARALDA | J13: Aprobado con subsidio | K13: MICRO | L13: 6619 | M13: ACTIVIDADES FINANCIERAS Y DE SEGUROS | N13: K | O13: Actividades auxiliares de las actividades de servicios financieros, excepto las de seguros y pensiones | P13: Actividades auxiliares de las actividades de servicios financieros, excepto las de seguros y pensiones | Q13: 2 | R13: 0 | S13: 0 | U13: 50 | V13: 730 | W13: 15 | X13: 682 | Y13: =VLOOKUP(W13,Hoja4!$A$29:$B$61,2,FALSE) -> Boyacá | AE13: 0 | AF13: 0 | AG13: 66170 | AH13: DOSQUEBRADAS | AI13: 5 | AJ13: 1 | AK13: Natural | AL13: 66 | AM13: RISARALDA | AN13: Aprobado con subsidio | AO13: MICRO | AP13: 3092 | AQ13: INDUSTRIAS MANUFACTURERAS | AR13: C | AS13: Fabricación de otros tipos de equipo de transporte n.c.p. | AT13: Fabricación de otros tipos de equipo de transporte | AU13: 0 | AV13: 5 | AW13: 0 | AY13: 50 | AZ13: 59 | BA13: 73 | BB13: 77 | BC13: =VLOOKUP(BA13,Hoja4!$A$29:$B$61,2,FALSE) -> Tolima | BE13: Tolima | BF13: 77 | BG13: 945 | BI13: 5088 | BJ13: 61 | BK13: 5266 | BL13: 66 | BM13: 5 | BN13: =VLOOKUP(BM13,Hoja4!$A$29:$B$61,2,FALSE) -> Antioquia | BO13: =VLOOKUP(BK13,Hoja4!$D$29:$E$1150,2,FALSE) -> Envigado | BP13: 66 | BQ13: 699 | BS13: Transformación de la madera y fabricación de productos de madera y de corcho, excepto muebles; fabricación de artículos de cestería y espartería | BT13: 250 | BU13: 2612 | BV13: Fabricación de sustancias y productos químicos | BW13: 236 | BX13: 2254
C14: 50001 | D14: VILLAVICENCIO | E14: 13 | F14: 5 | G14: Natural | H14: 50 | I14: META | J14: Aprobado con subsidio | K14: PEQUEÑA | L14: 4541 | M14: COMERCIO AL POR MAYOR Y AL POR MENOR; REPARACIÓN DE VEHÍCULOS AUTOMOTORES Y MOTOCICLETAS | N14: G | O14: Comercio, mantenimiento y reparación de motocicletas y de sus partes, piezas y accesorios | P14: Comercio, mantenimiento y reparación de motocicletas y de sus partes, piezas y accesorios | Q14: 5 | R14: 8 | S14: 0 | U14: 63 | V14: 473 | W14: 41 | X14: 617 | Y14: =VLOOKUP(W14,Hoja4!$A$29:$B$61,2,FALSE) -> Huila | AE14: 0 | AF14: 0 | AG14: 66001 | AH14: PEREIRA | AI14: 3 | AJ14: 0 | AK14: Natural | AL14: 66 | AM14: RISARALDA | AN14: Aprobado con subsidio | AO14: MICRO | AP14: 2221 | AQ14: INDUSTRIAS MANUFACTURERAS | AR14: C | AS14: Fabricación de productos de plástico | AT14: Fabricación de productos de caucho y de plástico | AU14: 0 | AV14: 3 | AW14: 0 | AY14: 63 | AZ14: 70 | BA14: 41 | BB14: 74 | BC14: =VLOOKUP(BA14,Hoja4!$A$29:$B$61,2,FALSE) -> Huila | BE14: Huila | BF14: 74 | BG14: 717 | BI14: 17380 | BJ14: 4 | BK14: 73001 | BL14: 65 | BM14: 73 | BN14: =VLOOKUP(BM14,Hoja4!$A$29:$B$61,2,FALSE) -> Tolima | BO14: =VLOOKUP(BK14,Hoja4!$D$29:$E$1150,2,FALSE) -> Ibagué | BP14: 65 | BQ14: 882 | BS14: Fabricación de sustancias y productos químicos | BT14: 236 | BU14: 2254 | BV14: Fabricación de productos textiles | BW14: 211 | BX14: 1951
C15: 13001 | D15: CARTAGENA | E15: 0 | F15: 0 | G15: Natural | H15: 13 | I15: BOLÍVAR | J15: 0 | K15: 0 | L15: 8899 | M15: ACTIVIDADES DE ATENCIÓN DE LA SALUD HUMANA Y DE ASISTENCIA SOCIAL | N15: Q | O15: Otras actividades de asistencia social sin alojamiento | P15: Otras actividades de asistencia social sin alojamiento | Q15: 0 | R15: 0 | S15: 0 | U15: 70 | V15: 258 | W15: 17 | X15: 613 | Y15: =VLOOKUP(W15,Hoja4!$A$29:$B$61,2,FALSE) -> Caldas | AE15: 0 | AF15: 0 | AG15: 66170 | AH15: DOSQUEBRADAS | AI15: 3 | AJ15: 1 | AK15: Natural | AL15: 66 | AM15: RISARALDA | AN15: Aprobado con subsidio | AO15: MICRO | AP15: 2229 | AQ15: INDUSTRIAS MANUFACTURERAS | AR15: C | AS15: Fabricación de productos de plástico | AT15: Fabricación de productos de caucho y de plástico | AU15: 1 | AV15: 2 | AW15: 0 | AY15: 70 | AZ15: 21 | BA15: 63 | BB15: 70 | BC15: =VLOOKUP(BA15,Hoja4!$A$29:$B$61,2,FALSE) -> Quindío | BE15: Quindío | BF15: 70 | BG15: 741 | BI15: 66400 | BJ15: 4 | BK15: 66170 | BL15: 63 | BM15: 66 | BN15: =VLOOKUP(BM15,Hoja4!$A$29:$B$61,2,FALSE) -> Risaralda | BO15: =VLOOKUP(BK15,Hoja4!$D$29:$E$1150,2,FALSE) -> Dosquebradas | BP15: 63 | BQ15: 868 | BS15: Elaboración de bebidas | BT15: 88 | BU15: 750 | BV15: Fabricación de otros productos minerales no metálicos | BW15: 188 | BX15: 2686
C16: 5360 | D16: ITAGUI | E16: 3 | F16: 0 | G16: Natural | H16: 5 | I16: ANTIOQUIA | J16: Aprobado con subsidio | K16: MICRO | L16: 5619 | M16: ALOJAMIENTO Y SERVICIOS DE COMIDA | N16: I | O16: Actividades de restaurantes, cafeterías y servicio móvil de comidas | P16: Actividades de restaurantes, cafeterías y servicio móvil de comidas | Q16: 1 | R16: 2 | S16: 0 | U16: 41 | V16: 617 | W16: 52 | X16: 568 | Y16: =VLOOKUP(W16,Hoja4!$A$29:$B$61,2,FALSE) -> Nariño | AE16: 0 | AF16: 0 | AG16: 11001 | AH16: BOGOTÁ, D.C. | AI16: 6 | AJ16: 0 | AK16: Natural | AL16: 11 | AM16: BOGOTÁ, D.C. | AN16: Aprobado con subsidio | AO16: MICRO | AP16: 1081 | AQ16: INDUSTRIAS MANUFACTURERAS | AR16: C | AS16: Elaboración de otros productos alimenticios | AT16: Elaboración de productos alimenticios | AU16: 4 | AV16: 2 | AW16: 0 | AY16: 41 | AZ16: 74 | BA16: 52 | BB16: 63 | BC16: =VLOOKUP(BA16,Hoja4!$A$29:$B$61,2,FALSE) -> Nariño | BE16: Nariño | BF16: 63 | BG16: 735 | BI16: 5376 | BJ16: 12 | BK16: 5088 | BL16: 61 | BM16: 5 | BN16: =VLOOKUP(BM16,Hoja4!$A$29:$B$61,2,FALSE) -> Antioquia | BO16: =VLOOKUP(BK16,Hoja4!$D$29:$E$1150,2,FALSE) -> Bello | BP16: 61 | BQ16: 713 | BS16: Actividades de impresión y de producción de copias a partir de grabaciones originales | BT16: 496 | BU16: 4004 | BV16: Fabricación de papel, cartón y productos de papel y cartón | BW16: 173 | BX16: 1684
C17: 66001 | D17: PEREIRA | E17: 0 | F17: 0 | G17: Natural | H17: 66 | I17: RISARALDA | J17: 0 | K17: 0 | L17: 7020 | M17: ACTIVIDADES PROFESIONALES, CIENTÍFICAS Y TÉCNICAS | N17: M | O17: Actividades de consultoría de gestión | P17: Actividades de consultoría de gestión | Q17: 0 | R17: 0 | S17: 0 | U17: 25 | V17: 1896 | W17: 23 | X17: 551 | Y17: =VLOOKUP(W17,Hoja4!$A$29:$B$61,2,FALSE) -> Córdoba | AE17: 0 | AF17: 0 | AG17: 76001 | AH17: CALI | AI17: 10 | AJ17: 0 | AK17: Natural | AL17: 76 | AM17: VALLE DEL CAUCA | AN17: Aprobado con subsidio | AO17: MICRO | AP17: 1089 | AQ17: INDUSTRIAS MANUFACTURERAS | AR17: C | AS17: Elaboración de otros productos alimenticios | AT17: Elaboración de productos alimenticios | AU17: 4 | AV17: 6 | AW17: 0 | AY17: 25 | AZ17: 293 | BA17: 50 | BB17: 59 | BC17: =VLOOKUP(BA17,Hoja4!$A$29:$B$61,2,FALSE) -> Meta | BE17: Meta | BF17: 59 | BG17: 540 | BI17: 5360 | BJ17: 187 | BK17: 76520 | BL17: 59 | BM17: 76 | BN17: =VLOOKUP(BM17,Hoja4!$A$29:$B$61,2,FALSE) -> Valle del cauca | BO17: =VLOOKUP(BK17,Hoja4!$D$29:$E$1150,2,FALSE) -> Palmira | BP17: 59 | BQ17: 721 | BS17: Fabricación de productos textiles | BT17: 211 | BU17: 1951 | BV17: Fabricación de productos metalúrgicos básicos | BW17: 129 | BX17: 1396
C18: 5001 | D18: MEDELLÍN | E18: 5 | F18: 1 | G18: Natural | H18: 5 | I18: ANTIOQUIA | J18: Aprobado con subsidio | K18: MICRO | L18: 4541 | M18: COMERCIO AL POR MAYOR Y AL POR MENOR; REPARACIÓN DE VEHÍCULOS AUTOMOTORES Y MOTOCICLETAS | N18: G | O18: Comercio, mantenimiento y reparación de motocicletas y de sus partes, piezas y accesorios | P18: Comercio, mantenimiento y reparación de motocicletas y de sus partes, piezas y accesorios | Q18: 0 | R18: 5 | S18: 0 | U18: 8 | V18: 2222 | W18: 47 | X18: 534 | Y18: =VLOOKUP(W18,Hoja4!$A$29:$B$61,2,FALSE) -> Magdalena | AE18: 0 | AF18: 0 | AG18: 11001 | AH18: BOGOTÁ, D.C. | AI18: 0 | AJ18: 0 | AK18: Natural | AL18: 11 | AM18: BOGOTÁ, D.C. | AN18: 0 | AO18: 0 | AP18: 3311 | AQ18: INDUSTRIAS MANUFACTURERAS | AR18: C | AS18: Mantenimiento y reparación especializado de productos elaborados en metal y de maquinaria y equipo | AT18: Instalación, mantenimiento y reparación especializado de maquinaria y equipo | AU18: 0 | AV18: 0 | AW18: 0 | AY18: 8 | AZ18: 282 | BA18: 47 | BB18: 47 | BC18: =VLOOKUP(BA18,Hoja4!$A$29:$B$61,2,FALSE) -> Magdalena | BE18: Magdalena | BF18: 47 | BG18: 546 | BI18: 5042 | BJ18: 2 | BK18: 25754 | BL18: 58 | BM18: 25 | BN18: =VLOOKUP(BM18,Hoja4!$A$29:$B$61,2,FALSE) -> Cundinamarca | BO18: =VLOOKUP(BK18,Hoja4!$D$29:$E$1150,2,FALSE) -> Soacha | BP18: 58 | BQ18: 598 | BS18: Coquización, fabricación de productos de la refinación del petróleo y actividad de mezcla de combustibles | BT18: 24 | BU18: 309 | BV18: Fabricación de vehículos automotores, remolques y semirremolques | BW18: 111 | BX18: 1553
C19: 66001 | D19: PEREIRA | E19: 12 | F19: 1 | G19: Natural | H19: 66 | I19: RISARALDA | J19: Aprobado con subsidio | K19: PEQUEÑA | L19: 4719 | M19: COMERCIO AL POR MAYOR Y AL POR MENOR; REPARACIÓN DE VEHÍCULOS AUTOMOTORES Y MOTOCICLETAS | N19: G | O19: Comercio al por menor en establecimientos no especializados | P19: Comercio al por menor en establecimientos no especializados | Q19: 9 | R19: 3 | S19: 0 | U19: 85 | V19: 287 | W19: 20 | X19: 508 | Y19: =VLOOKUP(W19,Hoja4!$A$29:$B$61,2,FALSE) -> Cesar | AE19: 0 | AF19: 0 | AG19: 66001 | AH19: PEREIRA | AI19: 14 | AJ19: 2 | AK19: Natural | AL19: 66 | AM19: RISARALDA | AN19: Aprobado con subsidio | AO19: PEQUEÑA | AP19: 1020 | AQ19: INDUSTRIAS MANUFACTURERAS | AR19: C | AS19: Procesamiento y conservación de frutas, legumbres, hortalizas y tubérculos | AT19: Elaboración de productos alimenticios | AU19: 1 | AV19: 13 | AW19: 0 | AY19: 85 | AZ19: 23 | BA19: 23 | BB19: 40 | BC19: =VLOOKUP(BA19,Hoja4!$A$29:$B$61,2,FALSE) -> Córdoba | BE19: Córdoba | BF19: 40 | BG19: 411 | BI19: 17001 | BJ19: 69 | BK19: 5380 | BL19: 56 | BM19: 5 | BN19: =VLOOKUP(BM19,Hoja4!$A$29:$B$61,2,FALSE) -> Antioquia | BO19: =VLOOKUP(BK19,Hoja4!$D$29:$E$1150,2,FALSE) -> La estrella | BP19: 56 | BQ19: 705 | BS19: Fabricación de productos metalúrgicos básicos | BT19: 129 | BU19: 1396 | BV19: Fabricación de aparatos y equipo eléctrico | BW19: 105 | BX19: 1294
C20: 76001 | D20: CALI | E20: 7 | F20: 0 | G20: Natural | H20: 76 | I20: VALLE DEL CAUCA | J20: Aprobado con subsidio | K20: MICRO | L20: 4649 | M20: COMERCIO AL POR MAYOR Y AL POR MENOR; REPARACIÓN DE VEHÍCULOS AUTOMOTORES Y MOTOCICLETAS | N20: G | O20: Comercio al por mayor de artículos y enseres domésticos (incluidas prendas de vestir) | P20: Comercio al por mayor de artículos y enseres domésticos (incluidas prendas de vestir) | Q20: 3 | R20: 4 | S20: 0 | U20: 73 | V20: 684 | W20: 63 | X20: 473 | Y20: =VLOOKUP(W20,Hoja4!$A$29:$B$61,2,FALSE) -> Quindío | AE20: 0 | AF20: 0 | AG20: 5001 | AH20: MEDELLÍN | AI20: 8 | AJ20: 0 | AK20: Natural | AL20: 5 | AM20: ANTIOQUIA | AN20: Aprobado con subsidio | AO20: MICRO | AP20: 2511 | AQ20: INDUSTRIAS MANUFACTURERAS | AR20: C | AS20: Fabricación de productos metálicos para uso estructural, tanques, depósitos y generadores de vapor. | AT20: Fabricación de productos elaborados de metal, excepto maquinaria y equipo | AU20: 0 | AV20: 8 | AW20: 0 | AY20: 73 | AZ20: 77 | BA20: 20 | BB20: 36 | BC20: =VLOOKUP(BA20,Hoja4!$A$29:$B$61,2,FALSE) -> Cesar | BE20: Cesar | BF20: 36 | BG20: 327 | BI20: 50001 | BJ20: 46 | BK20: 52001 | BL20: 54 | BM20: 52 | BN20: =VLOOKUP(BM20,Hoja4!$A$29:$B$61,2,FALSE) -> Nariño | BO20: =VLOOKUP(BK20,Hoja4!$D$29:$E$1150,2,FALSE) -> Pasto | BP20: 54 | BQ20: 642 | BS20: Fabricación de papel, cartón y productos de papel y cartón | BT20: 173 | BU20: 1684 | BV20: Elaboración de bebidas | BW20: 88 | BX20: 750
C21: 94001 | D21: INÍRIDA | E21: 2 | F21: 2 | G21: Natural | H21: 94 | I21: GUAINÍA | J21: Aprobado con subsidio | K21: MICRO | L21: 8899 | M21: ACTIVIDADES DE ATENCIÓN DE LA SALUD HUMANA Y DE ASISTENCIA SOCIAL | N21: Q | O21: Otras actividades de asistencia social sin alojamiento | P21: Otras actividades de asistencia social sin alojamiento | Q21: 1 | R21: 1 | S21: 0 | U21: 20 | V21: 508 | W21: 19 | X21: 370 | Y21: =VLOOKUP(W21,Hoja4!$A$29:$B$61,2,FALSE) -> Cauca | AE21: 0 | AF21: 0 | AG21: 11001 | AH21: BOGOTÁ, D.C. | AI21: 0 | AJ21: 0 | AK21: Natural | AL21: 11 | AM21: BOGOTÁ, D.C. | AN21: 0 | AO21: 0 | AP21: 3110 | AQ21: INDUSTRIAS MANUFACTURERAS | AR21: C | AS21: Fabricación de muebles | AT21: Fabricación de muebles, colchones y somieres | AU21: 0 | AV21: 0 | AW21: 0 | AY21: 20 | AZ21: 36 | BA21: 19 | BB21: 30 | BC21: =VLOOKUP(BA21,Hoja4!$A$29:$B$61,2,FALSE) -> Cauca | BE21: Cauca | BF21: 30 | BG21: 382 | BI21: 17873 | BJ21: 10 | BK21: 41001 | BL21: 54 | BM21: 41 | BN21: =VLOOKUP(BM21,Hoja4!$A$29:$B$61,2,FALSE) -> Huila | BO21: =VLOOKUP(BK21,Hoja4!$D$29:$E$1150,2,FALSE) -> Neiva | BP21: 54 | BQ21: 550 | BS21: Fabricación de maquinaria y equipo n.c.p. | BT21: 249 | BU21: 2921 | BV21: Fabricación de productos informáticos, electrónicos y ópticos | BW21: 35 | BX21: 347
C22: 66170 | D22: DOSQUEBRADAS | E22: 0 | F22: 4 | G22: Natural | H22: 66 | I22: RISARALDA | J22: 0 | K22: MICRO | L22: 8129 | M22: ACTIVIDADES DE SERVICIOS ADMINISTRATIVOS Y DE APOYO | N22: N | O22: Actividades de limpieza | P22: Actividades de limpieza | Q22: 0 | R22: 0 | S22: 0 | U22: 97 | V22: 2 | W22: 85 | X22: 287 | Y22: =VLOOKUP(W22,Hoja4!$A$29:$B$61,2,FALSE) -> Casanare | AE22: 0 | AF22: 0 | AG22: 11001 | AH22: BOGOTÁ, D.C. | AI22: 7 | AJ22: 8 | AK22: Natural | AL22: 11 | AM22: BOGOTÁ, D.C. | AN22: Aprobado con subsidio | AO22: MICRO | AP22: 2511 | AQ22: INDUSTRIAS MANUFACTURERAS | AR22: C | AS22: Fabricación de productos metálicos para uso estructural, tanques, depósitos y generadores de vapor. | AT22: Fabricación de productos elaborados de metal, excepto maquinaria y equipo | AU22: 1 | AV22: 6 | AW22: 0 | AY22: 97 | AZ22: 0 | BA22: 85 | BB22: 23 | BC22: =VLOOKUP(BA22,Hoja4!$A$29:$B$61,2,FALSE) -> Casanare | BE22: Casanare | BF22: 23 | BG22: 203 | BI22: 25754 | BJ22: 58 | BK22: 63001 | BL22: 52 | BM22: 63 | BN22: =VLOOKUP(BM22,Hoja4!$A$29:$B$61,2,FALSE) -> Quindío | BO22: =VLOOKUP(BK22,Hoja4!$D$29:$E$1150,2,FALSE) -> Armenia | BP22: 52 | BQ22: 585 | BS22: Fabricación de vehículos automotores, remolques y semirremolques | BT22: 111 | BU22: 1553 | BV22: Fabricación de productos farmacéuticos, sustancias químicas medicinales y productos botánicos de uso farmacéutico | BW22: 30 | BX22: 231
C23: 63130 | D23: CALARCA | E23: 4 | F23: 1 | G23: Natural | H23: 63 | I23: QUINDÍO | J23: Aprobado con subsidio | K23: MICRO | L23: 1511 | M23: INDUSTRIAS MANUFACTURERAS | N23: C | O23: Curtido y recurtido de cueros; fabricación de artículos de viaje, bolsos de mano y artículos similares, y fabricación de artículos de talabartería y guarnicionería; adobo y teñido de pieles | P23: Curtido y recurtido de cueros; fabricación de calzado; fabricación de artículos de viaje, maletas, bolsos de mano y artículos similares, y fabricación de artículos de talabartería y guarnicionería; adobo y teñido de pieles | Q23: 0 | R23: 4 | S23: 0 | U23: 81 | V23: 82 | W23: 70 | X23: 258 | Y23: =VLOOKUP(W23,Hoja4!$A$29:$B$61,2,FALSE) -> Sucre | AE23: 0 | AF23: 0 | AG23: 11001 | AH23: BOGOTÁ, D.C. | AI23: 4 | AJ23: 3 | AK23: Natural | AL23: 11 | AM23: BOGOTÁ, D.C. | AN23: Aprobado con subsidio | AO23: PEQUEÑA | AP23: 1410 | AQ23: INDUSTRIAS MANUFACTURERAS | AR23: C | AS23: Confección de prendas de vestir, excepto prendas de piel | AT23: Confección de prendas de vestir | AU23: 2 | AV23: 2 | AW23: 0 | AY23: 81 | AZ23: 3 | BA23: 70 | BB23: 21 | BC23: =VLOOKUP(BA23,Hoja4!$A$29:$B$61,2,FALSE) -> Sucre | BE23: Sucre | BF23: 21 | BG23: 228 | BI23: 15759 | BJ23: 19 | BK23: 5615 | BL23: 50 | BM23: 5 | BN23: =VLOOKUP(BM23,Hoja4!$A$29:$B$61,2,FALSE) -> Antioquia | BO23: =VLOOKUP(BK23,Hoja4!$D$29:$E$1150,2,FALSE) -> Rionegro | BP23: 50 | BQ23: 691 | BS23: Fabricación de productos informáticos, electrónicos y ópticos | BT23: 35 | BU23: 347 | BV23: Coquización, fabricación de productos de la refinación del petróleo y actividad de mezcla de combustibles | BW23: 24 | BX23: 309
C24: 5001 | D24: MEDELLÍN | E24: 3 | F24: 0 | G24: Natural | H24: 5 | I24: ANTIOQUIA | J24: Aprobado con subsidio | K24: MICRO | L24: 7310 | M24: ACTIVIDADES PROFESIONALES, CIENTÍFICAS Y TÉCNICAS | N24: M | O24: Publicidad | P24: Publicidad | Q24: 0 | R24: 3 | S24: 0 | U24: 44 | V24: 139 | W24: 44 | X24: 139 | Y24: =VLOOKUP(W24,Hoja4!$A$29:$B$61,2,FALSE) -> La guajira | AE24: 0 | AF24: 0 | AG24: 11001 | AH24: BOGOTÁ, D.C. | AI24: 3 | AJ24: 0 | AK24: Natural | AL24: 11 | AM24: BOGOTÁ, D.C. | AN24: Aprobado con subsidio | AO24: MICRO | AP24: 1521 | AQ24: INDUSTRIAS MANUFACTURERAS | AR24: C | AS24: Fabricación de calzado | AT24: Curtido y recurtido de cueros; fabricación de calzado; fabricación de artículos de viaje, maletas, bolsos de mano y artículos similares, y fabricación de artículos de talabartería y guarnicionería; adobo y teñido de pieles | AU24: 2 | AV24: 1 | AW24: 0 | AY24: 44 | AZ24: 6 | BA24: 18 | BB24: 11 | BC24: =VLOOKUP(BA24,Hoja4!$A$29:$B$61,2,FALSE) -> Caquetá | BE24: Caquetá | BF24: 11 | BG24: 89 | BI24: 5129 | BJ24: 20 | BK24: 50001 | BL24: 46 | BM24: 50 | BN24: =VLOOKUP(BM24,Hoja4!$A$29:$B$61,2,FALSE) -> Meta | BO24: =VLOOKUP(BK24,Hoja4!$D$29:$E$1150,2,FALSE) -> Villavicencio | BP24: 46 | BQ24: 435 | BS24: Fabricación de productos farmacéuticos, sustancias químicas medicinales y productos botánicos de uso farmacéutico | BT24: 30 | BU24: 231 | BV24: Fabricación de otros tipos de equipo de transporte | BW24: 17 | BX24: 202
C25: 76001 | D25: CALI | E25: 5 | F25: 0 | G25: Natural | H25: 76 | I25: VALLE DEL CAUCA | J25: Aprobado con subsidio | K25: MICRO | L25: 5611 | M25: ALOJAMIENTO Y SERVICIOS DE COMIDA | N25: I | O25: Actividades de restaurantes, cafeterías y servicio móvil de comidas | P25: Actividades de restaurantes, cafeterías y servicio móvil de comidas | Q25: 1 | R25: 4 | S25: 0 | U25: 17 | V25: 613 | W25: 18 | X25: 105 | Y25: =VLOOKUP(W25,Hoja4!$A$29:$B$61,2,FALSE) -> Caquetá | AE25: 0 | AF25: 0 | AG25: 11001 | AH25: BOGOTÁ, D.C. | AI25: 2 | AJ25: 2 | AK25: Natural | AL25: 11 | AM25: BOGOTÁ, D.C. | AN25: Aprobado con subsidio | AO25: MICRO | AP25: 1410 | AQ25: INDUSTRIAS MANUFACTURERAS | AR25: C | AS25: Confección de prendas de vestir, excepto prendas de piel | AT25: Confección de prendas de vestir | AU25: 0 | AV25: 2 | AW25: 0 | AY25: 17 | AZ25: 88 | BA25: 44 | BB25: 6 | BC25: =VLOOKUP(BA25,Hoja4!$A$29:$B$61,2,FALSE) -> La guajira | BE25: =BC25 -> La guajira | BF25: =BB25 -> 6 | BG25: 60 | BI25: 52001 | BJ25: 54 | BK25: 5631 | BL25: 42 | BM25: 5 | BN25: =VLOOKUP(BM25,Hoja4!$A$29:$B$61,2,FALSE) -> Antioquia | BO25: =VLOOKUP(BK25,Hoja4!$D$29:$E$1150,2,FALSE) -> Sabaneta | BP25: 42 | BQ25: 668 | BS25: Elaboración de productos de tabaco | BT25: 2 | BU25: 18 | BV25: Elaboración de productos de tabaco | BW25: 2 | BX25: 18
C26: 8001 | D26: BARRANQUILLA | E26: 7 | F26: 0 | G26: Natural | H26: 8 | I26: ATLÁNTICO | J26: Aprobado con subsidio | K26: MICRO | L26: 4520 | M26: COMERCIO AL POR MAYOR Y AL POR MENOR; REPARACIÓN DE VEHÍCULOS AUTOMOTORES Y MOTOCICLETAS | N26: G | O26: Mantenimiento y reparación de vehículos automotores | P26: Mantenimiento y reparación de vehículos automotores | Q26: 0 | R26: 7 | S26: 0 | U26: 18 | V26: 105 | W26: 81 | X26: 82 | Y26: =VLOOKUP(W26,Hoja4!$A$29:$B$61,2,FALSE) -> Arauca | AE26: 0 | AF26: 0 | AG26: 11001 | AH26: BOGOTÁ, D.C. | AI26: 12 | AJ26: 31 | AK26: Natural | AL26: 11 | AM26: BOGOTÁ, D.C. | AN26: Aprobado con subsidio | AO26: PEQUEÑA | AP26: 3290 | AQ26: INDUSTRIAS MANUFACTURERAS | AR26: C | AS26: Otras industrias manufactureras n.c.p. | AT26: Otras industrias manufactureras | AU26: 9 | AV26: 3 | AW26: 0 | AY26: 18 | AZ26: 11 | BA26: 81 | BB26: 3 | BC26: =VLOOKUP(BA26,Hoja4!$A$29:$B$61,2,FALSE) -> Arauca | BE26: Arauca | BF26: =BB26 -> 3 | BG26: 46 | BI26: 5030 | BJ26: 2 | BK26: 25473 | BL26: 42 | BM26: 25 | BN26: =VLOOKUP(BM26,Hoja4!$A$29:$B$61,2,FALSE) -> Cundinamarca | BO26: =VLOOKUP(BK26,Hoja4!$D$29:$E$1150,2,FALSE) -> Mosquera | BP26: 42 | BQ26: 664 | BS26: 0 | BT26: 0 | BU26: 0 | BV26: 0 | BW26: 0 | BX26: 0
C27: 73001 | D27: IBAGUÉ | E27: 4 | F27: 2 | G27: Natural | H27: 73 | I27: TOLIMA | J27: Aprobado con subsidio | K27: MICRO | L27: 4659 | M27: COMERCIO AL POR MAYOR Y AL POR MENOR; REPARACIÓN DE VEHÍCULOS AUTOMOTORES Y MOTOCICLETAS | N27: G | O27: Comercio al por mayor de maquinaria y equipo | P27: Comercio al por mayor de maquinaria y equipo | Q27: 2 | R27: 2 | S27: 0 | U27: 23 | V27: 551 | W27: 88 | X27: 77 | Y27: =VLOOKUP(W27,Hoja4!$A$29:$B$61,2,FALSE) -> San Andrés | AE27: 0 | AF27: 0 | AG27: 5088 | AH27: BELLO | AI27: 3 | AJ27: 9 | AK27: Natural | AL27: 5 | AM27: ANTIOQUIA | AN27: Aprobado con subsidio | AO27: MICRO | AP27: 1081 | AQ27: INDUSTRIAS MANUFACTURERAS | AR27: C | AS27: Elaboración de otros productos alimenticios | AT27: Elaboración de productos alimenticios | AU27: 2 | AV27: 1 | AW27: 0 | AY27: 23 | AZ27: 40 | BA27: 88 | BB27: 3 | BC27: =VLOOKUP(BA27,Hoja4!$A$29:$B$61,2,FALSE) -> San Andrés | BE27: San Andrés | BF27: =BB27 -> 3 | BG27: 25 | BI27: 5237 | BJ27: 20 | BK27: 47001 | BL27: 39 | BM27: 47 | BN27: =VLOOKUP(BM27,Hoja4!$A$29:$B$61,2,FALSE) -> Magdalena | BO27: =VLOOKUP(BK27,Hoja4!$D$29:$E$1150,2,FALSE) -> Santa marta | BP27: 39 | BQ27: 451 | BT27: 0 | BU27: 0
C28: 8001 | D28: BARRANQUILLA | E28: 4 | F28: 2 | G28: Natural | H28: 8 | I28: ATLÁNTICO | J28: Aprobado con subsidio | K28: MICRO | L28: 4729 | M28: COMERCIO AL POR MAYOR Y AL POR MENOR; REPARACIÓN DE VEHÍCULOS AUTOMOTORES Y MOTOCICLETAS | N28: G | O28: Comercio al por menor de alimentos (víveres en general), bebidas y tabaco, en establecimientos especializados | P28: Comercio al por menor de alimentos (víveres en general), bebidas y tabaco, en establecimientos especializados | Q28: 0 | R28: 4 | S28: 0 | U28: 88 | V28: 77 | W28: 86 | X28: 73 | Y28: =VLOOKUP(W28,Hoja4!$A$29:$B$61,2,FALSE) -> Putumayo | AE28: 0 | AF28: 0 | AG28: 66170 | AH28: DOSQUEBRADAS | AI28: 4 | AJ28: 3 | AK28: Natural | AL28: 66 | AM28: RISARALDA | AN28: Aprobado con subsidio | AO28: MICRO | AP28: 3110 | AQ28: INDUSTRIAS MANUFACTURERAS | AR28: C | AS28: Fabricación de muebles | AT28: Fabricación de muebles, colchones y somieres | AU28: 1 | AV28: 3 | AW28: 0 | AY28: 88 | AZ28: 3 | BA28: 27 | BB28: 2 | BC28: =VLOOKUP(BA28,Hoja4!$A$29:$B$61,2,FALSE) -> Chocó | BE28: Chocó | BF28: =BB28 -> 2 | BG28: 36 | BI28: 5266 | BJ28: 66 | BK28: 25214 | BL28: 32 | BM28: 25 | BN28: =VLOOKUP(BM28,Hoja4!$A$29:$B$61,2,FALSE) -> Cundinamarca | BO28: =VLOOKUP(BK28,Hoja4!$D$29:$E$1150,2,FALSE) -> Cota | BP28: 32 | BQ28: 531 | BT28: =SUM(BT2:BT27) -> 7510 | BU28: =SUM(BU2:BU27) -> 79745
C29: 13001 | D29: CARTAGENA | E29: 9 | F29: 1 | G29: Natural | H29: 13 | I29: BOLÍVAR | J29: Aprobado con subsidio | K29: MICRO | L29: 5611 | M29: ALOJAMIENTO Y SERVICIOS DE COMIDA | N29: I | O29: Actividades de restaurantes, cafeterías y servicio móvil de comidas | P29: Actividades de restaurantes, cafeterías y servicio móvil de comidas | Q29: 7 | R29: 2 | S29: 0 | U29: 91 | V29: 27 | W29: 27 | X29: 55 | Y29: =VLOOKUP(W29,Hoja4!$A$29:$B$61,2,FALSE) -> Chocó | AE29: 0 | AF29: 0 | AG29: 11001 | AH29: BOGOTÁ, D.C. | AI29: 10 | AJ29: 0 | AK29: Natural | AL29: 11 | AM29: BOGOTÁ, D.C. | AN29: Aprobado con subsidio | AO29: MICRO | AP29: 1081 | AQ29: INDUSTRIAS MANUFACTURERAS | AR29: C | AS29: Elaboración de otros productos alimenticios | AT29: Elaboración de productos alimenticios | AU29: 5 | AV29: 5 | AW29: 0 | AY29: 91 | AZ29: 1 | BA29: 91 | BB29: 1 | BC29: =VLOOKUP(BA29,Hoja4!$A$29:$B$61,2,FALSE) -> Amazonas | BE29: Otros | BF29: =SUM(BB29:BB34) -> 5 | BG29: =SUMIFS($AI$2:$AI$399999,$AN$2:$AN$399999,"Aprobado con subsidio")-SUM(BG2:BG28) -> 24 | BI29: 41001 | BJ29: 54 | BK29: 68307 | BL29: 31 | BN29: Otros | BO29: Otros | BP29: =SUM(BL29:BL1000) -> 1048 | BQ29: =SUMIFS($AI$2:$AI$399999,$AN$2:$AN$399999,"Aprobado con subsidio")-SUM(BQ2:BQ28) -> 11484
C30: 76001 | D30: CALI | E30: 3 | F30: 0 | G30: Natural | H30: 76 | I30: VALLE DEL CAUCA | J30: Aprobado con subsidio | K30: MICRO | L30: 5611 | M30: ALOJAMIENTO Y SERVICIOS DE COMIDA | N30: I | O30: Actividades de restaurantes, cafeterías y servicio móvil de comidas | P30: Actividades de restaurantes, cafeterías y servicio móvil de comidas | Q30: 3 | R30: 0 | S30: 0 | U30: 95 | V30: 14 | W30: 91 | X30: 27 | Y30: =VLOOKUP(W30,Hoja4!$A$29:$B$61,2,FALSE) -> Amazonas | AE30: 0 | AF30: 0 | AG30: 11001 | AH30: BOGOTÁ, D.C. | AI30: 2 | AJ30: 0 | AK30: Natural | AL30: 11 | AM30: BOGOTÁ, D.C. | AN30: Aprobado con subsidio | AO30: MICRO | AP30: 1081 | AQ30: INDUSTRIAS MANUFACTURERAS | AR30: C | AS30: Elaboración de otros productos alimenticios | AT30: Elaboración de productos alimenticios | AU30: 1 | AV30: 1 | AW30: 0 | AY30: 95 | AZ30: 1 | BA30: 95 | BB30: 1 | BC30: =VLOOKUP(BA30,Hoja4!$A$29:$B$61,2,FALSE) -> Guaviare | BE30: Total | BF30: =SUM(BF2:BF29) -> 7510 | BG30: =SUM(BG2:BG29) -> 79745 | BI30: 5380 | BJ30: 56 | BK30: 5212 | BL30: 31 | BN30: Total | BP30: =SUM(BP2:BP29) -> 7510 | BQ30: =SUM(BQ2:BQ29) -> 79745
C31: 66001 | D31: PEREIRA | E31: 47 | F31: 9 | G31: Natural | H31: 66 | I31: RISARALDA | J31: Aprobado con subsidio | K31: PEQUEÑA | L31: 1081 | M31: INDUSTRIAS MANUFACTURERAS | N31: C | O31: Elaboración de otros productos alimenticios | P31: Elaboración de productos alimenticios | Q31: 35 | R31: 12 | S31: 0 | U31: 86 | V31: 73 | W31: 95 | X31: 14 | Y31: =VLOOKUP(W31,Hoja4!$A$29:$B$61,2,FALSE) -> Guaviare | AE31: 0 | AF31: 0 | AG31: 11001 | AH31: BOGOTÁ, D.C. | AI31: 4 | AJ31: 4 | AK31: Natural | AL31: 11 | AM31: BOGOTÁ, D.C. | AN31: Aprobado con subsidio | AO31: MICRO | AP31: 1410 | AQ31: INDUSTRIAS MANUFACTURERAS | AR31: C | AS31: Confección de prendas de vestir, excepto prendas de piel | AT31: Confección de prendas de vestir | AU31: 4 | AV31: 0 | AW31: 0 | AY31: 86 | AZ31: 1 | BA31: 86 | BB31: 1 | BC31: =VLOOKUP(BA31,Hoja4!$A$29:$B$61,2,FALSE) -> Putumayo | BI31: 5579 | BJ31: 1 | BK31: 25286 | BL31: 30
C32: 25126 | D32: CAJICÁ | E32: 3 | F32: 0 | G32: Natural | H32: 25 | I32: CUNDINAMARCA | J32: Aprobado con subsidio | K32: MICRO | L32: 8899 | M32: ACTIVIDADES DE ATENCIÓN DE LA SALUD HUMANA Y DE ASISTENCIA SOCIAL | N32: Q | O32: Otras actividades de asistencia social sin alojamiento | P32: Otras actividades de asistencia social sin alojamiento | Q32: 1 | R32: 2 | S32: 0 | U32: 27 | V32: 55 | W32: 94 | X32: 6 | Y32: =VLOOKUP(W32,Hoja4!$A$29:$B$61,2,FALSE) -> Guainía | AE32: 0 | AF32: 0 | AG32: 11001 | AH32: BOGOTÁ, D.C. | AI32: 9 | AJ32: 1 | AK32: Natural | AL32: 11 | AM32: BOGOTÁ, D.C. | AN32: Aprobado con subsidio | AO32: MICRO | AP32: 1081 | AQ32: INDUSTRIAS MANUFACTURERAS | AR32: C | AS32: Elaboración de otros productos alimenticios | AT32: Elaboración de productos alimenticios | AU32: 6 | AV32: 3 | AW32: 0 | AY32: 27 | AZ32: 2 | BA32: 94 | BB32: 1 | BC32: =VLOOKUP(BA32,Hoja4!$A$29:$B$61,2,FALSE) -> Guainía | BI32: 8758 | BJ32: 20 | BK32: 20001 | BL32: 28
C33: 5360 | D33: ITAGUI | E33: 3 | F33: 2 | G33: Natural | H33: 5 | I33: ANTIOQUIA | J33: Aprobado con subsidio | K33: MICRO | L33: 4631 | M33: COMERCIO AL POR MAYOR Y AL POR MENOR; REPARACIÓN DE VEHÍCULOS AUTOMOTORES Y MOTOCICLETAS | N33: G | O33: Comercio al por mayor de alimentos, bebidas y tabaco | P33: Comercio al por mayor de alimentos, bebidas y tabaco | Q33: 1 | R33: 2 | S33: 0 | U33: 94 | V33: 6 | W33: 99 | X33: 5 | Y33: =VLOOKUP(W33,Hoja4!$A$29:$B$61,2,FALSE) -> Vichada | AE33: 0 | AF33: 0 | AG33: 11001 | AH33: BOGOTÁ, D.C. | AI33: 2 | AJ33: 0 | AK33: Natural | AL33: 11 | AM33: BOGOTÁ, D.C. | AN33: Aprobado con subsidio | AO33: MICRO | AP33: 1410 | AQ33: INDUSTRIAS MANUFACTURERAS | AR33: C | AS33: Confección de prendas de vestir, excepto prendas de piel | AT33: Confección de prendas de vestir | AU33: 2 | AV33: 0 | AW33: 0 | AY33: 94 | AZ33: 1 | BA33: 99 | BB33: 1 | BC33: =VLOOKUP(BA33,Hoja4!$A$29:$B$61,2,FALSE) -> Vichada | BI33: 8001 | BJ33: 245 | BK33: 23001 | BL33: 28
C34: 17001 | D34: MANIZALES | E34: 3 | F34: 0 | G34: Natural | H34: 17 | I34: CALDAS | J34: Aprobado con subsidio | K34: MICRO | L34: 5221 | M34: TRANSPORTE Y ALMACENAMIENTO | N34: H | O34: Actividades de las estaciones, vías y servicios complementarios para el transporte | P34: Actividades de las estaciones, vías y servicios complementarios para el transporte | Q34: 0 | R34: 3 | S34: 0 | U34: 99 | V34: 5 | W34: 97 | X34: 2 | Y34: =VLOOKUP(W34,Hoja4!$A$29:$B$61,2,FALSE) -> Vaupés | AE34: 0 | AF34: 0 | AG34: 5001 | AH34: MEDELLÍN | AI34: 4 | AJ34: 4 | AK34: Natural | AL34: 5 | AM34: ANTIOQUIA | AN34: Aprobado con subsidio | AO34: MICRO | AP34: 2229 | AQ34: INDUSTRIAS MANUFACTURERAS | AR34: C | AS34: Fabricación de productos de plástico | AT34: Fabricación de productos de caucho y de plástico | AU34: 2 | AV34: 2 | AW34: 0 | AY34: 99 | AZ34: 1 | BA34: 97 | BB34: 0 | BC34: =VLOOKUP(BA34,Hoja4!$A$29:$B$61,2,FALSE) -> Vaupés | BI34: 5697 | BJ34: 10 | BK34: 76130 | BL34: 24
C35: 19001 | D35: POPAYÁN | E35: 2 | F35: 1 | G35: Natural | H35: 19 | I35: CAUCA | J35: Aprobado con subsidio | K35: MICRO | L35: 4762 | M35: COMERCIO AL POR MAYOR Y AL POR MENOR; REPARACIÓN DE VEHÍCULOS AUTOMOTORES Y MOTOCICLETAS | N35: G | O35: Comercio al por menor de artículos culturales y de entretenimiento, en establecimientos especializados | P35: Comercio al por menor de artículos culturales y de entretenimiento, en establecimientos especializados | Q35: 0 | R35: 2 | S35: 0 | AE35: 0 | AF35: 0 | AG35: 5001 | AH35: MEDELLÍN | AI35: 8 | AJ35: 0 | AK35: Natural | AL35: 5 | AM35: ANTIOQUIA | AN35: Aprobado con subsidio | AO35: MICRO | AP35: 1410 | AQ35: INDUSTRIAS MANUFACTURERAS | AR35: C | AS35: Confección de prendas de vestir, excepto prendas de piel | AT35: Confección de prendas de vestir | AU35: 7 | AV35: 1 | AW35: 0 | BI35: 19698 | BJ35: 5 | BK35: 68276 | BL35: 23
C36: 5212 | D36: COPACABANA | E36: 8 | F36: 13 | G36: Natural | H36: 5 | I36: ANTIOQUIA | J36: Aprobado con subsidio | K36: PEQUEÑA | L36: 4775 | M36: COMERCIO AL POR MAYOR Y AL POR MENOR; REPARACIÓN DE VEHÍCULOS AUTOMOTORES Y MOTOCICLETAS | N36: G | O36: Comercio al por menor de otros productos en establecimientos especializados | P36: Comercio al por menor de otros productos en establecimientos especializados | Q36: 0 | R36: 8 | S36: 0 | AE36: 0 | AF36: 0 | AG36: 17380 | AH36: LA DORADA | AI36: 2 | AJ36: 1 | AK36: Natural | AL36: 17 | AM36: CALDAS | AN36: Aprobado con subsidio | AO36: MICRO | AP36: 1610 | AQ36: INDUSTRIAS MANUFACTURERAS | AR36: C | AS36: Aserrado, acepillado e impregnación de la madera | AT36: Transformación de la madera y fabricación de productos de madera y de corcho, excepto muebles; fabricación de artículos de cestería y espartería | AU36: 0 | AV36: 2 | AW36: 0 | BI36: 15001 | BJ36: 11 | BK36: 68081 | BL36: 23
C37: 66001 | D37: PEREIRA | E37: 6 | F37: 0 | G37: Natural | H37: 66 | I37: RISARALDA | J37: Aprobado con subsidio | K37: MICRO | L37: 2599 | M37: INDUSTRIAS MANUFACTURERAS | N37: C | O37: Fabricación de otros productos elaborados de metal y actividades de servicios relacionadas con el trabajo de metales | P37: Fabricación de productos elaborados de metal, excepto maquinaria y equipo | Q37: 2 | R37: 4 | S37: 0 | AE37: 0 | AF37: 0 | AG37: 66400 | AH37: LA VIRGINIA | AI37: 3 | AJ37: 0 | AK37: Natural | AL37: 66 | AM37: RISARALDA | AN37: Aprobado con subsidio | AO37: MICRO | AP37: 1610 | AQ37: INDUSTRIAS MANUFACTURERAS | AR37: C | AS37: Aserrado, acepillado e impregnación de la madera | AT37: Transformación de la madera y fabricación de productos de madera y de corcho, excepto muebles; fabricación de artículos de cestería y espartería | AU37: 0 | AV37: 3 | AW37: 0 | BI37: 70001 | BJ37: 16 | BK37: 15238 | BL37: 22
C38: 76001 | D38: CALI | E38: 11 | F38: 5 | G38: Natural | H38: 76 | I38: VALLE DEL CAUCA | J38: Aprobado con subsidio | K38: MICRO | L38: 4771 | M38: COMERCIO AL POR MAYOR Y AL POR MENOR; REPARACIÓN DE VEHÍCULOS AUTOMOTORES Y MOTOCICLETAS | N38: G | O38: Comercio al por menor de otros productos en establecimientos especializados | P38: Comercio al por menor de otros productos en establecimientos especializados | Q38: 5 | R38: 6 | S38: 0 | AE38: 0 | AF38: 0 | AG38: 5376 | AH38: LA CEJA | AI38: 0 | AJ38: 0 | AK38: Natural | AL38: 5 | AM38: ANTIOQUIA | AN38: 0 | AO38: 0 | AP38: 1011 | AQ38: INDUSTRIAS MANUFACTURERAS | AR38: C | AS38: Procesamiento y conservación de carne, pescado, crustáceos y moluscos | AT38: Elaboración de productos alimenticios | AU38: 0 | AV38: 0 | AW38: 0 | BI38: 68001 | BJ38: 257 | BK38: 76147 | BL38: 21
C39: 13001 | D39: CARTAGENA | E39: 3 | F39: 1 | G39: Natural | H39: 13 | I39: BOLÍVAR | J39: Aprobado con subsidio | K39: MICRO | L39: 4711 | M39: COMERCIO AL POR MAYOR Y AL POR MENOR; REPARACIÓN DE VEHÍCULOS AUTOMOTORES Y MOTOCICLETAS | N39: G | O39: Comercio al por menor en establecimientos no especializados | P39: Comercio al por menor en establecimientos no especializados | Q39: 1 | R39: 2 | S39: 0 | AE39: 0 | AF39: 0 | AG39: 5360 | AH39: ITAGUI | AI39: 4 | AJ39: 4 | AK39: Natural | AL39: 5 | AM39: ANTIOQUIA | AN39: Aprobado con subsidio | AO39: MICRO | AP39: 1630 | AQ39: INDUSTRIAS MANUFACTURERAS | AR39: C | AS39: Fabricación de partes y piezas de madera, de carpintería y ebanistería para la construcción | AT39: Transformación de la madera y fabricación de productos de madera y de corcho, excepto muebles; fabricación de artículos de cestería y espartería | AU39: 1 | AV39: 3 | AW39: 0 | BI39: 15455 | BJ39: 2 | BK39: 5129 | BL39: 20
C40: 25307 | D40: GIRARDOT | E40: 0 | F40: 0 | G40: Natural | H40: 25 | I40: CUNDINAMARCA | J40: 0 | K40: 0 | L40: 4751 | M40: COMERCIO AL POR MAYOR Y AL POR MENOR; REPARACIÓN DE VEHÍCULOS AUTOMOTORES Y MOTOCICLETAS | N40: G | O40: Comercio al por menor de otros enseres domésticos en establecimientos especializados | P40: Comercio al por menor de otros enseres domésticos en establecimientos especializados | Q40: 0 | R40: 0 | S40: 0 | AE40: 0 | AF40: 0 | AG40: 5001 | AH40: MEDELLÍN | AI40: 4 | AJ40: 5 | AK40: Natural | AL40: 5 | AM40: ANTIOQUIA | AN40: Aprobado con subsidio | AO40: MICRO | AP40: 2023 | AQ40: INDUSTRIAS MANUFACTURERAS | AR40: C | AS40: Fabricación de otros productos químicos | AT40: Fabricación de sustancias y productos químicos | AU40: 4 | AV40: 0 | AW40: 0 | BI40: 19001 | BJ40: 15 | BK40: 5237 | BL40: 20
C41: 52356 | D41: IPIALES | E41: 13 | F41: 0 | G41: Natural | H41: 52 | I41: NARIÑO | J41: Aprobado con subsidio | K41: MICRO | L41: 4719 | M41: COMERCIO AL POR MAYOR Y AL POR MENOR; REPARACIÓN DE VEHÍCULOS AUTOMOTORES Y MOTOCICLETAS | N41: G | O41: Comercio al por menor en establecimientos no especializados | P41: Comercio al por menor en establecimientos no especializados | Q41: 11 | R41: 2 | S41: 0 | AE41: 0 | AF41: 0 | AG41: 11001 | AH41: BOGOTÁ, D.C. | AI41: 10 | AJ41: 0 | AK41: Natural | AL41: 11 | AM41: BOGOTÁ, D.C. | AN41: Aprobado con subsidio | AO41: MICRO | AP41: 1410 | AQ41: INDUSTRIAS MANUFACTURERAS | AR41: C | AS41: Confección de prendas de vestir, excepto prendas de piel | AT41: Confección de prendas de vestir | AU41: 8 | AV41: 2 | AW41: 0 | BI41: 20001 | BJ41: 28 | BK41: 8758 | BL41: 20
C42: 76001 | D42: CALI | E42: 2 | F42: 1 | G42: Natural | H42: 76 | I42: VALLE DEL CAUCA | J42: Aprobado con subsidio | K42: MICRO | L42: 4771 | M42: COMERCIO AL POR MAYOR Y AL POR MENOR; REPARACIÓN DE VEHÍCULOS AUTOMOTORES Y MOTOCICLETAS | N42: G | O42: Comercio al por menor de otros productos en establecimientos especializados | P42: Comercio al por menor de otros productos en establecimientos especializados | Q42: 2 | R42: 0 | S42: 0 | AE42: 0 | AF42: 0 | AG42: 11001 | AH42: BOGOTÁ, D.C. | AI42: 9 | AJ42: 0 | AK42: Natural | AL42: 11 | AM42: BOGOTÁ, D.C. | AN42: Aprobado con subsidio | AO42: MICRO | AP42: 1081 | AQ42: INDUSTRIAS MANUFACTURERAS | AR42: C | AS42: Elaboración de otros productos alimenticios | AT42: Elaboración de productos alimenticios | AU42: 5 | AV42: 4 | AW42: 0 | BI42: 23001 | BJ42: 28 | BK42: 15759 | BL42: 19
C43: 47189 | D43: CIÉNAGA | E43: 4 | F43: 0 | G43: Natural | H43: 47 | I43: MAGDALENA | J43: Aprobado con subsidio | K43: MICRO | L43: 4663 | M43: COMERCIO AL POR MAYOR Y AL POR MENOR; REPARACIÓN DE VEHÍCULOS AUTOMOTORES Y MOTOCICLETAS | N43: G | O43: Comercio al por mayor especializado de otros productos | P43: Comercio al por mayor especializado de otros productos | Q43: 1 | R43: 3 | S43: 0 | AE43: 0 | AF43: 0 | AG43: 5042 | AH43: SANTAFÉ DE ANTIOQUIA | AI43: 2 | AJ43: 4 | AK43: Natural | AL43: 5 | AM43: ANTIOQUIA | AN43: Aprobado con subsidio | AO43: MICRO | AP43: 1084 | AQ43: INDUSTRIAS MANUFACTURERAS | AR43: C | AS43: Elaboración de otros productos alimenticios | AT43: Elaboración de productos alimenticios | AU43: 1 | AV43: 1 | AW43: 0 | BI43: 25307 | BJ43: 3 | BK43: 5045 | BL43: 18
C44: 41551 | D44: PITALITO | E44: 1 | F44: 6 | G44: Natural | H44: 41 | I44: HUILA | J44: Aprobado con subsidio | K44: MICRO | L44: 2392 | M44: INDUSTRIAS MANUFACTURERAS | N44: C | O44: Fabricación de productos minerales no metálicos n.c.p. | P44: Fabricación de otros productos minerales no metálicos | Q44: 0 | R44: 1 | S44: 0 | AE44: 0 | AF44: 0 | AG44: 17001 | AH44: MANIZALES | AI44: 10 | AJ44: 0 | AK44: Natural | AL44: 17 | AM44: CALDAS | AN44: Aprobado con subsidio | AO44: MICRO | AP44: 2396 | AQ44: INDUSTRIAS MANUFACTURERAS | AR44: C | AS44: Fabricación de productos minerales no metálicos n.c.p. | AT44: Fabricación de otros productos minerales no metálicos | AU44: 3 | AV44: 7 | AW44: 0 | BI44: 41016 | BJ44: 2 | BK44: 25430 | BL44: 18
C45: 66001 | D45: PEREIRA | E45: 4 | F45: 0 | G45: Natural | H45: 66 | I45: RISARALDA | J45: Aprobado con subsidio | K45: MICRO | L45: 4772 | M45: COMERCIO AL POR MAYOR Y AL POR MENOR; REPARACIÓN DE VEHÍCULOS AUTOMOTORES Y MOTOCICLETAS | N45: G | O45: Comercio al por menor de otros productos en establecimientos especializados | P45: Comercio al por menor de otros productos en establecimientos especializados | Q45: 0 | R45: 4 | S45: 0 | AE45: 0 | AF45: 0 | AG45: 50001 | AH45: VILLAVICENCIO | AI45: 15 | AJ45: 2 | AK45: Natural | AL45: 50 | AM45: META | AN45: Aprobado con subsidio | AO45: PEQUEÑA | AP45: 1104 | AQ45: INDUSTRIAS MANUFACTURERAS | AR45: C | AS45: Elaboración de bebidas | AT45: Elaboración de bebidas | AU45: 3 | AV45: 12 | AW45: 0 | BI45: 25214 | BJ45: 32 | BK45: 5308 | BL45: 17
C46: 63130 | D46: CALARCA | E46: 0 | F46: 5 | G46: Natural | H46: 63 | I46: QUINDÍO | J46: 0 | K46: MICRO | L46: 1511 | M46: INDUSTRIAS MANUFACTURERAS | N46: C | O46: Curtido y recurtido de cueros; fabricación de artículos de viaje, bolsos de mano y artículos similares, y fabricación de artículos de talabartería y guarnicionería; adobo y teñido de pieles | P46: Curtido y recurtido de cueros; fabricación de calzado; fabricación de artículos de viaje, maletas, bolsos de mano y artículos similares, y fabricación de artículos de talabartería y guarnicionería; adobo y teñido de pieles | Q46: 0 | R46: 0 | S46: 0 | AE46: 0 | AF46: 0 | AG46: 11001 | AH46: BOGOTÁ, D.C. | AI46: 5 | AJ46: 0 | AK46: Natural | AL46: 11 | AM46: BOGOTÁ, D.C. | AN46: Aprobado con subsidio | AO46: MICRO | AP46: 1081 | AQ46: INDUSTRIAS MANUFACTURERAS | AR46: C | AS46: Elaboración de otros productos alimenticios | AT46: Elaboración de productos alimenticios | AU46: 3 | AV46: 2 | AW46: 0 | BI46: 47001 | BJ46: 39 | BK46: 70001 | BL46: 16
C47: 66170 | D47: DOSQUEBRADAS | E47: 13 | F47: 9 | G47: Natural | H47: 66 | I47: RISARALDA | J47: Aprobado con subsidio | K47: MICRO | L47: 4330 | M47: CONSTRUCCIÓN | N47: F | O47: Terminación y acabado de edificios y obras de ingeniería civil | P47: Terminación y acabado de edificios y obras de ingeniería civil | Q47: 1 | R47: 12 | S47: 0 | AE47: 0 | AF47: 0 | AG47: 17873 | AH47: VILLAMARÍA | AI47: 4 | AJ47: 0 | AK47: Natural | AL47: 17 | AM47: CALDAS | AN47: Aprobado con subsidio | AO47: MICRO | AP47: 2011 | AQ47: INDUSTRIAS MANUFACTURERAS | AR47: C | AS47: Fabricación de sustancias químicas básicas, abonos y compuestos inorgánicos nitrogenados, plásticos y caucho sintético en formas primarias | AT47: Fabricación de sustancias y productos químicos | AU47: 1 | AV47: 3 | AW47: 0 | BI47: 54001 | BJ47: 95 | BK47: 5318 | BL47: 16
C48: 63130 | D48: CALARCA | E48: 0 | F48: 15 | G48: Natural | H48: 63 | I48: QUINDÍO | J48: 0 | K48: PEQUEÑA | L48: 6511 | M48: ACTIVIDADES FINANCIERAS Y DE SEGUROS | N48: K | O48: Seguros | P48: Seguros | Q48: 0 | R48: 0 | S48: 0 | AE48: 0 | AF48: 0 | AG48: 17001 | AH48: MANIZALES | AI48: 3 | AJ48: 3 | AK48: Natural | AL48: 17 | AM48: CALDAS | AN48: Aprobado con subsidio | AO48: MICRO | AP48: 3290 | AQ48: INDUSTRIAS MANUFACTURERAS | AR48: C | AS48: Otras industrias manufactureras n.c.p. | AT48: Otras industrias manufactureras | AU48: 1 | AV48: 2 | AW48: 0 | BI48: 54874 | BJ48: 5 | BK48: 19001 | BL48: 15
C49: 66001 | D49: PEREIRA | E49: 5 | F49: 2 | G49: Natural | H49: 66 | I49: RISARALDA | J49: Aprobado con subsidio | K49: MICRO | L49: 6810 | M49: ACTIVIDADES INMOBILIARIAS | N49: L | O49: Actividades inmobiliarias realizadas con bienes propios o arrendados | P49: Actividades inmobiliarias realizadas con bienes propios o arrendados | Q49: 0 | R49: 5 | S49: 0 | AE49: 0 | AF49: 0 | AG49: 25754 | AH49: SOACHA | AI49: 6 | AJ49: 0 | AK49: Natural | AL49: 25 | AM49: CUNDINAMARCA | AN49: Aprobado con subsidio | AO49: MICRO | AP49: 2022 | AQ49: INDUSTRIAS MANUFACTURERAS | AR49: C | AS49: Fabricación de otros productos químicos | AT49: Fabricación de sustancias y productos químicos | AU49: 1 | AV49: 5 | AW49: 0 | BI49: 54405 | BJ49: 5 | BK49: 76834 | BL49: 13
C50: 66001 | D50: PEREIRA | E50: 6 | F50: 1 | G50: Natural | H50: 66 | I50: RISARALDA | J50: Aprobado con subsidio | K50: MICRO | L50: 1521 | M50: INDUSTRIAS MANUFACTURERAS | N50: C | O50: Fabricación de calzado | P50: Curtido y recurtido de cueros; fabricación de calzado; fabricación de artículos de viaje, maletas, bolsos de mano y artículos similares, y fabricación de artículos de talabartería y guarnicionería; adobo y teñido de pieles | Q50: 2 | R50: 4 | S50: 0 | AE50: 0 | AF50: 0 | AG50: 17001 | AH50: MANIZALES | AI50: 7 | AJ50: 0 | AK50: Natural | AL50: 17 | AM50: CALDAS | AN50: Aprobado con subsidio | AO50: MICRO | AP50: 3110 | AQ50: INDUSTRIAS MANUFACTURERAS | AR50: C | AS50: Fabricación de muebles | AT50: Fabricación de muebles, colchones y somieres | AU50: 2 | AV50: 5 | AW50: 0 | BI50: 68276 | BJ50: 23 | BK50: 25817 | BL50: 13
C51: 73001 | D51: IBAGUÉ | E51: 2 | F51: 2 | G51: Natural | H51: 73 | I51: TOLIMA | J51: Aprobado con subsidio | K51: MICRO | L51: 4773 | M51: COMERCIO AL POR MAYOR Y AL POR MENOR; REPARACIÓN DE VEHÍCULOS AUTOMOTORES Y MOTOCICLETAS | N51: G | O51: Comercio al por menor de otros productos en establecimientos especializados | P51: Comercio al por menor de otros productos en establecimientos especializados | Q51: 2 | R51: 0 | S51: 0 | AE51: 0 | AF51: 0 | AG51: 11001 | AH51: BOGOTÁ, D.C. | AI51: 3 | AJ51: 0 | AK51: Natural | AL51: 11 | AM51: BOGOTÁ, D.C. | AN51: Aprobado con subsidio | AO51: MICRO | AP51: 1410 | AQ51: INDUSTRIAS MANUFACTURERAS | AR51: C | AS51: Confección de prendas de vestir, excepto prendas de piel | AT51: Confección de prendas de vestir | AU51: 1 | AV51: 2 | AW51: 0 | BI51: 68307 | BJ51: 31 | BK51: 63130 | BL51: 12
C52: 25123 | D52: CACHIPAY | E52: 7 | F52: 4 | G52: Natural | H52: 25 | I52: CUNDINAMARCA | J52: Aprobado con subsidio | K52: MICRO | L52: 1081 | M52: INDUSTRIAS MANUFACTURERAS | N52: C | O52: Elaboración de otros productos alimenticios | P52: Elaboración de productos alimenticios | Q52: 4 | R52: 3 | S52: 0 | AE52: 0 | AF52: 0 | AG52: 15759 | AH52: SOGAMOSO | AI52: 12 | AJ52: 2 | AK52: Natural | AL52: 15 | AM52: BOYACÁ | AN52: Aprobado con subsidio | AO52: MICRO | AP52: 1081 | AQ52: INDUSTRIAS MANUFACTURERAS | AR52: C | AS52: Elaboración de otros productos alimenticios | AT52: Elaboración de productos alimenticios | AU52: 7 | AV52: 5 | AW52: 0 | BI52: 68081 | BJ52: 23 | BK52: 5376 | BL52: 12
C53: 76001 | D53: CALI | E53: 3 | F53: 0 | G53: Natural | H53: 76 | I53: VALLE DEL CAUCA | J53: Aprobado con subsidio | K53: MICRO | L53: 5613 | M53: ALOJAMIENTO Y SERVICIOS DE COMIDA | N53: I | O53: Actividades de restaurantes, cafeterías y servicio móvil de comidas | P53: Actividades de restaurantes, cafeterías y servicio móvil de comidas | Q53: 3 | R53: 0 | S53: 0 | AE53: 0 | AF53: 0 | AG53: 11001 | AH53: BOGOTÁ, D.C. | AI53: 6 | AJ53: 1 | AK53: Natural | AL53: 11 | AM53: BOGOTÁ, D.C. | AN53: Aprobado con subsidio | AO53: MICRO | AP53: 1811 | AQ53: INDUSTRIAS MANUFACTURERAS | AR53: C | AS53: Actividades de impresión y actividades de servicios relacionados con la impresión | AT53: Actividades de impresión y de producción de copias a partir de grabaciones originales | AU53: 5 | AV53: 1 | AW53: 0 | BI53: 68679 | BJ53: 9 | BK53: 25175 | BL53: 12
C54: 66170 | D54: DOSQUEBRADAS | E54: 8 | F54: 1 | G54: Natural | H54: 66 | I54: RISARALDA | J54: Aprobado con subsidio | K54: MICRO | L54: 5530 | M54: ALOJAMIENTO Y SERVICIOS DE COMIDA | N54: I | O54: Servicios por horas | P54: Servicios por horas | Q54: 6 | R54: 2 | S54: 0 | AE54: 0 | AF54: 0 | AG54: 66001 | AH54: PEREIRA | AI54: 5 | AJ54: 2 | AK54: Natural | AL54: 66 | AM54: RISARALDA | AN54: Aprobado con subsidio | AO54: MICRO | AP54: 3312 | AQ54: INDUSTRIAS MANUFACTURERAS | AR54: C | AS54: Mantenimiento y reparación especializado de productos elaborados en metal y de maquinaria y equipo | AT54: Instalación, mantenimiento y reparación especializado de maquinaria y equipo | AU54: 0 | AV54: 5 | AW54: 0 | BI54: 47189 | BJ54: 4 | BK54: 25799 | BL54: 12
C55: 76001 | D55: CALI | E55: 17 | F55: 0 | G55: Natural | H55: 76 | I55: VALLE DEL CAUCA | J55: Aprobado con subsidio | K55: PEQUEÑA | L55: 4772 | M55: COMERCIO AL POR MAYOR Y AL POR MENOR; REPARACIÓN DE VEHÍCULOS AUTOMOTORES Y MOTOCICLETAS | N55: G | O55: Comercio al por menor de otros productos en establecimientos especializados | P55: Comercio al por menor de otros productos en establecimientos especializados | Q55: 14 | R55: 3 | S55: 0 | AE55: 0 | AF55: 0 | AG55: 5129 | AH55: CALDAS | AI55: 3 | AJ55: 1 | AK55: Natural | AL55: 5 | AM55: ANTIOQUIA | AN55: Aprobado con subsidio | AO55: MICRO | AP55: 3312 | AQ55: INDUSTRIAS MANUFACTURERAS | AR55: C | AS55: Mantenimiento y reparación especializado de productos elaborados en metal y de maquinaria y equipo | AT55: Instalación, mantenimiento y reparación especializado de maquinaria y equipo | AU55: 1 | AV55: 2 | AW55: 0 | BI55: 68861 | BJ55: 4 | BK55: 85001 | BL55: 12
C56: 63001 | D56: ARMENIA | E56: 20 | F56: 0 | G56: Natural | H56: 63 | I56: QUINDÍO | J56: Aprobado con subsidio | K56: PEQUEÑA | L56: 1020 | M56: INDUSTRIAS MANUFACTURERAS | N56: C | O56: Procesamiento y conservación de frutas, legumbres, hortalizas y tubérculos | P56: Elaboración de productos alimenticios | Q56: 3 | R56: 17 | S56: 0 | AE56: 0 | AF56: 0 | AG56: 17001 | AH56: MANIZALES | AI56: 8 | AJ56: 0 | AK56: Natural | AL56: 17 | AM56: CALDAS | AN56: Aprobado con subsidio | AO56: MICRO | AP56: 1081 | AQ56: INDUSTRIAS MANUFACTURERAS | AR56: C | AS56: Elaboración de otros productos alimenticios | AT56: Elaboración de productos alimenticios | AU56: 3 | AV56: 5 | AW56: 0 | BI56: 73001 | BJ56: 65 | BK56: 25126 | BL56: 12
C57: 66001 | D57: PEREIRA | E57: 3 | F57: 1 | G57: Natural | H57: 66 | I57: RISARALDA | J57: Aprobado con subsidio | K57: MICRO | L57: 8899 | M57: ACTIVIDADES DE ATENCIÓN DE LA SALUD HUMANA Y DE ASISTENCIA SOCIAL | N57: Q | O57: Otras actividades de asistencia social sin alojamiento | P57: Otras actividades de asistencia social sin alojamiento | Q57: 3 | R57: 0 | S57: 0 | AE57: 0 | AF57: 0 | AG57: 11001 | AH57: BOGOTÁ, D.C. | AI57: 2 | AJ57: 4 | AK57: Natural | AL57: 11 | AM57: BOGOTÁ, D.C. | AN57: Aprobado con subsidio | AO57: MICRO | AP57: 1410 | AQ57: INDUSTRIAS MANUFACTURERAS | AR57: C | AS57: Confección de prendas de vestir, excepto prendas de piel | AT57: Confección de prendas de vestir | AU57: 1 | AV57: 1 | AW57: 0 | BI57: 76111 | BJ57: 7 | BK57: 41551 | BL57: 11
C58: 76147 | D58: CARTAGO | E58: 3 | F58: 0 | G58: Natural | H58: 76 | I58: VALLE DEL CAUCA | J58: Aprobado con subsidio | K58: MICRO | L58: 4751 | M58: COMERCIO AL POR MAYOR Y AL POR MENOR; REPARACIÓN DE VEHÍCULOS AUTOMOTORES Y MOTOCICLETAS | N58: G | O58: Comercio al por menor de otros enseres domésticos en establecimientos especializados | P58: Comercio al por menor de otros enseres domésticos en establecimientos especializados | Q58: 2 | R58: 1 | S58: 0 | AE58: 0 | AF58: 0 | AG58: 11001 | AH58: BOGOTÁ, D.C. | AI58: 5 | AJ58: 1 | AK58: Natural | AL58: 11 | AM58: BOGOTÁ, D.C. | AN58: Aprobado con subsidio | AO58: MICRO | AP58: 2599 | AQ58: INDUSTRIAS MANUFACTURERAS | AR58: C | AS58: Fabricación de otros productos elaborados de metal y actividades de servicios relacionadas con el trabajo de metales | AT58: Fabricación de productos elaborados de metal, excepto maquinaria y equipo | AU58: 0 | AV58: 5 | AW58: 0 | BI58: 76834 | BJ58: 13 | BK58: 15001 | BL58: 11
C59: 11001 | D59: BOGOTÁ, D.C. | E59: 6 | F59: 0 | G59: Natural | H59: 11 | I59: BOGOTÁ, D.C. | J59: Aprobado con subsidio | K59: MICRO | L59: 9329 | M59: ACTIVIDADES ARTÍSTICAS, DE ENTRETENIMIENTO Y RECREACIÓN | N59: R | O59: Otras actividades recreativas y de esparcimiento | P59: Otras actividades recreativas y de esparcimiento | Q59: 3 | R59: 3 | S59: 0 | AE59: 0 | AF59: 0 | AG59: 17001 | AH59: MANIZALES | AI59: 5 | AJ59: 1 | AK59: Natural | AL59: 17 | AM59: CALDAS | AN59: Aprobado con subsidio | AO59: MICRO | AP59: 1011 | AQ59: INDUSTRIAS MANUFACTURERAS | AR59: C | AS59: Procesamiento y conservación de carne, pescado, crustáceos y moluscos | AT59: Elaboración de productos alimenticios | AU59: 1 | AV59: 4 | AW59: 0 | BI59: 76233 | BJ59: 1 | BK59: 68547 | BL59: 11
C60: 73001 | D60: IBAGUÉ | E60: 6 | F60: 1 | G60: Natural | H60: 73 | I60: TOLIMA | J60: Aprobado con subsidio | K60: MICRO | L60: 4330 | M60: CONSTRUCCIÓN | N60: F | O60: Terminación y acabado de edificios y obras de ingeniería civil | P60: Terminación y acabado de edificios y obras de ingeniería civil | Q60: 0 | R60: 6 | S60: 0 | AE60: 0 | AF60: 0 | AG60: 17001 | AH60: MANIZALES | AI60: 5 | AJ60: 0 | AK60: Natural | AL60: 17 | AM60: CALDAS | AN60: Aprobado con subsidio | AO60: MICRO | AP60: 3110 | AQ60: INDUSTRIAS MANUFACTURERAS | AR60: C | AS60: Fabricación de muebles | AT60: Fabricación de muebles, colchones y somieres | AU60: 2 | AV60: 3 | AW60: 0 | BI60: 25290 | BJ60: 6 | BK60: 5440 | BL60: 11
C61: 17174 | D61: CHINCHINÁ | E61: 5 | F61: 3 | G61: Natural | H61: 17 | I61: CALDAS | J61: Aprobado con subsidio | K61: MICRO | L61: 8899 | M61: ACTIVIDADES DE ATENCIÓN DE LA SALUD HUMANA Y DE ASISTENCIA SOCIAL | N61: Q | O61: Otras actividades de asistencia social sin alojamiento | P61: Otras actividades de asistencia social sin alojamiento | Q61: 3 | R61: 2 | S61: 0 | AE61: 0 | AF61: 0 | AG61: 5001 | AH61: MEDELLÍN | AI61: 0 | AJ61: 0 | AK61: Natural | AL61: 5 | AM61: ANTIOQUIA | AN61: 0 | AO61: 0 | AP61: 1081 | AQ61: INDUSTRIAS MANUFACTURERAS | AR61: C | AS61: Elaboración de otros productos alimenticios | AT61: Elaboración de productos alimenticios | AU61: 0 | AV61: 0 | AW61: 0 | BI61: 25899 | BJ61: 8 | BK61: 17873 | BL61: 10
C62: 66170 | D62: DOSQUEBRADAS | E62: 22 | F62: 1 | G62: Natural | H62: 66 | I62: RISARALDA | J62: Aprobado con subsidio | K62: PEQUEÑA | L62: 6820 | M62: ACTIVIDADES INMOBILIARIAS | N62: L | O62: Actividades inmobiliarias realizadas a cambio de una retribución o por contrata | P62: Actividades inmobiliarias realizadas a cambio de una retribución o por contrata | Q62: 10 | R62: 12 | S62: 0 | AE62: 0 | AF62: 0 | AG62: 11001 | AH62: BOGOTÁ, D.C. | AI62: 3 | AJ62: 3 | AK62: Natural | AL62: 11 | AM62: BOGOTÁ, D.C. | AN62: Aprobado con subsidio | AO62: MICRO | AP62: 1081 | AQ62: INDUSTRIAS MANUFACTURERAS | AR62: C | AS62: Elaboración de otros productos alimenticios | AT62: Elaboración de productos alimenticios | AU62: 2 | AV62: 1 | AW62: 0 | BI62: 8296 | BJ62: 4 | BK62: 5697 | BL62: 10
C63: 66001 | D63: PEREIRA | E63: 6 | F63: 0 | G63: Natural | H63: 66 | I63: RISARALDA | J63: Aprobado con subsidio | K63: MICRO | L63: 5612 | M63: ALOJAMIENTO Y SERVICIOS DE COMIDA | N63: I | O63: Actividades de restaurantes, cafeterías y servicio móvil de comidas | P63: Actividades de restaurantes, cafeterías y servicio móvil de comidas | Q63: 5 | R63: 1 | S63: 0 | AE63: 0 | AF63: 0 | AG63: 11001 | AH63: BOGOTÁ, D.C. | AI63: 4 | AJ63: 0 | AK63: Natural | AL63: 11 | AM63: BOGOTÁ, D.C. | AN63: Aprobado con subsidio | AO63: MICRO | AP63: 1081 | AQ63: INDUSTRIAS MANUFACTURERAS | AR63: C | AS63: Elaboración de otros productos alimenticios | AT63: Elaboración de productos alimenticios | AU63: 3 | AV63: 1 | AW63: 0 | BI63: 27001 | BJ63: 2 | BK63: 68679 | BL63: 9
C64: 66682 | D64: SANTA ROSA DE CABAL | E64: 11 | F64: 0 | G64: Natural | H64: 66 | I64: RISARALDA | J64: Aprobado con subsidio | K64: PEQUEÑA | L64: 2712 | M64: INDUSTRIAS MANUFACTURERAS | N64: C | O64: Fabricación de motores, generadores y transformadores eléctricos y de aparatos de distribución y control de la energía eléctrica | P64: Fabricación de aparatos y equipo eléctrico | Q64: 4 | R64: 7 | S64: 0 | AE64: 0 | AF64: 0 | AG64: 52001 | AH64: PASTO | AI64: 4 | AJ64: 1 | AK64: Natural | AL64: 52 | AM64: NARIÑO | AN64: Aprobado con subsidio | AO64: MICRO | AP64: 1512 | AQ64: INDUSTRIAS MANUFACTURERAS | AR64: C | AS64: Curtido y recurtido de cueros; fabricación de artículos de viaje, bolsos de mano y artículos similares, y fabricación de artículos de talabartería y guarnicionería; adobo y teñido de pieles | AT64: Curtido y recurtido de cueros; fabricación de calzado; fabricación de artículos de viaje, maletas, bolsos de mano y artículos similares, y fabricación de artículos de talabartería y guarnicionería; adobo y teñido de pieles | AU64: 4 | AV64: 0 | AW64: 0 | BI64: 52835 | BJ64: 5 | BK64: 5148 | BL64: 9
C65: 66001 | D65: PEREIRA | E65: 18 | F65: 2 | G65: Natural | H65: 66 | I65: RISARALDA | J65: Aprobado con subsidio | K65: PEQUEÑA | L65: 4711 | M65: COMERCIO AL POR MAYOR Y AL POR MENOR; REPARACIÓN DE VEHÍCULOS AUTOMOTORES Y MOTOCICLETAS | N65: G | O65: Comercio al por menor en establecimientos no especializados | P65: Comercio al por menor en establecimientos no especializados | Q65: 8 | R65: 10 | S65: 0 | AE65: 0 | AF65: 0 | AG65: 5030 | AH65: AMAGÁ | AI65: 3 | AJ65: 1 | AK65: Natural | AL65: 5 | AM65: ANTIOQUIA | AN65: Aprobado con subsidio | AO65: MICRO | AP65: 3110 | AQ65: INDUSTRIAS MANUFACTURERAS | AR65: C | AS65: Fabricación de muebles | AT65: Fabricación de muebles, colchones y somieres | AU65: 0 | AV65: 3 | AW65: 0 | BI65: 70221 | BJ65: 1 | BK65: 66682 | BL65: 8
C66: 66170 | D66: DOSQUEBRADAS | E66: 8 | F66: 0 | G66: Natural | H66: 66 | I66: RISARALDA | J66: Aprobado con subsidio | K66: MICRO | L66: 4762 | M66: COMERCIO AL POR MAYOR Y AL POR MENOR; REPARACIÓN DE VEHÍCULOS AUTOMOTORES Y MOTOCICLETAS | N66: G | O66: Comercio al por menor de artículos culturales y de entretenimiento, en establecimientos especializados | P66: Comercio al por menor de artículos culturales y de entretenimiento, en establecimientos especializados | Q66: 1 | R66: 7 | S66: 0 | AE66: 0 | AF66: 0 | AG66: 5001 | AH66: MEDELLÍN | AI66: 0 | AJ66: 0 | AK66: Natural | AL66: 5 | AM66: ANTIOQUIA | AN66: 0 | AO66: 0 | AP66: 1313 | AQ66: INDUSTRIAS MANUFACTURERAS | AR66: C | AS66: Preparación, hilatura, tejeduría y acabado de productos textiles | AT66: Fabricación de productos textiles | AU66: 0 | AV66: 0 | AW66: 0 | BI66: 52838 | BJ66: =COUNTIFS($AN$2:$AN$399999,"Aprobado con subsidio",$AG$2:$AG$399999,BI66) -> 1 | BK66: 25899 | BL66: 8
C67: 76147 | D67: CARTAGO | E67: 5 | F67: 6 | G67: Natural | H67: 76 | I67: VALLE DEL CAUCA | J67: Aprobado con subsidio | K67: MICRO | L67: 3110 | M67: INDUSTRIAS MANUFACTURERAS | N67: C | O67: Fabricación de muebles | P67: Fabricación de muebles, colchones y somieres | Q67: 1 | R67: 4 | S67: 0 | AE67: 0 | AF67: 0 | AG67: 5360 | AH67: ITAGUI | AI67: 11 | AJ67: 7 | AK67: Natural | AL67: 5 | AM67: ANTIOQUIA | AN67: Aprobado con subsidio | AO67: PEQUEÑA | AP67: 1410 | AQ67: INDUSTRIAS MANUFACTURERAS | AR67: C | AS67: Confección de prendas de vestir, excepto prendas de piel | AT67: Confección de prendas de vestir | AU67: 9 | AV67: 2 | AW67: 0 | BI67: 54673 | BJ67: 1 | BK67: 76364 | BL67: 8
C68: 66001 | D68: PEREIRA | E68: 3 | F68: 0 | G68: Natural | H68: 66 | I68: RISARALDA | J68: Aprobado con subsidio | K68: MICRO | L68: 8020 | M68: ACTIVIDADES DE SERVICIOS ADMINISTRATIVOS Y DE APOYO | N68: N | O68: Actividades de servicios de sistemas de seguridad | P68: Actividades de servicios de sistemas de seguridad | Q68: 2 | R68: 1 | S68: 0 | AE68: 0 | AF68: 0 | AG68: 5129 | AH68: CALDAS | AI68: 8 | AJ68: 4 | AK68: Natural | AL68: 5 | AM68: ANTIOQUIA | AN68: Aprobado con subsidio | AO68: MICRO | AP68: 1081 | AQ68: INDUSTRIAS MANUFACTURERAS | AR68: C | AS68: Elaboración de otros productos alimenticios | AT68: Elaboración de productos alimenticios | AU68: 6 | AV68: 2 | AW68: 0 | BI68: 54518 | BJ68: 5 | BK68: 76111 | BL68: 7
C69: 66170 | D69: DOSQUEBRADAS | E69: 7 | F69: 0 | G69: Natural | H69: 66 | I69: RISARALDA | J69: Aprobado con subsidio | K69: MICRO | L69: 7730 | M69: ACTIVIDADES DE SERVICIOS ADMINISTRATIVOS Y DE APOYO | N69: N | O69: Alquiler y arrendamiento de otros tipos de maquinaria, equipo y bienes tangibles n.c.p. | P69: Alquiler y arrendamiento de otros tipos de maquinaria, equipo y bienes tangibles n.c.p. | Q69: 1 | R69: 6 | S69: 0 | AE69: 0 | AF69: 0 | AG69: 5237 | AH69: DON MATÍAS | AI69: 11 | AJ69: 7 | AK69: Natural | AL69: 5 | AM69: ANTIOQUIA | AN69: Aprobado con subsidio | AO69: PEQUEÑA | AP69: 1410 | AQ69: INDUSTRIAS MANUFACTURERAS | AR69: C | AS69: Confección de prendas de vestir, excepto prendas de piel | AT69: Confección de prendas de vestir | AU69: 9 | AV69: 2 | AW69: 0 | BI69: 54261 | BJ69: 2 | BK69: 18001 | BL69: 7
C70: 66001 | D70: PEREIRA | E70: 0 | F70: 0 | G70: Natural | H70: 66 | I70: RISARALDA | J70: 0 | K70: 0 | L70: 5611 | M70: ALOJAMIENTO Y SERVICIOS DE COMIDA | N70: I | O70: Actividades de restaurantes, cafeterías y servicio móvil de comidas | P70: Actividades de restaurantes, cafeterías y servicio móvil de comidas | Q70: 0 | R70: 0 | S70: 0 | AE70: 0 | AF70: 0 | AG70: 5237 | AH70: DON MATÍAS | AI70: 11 | AJ70: 0 | AK70: Natural | AL70: 5 | AM70: ANTIOQUIA | AN70: Aprobado con subsidio | AO70: PEQUEÑA | AP70: 1410 | AQ70: INDUSTRIAS MANUFACTURERAS | AR70: C | AS70: Confección de prendas de vestir, excepto prendas de piel | AT70: Confección de prendas de vestir | AU70: 7 | AV70: 4 | AW70: 0 | BI70: 68167 | BJ70: 1 | BK70: 13836 | BL70: 7
C71: 11001 | D71: BOGOTÁ, D.C. | E71: 7 | F71: 2 | G71: Natural | H71: 11 | I71: BOGOTÁ, D.C. | J71: Aprobado con subsidio | K71: MICRO | L71: 4663 | M71: COMERCIO AL POR MAYOR Y AL POR MENOR; REPARACIÓN DE VEHÍCULOS AUTOMOTORES Y MOTOCICLETAS | N71: G | O71: Comercio al por mayor especializado de otros productos | P71: Comercio al por mayor especializado de otros productos | Q71: 2 | R71: 5 | S71: 0 | AE71: 0 | AF71: 0 | AG71: 5266 | AH71: ENVIGADO | AI71: 5 | AJ71: 0 | AK71: Natural | AL71: 5 | AM71: ANTIOQUIA | AN71: Aprobado con subsidio | AO71: MICRO | AP71: 1811 | AQ71: INDUSTRIAS MANUFACTURERAS | AR71: C | AS71: Actividades de impresión y actividades de servicios relacionados con la impresión | AT71: Actividades de impresión y de producción de copias a partir de grabaciones originales | AU71: 3 | AV71: 2 | AW71: 0 | BI71: 13688 | BJ71: 1 | BK71: 25290 | BL71: 6
C72: 66682 | D72: SANTA ROSA DE CABAL | E72: 9 | F72: 0 | G72: Natural | H72: 66 | I72: RISARALDA | J72: Aprobado con subsidio | K72: MICRO | L72: 4731 | M72: COMERCIO AL POR MAYOR Y AL POR MENOR; REPARACIÓN DE VEHÍCULOS AUTOMOTORES Y MOTOCICLETAS | N72: G | O72: Comercio al por menor de combustible, lubricantes, aditivos y productos de limpieza para automotores, en establecimientos especializados | P72: Comercio al por menor de combustible, lubricantes, aditivos y productos de limpieza para automotores, en establecimientos especializados | Q72: 1 | R72: 8 | S72: 0 | AE72: 0 | AF72: 0 | AG72: 5001 | AH72: MEDELLÍN | AI72: 7 | AJ72: 2 | AK72: Natural | AL72: 5 | AM72: ANTIOQUIA | AN72: Aprobado con subsidio | AO72: MICRO | AP72: 1081 | AQ72: INDUSTRIAS MANUFACTURERAS | AR72: C | AS72: Elaboración de otros productos alimenticios | AT72: Elaboración de productos alimenticios | AU72: 5 | AV72: 2 | AW72: 0 | BI72: 70708 | BJ72: 1 | BK72: 5664 | BL72: 6
C73: 11001 | D73: BOGOTÁ, D.C. | E73: 8 | F73: 3 | G73: Natural | H73: 11 | I73: BOGOTÁ, D.C. | J73: Aprobado con subsidio | K73: MICRO | L73: 1081 | M73: INDUSTRIAS MANUFACTURERAS | N73: C | O73: Elaboración de otros productos alimenticios | P73: Elaboración de productos alimenticios | Q73: 6 | R73: 2 | S73: 0 | AE73: 0 | AF73: 0 | AG73: 5001 | AH73: MEDELLÍN | AI73: 4 | AJ73: 5 | AK73: Natural | AL73: 5 | AM73: ANTIOQUIA | AN73: Aprobado con subsidio | AO73: MICRO | AP73: 1410 | AQ73: INDUSTRIAS MANUFACTURERAS | AR73: C | AS73: Confección de prendas de vestir, excepto prendas de piel | AT73: Confección de prendas de vestir | AU73: 2 | AV73: 2 | AW73: 0 | BI73: 5761 | BJ73: 1 | BK73: 44001 | BL73: 6
C74: 11001 | D74: BOGOTÁ, D.C. | E74: 17 | F74: 9 | G74: Natural | H74: 11 | I74: BOGOTÁ, D.C. | J74: Aprobado con subsidio | K74: PEQUEÑA | L74: 4723 | M74: COMERCIO AL POR MAYOR Y AL POR MENOR; REPARACIÓN DE VEHÍCULOS AUTOMOTORES Y MOTOCICLETAS | N74: G | O74: Comercio al por menor de alimentos (víveres en general), bebidas y tabaco, en establecimientos especializados | P74: Comercio al por menor de alimentos (víveres en general), bebidas y tabaco, en establecimientos especializados | Q74: 4 | R74: 13 | S74: 0 | AE74: 0 | AF74: 0 | AG74: 5266 | AH74: ENVIGADO | AI74: 37 | AJ74: 14 | AK74: Natural | AL74: 5 | AM74: ANTIOQUIA | AN74: Aprobado con subsidio | AO74: PEQUEÑA | AP74: 1081 | AQ74: INDUSTRIAS MANUFACTURERAS | AR74: C | AS74: Elaboración de otros productos alimenticios | AT74: Elaboración de productos alimenticios | AU74: 25 | AV74: 12 | AW74: 0 | BI74: 5045 | BJ74: 18 | BK74: 25269 | BL74: 6
C75: 66001 | D75: PEREIRA | E75: 8 | F75: 0 | G75: Natural | H75: 66 | I75: RISARALDA | J75: Aprobado con subsidio | K75: MICRO | L75: 7730 | M75: ACTIVIDADES DE SERVICIOS ADMINISTRATIVOS Y DE APOYO | N75: N | O75: Alquiler y arrendamiento de otros tipos de maquinaria, equipo y bienes tangibles n.c.p. | P75: Alquiler y arrendamiento de otros tipos de maquinaria, equipo y bienes tangibles n.c.p. | Q75: 2 | R75: 6 | S75: 0 | AE75: 0 | AF75: 0 | AG75: 5001 | AH75: MEDELLÍN | AI75: 8 | AJ75: 0 | AK75: Natural | AL75: 5 | AM75: ANTIOQUIA | AN75: Aprobado con subsidio | AO75: MICRO | AP75: 3210 | AQ75: INDUSTRIAS MANUFACTURERAS | AR75: C | AS75: Fabricación de joyas, bisutería y artículos conexos | AT75: Otras industrias manufactureras | AU75: 7 | AV75: 1 | AW75: 0 | BI75: 5615 | BJ75: 50 | BK75: 8433 | BL75: 6
C76: 13001 | D76: CARTAGENA | E76: 3 | F76: 2 | G76: Natural | H76: 13 | I76: BOLÍVAR | J76: Aprobado con subsidio | K76: MICRO | L76: 4771 | M76: COMERCIO AL POR MAYOR Y AL POR MENOR; REPARACIÓN DE VEHÍCULOS AUTOMOTORES Y MOTOCICLETAS | N76: G | O76: Comercio al por menor de otros productos en establecimientos especializados | P76: Comercio al por menor de otros productos en establecimientos especializados | Q76: 2 | R76: 1 | S76: 0 | AE76: 0 | AF76: 0 | AG76: 5001 | AH76: MEDELLÍN | AI76: 5 | AJ76: 1 | AK76: Natural | AL76: 5 | AM76: ANTIOQUIA | AN76: Aprobado con subsidio | AO76: MICRO | AP76: 1313 | AQ76: INDUSTRIAS MANUFACTURERAS | AR76: C | AS76: Preparación, hilatura, tejeduría y acabado de productos textiles | AT76: Fabricación de productos textiles | AU76: 4 | AV76: 1 | AW76: 0 | BI76: 5148 | BJ76: 9 | BK76: 19698 | BL76: 5
C77: 11001 | D77: BOGOTÁ, D.C. | E77: 2 | F77: 0 | G77: Natural | H77: 11 | I77: BOGOTÁ, D.C. | J77: Aprobado con subsidio | K77: MICRO | L77: 4774 | M77: COMERCIO AL POR MAYOR Y AL POR MENOR; REPARACIÓN DE VEHÍCULOS AUTOMOTORES Y MOTOCICLETAS | N77: G | O77: Comercio al por menor de otros productos en establecimientos especializados | P77: Comercio al por menor de otros productos en establecimientos especializados | Q77: 2 | R77: 0 | S77: 0 | AE77: 0 | AF77: 0 | AG77: 5001 | AH77: MEDELLÍN | AI77: 2 | AJ77: 3 | AK77: Natural | AL77: 5 | AM77: ANTIOQUIA | AN77: Aprobado con subsidio | AO77: MICRO | AP77: 1081 | AQ77: INDUSTRIAS MANUFACTURERAS | AR77: C | AS77: Elaboración de otros productos alimenticios | AT77: Elaboración de productos alimenticios | AU77: 2 | AV77: 0 | AW77: 0 | BI77: 19130 | BJ77: 2 | BK77: 54874 | BL77: 5
C78: 66001 | D78: PEREIRA | E78: 2 | F78: 0 | G78: Natural | H78: 66 | I78: RISARALDA | J78: Aprobado con subsidio | K78: MICRO | L78: 4721 | M78: COMERCIO AL POR MAYOR Y AL POR MENOR; REPARACIÓN DE VEHÍCULOS AUTOMOTORES Y MOTOCICLETAS | N78: G | O78: Comercio al por menor de alimentos (víveres en general), bebidas y tabaco, en establecimientos especializados | P78: Comercio al por menor de alimentos (víveres en general), bebidas y tabaco, en establecimientos especializados | Q78: 0 | R78: 2 | S78: 0 | AE78: 0 | AF78: 0 | AG78: 5001 | AH78: MEDELLÍN | AI78: 18 | AJ78: 5 | AK78: Natural | AL78: 5 | AM78: ANTIOQUIA | AN78: Aprobado con subsidio | AO78: PEQUEÑA | AP78: 3110 | AQ78: INDUSTRIAS MANUFACTURERAS | AR78: C | AS78: Fabricación de muebles | AT78: Fabricación de muebles, colchones y somieres | AU78: 4 | AV78: 14 | AW78: 0 | BI78: 5308 | BJ78: 17 | BK78: 54405 | BL78: 5
C79: 66001 | D79: PEREIRA | E79: 0 | F79: 0 | G79: Natural | H79: 66 | I79: RISARALDA | J79: 0 | K79: 0 | L79: 7112 | M79: ACTIVIDADES PROFESIONALES, CIENTÍFICAS Y TÉCNICAS | N79: M | O79: Actividades de arquitectura e ingeniería y otras actividades conexas de consultoría técnica | P79: Actividades de arquitectura e ingeniería y otras actividades conexas de consultoría técnica | Q79: 0 | R79: 0 | S79: 0 | AE79: 0 | AF79: 0 | AG79: 5001 | AH79: MEDELLÍN | AI79: 7 | AJ79: 2 | AK79: Natural | AL79: 5 | AM79: ANTIOQUIA | AN79: Aprobado con subsidio | AO79: MICRO | AP79: 1084 | AQ79: INDUSTRIAS MANUFACTURERAS | AR79: C | AS79: Elaboración de otros productos alimenticios | AT79: Elaboración de productos alimenticios | AU79: 5 | AV79: 2 | AW79: 0 | BI79: 5212 | BJ79: 31 | BK79: 52835 | BL79: 5
C80: 66001 | D80: PEREIRA | E80: 5 | F80: 0 | G80: Natural | H80: 66 | I80: RISARALDA | J80: Aprobado con subsidio | K80: MICRO | L80: 4774 | M80: COMERCIO AL POR MAYOR Y AL POR MENOR; REPARACIÓN DE VEHÍCULOS AUTOMOTORES Y MOTOCICLETAS | N80: G | O80: Comercio al por menor de otros productos en establecimientos especializados | P80: Comercio al por menor de otros productos en establecimientos especializados | Q80: 3 | R80: 2 | S80: 0 | AE80: 0 | AF80: 0 | AG80: 5001 | AH80: MEDELLÍN | AI80: 35 | AJ80: 28 | AK80: Natural | AL80: 5 | AM80: ANTIOQUIA | AN80: Aprobado con subsidio | AO80: PEQUEÑA | AP80: 1081 | AQ80: INDUSTRIAS MANUFACTURERAS | AR80: C | AS80: Elaboración de otros productos alimenticios | AT80: Elaboración de productos alimenticios | AU80: 29 | AV80: 6 | AW80: 0 | BI80: 76520 | BJ80: 59 | BK80: 54518 | BL80: 5
C81: 66001 | D81: PEREIRA | E81: 3 | F81: 0 | G81: Natural | H81: 66 | I81: RISARALDA | J81: Aprobado con subsidio | K81: MICRO | L81: 8899 | M81: ACTIVIDADES DE ATENCIÓN DE LA SALUD HUMANA Y DE ASISTENCIA SOCIAL | N81: Q | O81: Otras actividades de asistencia social sin alojamiento | P81: Otras actividades de asistencia social sin alojamiento | Q81: 0 | R81: 3 | S81: 0 | AE81: 0 | AF81: 0 | AG81: 5001 | AH81: MEDELLÍN | AI81: 8 | AJ81: 3 | AK81: Natural | AL81: 5 | AM81: ANTIOQUIA | AN81: Aprobado con subsidio | AO81: MICRO | AP81: 1410 | AQ81: INDUSTRIAS MANUFACTURERAS | AR81: C | AS81: Confección de prendas de vestir, excepto prendas de piel | AT81: Confección de prendas de vestir | AU81: 7 | AV81: 1 | AW81: 0 | BI81: 76364 | BJ81: 8 | BK81: 15516 | BL81: 5
C82: 66001 | D82: PEREIRA | E82: 6 | F82: 8 | G82: Natural | H82: 66 | I82: RISARALDA | J82: Aprobado con subsidio | K82: MICRO | L82: 7020 | M82: ACTIVIDADES PROFESIONALES, CIENTÍFICAS Y TÉCNICAS | N82: M | O82: Actividades de consultoría de gestión | P82: Actividades de consultoría de gestión | Q82: 1 | R82: 5 | S82: 0 | AE82: 0 | AF82: 0 | AG82: 5001 | AH82: MEDELLÍN | AI82: 2 | AJ82: 3 | AK82: Natural | AL82: 5 | AM82: ANTIOQUIA | AN82: Aprobado con subsidio | AO82: MICRO | AP82: 1081 | AQ82: INDUSTRIAS MANUFACTURERAS | AR82: C | AS82: Elaboración de otros productos alimenticios | AT82: Elaboración de productos alimenticios | AU82: 2 | AV82: 0 | AW82: 0 | BI82: 76892 | BJ82: 70 | BK82: 5147 | BL82: 5
C83: 66170 | D83: DOSQUEBRADAS | E83: 5 | F83: 1 | G83: Natural | H83: 66 | I83: RISARALDA | J83: Aprobado con subsidio | K83: MICRO | L83: 3092 | M83: INDUSTRIAS MANUFACTURERAS | N83: C | O83: Fabricación de otros tipos de equipo de transporte n.c.p. | P83: Fabricación de otros tipos de equipo de transporte | Q83: 0 | R83: 5 | S83: 0 | AE83: 0 | AF83: 0 | AG83: 41001 | AH83: NEIVA | AI83: 0 | AJ83: 13 | AK83: Natural | AL83: 41 | AM83: HUILA | AN83: 0 | AO83: MICRO | AP83: 1081 | AQ83: INDUSTRIAS MANUFACTURERAS | AR83: C | AS83: Elaboración de otros productos alimenticios | AT83: Elaboración de productos alimenticios | AU83: 0 | AV83: 0 | AW83: 0 | BI83: 76130 | BJ83: 24 | BK83: 76109 | BL83: 5
C84: 66001 | D84: PEREIRA | E84: 3 | F84: 0 | G84: Natural | H84: 66 | I84: RISARALDA | J84: Aprobado con subsidio | K84: MICRO | L84: 2221 | M84: INDUSTRIAS MANUFACTURERAS | N84: C | O84: Fabricación de productos de plástico | P84: Fabricación de productos de caucho y de plástico | Q84: 0 | R84: 3 | S84: 0 | AE84: 0 | AF84: 0 | AG84: 5001 | AH84: MEDELLÍN | AI84: 7 | AJ84: 0 | AK84: Natural | AL84: 5 | AM84: ANTIOQUIA | AN84: Aprobado con subsidio | AO84: MICRO | AP84: 1521 | AQ84: INDUSTRIAS MANUFACTURERAS | AR84: C | AS84: Fabricación de calzado | AT84: Curtido y recurtido de cueros; fabricación de calzado; fabricación de artículos de viaje, maletas, bolsos de mano y artículos similares, y fabricación de artículos de talabartería y guarnicionería; adobo y teñido de pieles | AU84: 5 | AV84: 2 | AW84: 0 | BI84: 19573 | BJ84: 4 | BK84: 73268 | BL84: 5
C85: 66001 | D85: PEREIRA | E85: 3 | F85: 0 | G85: Natural | H85: 66 | I85: RISARALDA | J85: Aprobado con subsidio | K85: MICRO | L85: 6810 | M85: ACTIVIDADES INMOBILIARIAS | N85: L | O85: Actividades inmobiliarias realizadas con bienes propios o arrendados | P85: Actividades inmobiliarias realizadas con bienes propios o arrendados | Q85: 0 | R85: 3 | S85: 0 | AE85: 0 | AF85: 0 | AG85: 5380 | AH85: LA ESTRELLA | AI85: 0 | AJ85: 0 | AK85: Natural | AL85: 5 | AM85: ANTIOQUIA | AN85: 0 | AO85: MICRO | AP85: 1313 | AQ85: INDUSTRIAS MANUFACTURERAS | AR85: C | AS85: Preparación, hilatura, tejeduría y acabado de productos textiles | AT85: Fabricación de productos textiles | AU85: 0 | AV85: 0 | AW85: 0 | BI85: 76869 | BJ85: 4 | BK85: 5686 | BL85: 5
C86: 76147 | D86: CARTAGO | E86: 6 | F86: 0 | G86: Natural | H86: 76 | I86: VALLE DEL CAUCA | J86: Aprobado con subsidio | K86: MICRO | L86: 4530 | M86: COMERCIO AL POR MAYOR Y AL POR MENOR; REPARACIÓN DE VEHÍCULOS AUTOMOTORES Y MOTOCICLETAS | N86: G | O86: Comercio de partes, piezas (autopartes) y accesorios (lujos) para vehículos automotores | P86: Comercio de partes, piezas (autopartes) y accesorios (lujos) para vehículos automotores | Q86: 1 | R86: 5 | S86: 0 | AE86: 0 | AF86: 0 | AG86: 5579 | AH86: PUERTO BERRÍO | AI86: 19 | AJ86: 7 | AK86: Natural | AL86: 5 | AM86: ANTIOQUIA | AN86: Aprobado con subsidio | AO86: PEQUEÑA | AP86: 1081 | AQ86: INDUSTRIAS MANUFACTURERAS | AR86: C | AS86: Elaboración de otros productos alimenticios | AT86: Elaboración de productos alimenticios | AU86: 14 | AV86: 5 | AW86: 0 | BI86: 73449 | BJ86: 2 | BK86: 17380 | BL86: 4
C87: 66001 | D87: PEREIRA | E87: 10 | F87: 10 | G87: Natural | H87: 66 | I87: RISARALDA | J87: Aprobado con subsidio | K87: PEQUEÑA | L87: 4290 | M87: CONSTRUCCIÓN | N87: F | O87: Construcción de otras obras de ingeniería civil | P87: Construcción de otras obras de ingeniería civil | Q87: 0 | R87: 10 | S87: 0 | AE87: 0 | AF87: 0 | AG87: 5380 | AH87: LA ESTRELLA | AI87: 7 | AJ87: 2 | AK87: Natural | AL87: 5 | AM87: ANTIOQUIA | AN87: Aprobado con subsidio | AO87: MICRO | AP87: 1081 | AQ87: INDUSTRIAS MANUFACTURERAS | AR87: C | AS87: Elaboración de otros productos alimenticios | AT87: Elaboración de productos alimenticios | AU87: 4 | AV87: 3 | AW87: 0 | BI87: 25175 | BJ87: 12 | BK87: 66400 | BL87: 4
C88: 13001 | D88: CARTAGENA | E88: 16 | F88: 0 | G88: Natural | H88: 13 | I88: BOLÍVAR | J88: Aprobado con subsidio | K88: PEQUEÑA | L88: 4755 | M88: COMERCIO AL POR MAYOR Y AL POR MENOR; REPARACIÓN DE VEHÍCULOS AUTOMOTORES Y MOTOCICLETAS | N88: G | O88: Comercio al por menor de otros enseres domésticos en establecimientos especializados | P88: Comercio al por menor de otros enseres domésticos en establecimientos especializados | Q88: 9 | R88: 7 | S88: 0 | AE88: 0 | AF88: 0 | AG88: 5088 | AH88: BELLO | AI88: 3 | AJ88: 0 | AK88: Natural | AL88: 5 | AM88: ANTIOQUIA | AN88: Aprobado con subsidio | AO88: MICRO | AP88: 1081 | AQ88: INDUSTRIAS MANUFACTURERAS | AR88: C | AS88: Elaboración de otros productos alimenticios | AT88: Elaboración de productos alimenticios | AU88: 2 | AV88: 1 | AW88: 0 | BI88: 25799 | BJ88: 12 | BK88: 47189 | BL88: 4
C89: 66170 | D89: DOSQUEBRADAS | E89: 3 | F89: 1 | G89: Natural | H89: 66 | I89: RISARALDA | J89: Aprobado con subsidio | K89: MICRO | L89: 2229 | M89: INDUSTRIAS MANUFACTURERAS | N89: C | O89: Fabricación de productos de plástico | P89: Fabricación de productos de caucho y de plástico | Q89: 1 | R89: 2 | S89: 0 | AE89: 0 | AF89: 0 | AG89: 8758 | AH89: SOLEDAD | AI89: 11 | AJ89: 0 | AK89: Natural | AL89: 8 | AM89: ATLÁNTICO | AN89: Aprobado con subsidio | AO89: PEQUEÑA | AP89: 1081 | AQ89: INDUSTRIAS MANUFACTURERAS | AR89: C | AS89: Elaboración de otros productos alimenticios | AT89: Elaboración de productos alimenticios | AU89: 7 | AV89: 4 | AW89: 0 | BI89: 94001 | BJ89: 1 | BK89: 68861 | BL89: 4
C90: 66001 | D90: PEREIRA | E90: 8 | F90: 1 | G90: Natural | H90: 66 | I90: RISARALDA | J90: Aprobado con subsidio | K90: MICRO | L90: 6810 | M90: ACTIVIDADES INMOBILIARIAS | N90: L | O90: Actividades inmobiliarias realizadas con bienes propios o arrendados | P90: Actividades inmobiliarias realizadas con bienes propios o arrendados | Q90: 7 | R90: 1 | S90: 0 | AE90: 0 | AF90: 0 | AG90: 8001 | AH90: BARRANQUILLA | AI90: 0 | AJ90: 0 | AK90: Natural | AL90: 8 | AM90: ATLÁNTICO | AN90: 0 | AO90: 0 | AP90: 1081 | AQ90: INDUSTRIAS MANUFACTURERAS | AR90: C | AS90: Elaboración de otros productos alimenticios | AT90: Elaboración de productos alimenticios | AU90: 0 | AV90: 0 | AW90: 0 | BI90: 18001 | BJ90: 7 | BK90: 8296 | BL90: 4
C91: 76001 | D91: CALI | E91: 3 | F91: 0 | G91: Natural | H91: 76 | I91: VALLE DEL CAUCA | J91: Aprobado con subsidio | K91: MICRO | L91: 5811 | M91: INFORMACIÓN Y COMUNICACIONES | N91: J | O91: Edición de libros, publicaciones periódicas y otras actividades de edición | P91: Edición de libros, publicaciones periódicas y otras actividades de edición | Q91: 2 | R91: 1 | S91: 0 | AE91: 0 | AF91: 0 | AG91: 5697 | AH91: EL SANTUARIO | AI91: 12 | AJ91: 0 | AK91: Natural | AL91: 5 | AM91: ANTIOQUIA | AN91: Aprobado con subsidio | AO91: PEQUEÑA | AP91: 1410 | AQ91: INDUSTRIAS MANUFACTURERAS | AR91: C | AS91: Confección de prendas de vestir, excepto prendas de piel | AT91: Confección de prendas de vestir | AU91: 3 | AV91: 9 | AW91: 0 | BI91: 18753 | BJ91: 3 | BK91: 19573 | BL91: 4
C92: 66001 | D92: PEREIRA | E92: 5 | F92: 0 | G92: Natural | H92: 66 | I92: RISARALDA | J92: Aprobado con subsidio | K92: MICRO | L92: 4690 | M92: COMERCIO AL POR MAYOR Y AL POR MENOR; REPARACIÓN DE VEHÍCULOS AUTOMOTORES Y MOTOCICLETAS | N92: G | O92: Comercio al por mayor no especializado | P92: Comercio al por mayor no especializado | Q92: 4 | R92: 1 | S92: 0 | AE92: 0 | AF92: 0 | AG92: 19698 | AH92: SANTANDER DE QUILICHAO | AI92: 4 | AJ92: 0 | AK92: Natural | AL92: 19 | AM92: CAUCA | AN92: Aprobado con subsidio | AO92: MICRO | AP92: 1011 | AQ92: INDUSTRIAS MANUFACTURERAS | AR92: C | AS92: Procesamiento y conservación de carne, pescado, crustáceos y moluscos | AT92: Elaboración de productos alimenticios | AU92: 1 | AV92: 3 | AW92: 0 | BI92: 88001 | BJ92: 3 | BK92: 76869 | BL92: 4
C93: 76147 | D93: CARTAGO | E93: 2 | F93: 1 | G93: Natural | H93: 76 | I93: VALLE DEL CAUCA | J93: Aprobado con subsidio | K93: MICRO | L93: 4752 | M93: COMERCIO AL POR MAYOR Y AL POR MENOR; REPARACIÓN DE VEHÍCULOS AUTOMOTORES Y MOTOCICLETAS | N93: G | O93: Comercio al por menor de otros enseres domésticos en establecimientos especializados | P93: Comercio al por menor de otros enseres domésticos en establecimientos especializados | Q93: 0 | R93: 2 | S93: 0 | AE93: 0 | AF93: 0 | AG93: 19698 | AH93: SANTANDER DE QUILICHAO | AI93: 0 | AJ93: 0 | AK93: Natural | AL93: 19 | AM93: CAUCA | AN93: 0 | AO93: 0 | AP93: 1811 | AQ93: INDUSTRIAS MANUFACTURERAS | AR93: C | AS93: Actividades de impresión y actividades de servicios relacionados con la impresión | AT93: Actividades de impresión y de producción de copias a partir de grabaciones originales | AU93: 0 | AV93: 0 | AW93: 0 | BI93: 15500 | BJ93: 2 | BK93: 50006 | BL93: 4
C94: 66001 | D94: PEREIRA | E94: 2 | F94: 5 | G94: Natural | H94: 66 | I94: RISARALDA | J94: Aprobado con subsidio | K94: MICRO | L94: 4330 | M94: CONSTRUCCIÓN | N94: F | O94: Terminación y acabado de edificios y obras de ingeniería civil | P94: Terminación y acabado de edificios y obras de ingeniería civil | Q94: 0 | R94: 2 | S94: 0 | AE94: 0 | AF94: 0 | AG94: 15001 | AH94: TUNJA | AI94: 38 | AJ94: 4 | AK94: Natural | AL94: 15 | AM94: BOYACÁ | AN94: Aprobado con subsidio | AO94: PEQUEÑA | AP94: 1081 | AQ94: INDUSTRIAS MANUFACTURERAS | AR94: C | AS94: Elaboración de otros productos alimenticios | AT94: Elaboración de productos alimenticios | AU94: 25 | AV94: 13 | AW94: 0 | BI94: 25286 | BJ94: 30 | BK94: 15176 | BL94: 4
C95: 66001 | D95: PEREIRA | E95: 5 | F95: 0 | G95: Natural | H95: 66 | I95: RISARALDA | J95: Aprobado con subsidio | K95: MICRO | L95: 4530 | M95: COMERCIO AL POR MAYOR Y AL POR MENOR; REPARACIÓN DE VEHÍCULOS AUTOMOTORES Y MOTOCICLETAS | N95: G | O95: Comercio de partes, piezas (autopartes) y accesorios (lujos) para vehículos automotores | P95: Comercio de partes, piezas (autopartes) y accesorios (lujos) para vehículos automotores | Q95: 1 | R95: 4 | S95: 0 | AE95: 0 | AF95: 0 | AG95: 15001 | AH95: TUNJA | AI95: 10 | AJ95: 3 | AK95: Natural | AL95: 15 | AM95: BOYACÁ | AN95: Aprobado con subsidio | AO95: MICRO | AP95: 1081 | AQ95: INDUSTRIAS MANUFACTURERAS | AR95: C | AS95: Elaboración de otros productos alimenticios | AT95: Elaboración de productos alimenticios | AU95: 8 | AV95: 2 | AW95: 0 | BI95: 13001 | BJ95: 92 | BK95: 25758 | BL95: 4
C96: 11001 | D96: BOGOTÁ, D.C. | E96: 6 | F96: 0 | G96: Natural | H96: 11 | I96: BOGOTÁ, D.C. | J96: Aprobado con subsidio | K96: MICRO | L96: 1081 | M96: INDUSTRIAS MANUFACTURERAS | N96: C | O96: Elaboración de otros productos alimenticios | P96: Elaboración de productos alimenticios | Q96: 4 | R96: 2 | S96: 0 | AE96: 0 | AF96: 0 | AG96: 11001 | AH96: BOGOTÁ, D.C. | AI96: 3 | AJ96: 0 | AK96: Natural | AL96: 11 | AM96: BOGOTÁ, D.C. | AN96: Aprobado con subsidio | AO96: MICRO | AP96: 1081 | AQ96: INDUSTRIAS MANUFACTURERAS | AR96: C | AS96: Elaboración de otros productos alimenticios | AT96: Elaboración de productos alimenticios | AU96: 0 | AV96: 3 | AW96: 0 | BI96: 85001 | BJ96: 12 | BK96: 8634 | BL96: 4
C97: 11001 | D97: BOGOTÁ, D.C. | E97: 6 | F97: 0 | G97: Natural | H97: 11 | I97: BOGOTÁ, D.C. | J97: Aprobado con subsidio | K97: MICRO | L97: 7110 | M97: ACTIVIDADES PROFESIONALES, CIENTÍFICAS Y TÉCNICAS | N97: M | O97: Actividades de arquitectura e ingeniería y otras actividades conexas de consultoría técnica | P97: Actividades de arquitectura e ingeniería y otras actividades conexas de consultoría técnica | Q97: 5 | R97: 1 | S97: 0 | AE97: 0 | AF97: 0 | AG97: 70001 | AH97: SINCELEJO | AI97: 10 | AJ97: 6 | AK97: Natural | AL97: 70 | AM97: SUCRE | AN97: Aprobado con subsidio | AO97: PEQUEÑA | AP97: 1081 | AQ97: INDUSTRIAS MANUFACTURERAS | AR97: C | AS97: Elaboración de otros productos alimenticios | AT97: Elaboración de productos alimenticios | AU97: 4 | AV97: 6 | AW97: 0 | BI97: 68547 | BJ97: 11 | BK97: 25875 | BL97: 4
C98: 11001 | D98: BOGOTÁ, D.C. | E98: 3 | F98: 0 | G98: Natural | H98: 11 | I98: BOGOTÁ, D.C. | J98: Aprobado con subsidio | K98: MICRO | L98: 5611 | M98: ALOJAMIENTO Y SERVICIOS DE COMIDA | N98: I | O98: Actividades de restaurantes, cafeterías y servicio móvil de comidas | P98: Actividades de restaurantes, cafeterías y servicio móvil de comidas | Q98: 2 | R98: 1 | S98: 0 | AE98: 0 | AF98: 0 | AG98: 5001 | AH98: MEDELLÍN | AI98: 0 | AJ98: 0 | AK98: Natural | AL98: 5 | AM98: ANTIOQUIA | AN98: 0 | AO98: MICRO | AP98: 1081 | AQ98: INDUSTRIAS MANUFACTURERAS | AR98: C | AS98: Elaboración de otros productos alimenticios | AT98: Elaboración de productos alimenticios | AU98: 0 | AV98: 0 | AW98: 0 | BI98: 25402 | BJ98: 1 | BK98: 5079 | BL98: 4
C99: 11001 | D99: BOGOTÁ, D.C. | E99: 3 | F99: 0 | G99: Natural | H99: 11 | I99: BOGOTÁ, D.C. | J99: Aprobado con subsidio | K99: MICRO | L99: 7120 | M99: ACTIVIDADES PROFESIONALES, CIENTÍFICAS Y TÉCNICAS | N99: M | O99: Ensayos y análisis técnicos | P99: Ensayos y análisis técnicos | Q99: 1 | R99: 2 | S99: 0 | AE99: 0 | AF99: 0 | AG99: 17001 | AH99: MANIZALES | AI99: 33 | AJ99: 5 | AK99: Natural | AL99: 17 | AM99: CALDAS | AN99: Aprobado con subsidio | AO99: PEQUEÑA | AP99: 1523 | AQ99: INDUSTRIAS MANUFACTURERAS | AR99: C | AS99: Fabricación de calzado | AT99: Curtido y recurtido de cueros; fabricación de calzado; fabricación de artículos de viaje, maletas, bolsos de mano y artículos similares, y fabricación de artículos de talabartería y guarnicionería; adobo y teñido de pieles | AU99: 27 | AV99: 6 | AW99: 0 | BI99: 50606 | BJ99: 1 | BK99: 5172 | BL99: 4
C100: 76001 | D100: CALI | E100: 10 | F100: 0 | G100: Natural | H100: 76 | I100: VALLE DEL CAUCA | J100: Aprobado con subsidio | K100: MICRO | L100: 1089 | M100: INDUSTRIAS MANUFACTURERAS | N100: C | O100: Elaboración de otros productos alimenticios | P100: Elaboración de productos alimenticios | Q100: 4 | R100: 6 | S100: 0 | AE100: 0 | AF100: 0 | AG100: 68001 | AH100: BUCARAMANGA | AI100: 5 | AJ100: 0 | AK100: Natural | AL100: 68 | AM100: SANTANDER | AN100: Aprobado con subsidio | AO100: MICRO | AP100: 1921 | AQ100: INDUSTRIAS MANUFACTURERAS | AR100: C | AS100: Fabricación de productos de la refinación del petróleo | AT100: Coquización, fabricación de productos de la refinación del petróleo y actividad de mezcla de combustibles | AU100: 4 | AV100: 1 | AW100: 0 | BI100: 50006 | BJ100: 4 | BK100: 5607 | BL100: 4
C101: 11001 | D101: BOGOTÁ, D.C. | E101: 0 | F101: 0 | G101: Natural | H101: 11 | I101: BOGOTÁ, D.C. | J101: 0 | K101: 0 | L101: 3311 | M101: INDUSTRIAS MANUFACTURERAS | N101: C | O101: Mantenimiento y reparación especializado de productos elaborados en metal y de maquinaria y equipo | P101: Instalación, mantenimiento y reparación especializado de maquinaria y equipo | Q101: 0 | R101: 0 | S101: 0 | AE101: 0 | AF101: 0 | AG101: 15455 | AH101: MIRAFLORES | AI101: 3 | AJ101: 0 | AK101: Natural | AL101: 15 | AM101: BOYACÁ | AN101: Aprobado con subsidio | AO101: MICRO | AP101: 1081 | AQ101: INDUSTRIAS MANUFACTURERAS | AR101: C | AS101: Elaboración de otros productos alimenticios | AT101: Elaboración de productos alimenticios | AU101: 3 | AV101: 0 | AW101: 0 | BI101: 5631 | BJ101: 42 | BK101: 76248 | BL101: 4
C102: 66001 | D102: PEREIRA | E102: 3 | F102: 1 | G102: Natural | H102: 66 | I102: RISARALDA | J102: Aprobado con subsidio | K102: MICRO | L102: 8691 | M102: ACTIVIDADES DE ATENCIÓN DE LA SALUD HUMANA Y DE ASISTENCIA SOCIAL | N102: Q | O102: Otras actividades de atención relacionadas con la salud humana | P102: Otras actividades de atención relacionadas con la salud humana | Q102: 2 | R102: 1 | S102: 0 | AE102: 0 | AF102: 0 | AG102: 19001 | AH102: POPAYÁN | AI102: 3 | AJ102: 11 | AK102: Natural | AL102: 19 | AM102: CAUCA | AN102: Aprobado con subsidio | AO102: MICRO | AP102: 1081 | AQ102: INDUSTRIAS MANUFACTURERAS | AR102: C | AS102: Elaboración de otros productos alimenticios | AT102: Elaboración de productos alimenticios | AU102: 1 | AV102: 2 | AW102: 0 | BI102: 15051 | BJ102: 1 | BK102: 85440 | BL102: 4
C103: 66001 | D103: PEREIRA | E103: 18 | F103: 4 | G103: Natural | H103: 66 | I103: RISARALDA | J103: Aprobado con subsidio | K103: PEQUEÑA | L103: 5012 | M103: TRANSPORTE Y ALMACENAMIENTO | N103: H | O103: Transporte marítimo y de cabotaje | P103: Transporte marítimo y de cabotaje | Q103: 8 | R103: 10 | S103: 0 | AE103: 0 | AF103: 0 | AG103: 76001 | AH103: CALI | AI103: 4 | AJ103: 11 | AK103: Natural | AL103: 76 | AM103: VALLE DEL CAUCA | AN103: Aprobado con subsidio | AO103: MICRO | AP103: 1040 | AQ103: INDUSTRIAS MANUFACTURERAS | AR103: C | AS103: Elaboración de productos lácteos | AT103: Elaboración de productos alimenticios | AU103: 3 | AV103: 1 | AW103: 0 | BI103: 15176 | BJ103: 4 | BK103: 85010 | BL103: 4
C104: 5001 | D104: MEDELLÍN | E104: 16 | F104: 0 | G104: Natural | H104: 5 | I104: ANTIOQUIA | J104: Aprobado con subsidio | K104: PEQUEÑA | L104: 8899 | M104: ACTIVIDADES DE ATENCIÓN DE LA SALUD HUMANA Y DE ASISTENCIA SOCIAL | N104: Q | O104: Otras actividades de asistencia social sin alojamiento | P104: Otras actividades de asistencia social sin alojamiento | Q104: 12 | R104: 4 | S104: 0 | AE104: 0 | AF104: 0 | AG104: 20001 | AH104: VALLEDUPAR | AI104: 0 | AJ104: 8 | AK104: Natural | AL104: 20 | AM104: CESAR | AN104: 0 | AO104: MICRO | AP104: 1040 | AQ104: INDUSTRIAS MANUFACTURERAS | AR104: C | AS104: Elaboración de productos lácteos | AT104: Elaboración de productos alimenticios | AU104: 0 | AV104: 0 | AW104: 0 | BI104: 15238 | BJ104: 22 | BK104: 25377 | BL104: 4
C105: 66001 | D105: PEREIRA | E105: 16 | F105: 0 | G105: Natural | H105: 66 | I105: RISARALDA | J105: Aprobado con subsidio | K105: PEQUEÑA | L105: 4111 | M105: CONSTRUCCIÓN | N105: F | O105: Construcción de edificios | P105: Construcción de edificios | Q105: 0 | R105: 16 | S105: 0 | AE105: 0 | AF105: 0 | AG105: 23001 | AH105: MONTERÍA | AI105: 4 | AJ105: 0 | AK105: Natural | AL105: 23 | AM105: CÓRDOBA | AN105: Aprobado con subsidio | AO105: MICRO | AP105: 1084 | AQ105: INDUSTRIAS MANUFACTURERAS | AR105: C | AS105: Elaboración de otros productos alimenticios | AT105: Elaboración de productos alimenticios | AU105: 3 | AV105: 1 | AW105: 0 | BI105: 25758 | BJ105: 4 | BK105: 41524 | BL105: 4
C106: 66001 | D106: PEREIRA | E106: 14 | F106: 2 | G106: Natural | H106: 66 | I106: RISARALDA | J106: Aprobado con subsidio | K106: PEQUEÑA | L106: 1020 | M106: INDUSTRIAS MANUFACTURERAS | N106: C | O106: Procesamiento y conservación de frutas, legumbres, hortalizas y tubérculos | P106: Elaboración de productos alimenticios | Q106: 1 | R106: 13 | S106: 0 | AE106: 0 | AF106: 0 | AG106: 41001 | AH106: NEIVA | AI106: 3 | AJ106: 1 | AK106: Natural | AL106: 41 | AM106: HUILA | AN106: Aprobado con subsidio | AO106: MICRO | AP106: 2592 | AQ106: INDUSTRIAS MANUFACTURERAS | AR106: C | AS106: Fabricación de otros productos elaborados de metal y actividades de servicios relacionadas con el trabajo de metales | AT106: Fabricación de productos elaborados de metal, excepto maquinaria y equipo | AU106: 1 | AV106: 2 | AW106: 0 | BI106: 17614 | BJ106: 1 | BK106: 68655 | BL106: 4
C107: 76001 | D107: CALI | E107: 6 | F107: 2 | G107: Natural | H107: 76 | I107: VALLE DEL CAUCA | J107: Aprobado con subsidio | K107: MICRO | L107: 4723 | M107: COMERCIO AL POR MAYOR Y AL POR MENOR; REPARACIÓN DE VEHÍCULOS AUTOMOTORES Y MOTOCICLETAS | N107: G | O107: Comercio al por menor de alimentos (víveres en general), bebidas y tabaco, en establecimientos especializados | P107: Comercio al por menor de alimentos (víveres en general), bebidas y tabaco, en establecimientos especializados | Q107: 3 | R107: 3 | S107: 0 | AE107: 0 | AF107: 0 | AG107: 25307 | AH107: GIRARDOT | AI107: 0 | AJ107: 0 | AK107: Natural | AL107: 25 | AM107: CUNDINAMARCA | AN107: 0 | AO107: 0 | AP107: 1410 | AQ107: INDUSTRIAS MANUFACTURERAS | AR107: C | AS107: Confección de prendas de vestir, excepto prendas de piel | AT107: Confección de prendas de vestir | AU107: 0 | AV107: 0 | AW107: 0 | BI107: 23555 | BJ107: 2 | BK107: 25307 | BL107: 3
C108: 5001 | D108: MEDELLÍN | E108: 8 | F108: 0 | G108: Natural | H108: 5 | I108: ANTIOQUIA | J108: Aprobado con subsidio | K108: MICRO | L108: 2511 | M108: INDUSTRIAS MANUFACTURERAS | N108: C | O108: Fabricación de productos metálicos para uso estructural, tanques, depósitos y generadores de vapor. | P108: Fabricación de productos elaborados de metal, excepto maquinaria y equipo | Q108: 0 | R108: 8 | S108: 0 | AE108: 0 | AF108: 0 | AG108: 41016 | AH108: AIPE | AI108: 3 | AJ108: 2 | AK108: Natural | AL108: 41 | AM108: HUILA | AN108: Aprobado con subsidio | AO108: MICRO | AP108: 1104 | AQ108: INDUSTRIAS MANUFACTURERAS | AR108: C | AS108: Elaboración de bebidas | AT108: Elaboración de bebidas | AU108: 0 | AV108: 3 | AW108: 0 | BI108: 86001 | BJ108: 1 | BK108: 18753 | BL108: 3
C109: 11001 | D109: BOGOTÁ, D.C. | E109: 0 | F109: 0 | G109: Natural | H109: 11 | I109: BOGOTÁ, D.C. | J109: 0 | K109: 0 | L109: 4771 | M109: COMERCIO AL POR MAYOR Y AL POR MENOR; REPARACIÓN DE VEHÍCULOS AUTOMOTORES Y MOTOCICLETAS | N109: G | O109: Comercio al por menor de otros productos en establecimientos especializados | P109: Comercio al por menor de otros productos en establecimientos especializados | Q109: 0 | R109: 0 | S109: 0 | AE109: 0 | AF109: 0 | AG109: 41001 | AH109: NEIVA | AI109: 2 | AJ109: 1 | AK109: Natural | AL109: 41 | AM109: HUILA | AN109: Aprobado con subsidio | AO109: MICRO | AP109: 3120 | AQ109: INDUSTRIAS MANUFACTURERAS | AR109: C | AS109: Fabricación de colchones y somieres | AT109: Fabricación de muebles, colchones y somieres | AU109: 2 | AV109: 0 | AW109: 0 | BI109: 68079 | BJ109: 2 | BK109: 88001 | BL109: 3
C110: 11001 | D110: BOGOTÁ, D.C. | E110: 0 | F110: 0 | G110: Natural | H110: 11 | I110: BOGOTÁ, D.C. | J110: 0 | K110: 0 | L110: 3110 | M110: INDUSTRIAS MANUFACTURERAS | N110: C | O110: Fabricación de muebles | P110: Fabricación de muebles, colchones y somieres | Q110: 0 | R110: 0 | S110: 0 | AE110: 0 | AF110: 0 | AG110: 25214 | AH110: COTA | AI110: 2 | AJ110: 2 | AK110: Natural | AL110: 25 | AM110: CUNDINAMARCA | AN110: Aprobado con subsidio | AO110: MICRO | AP110: 1081 | AQ110: INDUSTRIAS MANUFACTURERAS | AR110: C | AS110: Elaboración de otros productos alimenticios | AT110: Elaboración de productos alimenticios | AU110: 1 | AV110: 1 | AW110: 0 | BI110: 8634 | BJ110: 4 | BK110: 76895 | BL110: 3
C111: 11001 | D111: BOGOTÁ, D.C. | E111: 3 | F111: 1 | G111: Natural | H111: 11 | I111: BOGOTÁ, D.C. | J111: Aprobado con subsidio | K111: MICRO | L111: 4773 | M111: COMERCIO AL POR MAYOR Y AL POR MENOR; REPARACIÓN DE VEHÍCULOS AUTOMOTORES Y MOTOCICLETAS | N111: G | O111: Comercio al por menor de otros productos en establecimientos especializados | P111: Comercio al por menor de otros productos en establecimientos especializados | Q111: 2 | R111: 1 | S111: 0 | AE111: 0 | AF111: 0 | AG111: 66001 | AH111: PEREIRA | AI111: 9 | AJ111: 1 | AK111: Natural | AL111: 66 | AM111: RISARALDA | AN111: Aprobado con subsidio | AO111: MICRO | AP111: 1410 | AQ111: INDUSTRIAS MANUFACTURERAS | AR111: C | AS111: Confección de prendas de vestir, excepto prendas de piel | AT111: Confección de prendas de vestir | AU111: 8 | AV111: 1 | AW111: 0 | BI111: 76306 | BJ111: 2 | BK111: 5154 | BL111: 3
C112: 11001 | D112: BOGOTÁ, D.C. | E112: 7 | F112: 8 | G112: Natural | H112: 11 | I112: BOGOTÁ, D.C. | J112: Aprobado con subsidio | K112: MICRO | L112: 2511 | M112: INDUSTRIAS MANUFACTURERAS | N112: C | O112: Fabricación de productos metálicos para uso estructural, tanques, depósitos y generadores de vapor. | P112: Fabricación de productos elaborados de metal, excepto maquinaria y equipo | Q112: 1 | R112: 6 | S112: 0 | AE112: 0 | AF112: 0 | AG112: 47001 | AH112: SANTA MARTA | AI112: 6 | AJ112: 2 | AK112: Natural | AL112: 47 | AM112: MAGDALENA | AN112: Aprobado con subsidio | AO112: MICRO | AP112: 2410 | AQ112: INDUSTRIAS MANUFACTURERAS | AR112: C | AS112: Industrias básicas de hierro y de acero | AT112: Fabricación de productos metalúrgicos básicos | AU112: 1 | AV112: 5 | AW112: 0 | BI112: 15516 | BJ112: 5 | BK112: 25513 | BL112: 3
C113: 11001 | D113: BOGOTÁ, D.C. | E113: 4 | F113: 3 | G113: Natural | H113: 11 | I113: BOGOTÁ, D.C. | J113: Aprobado con subsidio | K113: PEQUEÑA | L113: 1410 | M113: INDUSTRIAS MANUFACTURERAS | N113: C | O113: Confección de prendas de vestir, excepto prendas de piel | P113: Confección de prendas de vestir | Q113: 2 | R113: 2 | S113: 0 | AE113: 0 | AF113: 0 | AG113: 47001 | AH113: SANTA MARTA | AI113: 4 | AJ113: 1 | AK113: Natural | AL113: 47 | AM113: MAGDALENA | AN113: Aprobado con subsidio | AO113: MICRO | AP113: 1610 | AQ113: INDUSTRIAS MANUFACTURERAS | AR113: C | AS113: Aserrado, acepillado e impregnación de la madera | AT113: Transformación de la madera y fabricación de productos de madera y de corcho, excepto muebles; fabricación de artículos de cestería y espartería | AU113: 0 | AV113: 4 | AW113: 0 | BI113: 25386 | BJ113: 2 | BK113: 54498 | BL113: 3
C114: 11001 | D114: BOGOTÁ, D.C. | E114: 2 | F114: 1 | G114: Natural | H114: 11 | I114: BOGOTÁ, D.C. | J114: Aprobado con subsidio | K114: MICRO | L114: 5611 | M114: ALOJAMIENTO Y SERVICIOS DE COMIDA | N114: I | O114: Actividades de restaurantes, cafeterías y servicio móvil de comidas | P114: Actividades de restaurantes, cafeterías y servicio móvil de comidas | Q114: 0 | R114: 2 | S114: 0 | AE114: 0 | AF114: 0 | AG114: 66170 | AH114: DOSQUEBRADAS | AI114: 11 | AJ114: 0 | AK114: Natural | AL114: 66 | AM114: RISARALDA | AN114: Aprobado con subsidio | AO114: MICRO | AP114: 1410 | AQ114: INDUSTRIAS MANUFACTURERAS | AR114: C | AS114: Confección de prendas de vestir, excepto prendas de piel | AT114: Confección de prendas de vestir | AU114: 11 | AV114: 0 | AW114: 0 | BI114: 25875 | BJ114: 4 | BK114: 76563 | BL114: 3
C115: 11001 | D115: BOGOTÁ, D.C. | E115: 3 | F115: 0 | G115: Natural | H115: 11 | I115: BOGOTÁ, D.C. | J115: Aprobado con subsidio | K115: MICRO | L115: 1521 | M115: INDUSTRIAS MANUFACTURERAS | N115: C | O115: Fabricación de calzado | P115: Curtido y recurtido de cueros; fabricación de calzado; fabricación de artículos de viaje, maletas, bolsos de mano y artículos similares, y fabricación de artículos de talabartería y guarnicionería; adobo y teñido de pieles | Q115: 2 | R115: 1 | S115: 0 | AE115: 0 | AF115: 0 | AG115: 66001 | AH115: PEREIRA | AI115: 6 | AJ115: 1 | AK115: Natural | AL115: 66 | AM115: RISARALDA | AN115: Aprobado con subsidio | AO115: MICRO | AP115: 1610 | AQ115: INDUSTRIAS MANUFACTURERAS | AR115: C | AS115: Aserrado, acepillado e impregnación de la madera | AT115: Transformación de la madera y fabricación de productos de madera y de corcho, excepto muebles; fabricación de artículos de cestería y espartería | AU115: 1 | AV115: 5 | AW115: 0 | BI115: 5318 | BJ115: 16 | BK115: 23162 | BL115: 3
C116: 11001 | D116: BOGOTÁ, D.C. | E116: 2 | F116: 2 | G116: Natural | H116: 11 | I116: BOGOTÁ, D.C. | J116: Aprobado con subsidio | K116: MICRO | L116: 1410 | M116: INDUSTRIAS MANUFACTURERAS | N116: C | O116: Confección de prendas de vestir, excepto prendas de piel | P116: Confección de prendas de vestir | Q116: 0 | R116: 2 | S116: 0 | AE116: 0 | AF116: 0 | AG116: 54001 | AH116: CÚCUTA | AI116: 2 | AJ116: 5 | AK116: Natural | AL116: 54 | AM116: NORTE DE SANTANDER | AN116: Aprobado con subsidio | AO116: MICRO | AP116: 1084 | AQ116: INDUSTRIAS MANUFACTURERAS | AR116: C | AS116: Elaboración de otros productos alimenticios | AT116: Elaboración de productos alimenticios | AU116: 1 | AV116: 1 | AW116: 0 | BI116: 8638 | BJ116: 2 | BK116: 25200 | BL116: 3
C117: 11001 | D117: BOGOTÁ, D.C. | E117: 12 | F117: 31 | G117: Natural | H117: 11 | I117: BOGOTÁ, D.C. | J117: Aprobado con subsidio | K117: PEQUEÑA | L117: 3290 | M117: INDUSTRIAS MANUFACTURERAS | N117: C | O117: Otras industrias manufactureras n.c.p. | P117: Otras industrias manufactureras | Q117: 9 | R117: 3 | S117: 0 | AE117: 0 | AF117: 0 | AG117: 54874 | AH117: VILLA DEL ROSARIO | AI117: 6 | AJ117: 3 | AK117: Natural | AL117: 54 | AM117: NORTE DE SANTANDER | AN117: Aprobado con subsidio | AO117: MICRO | AP117: 3120 | AQ117: INDUSTRIAS MANUFACTURERAS | AR117: C | AS117: Fabricación de colchones y somieres | AT117: Fabricación de muebles, colchones y somieres | AU117: 2 | AV117: 4 | AW117: 0 | BI117: 13052 | BJ117: 1 | BK117: 15491 | BL117: 3
C118: 5088 | D118: BELLO | E118: 12 | F118: 1 | G118: Natural | H118: 5 | I118: ANTIOQUIA | J118: Aprobado con subsidio | K118: PEQUEÑA | L118: 5613 | M118: ALOJAMIENTO Y SERVICIOS DE COMIDA | N118: I | O118: Actividades de restaurantes, cafeterías y servicio móvil de comidas | P118: Actividades de restaurantes, cafeterías y servicio móvil de comidas | Q118: 5 | R118: 7 | S118: 0 | AE118: 0 | AF118: 0 | AG118: 54001 | AH118: CÚCUTA | AI118: 5 | AJ118: 0 | AK118: Natural | AL118: 54 | AM118: NORTE DE SANTANDER | AN118: Aprobado con subsidio | AO118: MICRO | AP118: 2511 | AQ118: INDUSTRIAS MANUFACTURERAS | AR118: C | AS118: Fabricación de productos metálicos para uso estructural, tanques, depósitos y generadores de vapor. | AT118: Fabricación de productos elaborados de metal, excepto maquinaria y equipo | AU118: 1 | AV118: 4 | AW118: 0 | BI118: 5736 | BJ118: 1 | BK118: 25740 | BL118: 3
C119: 66001 | D119: PEREIRA | E119: 43 | F119: 6 | G119: Natural | H119: 66 | I119: RISARALDA | J119: Aprobado con subsidio | K119: PEQUEÑA | L119: 4620 | M119: COMERCIO AL POR MAYOR Y AL POR MENOR; REPARACIÓN DE VEHÍCULOS AUTOMOTORES Y MOTOCICLETAS | N119: G | O119: Comercio al por mayor de materias primas agropecuarias; animales vivos | P119: Comercio al por mayor de materias primas agropecuarias; animales vivos | Q119: 15 | R119: 28 | S119: 0 | AE119: 0 | AF119: 0 | AG119: 54001 | AH119: CÚCUTA | AI119: 2 | AJ119: 2 | AK119: Natural | AL119: 54 | AM119: NORTE DE SANTANDER | AN119: Aprobado con subsidio | AO119: MICRO | AP119: 1811 | AQ119: INDUSTRIAS MANUFACTURERAS | AR119: C | AS119: Actividades de impresión y actividades de servicios relacionados con la impresión | AT119: Actividades de impresión y de producción de copias a partir de grabaciones originales | AU119: 1 | AV119: 1 | AW119: 0 | BI119: 76895 | BJ119: 3 | BK119: 5042 | BL119: 2
C120: 66001 | D120: PEREIRA | E120: 6 | F120: 0 | G120: Natural | H120: 66 | I120: RISARALDA | J120: Aprobado con subsidio | K120: MICRO | L120: 4741 | M120: COMERCIO AL POR MAYOR Y AL POR MENOR; REPARACIÓN DE VEHÍCULOS AUTOMOTORES Y MOTOCICLETAS | N120: G | O120: Comercio al por menor de equipos de informática y de comunicaciones, en establecimientos especializados | P120: Comercio al por menor de equipos de informática y de comunicaciones, en establecimientos especializados | Q120: 1 | R120: 5 | S120: 0 | AE120: 0 | AF120: 0 | AG120: 5001 | AH120: MEDELLÍN | AI120: 0 | AJ120: 9 | AK120: Natural | AL120: 5 | AM120: ANTIOQUIA | AN120: 0 | AO120: MICRO | AP120: 1081 | AQ120: INDUSTRIAS MANUFACTURERAS | AR120: C | AS120: Elaboración de otros productos alimenticios | AT120: Elaboración de productos alimenticios | AU120: 0 | AV120: 0 | AW120: 0 | BI120: 52356 | BJ120: 2 | BK120: 5030 | BL120: 2
C121: 5088 | D121: BELLO | E121: 3 | F121: 9 | G121: Natural | H121: 5 | I121: ANTIOQUIA | J121: Aprobado con subsidio | K121: MICRO | L121: 1081 | M121: INDUSTRIAS MANUFACTURERAS | N121: C | O121: Elaboración de otros productos alimenticios | P121: Elaboración de productos alimenticios | Q121: 2 | R121: 1 | S121: 0 | AE121: 0 | AF121: 0 | AG121: 54405 | AH121: LOS PATIOS | AI121: 8 | AJ121: 5 | AK121: Natural | AL121: 54 | AM121: NORTE DE SANTANDER | AN121: Aprobado con subsidio | AO121: MICRO | AP121: 1040 | AQ121: INDUSTRIAS MANUFACTURERAS | AR121: C | AS121: Elaboración de productos lácteos | AT121: Elaboración de productos alimenticios | AU121: 2 | AV121: 6 | AW121: 0 | BI121: 5079 | BJ121: 4 | BK121: 15455 | BL121: 2
C122: 66001 | D122: PEREIRA | E122: 5 | F122: 3 | G122: Natural | H122: 66 | I122: RISARALDA | J122: Aprobado con subsidio | K122: MICRO | L122: 4752 | M122: COMERCIO AL POR MAYOR Y AL POR MENOR; REPARACIÓN DE VEHÍCULOS AUTOMOTORES Y MOTOCICLETAS | N122: G | O122: Comercio al por menor de otros enseres domésticos en establecimientos especializados | P122: Comercio al por menor de otros enseres domésticos en establecimientos especializados | Q122: 1 | R122: 4 | S122: 0 | AE122: 0 | AF122: 0 | AG122: 76001 | AH122: CALI | AI122: 6 | AJ122: 1 | AK122: Natural | AL122: 76 | AM122: VALLE DEL CAUCA | AN122: Aprobado con subsidio | AO122: MICRO | AP122: 1511 | AQ122: INDUSTRIAS MANUFACTURERAS | AR122: C | AS122: Curtido y recurtido de cueros; fabricación de artículos de viaje, bolsos de mano y artículos similares, y fabricación de artículos de talabartería y guarnicionería; adobo y teñido de pieles | AT122: Curtido y recurtido de cueros; fabricación de calzado; fabricación de artículos de viaje, maletas, bolsos de mano y artículos similares, y fabricación de artículos de talabartería y guarnicionería; adobo y teñido de pieles | AU122: 0 | AV122: 6 | AW122: 0 | BI122: 5172 | BJ122: 4 | BK122: 41016 | BL122: 2
C123: 66170 | D123: DOSQUEBRADAS | E123: 4 | F123: 3 | G123: Natural | H123: 66 | I123: RISARALDA | J123: Aprobado con subsidio | K123: MICRO | L123: 3110 | M123: INDUSTRIAS MANUFACTURERAS | N123: C | O123: Fabricación de muebles | P123: Fabricación de muebles, colchones y somieres | Q123: 1 | R123: 3 | S123: 0 | AE123: 0 | AF123: 0 | AG123: 63001 | AH123: ARMENIA | AI123: 8 | AJ123: 1 | AK123: Natural | AL123: 63 | AM123: QUINDÍO | AN123: Aprobado con subsidio | AO123: MICRO | AP123: 1522 | AQ123: INDUSTRIAS MANUFACTURERAS | AR123: C | AS123: Fabricación de calzado | AT123: Curtido y recurtido de cueros; fabricación de calzado; fabricación de artículos de viaje, maletas, bolsos de mano y artículos similares, y fabricación de artículos de talabartería y guarnicionería; adobo y teñido de pieles | AU123: 2 | AV123: 6 | AW123: 0 | BI123: 50573 | BJ123: 2 | BK123: 27001 | BL123: 2
C124: 11001 | D124: BOGOTÁ, D.C. | E124: 4 | F124: 0 | G124: Natural | H124: 11 | I124: BOGOTÁ, D.C. | J124: Aprobado con subsidio | K124: MICRO | L124: 5611 | M124: ALOJAMIENTO Y SERVICIOS DE COMIDA | N124: I | O124: Actividades de restaurantes, cafeterías y servicio móvil de comidas | P124: Actividades de restaurantes, cafeterías y servicio móvil de comidas | Q124: 3 | R124: 1 | S124: 0 | AE124: 0 | AF124: 0 | AG124: 63001 | AH124: ARMENIA | AI124: 2 | AJ124: 2 | AK124: Natural | AL124: 63 | AM124: QUINDÍO | AN124: Aprobado con subsidio | AO124: MICRO | AP124: 2599 | AQ124: INDUSTRIAS MANUFACTURERAS | AR124: C | AS124: Fabricación de otros productos elaborados de metal y actividades de servicios relacionadas con el trabajo de metales | AT124: Fabricación de productos elaborados de metal, excepto maquinaria y equipo | AU124: 0 | AV124: 2 | AW124: 0 | BI124: 5642 | BJ124: 1 | BK124: 54261 | BL124: 2
C125: 11001 | D125: BOGOTÁ, D.C. | E125: 2 | F125: 0 | G125: Natural | H125: 11 | I125: BOGOTÁ, D.C. | J125: Aprobado con subsidio | K125: MICRO | L125: 5611 | M125: ALOJAMIENTO Y SERVICIOS DE COMIDA | N125: I | O125: Actividades de restaurantes, cafeterías y servicio móvil de comidas | P125: Actividades de restaurantes, cafeterías y servicio móvil de comidas | Q125: 1 | R125: 1 | S125: 0 | AE125: 0 | AF125: 0 | AG125: 63001 | AH125: ARMENIA | AI125: 2 | AJ125: 0 | AK125: Natural | AL125: 63 | AM125: QUINDÍO | AN125: Aprobado con subsidio | AO125: MICRO | AP125: 3110 | AQ125: INDUSTRIAS MANUFACTURERAS | AR125: C | AS125: Fabricación de muebles | AT125: Fabricación de muebles, colchones y somieres | AU125: 1 | AV125: 1 | AW125: 0 | BI125: 5147 | BJ125: 5 | BK125: 19130 | BL125: 2
C126: 11001 | D126: BOGOTÁ, D.C. | E126: 10 | F126: 0 | G126: Natural | H126: 11 | I126: BOGOTÁ, D.C. | J126: Aprobado con subsidio | K126: MICRO | L126: 1081 | M126: INDUSTRIAS MANUFACTURERAS | N126: C | O126: Elaboración de otros productos alimenticios | P126: Elaboración de productos alimenticios | Q126: 5 | R126: 5 | S126: 0 | AE126: 0 | AF126: 0 | AG126: 68276 | AH126: FLORIDABLANCA | AI126: 0 | AJ126: 0 | AK126: Natural | AL126: 68 | AM126: SANTANDER | AN126: 0 | AO126: 0 | AP126: 1410 | AQ126: INDUSTRIAS MANUFACTURERAS | AR126: C | AS126: Confección de prendas de vestir, excepto prendas de piel | AT126: Confección de prendas de vestir | AU126: 0 | AV126: 0 | AW126: 0 | BI126: 63401 | BJ126: 1 | BK126: 73449 | BL126: 2
C127: 11001 | D127: BOGOTÁ, D.C. | E127: 6 | F127: 2 | G127: Natural | H127: 11 | I127: BOGOTÁ, D.C. | J127: Aprobado con subsidio | K127: MICRO | L127: 8299 | M127: ACTIVIDADES DE SERVICIOS ADMINISTRATIVOS Y DE APOYO | N127: N | O127: Actividades de servicios de apoyo a las empresas n.c.p. | P127: Actividades de servicios de apoyo a las empresas n.c.p. | Q127: 2 | R127: 4 | S127: 0 | AE127: 0 | AF127: 0 | AG127: 68276 | AH127: FLORIDABLANCA | AI127: 6 | AJ127: 7 | AK127: Natural | AL127: 68 | AM127: SANTANDER | AN127: Aprobado con subsidio | AO127: PEQUEÑA | AP127: 1410 | AQ127: INDUSTRIAS MANUFACTURERAS | AR127: C | AS127: Confección de prendas de vestir, excepto prendas de piel | AT127: Confección de prendas de vestir | AU127: 5 | AV127: 1 | AW127: 0 | BI127: 5607 | BJ127: 4 | BK127: 15500 | BL127: 2
C128: 66001 | D128: PEREIRA | E128: 7 | F128: 1 | G128: Natural | H128: 66 | I128: RISARALDA | J128: Aprobado con subsidio | K128: MICRO | L128: 4541 | M128: COMERCIO AL POR MAYOR Y AL POR MENOR; REPARACIÓN DE VEHÍCULOS AUTOMOTORES Y MOTOCICLETAS | N128: G | O128: Comercio, mantenimiento y reparación de motocicletas y de sus partes, piezas y accesorios | P128: Comercio, mantenimiento y reparación de motocicletas y de sus partes, piezas y accesorios | Q128: 1 | R128: 6 | S128: 0 | AE128: 0 | AF128: 0 | AG128: 8001 | AH128: BARRANQUILLA | AI128: 5 | AJ128: 0 | AK128: Natural | AL128: 8 | AM128: ATLÁNTICO | AN128: Aprobado con subsidio | AO128: MICRO | AP128: 1081 | AQ128: INDUSTRIAS MANUFACTURERAS | AR128: C | AS128: Elaboración de otros productos alimenticios | AT128: Elaboración de productos alimenticios | AU128: 3 | AV128: 2 | AW128: 0 | BI128: 5154 | BJ128: 3 | BK128: 23555 | BL128: 2
C129: 11001 | D129: BOGOTÁ, D.C. | E129: 2 | F129: 0 | G129: Natural | H129: 11 | I129: BOGOTÁ, D.C. | J129: Aprobado con subsidio | K129: MICRO | L129: 1081 | M129: INDUSTRIAS MANUFACTURERAS | N129: C | O129: Elaboración de otros productos alimenticios | P129: Elaboración de productos alimenticios | Q129: 1 | R129: 1 | S129: 0 | AE129: 0 | AF129: 0 | AG129: 68001 | AH129: BUCARAMANGA | AI129: 19 | AJ129: 10 | AK129: Natural | AL129: 68 | AM129: SANTANDER | AN129: Aprobado con subsidio | AO129: PEQUEÑA | AP129: 1521 | AQ129: INDUSTRIAS MANUFACTURERAS | AR129: C | AS129: Fabricación de calzado | AT129: Curtido y recurtido de cueros; fabricación de calzado; fabricación de artículos de viaje, maletas, bolsos de mano y artículos similares, y fabricación de artículos de talabartería y guarnicionería; adobo y teñido de pieles | AU129: 16 | AV129: 3 | AW129: 0 | BI129: 15806 | BJ129: 1 | BK129: 68079 | BL129: 2
C130: 11001 | D130: BOGOTÁ, D.C. | E130: 4 | F130: 4 | G130: Natural | H130: 11 | I130: BOGOTÁ, D.C. | J130: Aprobado con subsidio | K130: MICRO | L130: 1410 | M130: INDUSTRIAS MANUFACTURERAS | N130: C | O130: Confección de prendas de vestir, excepto prendas de piel | P130: Confección de prendas de vestir | Q130: 4 | R130: 0 | S130: 0 | AE130: 0 | AF130: 0 | AG130: 68001 | AH130: BUCARAMANGA | AI130: 12 | AJ130: 3 | AK130: Natural | AL130: 68 | AM130: SANTANDER | AN130: Aprobado con subsidio | AO130: MICRO | AP130: 1410 | AQ130: INDUSTRIAS MANUFACTURERAS | AR130: C | AS130: Confección de prendas de vestir, excepto prendas de piel | AT130: Confección de prendas de vestir | AU130: 12 | AV130: 0 | AW130: 0 | BI130: 41791 | BJ130: =COUNTIFS($AN$2:$AN$399999,"Aprobado con subsidio",$AG$2:$AG$399999,BI130) -> 1 | BK130: 76306 | BL130: 2
C131: 11001 | D131: BOGOTÁ, D.C. | E131: 9 | F131: 1 | G131: Natural | H131: 11 | I131: BOGOTÁ, D.C. | J131: Aprobado con subsidio | K131: MICRO | L131: 1081 | M131: INDUSTRIAS MANUFACTURERAS | N131: C | O131: Elaboración de otros productos alimenticios | P131: Elaboración de productos alimenticios | Q131: 6 | R131: 3 | S131: 0 | AE131: 0 | AF131: 0 | AG131: 68307 | AH131: GIRÓN | AI131: 3 | AJ131: 0 | AK131: Natural | AL131: 68 | AM131: SANTANDER | AN131: Aprobado con subsidio | AO131: MICRO | AP131: 3312 | AQ131: INDUSTRIAS MANUFACTURERAS | AR131: C | AS131: Mantenimiento y reparación especializado de productos elaborados en metal y de maquinaria y equipo | AT131: Instalación, mantenimiento y reparación especializado de maquinaria y equipo | AU131: 0 | AV131: 3 | AW131: 0 | BI131: 85162 | BJ131: 1 | BK131: 25386 | BL131: 2
C132: 11001 | D132: BOGOTÁ, D.C. | E132: 4 | F132: 1 | G132: Natural | H132: 11 | I132: BOGOTÁ, D.C. | J132: Aprobado con subsidio | K132: MICRO | L132: 5611 | M132: ALOJAMIENTO Y SERVICIOS DE COMIDA | N132: I | O132: Actividades de restaurantes, cafeterías y servicio móvil de comidas | P132: Actividades de restaurantes, cafeterías y servicio móvil de comidas | Q132: 3 | R132: 1 | S132: 0 | AE132: 0 | AF132: 0 | AG132: 68001 | AH132: BUCARAMANGA | AI132: 2 | AJ132: 5 | AK132: Natural | AL132: 68 | AM132: SANTANDER | AN132: Aprobado con subsidio | AO132: MICRO | AP132: 1410 | AQ132: INDUSTRIAS MANUFACTURERAS | AR132: C | AS132: Confección de prendas de vestir, excepto prendas de piel | AT132: Confección de prendas de vestir | AU132: 2 | AV132: 0 | AW132: 0 | BI132: 95001 | BJ132: 1 | BK132: 8638 | BL132: 2
C133: 11001 | D133: BOGOTÁ, D.C. | E133: 0 | F133: 0 | G133: Natural | H133: 11 | I133: BOGOTÁ, D.C. | J133: 0 | K133: 0 | L133: 4752 | M133: COMERCIO AL POR MAYOR Y AL POR MENOR; REPARACIÓN DE VEHÍCULOS AUTOMOTORES Y MOTOCICLETAS | N133: G | O133: Comercio al por menor de otros enseres domésticos en establecimientos especializados | P133: Comercio al por menor de otros enseres domésticos en establecimientos especializados | Q133: 0 | R133: 0 | S133: 0 | AE133: 0 | AF133: 0 | AG133: 68001 | AH133: BUCARAMANGA | AI133: 10 | AJ133: 10 | AK133: Natural | AL133: 68 | AM133: SANTANDER | AN133: Aprobado con subsidio | AO133: MICRO | AP133: 1081 | AQ133: INDUSTRIAS MANUFACTURERAS | AR133: C | AS133: Elaboración de otros productos alimenticios | AT133: Elaboración de productos alimenticios | AU133: 8 | AV133: 2 | AW133: 0 | BI133: 25513 | BJ133: 3 | BK133: 52356 | BL133: 2
C134: 5030 | D134: AMAGÁ | E134: 15 | F134: 43 | G134: Natural | H134: 5 | I134: ANTIOQUIA | J134: Aprobado con subsidio | K134: PEQUEÑA | L134: 510 | M134: EXPLOTACIÓN DE MINAS Y CANTERAS | N134: B | O134: Extracción de hulla (carbón de piedra) | P134: Extracción de hulla (carbón de piedra) | Q134: 2 | R134: 13 | S134: 0 | AE134: 0 | AF134: 0 | AG134: 68001 | AH134: BUCARAMANGA | AI134: 30 | AJ134: 18 | AK134: Natural | AL134: 68 | AM134: SANTANDER | AN134: Aprobado con subsidio | AO134: PEQUEÑA | AP134: 1522 | AQ134: INDUSTRIAS MANUFACTURERAS | AR134: C | AS134: Fabricación de calzado | AT134: Curtido y recurtido de cueros; fabricación de calzado; fabricación de artículos de viaje, maletas, bolsos de mano y artículos similares, y fabricación de artículos de talabartería y guarnicionería; adobo y teñido de pieles | AU134: 17 | AV134: 13 | AW134: 0 | BI134: 25430 | BJ134: 18 | BK134: 50573 | BL134: 2
C135: 5036 | D135: ANGELÓPOLIS | E135: 10 | F135: 28 | G135: Natural | H135: 5 | I135: ANTIOQUIA | J135: Aprobado con subsidio | K135: MICRO | L135: 510 | M135: EXPLOTACIÓN DE MINAS Y CANTERAS | N135: B | O135: Extracción de hulla (carbón de piedra) | P135: Extracción de hulla (carbón de piedra) | Q135: 0 | R135: 10 | S135: 0 | AE135: 0 | AF135: 0 | AG135: 68081 | AH135: BARRANCABERMEJA | AI135: 6 | AJ135: 0 | AK135: Natural | AL135: 68 | AM135: SANTANDER | AN135: Aprobado con subsidio | AO135: MICRO | AP135: 1610 | AQ135: INDUSTRIAS MANUFACTURERAS | AR135: C | AS135: Aserrado, acepillado e impregnación de la madera | AT135: Transformación de la madera y fabricación de productos de madera y de corcho, excepto muebles; fabricación de artículos de cestería y espartería | AU135: 2 | AV135: 4 | AW135: 0 | BI135: 68755 | BJ135: 2 | BK135: 68755 | BL135: 2
C136: 11001 | D136: BOGOTÁ, D.C. | E136: 16 | F136: 1 | G136: Natural | H136: 11 | I136: BOGOTÁ, D.C. | J136: Aprobado con subsidio | K136: PEQUEÑA | L136: 4723 | M136: COMERCIO AL POR MAYOR Y AL POR MENOR; REPARACIÓN DE VEHÍCULOS AUTOMOTORES Y MOTOCICLETAS | N136: G | O136: Comercio al por menor de alimentos (víveres en general), bebidas y tabaco, en establecimientos especializados | P136: Comercio al por menor de alimentos (víveres en general), bebidas y tabaco, en establecimientos especializados | Q136: 5 | R136: 11 | S136: 0 | AE136: 0 | AF136: 0 | AG136: 68276 | AH136: FLORIDABLANCA | AI136: 4 | AJ136: 3 | AK136: Natural | AL136: 68 | AM136: SANTANDER | AN136: Aprobado con subsidio | AO136: MICRO | AP136: 1522 | AQ136: INDUSTRIAS MANUFACTURERAS | AR136: C | AS136: Fabricación de calzado | AT136: Curtido y recurtido de cueros; fabricación de calzado; fabricación de artículos de viaje, maletas, bolsos de mano y artículos similares, y fabricación de artículos de talabartería y guarnicionería; adobo y teñido de pieles | AU136: 4 | AV136: 0 | AW136: 0 | BI136: 73124 | BJ136: 2 | BK136: 73124 | BL136: 2
C137: 11001 | D137: BOGOTÁ, D.C. | E137: 4 | F137: 0 | G137: Natural | H137: 11 | I137: BOGOTÁ, D.C. | J137: Aprobado con subsidio | K137: MICRO | L137: 5511 | M137: ALOJAMIENTO Y SERVICIOS DE COMIDA | N137: I | O137: Actividades de alojamiento de estancias cortas | P137: Actividades de alojamiento de estancias cortas | Q137: 3 | R137: 1 | S137: 0 | AE137: 0 | AF137: 0 | AG137: 68001 | AH137: BUCARAMANGA | AI137: 2 | AJ137: 1 | AK137: Natural | AL137: 68 | AM137: SANTANDER | AN137: Aprobado con subsidio | AO137: MICRO | AP137: 3110 | AQ137: INDUSTRIAS MANUFACTURERAS | AR137: C | AS137: Fabricación de muebles | AT137: Fabricación de muebles, colchones y somieres | AU137: 1 | AV137: 1 | AW137: 0 | BI137: 76109 | BJ137: 5 | BK137: 23466 | BL137: 2
C138: 11001 | D138: BOGOTÁ, D.C. | E138: 3 | F138: 0 | G138: Natural | H138: 11 | I138: BOGOTÁ, D.C. | J138: Aprobado con subsidio | K138: MICRO | L138: 5629 | M138: ALOJAMIENTO Y SERVICIOS DE COMIDA | N138: I | O138: Actividades de catering para eventos y otros servicios de comidas | P138: Actividades de catering para eventos y otros servicios de comidas | Q138: 2 | R138: 1 | S138: 0 | AE138: 0 | AF138: 0 | AG138: 68001 | AH138: BUCARAMANGA | AI138: 4 | AJ138: 0 | AK138: Natural | AL138: 68 | AM138: SANTANDER | AN138: Aprobado con subsidio | AO138: MICRO | AP138: 1081 | AQ138: INDUSTRIAS MANUFACTURERAS | AR138: C | AS138: Elaboración de otros productos alimenticios | AT138: Elaboración de productos alimenticios | AU138: 2 | AV138: 2 | AW138: 0 | BI138: 76248 | BJ138: 4 | BK138: 5400 | BL138: 2
C139: 11001 | D139: BOGOTÁ, D.C. | E139: 2 | F139: 0 | G139: Natural | H139: 11 | I139: BOGOTÁ, D.C. | J139: Aprobado con subsidio | K139: MICRO | L139: 1410 | M139: INDUSTRIAS MANUFACTURERAS | N139: C | O139: Confección de prendas de vestir, excepto prendas de piel | P139: Confección de prendas de vestir | Q139: 2 | R139: 0 | S139: 0 | AE139: 0 | AF139: 0 | AG139: 68001 | AH139: BUCARAMANGA | AI139: 3 | AJ139: 0 | AK139: Natural | AL139: 68 | AM139: SANTANDER | AN139: Aprobado con subsidio | AO139: MICRO | AP139: 1081 | AQ139: INDUSTRIAS MANUFACTURERAS | AR139: C | AS139: Elaboración de otros productos alimenticios | AT139: Elaboración de productos alimenticios | AU139: 2 | AV139: 1 | AW139: 0 | BI139: 54498 | BJ139: 3 | BK139: 68406 | BL139: 2
C140: 11001 | D140: BOGOTÁ, D.C. | E140: 6 | F140: 1 | G140: Natural | H140: 11 | I140: BOGOTÁ, D.C. | J140: Aprobado con subsidio | K140: MICRO | L140: 5611 | M140: ALOJAMIENTO Y SERVICIOS DE COMIDA | N140: I | O140: Actividades de restaurantes, cafeterías y servicio móvil de comidas | P140: Actividades de restaurantes, cafeterías y servicio móvil de comidas | Q140: 2 | R140: 4 | S140: 0 | AE140: 0 | AF140: 0 | AG140: 11001 | AH140: BOGOTÁ, D.C. | AI140: 12 | AJ140: 0 | AK140: Natural | AL140: 11 | AM140: BOGOTÁ, D.C. | AN140: Aprobado con subsidio | AO140: PEQUEÑA | AP140: 1011 | AQ140: INDUSTRIAS MANUFACTURERAS | AR140: C | AS140: Procesamiento y conservación de carne, pescado, crustáceos y moluscos | AT140: Elaboración de productos alimenticios | AU140: 0 | AV140: 12 | AW140: 0 | BI140: 76563 | BJ140: 3 | BK140: 63594 | BL140: 2
C141: 11001 | D141: BOGOTÁ, D.C. | E141: 0 | F141: 0 | G141: Natural | H141: 11 | I141: BOGOTÁ, D.C. | J141: 0 | K141: 0 | L141: 9601 | M141: OTRAS ACTIVIDADES DE SERVICIOS | N141: S | O141: Otras actividades de servicios personales | P141: Otras actividades de servicios personales | Q141: 0 | R141: 0 | S141: 0 | AE141: 0 | AF141: 0 | AG141: 68679 | AH141: SAN GIL | AI141: 1 | AJ141: 6 | AK141: Natural | AL141: 68 | AM141: SANTANDER | AN141: Aprobado con subsidio | AO141: MICRO | AP141: 2750 | AQ141: INDUSTRIAS MANUFACTURERAS | AR141: C | AS141: Fabricación de aparatos de uso doméstico | AT141: Fabricación de aparatos y equipo eléctrico | AU141: 1 | AV141: 0 | AW141: 0 | BI141: 23162 | BJ141: 3 | BK141: 50318 | BL141: 2
C142: 11001 | D142: BOGOTÁ, D.C. | E142: 5 | F142: 0 | G142: Natural | H142: 11 | I142: BOGOTÁ, D.C. | J142: Aprobado con subsidio | K142: MICRO | L142: 4530 | M142: COMERCIO AL POR MAYOR Y AL POR MENOR; REPARACIÓN DE VEHÍCULOS AUTOMOTORES Y MOTOCICLETAS | N142: G | O142: Comercio de partes, piezas (autopartes) y accesorios (lujos) para vehículos automotores | P142: Comercio de partes, piezas (autopartes) y accesorios (lujos) para vehículos automotores | Q142: 1 | R142: 4 | S142: 0 | AE142: 0 | AF142: 0 | AG142: 47189 | AH142: CIÉNAGA | AI142: 3 | AJ142: 0 | AK142: Natural | AL142: 47 | AM142: MAGDALENA | AN142: Aprobado con subsidio | AO142: MICRO | AP142: 1081 | AQ142: INDUSTRIAS MANUFACTURERAS | AR142: C | AS142: Elaboración de otros productos alimenticios | AT142: Elaboración de productos alimenticios | AU142: 1 | AV142: 2 | AW142: 0 | BI142: 23466 | BJ142: 2 | BK142: 25260 | BL142: 2
C143: 25269 | D143: FACATATIVÁ | E143: 7 | F143: 5 | G143: Natural | H143: 25 | I143: CUNDINAMARCA | J143: Aprobado con subsidio | K143: MICRO | L143: 5511 | M143: ALOJAMIENTO Y SERVICIOS DE COMIDA | N143: I | O143: Actividades de alojamiento de estancias cortas | P143: Actividades de alojamiento de estancias cortas | Q143: 6 | R143: 1 | S143: 0 | AE143: 0 | AF143: 0 | AG143: 68861 | AH143: VÉLEZ | AI143: 16 | AJ143: 2 | AK143: Natural | AL143: 68 | AM143: SANTANDER | AN143: Aprobado con subsidio | AO143: PEQUEÑA | AP143: 1089 | AQ143: INDUSTRIAS MANUFACTURERAS | AR143: C | AS143: Elaboración de otros productos alimenticios | AT143: Elaboración de productos alimenticios | AU143: 7 | AV143: 9 | AW143: 0 | BI143: 5664 | BJ143: 6 | BK143: 85139 | BL143: 2
C144: 54518 | D144: PAMPLONA | E144: 4 | F144: 0 | G144: Natural | H144: 54 | I144: NORTE DE SANTANDER | J144: Aprobado con subsidio | K144: MICRO | L144: 4719 | M144: COMERCIO AL POR MAYOR Y AL POR MENOR; REPARACIÓN DE VEHÍCULOS AUTOMOTORES Y MOTOCICLETAS | N144: G | O144: Comercio al por menor en establecimientos no especializados | P144: Comercio al por menor en establecimientos no especializados | Q144: 1 | R144: 3 | S144: 0 | AE144: 0 | AF144: 0 | AG144: 73001 | AH144: IBAGUÉ | AI144: 3 | AJ144: 2 | AK144: Natural | AL144: 73 | AM144: TOLIMA | AN144: Aprobado con subsidio | AO144: MICRO | AP144: 3312 | AQ144: INDUSTRIAS MANUFACTURERAS | AR144: C | AS144: Mantenimiento y reparación especializado de productos elaborados en metal y de maquinaria y equipo | AT144: Instalación, mantenimiento y reparación especializado de maquinaria y equipo | AU144: 1 | AV144: 2 | AW144: 0 | BI144: 5197 | BJ144: 1 | BK144: 81001 | BL144: 2
C145: 25875 | D145: VILLETA | E145: 4 | F145: 1 | G145: Natural | H145: 25 | I145: CUNDINAMARCA | J145: Aprobado con subsidio | K145: MICRO | L145: 9412 | M145: OTRAS ACTIVIDADES DE SERVICIOS | N145: S | O145: Actividades de asociaciones empresariales y de empleadores y asociaciones profesionales | P145: Actividades de asociaciones empresariales y de empleadores y asociaciones profesionales | Q145: 1 | R145: 3 | S145: 0 | AE145: 0 | AF145: 0 | AG145: 76111 | AH145: GUADALAJARA DE BUGA | AI145: 0 | AJ145: 0 | AK145: Natural | AL145: 76 | AM145: VALLE DEL CAUCA | AN145: 0 | AO145: 0 | AP145: 3110 | AQ145: INDUSTRIAS MANUFACTURERAS | AR145: C | AS145: Fabricación de muebles | AT145: Fabricación de muebles, colchones y somieres | AU145: 0 | AV145: 0 | AW145: 0 | BI145: 5480 | BJ145: 1 | BK145: 17174 | BL145: 2
C146: 13001 | D146: CARTAGENA | E146: 3 | F146: 0 | G146: Natural | H146: 13 | I146: BOLÍVAR | J146: Aprobado con subsidio | K146: MICRO | L146: 4752 | M146: COMERCIO AL POR MAYOR Y AL POR MENOR; REPARACIÓN DE VEHÍCULOS AUTOMOTORES Y MOTOCICLETAS | N146: G | O146: Comercio al por menor de otros enseres domésticos en establecimientos especializados | P146: Comercio al por menor de otros enseres domésticos en establecimientos especializados | Q146: 1 | R146: 2 | S146: 0 | AE146: 0 | AF146: 0 | AG146: 76834 | AH146: TULUÁ | AI146: 0 | AJ146: 0 | AK146: Natural | AL146: 76 | AM146: VALLE DEL CAUCA | AN146: 0 | AO146: 0 | AP146: 2511 | AQ146: INDUSTRIAS MANUFACTURERAS | AR146: C | AS146: Fabricación de productos metálicos para uso estructural, tanques, depósitos y generadores de vapor. | AT146: Fabricación de productos elaborados de metal, excepto maquinaria y equipo | AU146: 0 | AV146: 0 | AW146: 0 | BI146: 76400 | BJ146: 1 | BK146: 5034 | BL146: 2
C147: 5001 | D147: MEDELLÍN | E147: 6 | F147: 0 | G147: Natural | H147: 5 | I147: ANTIOQUIA | J147: Aprobado con subsidio | K147: MICRO | L147: 5629 | M147: ALOJAMIENTO Y SERVICIOS DE COMIDA | N147: I | O147: Actividades de catering para eventos y otros servicios de comidas | P147: Actividades de catering para eventos y otros servicios de comidas | Q147: 6 | R147: 0 | S147: 0 | AE147: 0 | AF147: 0 | AG147: 76001 | AH147: CALI | AI147: 0 | AJ147: 0 | AK147: Natural | AL147: 76 | AM147: VALLE DEL CAUCA | AN147: 0 | AO147: 0 | AP147: 1081 | AQ147: INDUSTRIAS MANUFACTURERAS | AR147: C | AS147: Elaboración de otros productos alimenticios | AT147: Elaboración de productos alimenticios | AU147: 0 | AV147: 0 | AW147: 0 | BI147: 17877 | BJ147: 1 | BK147: 76622 | BL147: 2
C148: 5001 | D148: MEDELLÍN | E148: 2 | F148: 4 | G148: Natural | H148: 5 | I148: ANTIOQUIA | J148: Aprobado con subsidio | K148: MICRO | L148: 6190 | M148: INFORMACIÓN Y COMUNICACIONES | N148: J | O148: Otras actividades de telecomunicaciones | P148: Otras actividades de telecomunicaciones | Q148: 2 | R148: 0 | S148: 0 | AE148: 0 | AF148: 0 | AG148: 76233 | AH148: DAGUA | AI148: 6 | AJ148: 11 | AK148: Natural | AL148: 76 | AM148: VALLE DEL CAUCA | AN148: Aprobado con subsidio | AO148: MICRO | AP148: 1040 | AQ148: INDUSTRIAS MANUFACTURERAS | AR148: C | AS148: Elaboración de productos lácteos | AT148: Elaboración de productos alimenticios | AU148: 5 | AV148: 1 | AW148: 0 | BI148: 5440 | BJ148: 11 | BK148: 25743 | BL148: 2
C149: 5001 | D149: MEDELLÍN | E149: 3 | F149: 0 | G149: Natural | H149: 5 | I149: ANTIOQUIA | J149: Aprobado con subsidio | K149: MICRO | L149: 4723 | M149: COMERCIO AL POR MAYOR Y AL POR MENOR; REPARACIÓN DE VEHÍCULOS AUTOMOTORES Y MOTOCICLETAS | N149: G | O149: Comercio al por menor de alimentos (víveres en general), bebidas y tabaco, en establecimientos especializados | P149: Comercio al por menor de alimentos (víveres en general), bebidas y tabaco, en establecimientos especializados | Q149: 1 | R149: 2 | S149: 0 | AE149: 0 | AF149: 0 | AG149: 76001 | AH149: CALI | AI149: 5 | AJ149: 0 | AK149: Natural | AL149: 76 | AM149: VALLE DEL CAUCA | AN149: Aprobado con subsidio | AO149: MICRO | AP149: 1610 | AQ149: INDUSTRIAS MANUFACTURERAS | AR149: C | AS149: Aserrado, acepillado e impregnación de la madera | AT149: Transformación de la madera y fabricación de productos de madera y de corcho, excepto muebles; fabricación de artículos de cestería y espartería | AU149: 2 | AV149: 3 | AW149: 0 | BI149: 5541 | BJ149: 1 | BK149: 13244 | BL149: 2
C150: 50006 | D150: ACACÍAS | E150: 12 | F150: 0 | G150: Natural | H150: 50 | I150: META | J150: Aprobado con subsidio | K150: MICRO | L150: 8560 | M150: EDUCACIÓN | N150: P | O150: Actividades de apoyo a la educación | P150: Actividades de apoyo a la educación | Q150: 12 | R150: 0 | S150: 0 | AE150: 0 | AF150: 0 | AG150: 76834 | AH150: TULUÁ | AI150: 20 | AJ150: 0 | AK150: Natural | AL150: 76 | AM150: VALLE DEL CAUCA | AN150: Aprobado con subsidio | AO150: PEQUEÑA | AP150: 1410 | AQ150: INDUSTRIAS MANUFACTURERAS | AR150: C | AS150: Confección de prendas de vestir, excepto prendas de piel | AT150: Confección de prendas de vestir | AU150: 13 | AV150: 7 | AW150: 0 | BI150: 5264 | BJ150: 1 | BK150: 20011 | BL150: 2
C151: 5001 | D151: MEDELLÍN | E151: 4 | F151: 4 | G151: Natural | H151: 5 | I151: ANTIOQUIA | J151: Aprobado con subsidio | K151: MICRO | L151: 2229 | M151: INDUSTRIAS MANUFACTURERAS | N151: C | O151: Fabricación de productos de plástico | P151: Fabricación de productos de caucho y de plástico | Q151: 2 | R151: 2 | S151: 0 | AE151: 0 | AF151: 0 | AG151: 76834 | AH151: TULUÁ | AI151: 0 | AJ151: 0 | AK151: Natural | AL151: 76 | AM151: VALLE DEL CAUCA | AN151: 0 | AO151: 0 | AP151: 1690 | AQ151: INDUSTRIAS MANUFACTURERAS | AR151: C | AS151: Fabricación de otros productos de madera; fabricación de artículos de corcho, cestería y espartería | AT151: Transformación de la madera y fabricación de productos de madera y de corcho, excepto muebles; fabricación de artículos de cestería y espartería | AU151: 0 | AV151: 0 | AW151: 0 | BI151: 5837 | BJ151: 1 | BK151: 25035 | BL151: 2
C152: 5001 | D152: MEDELLÍN | E152: 4 | F152: 4 | G152: Natural | H152: 5 | I152: ANTIOQUIA | J152: Aprobado con subsidio | K152: MICRO | L152: 4330 | M152: CONSTRUCCIÓN | N152: F | O152: Terminación y acabado de edificios y obras de ingeniería civil | P152: Terminación y acabado de edificios y obras de ingeniería civil | Q152: 1 | R152: 3 | S152: 0 | AE152: 0 | AF152: 0 | AG152: 11001 | AH152: BOGOTÁ, D.C. | AI152: 0 | AJ152: 0 | AK152: Natural | AL152: 11 | AM152: BOGOTÁ, D.C. | AN152: 0 | AO152: 0 | AP152: 1410 | AQ152: INDUSTRIAS MANUFACTURERAS | AR152: C | AS152: Confección de prendas de vestir, excepto prendas de piel | AT152: Confección de prendas de vestir | AU152: 0 | AV152: 0 | AW152: 0 | BI152: 85440 | BJ152: 4 | BK152: 54810 | BL152: 2
C153: 5001 | D153: MEDELLÍN | E153: 2 | F153: 1 | G153: Natural | H153: 5 | I153: ANTIOQUIA | J153: Aprobado con subsidio | K153: MICRO | L153: 8899 | M153: ACTIVIDADES DE ATENCIÓN DE LA SALUD HUMANA Y DE ASISTENCIA SOCIAL | N153: Q | O153: Otras actividades de asistencia social sin alojamiento | P153: Otras actividades de asistencia social sin alojamiento | Q153: 1 | R153: 1 | S153: 0 | AE153: 0 | AF153: 0 | AG153: 11001 | AH153: BOGOTÁ, D.C. | AI153: 3 | AJ153: 5 | AK153: Natural | AL153: 11 | AM153: BOGOTÁ, D.C. | AN153: Aprobado con subsidio | AO153: MICRO | AP153: 1081 | AQ153: INDUSTRIAS MANUFACTURERAS | AR153: C | AS153: Elaboración de otros productos alimenticios | AT153: Elaboración de productos alimenticios | AU153: 1 | AV153: 2 | AW153: 0 | BI153: 15469 | BJ153: 0 | BK153: 5670 | BL153: 2
C154: 5001 | D154: MEDELLÍN | E154: 23 | F154: 0 | G154: Natural | H154: 5 | I154: ANTIOQUIA | J154: Aprobado con subsidio | K154: PEQUEÑA | L154: 141 | M154: AGRICULTURA, GANADERÍA, CAZA, SILVICULTURA Y PESCA | N154: A | O154: Ganadería | P154: Ganadería | Q154: 0 | R154: 23 | S154: 0 | AE154: 0 | AF154: 0 | AG154: 50001 | AH154: VILLAVICENCIO | AI154: 11 | AJ154: 0 | AK154: Natural | AL154: 50 | AM154: META | AN154: Aprobado con subsidio | AO154: MICRO | AP154: 1081 | AQ154: INDUSTRIAS MANUFACTURERAS | AR154: C | AS154: Elaboración de otros productos alimenticios | AT154: Elaboración de productos alimenticios | AU154: 6 | AV154: 5 | AW154: 0 | BI154: 85010 | BJ154: 4 | BK154: 73275 | BL154: 2
C155: 5045 | D155: APARTADÓ | E155: 8 | F155: 1 | G155: Natural | H155: 5 | I155: ANTIOQUIA | J155: Aprobado con subsidio | K155: MICRO | L155: 5611 | M155: ALOJAMIENTO Y SERVICIOS DE COMIDA | N155: I | O155: Actividades de restaurantes, cafeterías y servicio móvil de comidas | P155: Actividades de restaurantes, cafeterías y servicio móvil de comidas | Q155: 4 | R155: 4 | S155: 0 | AE155: 0 | AF155: 0 | AG155: 11001 | AH155: BOGOTÁ, D.C. | AI155: 3 | AJ155: 0 | AK155: Natural | AL155: 11 | AM155: BOGOTÁ, D.C. | AN155: Aprobado con subsidio | AO155: MICRO | AP155: 3290 | AQ155: INDUSTRIAS MANUFACTURERAS | AR155: C | AS155: Otras industrias manufactureras n.c.p. | AT155: Otras industrias manufactureras | AU155: 2 | AV155: 1 | AW155: 0 | BI155: 19807 | BJ155: 1 | BK155: 25183 | BL155: 2
C156: 5001 | D156: MEDELLÍN | E156: 2 | F156: 2 | G156: Natural | H156: 5 | I156: ANTIOQUIA | J156: Aprobado con subsidio | K156: MICRO | L156: 5511 | M156: ALOJAMIENTO Y SERVICIOS DE COMIDA | N156: I | O156: Actividades de alojamiento de estancias cortas | P156: Actividades de alojamiento de estancias cortas | Q156: 2 | R156: 0 | S156: 0 | AE156: 0 | AF156: 0 | AG156: 11001 | AH156: BOGOTÁ, D.C. | AI156: 3 | AJ156: 0 | AK156: Natural | AL156: 11 | AM156: BOGOTÁ, D.C. | AN156: Aprobado con subsidio | AO156: MICRO | AP156: 3230 | AQ156: INDUSTRIAS MANUFACTURERAS | AR156: C | AS156: Fabricación de artículos y equipo para la práctica del deporte | AT156: Otras industrias manufactureras | AU156: 1 | AV156: 2 | AW156: 0 | BI156: 18460 | BJ156: 1 | BK156: 25123 | BL156: 1
C157: 5001 | D157: MEDELLÍN | E157: 10 | F157: 2 | G157: Natural | H157: 5 | I157: ANTIOQUIA | J157: Aprobado con subsidio | K157: MICRO | L157: 5611 | M157: ALOJAMIENTO Y SERVICIOS DE COMIDA | N157: I | O157: Actividades de restaurantes, cafeterías y servicio móvil de comidas | P157: Actividades de restaurantes, cafeterías y servicio móvil de comidas | Q157: 3 | R157: 7 | S157: 0 | AE157: 0 | AF157: 0 | AG157: 25290 | AH157: FUSAGASUGÁ | AI157: 4 | AJ157: 0 | AK157: Natural | AL157: 25 | AM157: CUNDINAMARCA | AN157: Aprobado con subsidio | AO157: MICRO | AP157: 1081 | AQ157: INDUSTRIAS MANUFACTURERAS | AR157: C | AS157: Elaboración de otros productos alimenticios | AT157: Elaboración de productos alimenticios | AU157: 3 | AV157: 1 | AW157: 0 | BI157: 25612 | BJ157: 1 | BK157: 5579 | BL157: 1
C158: 5001 | D158: MEDELLÍN | E158: 8 | F158: 0 | G158: Natural | H158: 5 | I158: ANTIOQUIA | J158: Aprobado con subsidio | K158: MICRO | L158: 1410 | M158: INDUSTRIAS MANUFACTURERAS | N158: C | O158: Confección de prendas de vestir, excepto prendas de piel | P158: Confección de prendas de vestir | Q158: 7 | R158: 1 | S158: 0 | AE158: 0 | AF158: 0 | AG158: 54405 | AH158: LOS PATIOS | AI158: 0 | AJ158: 0 | AK158: Natural | AL158: 54 | AM158: NORTE DE SANTANDER | AN158: 0 | AO158: 0 | AP158: 1081 | AQ158: INDUSTRIAS MANUFACTURERAS | AR158: C | AS158: Elaboración de otros productos alimenticios | AT158: Elaboración de productos alimenticios | AU158: 0 | AV158: 0 | AW158: 0 | BI158: 25200 | BJ158: 3 | BK158: 76233 | BL158: 1
C159: 5001 | D159: MEDELLÍN | E159: 3 | F159: 0 | G159: Natural | H159: 5 | I159: ANTIOQUIA | J159: Aprobado con subsidio | K159: MICRO | L159: 5611 | M159: ALOJAMIENTO Y SERVICIOS DE COMIDA | N159: I | O159: Actividades de restaurantes, cafeterías y servicio móvil de comidas | P159: Actividades de restaurantes, cafeterías y servicio móvil de comidas | Q159: 2 | R159: 1 | S159: 0 | AE159: 0 | AF159: 0 | AG159: 5001 | AH159: MEDELLÍN | AI159: 2 | AJ159: 0 | AK159: Natural | AL159: 5 | AM159: ANTIOQUIA | AN159: Aprobado con subsidio | AO159: MICRO | AP159: 1089 | AQ159: INDUSTRIAS MANUFACTURERAS | AR159: C | AS159: Elaboración de otros productos alimenticios | AT159: Elaboración de productos alimenticios | AU159: 1 | AV159: 1 | AW159: 0 | BI159: 25473 | BJ159: 42 | BK159: 70221 | BL159: 1
C160: 5088 | D160: BELLO | E160: 0 | F160: 2 | G160: Natural | H160: 5 | I160: ANTIOQUIA | J160: 0 | K160: 0 | L160: 4741 | M160: COMERCIO AL POR MAYOR Y AL POR MENOR; REPARACIÓN DE VEHÍCULOS AUTOMOTORES Y MOTOCICLETAS | N160: G | O160: Comercio al por menor de equipos de informática y de comunicaciones, en establecimientos especializados | P160: Comercio al por menor de equipos de informática y de comunicaciones, en establecimientos especializados | Q160: 0 | R160: 0 | S160: 0 | AE160: 0 | AF160: 0 | AG160: 5001 | AH160: MEDELLÍN | AI160: 7 | AJ160: 1 | AK160: Natural | AL160: 5 | AM160: ANTIOQUIA | AN160: Aprobado con subsidio | AO160: MICRO | AP160: 1410 | AQ160: INDUSTRIAS MANUFACTURERAS | AR160: C | AS160: Confección de prendas de vestir, excepto prendas de piel | AT160: Confección de prendas de vestir | AU160: 1 | AV160: 6 | AW160: 0 | BI160: 25817 | BJ160: 13 | BK160: 52838 | BL160: 1
C161: 5001 | D161: MEDELLÍN | E161: 5 | F161: 0 | G161: Natural | H161: 5 | I161: ANTIOQUIA | J161: Aprobado con subsidio | K161: MICRO | L161: 4520 | M161: COMERCIO AL POR MAYOR Y AL POR MENOR; REPARACIÓN DE VEHÍCULOS AUTOMOTORES Y MOTOCICLETAS | N161: G | O161: Mantenimiento y reparación de vehículos automotores | P161: Mantenimiento y reparación de vehículos automotores | Q161: 1 | R161: 4 | S161: 0 | AE161: 0 | AF161: 0 | AG161: 5001 | AH161: MEDELLÍN | AI161: 3 | AJ161: 1 | AK161: Natural | AL161: 5 | AM161: ANTIOQUIA | AN161: Aprobado con subsidio | AO161: MICRO | AP161: 1313 | AQ161: INDUSTRIAS MANUFACTURERAS | AR161: C | AS161: Preparación, hilatura, tejeduría y acabado de productos textiles | AT161: Fabricación de productos textiles | AU161: 2 | AV161: 1 | AW161: 0 | BI161: 25769 | BJ161: 1 | BK161: 54673 | BL161: 1
C162: 5001 | D162: MEDELLÍN | E162: 6 | F162: 0 | G162: Natural | H162: 5 | I162: ANTIOQUIA | J162: Aprobado con subsidio | K162: MICRO | L162: 5611 | M162: ALOJAMIENTO Y SERVICIOS DE COMIDA | N162: I | O162: Actividades de restaurantes, cafeterías y servicio móvil de comidas | P162: Actividades de restaurantes, cafeterías y servicio móvil de comidas | Q162: 3 | R162: 3 | S162: 0 | AE162: 0 | AF162: 0 | AG162: 5001 | AH162: MEDELLÍN | AI162: 5 | AJ162: 1 | AK162: Natural | AL162: 5 | AM162: ANTIOQUIA | AN162: Aprobado con subsidio | AO162: MICRO | AP162: 1410 | AQ162: INDUSTRIAS MANUFACTURERAS | AR162: C | AS162: Confección de prendas de vestir, excepto prendas de piel | AT162: Confección de prendas de vestir | AU162: 4 | AV162: 1 | AW162: 0 | BI162: 5400 | BJ162: 2 | BK162: 68167 | BL162: 1
C163: 63001 | D163: ARMENIA | E163: 3 | F163: 0 | G163: Natural | H163: 63 | I163: QUINDÍO | J163: Aprobado con subsidio | K163: MICRO | L163: 8899 | M163: ACTIVIDADES DE ATENCIÓN DE LA SALUD HUMANA Y DE ASISTENCIA SOCIAL | N163: Q | O163: Otras actividades de asistencia social sin alojamiento | P163: Otras actividades de asistencia social sin alojamiento | Q163: 2 | R163: 1 | S163: 0 | AE163: 0 | AF163: 0 | AG163: 5001 | AH163: MEDELLÍN | AI163: 5 | AJ163: 0 | AK163: Natural | AL163: 5 | AM163: ANTIOQUIA | AN163: Aprobado con subsidio | AO163: MICRO | AP163: 1512 | AQ163: INDUSTRIAS MANUFACTURERAS | AR163: C | AS163: Curtido y recurtido de cueros; fabricación de artículos de viaje, bolsos de mano y artículos similares, y fabricación de artículos de talabartería y guarnicionería; adobo y teñido de pieles | AT163: Curtido y recurtido de cueros; fabricación de calzado; fabricación de artículos de viaje, maletas, bolsos de mano y artículos similares, y fabricación de artículos de talabartería y guarnicionería; adobo y teñido de pieles | AU163: 3 | AV163: 2 | AW163: 0 | BI163: 68406 | BJ163: 2 | BK163: 13688 | BL163: 1
C164: 5001 | D164: MEDELLÍN | E164: 9 | F164: 8 | G164: Natural | H164: 5 | I164: ANTIOQUIA | J164: Aprobado con subsidio | K164: PEQUEÑA | L164: 8299 | M164: ACTIVIDADES DE SERVICIOS ADMINISTRATIVOS Y DE APOYO | N164: N | O164: Actividades de servicios de apoyo a las empresas n.c.p. | P164: Actividades de servicios de apoyo a las empresas n.c.p. | Q164: 9 | R164: 0 | S164: 0 | AE164: 0 | AF164: 0 | AG164: 5001 | AH164: MEDELLÍN | AI164: 7 | AJ164: 5 | AK164: Natural | AL164: 5 | AM164: ANTIOQUIA | AN164: Aprobado con subsidio | AO164: MICRO | AP164: 1089 | AQ164: INDUSTRIAS MANUFACTURERAS | AR164: C | AS164: Elaboración de otros productos alimenticios | AT164: Elaboración de productos alimenticios | AU164: 5 | AV164: 2 | AW164: 0 | BI164: 63594 | BJ164: 2 | BK164: 70708 | BL164: 1
C165: 5001 | D165: MEDELLÍN | E165: 4 | F165: 1 | G165: Natural | H165: 5 | I165: ANTIOQUIA | J165: Aprobado con subsidio | K165: MICRO | L165: 5612 | M165: ALOJAMIENTO Y SERVICIOS DE COMIDA | N165: I | O165: Actividades de restaurantes, cafeterías y servicio móvil de comidas | P165: Actividades de restaurantes, cafeterías y servicio móvil de comidas | Q165: 3 | R165: 1 | S165: 0 | AE165: 0 | AF165: 0 | AG165: 5001 | AH165: MEDELLÍN | AI165: 17 | AJ165: 4 | AK165: Natural | AL165: 5 | AM165: ANTIOQUIA | AN165: Aprobado con subsidio | AO165: PEQUEÑA | AP165: 3110 | AQ165: INDUSTRIAS MANUFACTURERAS | AR165: C | AS165: Fabricación de muebles | AT165: Fabricación de muebles, colchones y somieres | AU165: 8 | AV165: 9 | AW165: 0 | BI165: 23660 | BJ165: 1 | BK165: 5761 | BL165: 1
C166: 5001 | D166: MEDELLÍN | E166: 0 | F166: 12 | G166: Natural | H166: 5 | I166: ANTIOQUIA | J166: 0 | K166: 0 | L166: 9602 | M166: OTRAS ACTIVIDADES DE SERVICIOS | N166: S | O166: Otras actividades de servicios personales | P166: Otras actividades de servicios personales | Q166: 0 | R166: 0 | S166: 0 | AE166: 0 | AF166: 0 | AG166: 5001 | AH166: MEDELLÍN | AI166: 16 | AJ166: 64 | AK166: Natural | AL166: 5 | AM166: ANTIOQUIA | AN166: Aprobado con subsidio | AO166: PEQUEÑA | AP166: 3110 | AQ166: INDUSTRIAS MANUFACTURERAS | AR166: C | AS166: Fabricación de muebles | AT166: Fabricación de muebles, colchones y somieres | AU166: 11 | AV166: 5 | AW166: 0 | BI166: 17777 | BJ166: 1 | BK166: 94001 | BL166: 1
C167: 70001 | D167: SINCELEJO | E167: 19 | F167: 14 | G167: Natural | H167: 70 | I167: SUCRE | J167: Aprobado con subsidio | K167: PEQUEÑA | L167: 4711 | M167: COMERCIO AL POR MAYOR Y AL POR MENOR; REPARACIÓN DE VEHÍCULOS AUTOMOTORES Y MOTOCICLETAS | N167: G | O167: Comercio al por menor en establecimientos no especializados | P167: Comercio al por menor en establecimientos no especializados | Q167: 7 | R167: 12 | S167: 0 | AE167: 0 | AF167: 0 | AG167: 5001 | AH167: MEDELLÍN | AI167: 3 | AJ167: 0 | AK167: Natural | AL167: 5 | AM167: ANTIOQUIA | AN167: Aprobado con subsidio | AO167: MICRO | AP167: 1081 | AQ167: INDUSTRIAS MANUFACTURERAS | AR167: C | AS167: Elaboración de otros productos alimenticios | AT167: Elaboración de productos alimenticios | AU167: 3 | AV167: 0 | AW167: 0 | BI167: 25645 | BJ167: 1 | BK167: 25402 | BL167: 1
C168: 5001 | D168: MEDELLÍN | E168: 0 | F168: 0 | G168: Natural | H168: 5 | I168: ANTIOQUIA | J168: 0 | K168: 0 | L168: 4752 | M168: COMERCIO AL POR MAYOR Y AL POR MENOR; REPARACIÓN DE VEHÍCULOS AUTOMOTORES Y MOTOCICLETAS | N168: G | O168: Comercio al por menor de otros enseres domésticos en establecimientos especializados | P168: Comercio al por menor de otros enseres domésticos en establecimientos especializados | Q168: 0 | R168: 0 | S168: 0 | AE168: 0 | AF168: 0 | AG168: 5001 | AH168: MEDELLÍN | AI168: 4 | AJ168: 0 | AK168: Natural | AL168: 5 | AM168: ANTIOQUIA | AN168: Aprobado con subsidio | AO168: MICRO | AP168: 1081 | AQ168: INDUSTRIAS MANUFACTURERAS | AR168: C | AS168: Elaboración de otros productos alimenticios | AT168: Elaboración de productos alimenticios | AU168: 2 | AV168: 2 | AW168: 0 | BI168: 68229 | BJ168: 1 | BK168: 50606 | BL168: 1
C169: 25286 | D169: FUNZA | E169: 0 | F169: 0 | G169: Natural | H169: 25 | I169: CUNDINAMARCA | J169: 0 | K169: 0 | L169: 4774 | M169: COMERCIO AL POR MAYOR Y AL POR MENOR; REPARACIÓN DE VEHÍCULOS AUTOMOTORES Y MOTOCICLETAS | N169: G | O169: Comercio al por menor de otros productos en establecimientos especializados | P169: Comercio al por menor de otros productos en establecimientos especializados | Q169: 0 | R169: 0 | S169: 0 | AE169: 0 | AF169: 0 | AG169: 5001 | AH169: MEDELLÍN | AI169: 3 | AJ169: 0 | AK169: Natural | AL169: 5 | AM169: ANTIOQUIA | AN169: Aprobado con subsidio | AO169: MICRO | AP169: 1630 | AQ169: INDUSTRIAS MANUFACTURERAS | AR169: C | AS169: Fabricación de partes y piezas de madera, de carpintería y ebanistería para la construcción | AT169: Transformación de la madera y fabricación de productos de madera y de corcho, excepto muebles; fabricación de artículos de cestería y espartería | AU169: 1 | AV169: 2 | AW169: 0 | BI169: 68077 | BJ169: 1 | BK169: 15051 | BL169: 1
C170: 5001 | D170: MEDELLÍN | E170: 0 | F170: 6 | G170: Natural | H170: 5 | I170: ANTIOQUIA | J170: 0 | K170: 0 | L170: 4330 | M170: CONSTRUCCIÓN | N170: F | O170: Terminación y acabado de edificios y obras de ingeniería civil | P170: Terminación y acabado de edificios y obras de ingeniería civil | Q170: 0 | R170: 0 | S170: 0 | AE170: 0 | AF170: 0 | AG170: 11001 | AH170: BOGOTÁ, D.C. | AI170: 5 | AJ170: 0 | AK170: Natural | AL170: 11 | AM170: BOGOTÁ, D.C. | AN170: Aprobado con subsidio | AO170: MICRO | AP170: 3110 | AQ170: INDUSTRIAS MANUFACTURERAS | AR170: C | AS170: Fabricación de muebles | AT170: Fabricación de muebles, colchones y somieres | AU170: 0 | AV170: 5 | AW170: 0 | BI170: 73268 | BJ170: 5 | BK170: 17614 | BL170: 1
C171: 5001 | D171: MEDELLÍN | E171: 3 | F171: 1 | G171: Natural | H171: 5 | I171: ANTIOQUIA | J171: Aprobado con subsidio | K171: MICRO | L171: 4773 | M171: COMERCIO AL POR MAYOR Y AL POR MENOR; REPARACIÓN DE VEHÍCULOS AUTOMOTORES Y MOTOCICLETAS | N171: G | O171: Comercio al por menor de otros productos en establecimientos especializados | P171: Comercio al por menor de otros productos en establecimientos especializados | Q171: 2 | R171: 1 | S171: 0 | AE171: 0 | AF171: 0 | AG171: 41001 | AH171: NEIVA | AI171: 4 | AJ171: 0 | AK171: Natural | AL171: 41 | AM171: HUILA | AN171: Aprobado con subsidio | AO171: MICRO | AP171: 3312 | AQ171: INDUSTRIAS MANUFACTURERAS | AR171: C | AS171: Mantenimiento y reparación especializado de productos elaborados en metal y de maquinaria y equipo | AT171: Instalación, mantenimiento y reparación especializado de maquinaria y equipo | AU171: 0 | AV171: 4 | AW171: 0 | BI171: 5310 | BJ171: 0 | BK171: 86001 | BL171: 1
C172: 5001 | D172: MEDELLÍN | E172: 30 | F172: 15 | G172: Natural | H172: 5 | I172: ANTIOQUIA | J172: Aprobado con subsidio | K172: PEQUEÑA | L172: 5511 | M172: ALOJAMIENTO Y SERVICIOS DE COMIDA | N172: I | O172: Actividades de alojamiento de estancias cortas | P172: Actividades de alojamiento de estancias cortas | Q172: 26 | R172: 4 | S172: 0 | AE172: 0 | AF172: 0 | AG172: 76001 | AH172: CALI | AI172: 4 | AJ172: 2 | AK172: Natural | AL172: 76 | AM172: VALLE DEL CAUCA | AN172: Aprobado con subsidio | AO172: MICRO | AP172: 1081 | AQ172: INDUSTRIAS MANUFACTURERAS | AR172: C | AS172: Elaboración de otros productos alimenticios | AT172: Elaboración de productos alimenticios | AU172: 2 | AV172: 2 | AW172: 0 | BI172: 23182 | BJ172: 1 | BK172: 13052 | BL172: 1
C173: 23001 | D173: MONTERÍA | E173: 19 | F173: 7 | G173: Natural | H173: 23 | I173: CÓRDOBA | J173: Aprobado con subsidio | K173: PEQUEÑA | L173: 5612 | M173: ALOJAMIENTO Y SERVICIOS DE COMIDA | N173: I | O173: Actividades de restaurantes, cafeterías y servicio móvil de comidas | P173: Actividades de restaurantes, cafeterías y servicio móvil de comidas | Q173: 14 | R173: 5 | S173: 0 | AE173: 0 | AF173: 0 | AG173: 76001 | AH173: CALI | AI173: 3 | AJ173: 2 | AK173: Natural | AL173: 76 | AM173: VALLE DEL CAUCA | AN173: Aprobado con subsidio | AO173: MICRO | AP173: 1089 | AQ173: INDUSTRIAS MANUFACTURERAS | AR173: C | AS173: Elaboración de otros productos alimenticios | AT173: Elaboración de productos alimenticios | AU173: 0 | AV173: 3 | AW173: 0 | BI173: 23417 | BJ173: 1 | BK173: 5736 | BL173: 1
C174: 23001 | D174: MONTERÍA | E174: 7 | F174: 1 | G174: Natural | H174: 23 | I174: CÓRDOBA | J174: Aprobado con subsidio | K174: MICRO | L174: 9311 | M174: ACTIVIDADES ARTÍSTICAS, DE ENTRETENIMIENTO Y RECREACIÓN | N174: R | O174: Actividades deportivas | P174: Actividades deportivas | Q174: 3 | R174: 4 | S174: 0 | AE174: 0 | AF174: 0 | AG174: 76001 | AH174: CALI | AI174: 2 | AJ174: 1 | AK174: Natural | AL174: 76 | AM174: VALLE DEL CAUCA | AN174: Aprobado con subsidio | AO174: MICRO | AP174: 1081 | AQ174: INDUSTRIAS MANUFACTURERAS | AR174: C | AS174: Elaboración de otros productos alimenticios | AT174: Elaboración de productos alimenticios | AU174: 1 | AV174: 1 | AW174: 0 | BI174: 41298 | BJ174: 1 | BK174: 5642 | BL174: 1
C175: 13001 | D175: CARTAGENA | E175: 12 | F175: 0 | G175: Natural | H175: 13 | I175: BOLÍVAR | J175: Aprobado con subsidio | K175: PEQUEÑA | L175: 4723 | M175: COMERCIO AL POR MAYOR Y AL POR MENOR; REPARACIÓN DE VEHÍCULOS AUTOMOTORES Y MOTOCICLETAS | N175: G | O175: Comercio al por menor de alimentos (víveres en general), bebidas y tabaco, en establecimientos especializados | P175: Comercio al por menor de alimentos (víveres en general), bebidas y tabaco, en establecimientos especializados | Q175: 2 | R175: 10 | S175: 0 | AE175: 0 | AF175: 0 | AG175: 76001 | AH175: CALI | AI175: 3 | AJ175: 0 | AK175: Natural | AL175: 76 | AM175: VALLE DEL CAUCA | AN175: Aprobado con subsidio | AO175: MICRO | AP175: 1610 | AQ175: INDUSTRIAS MANUFACTURERAS | AR175: C | AS175: Aserrado, acepillado e impregnación de la madera | AT175: Transformación de la madera y fabricación de productos de madera y de corcho, excepto muebles; fabricación de artículos de cestería y espartería | AU175: 0 | AV175: 3 | AW175: 0 | BI175: 41797 | BJ175: 1 | BK175: 63401 | BL175: 1
C176: 5266 | D176: ENVIGADO | E176: 8 | F176: 2 | G176: Natural | H176: 5 | I176: ANTIOQUIA | J176: Aprobado con subsidio | K176: MICRO | L176: 4923 | M176: TRANSPORTE Y ALMACENAMIENTO | N176: H | O176: Transporte terrestre publico automotor | P176: Transporte terrestre publico automotor | Q176: 0 | R176: 8 | S176: 0 | AE176: 0 | AF176: 0 | AG176: 11001 | AH176: BOGOTÁ, D.C. | AI176: 19 | AJ176: 0 | AK176: Natural | AL176: 11 | AM176: BOGOTÁ, D.C. | AN176: Aprobado con subsidio | AO176: PEQUEÑA | AP176: 1410 | AQ176: INDUSTRIAS MANUFACTURERAS | AR176: C | AS176: Confección de prendas de vestir, excepto prendas de piel | AT176: Confección de prendas de vestir | AU176: 15 | AV176: 4 | AW176: 0 | BI176: 76275 | BJ176: 1 | BK176: 15806 | BL176: 1
C177: 5001 | D177: MEDELLÍN | E177: 1 | F177: 0 | G177: Natural | H177: 5 | I177: ANTIOQUIA | J177: Aprobado con subsidio | K177: MICRO | L177: 4771 | M177: COMERCIO AL POR MAYOR Y AL POR MENOR; REPARACIÓN DE VEHÍCULOS AUTOMOTORES Y MOTOCICLETAS | N177: G | O177: Comercio al por menor de otros productos en establecimientos especializados | P177: Comercio al por menor de otros productos en establecimientos especializados | Q177: 1 | R177: 0 | S177: 0 | AE177: 0 | AF177: 0 | AG177: 11001 | AH177: BOGOTÁ, D.C. | AI177: 7 | AJ177: 1 | AK177: Natural | AL177: 11 | AM177: BOGOTÁ, D.C. | AN177: Aprobado con subsidio | AO177: MICRO | AP177: 2591 | AQ177: INDUSTRIAS MANUFACTURERAS | AR177: C | AS177: Fabricación de otros productos elaborados de metal y actividades de servicios relacionadas con el trabajo de metales | AT177: Fabricación de productos elaborados de metal, excepto maquinaria y equipo | AU177: 1 | AV177: 6 | AW177: 0 | BI177: 19300 | BJ177: 1 | BK177: 41791 | BL177: 1
C178: 5001 | D178: MEDELLÍN | E178: 5 | F178: 3 | G178: Natural | H178: 5 | I178: ANTIOQUIA | J178: Aprobado con subsidio | K178: MICRO | L178: 5619 | M178: ALOJAMIENTO Y SERVICIOS DE COMIDA | N178: I | O178: Actividades de restaurantes, cafeterías y servicio móvil de comidas | P178: Actividades de restaurantes, cafeterías y servicio móvil de comidas | Q178: 3 | R178: 2 | S178: 0 | AE178: 0 | AF178: 0 | AG178: 25214 | AH178: COTA | AI178: 0 | AJ178: 0 | AK178: Natural | AL178: 25 | AM178: CUNDINAMARCA | AN178: 0 | AO178: 0 | AP178: 1081 | AQ178: INDUSTRIAS MANUFACTURERAS | AR178: C | AS178: Elaboración de otros productos alimenticios | AT178: Elaboración de productos alimenticios | AU178: 0 | AV178: 0 | AW178: 0 | BI178: 19845 | BJ178: 1 | BK178: 85162 | BL178: 1
C179: 5088 | D179: BELLO | E179: 4 | F179: 6 | G179: Natural | H179: 5 | I179: ANTIOQUIA | J179: Aprobado con subsidio | K179: MICRO | L179: 5613 | M179: ALOJAMIENTO Y SERVICIOS DE COMIDA | N179: I | O179: Actividades de restaurantes, cafeterías y servicio móvil de comidas | P179: Actividades de restaurantes, cafeterías y servicio móvil de comidas | Q179: 3 | R179: 1 | S179: 0 | AE179: 0 | AF179: 0 | AG179: 25899 | AH179: ZIPAQUIRÁ | AI179: 13 | AJ179: 2 | AK179: Natural | AL179: 25 | AM179: CUNDINAMARCA | AN179: Aprobado con subsidio | AO179: PEQUEÑA | AP179: 2392 | AQ179: INDUSTRIAS MANUFACTURERAS | AR179: C | AS179: Fabricación de productos minerales no metálicos n.c.p. | AT179: Fabricación de otros productos minerales no metálicos | AU179: 2 | AV179: 11 | AW179: 0 | BI179: 50318 | BJ179: 2 | BK179: 95001 | BL179: 1
C180: 17380 | D180: LA DORADA | E180: 2 | F180: 1 | G180: Natural | H180: 17 | I180: CALDAS | J180: Aprobado con subsidio | K180: MICRO | L180: 1610 | M180: INDUSTRIAS MANUFACTURERAS | N180: C | O180: Aserrado, acepillado e impregnación de la madera | P180: Transformación de la madera y fabricación de productos de madera y de corcho, excepto muebles; fabricación de artículos de cestería y espartería | Q180: 0 | R180: 2 | S180: 0 | AE180: 0 | AF180: 0 | AG180: 11001 | AH180: BOGOTÁ, D.C. | AI180: 0 | AJ180: 0 | AK180: Natural | AL180: 11 | AM180: BOGOTÁ, D.C. | AN180: 0 | AO180: 0 | AP180: 2219 | AQ180: INDUSTRIAS MANUFACTURERAS | AR180: C | AS180: Fabricación de productos de caucho | AT180: Fabricación de productos de caucho y de plástico | AU180: 0 | AV180: 0 | AW180: 0 | BI180: 44001 | BJ180: 6 | BK180: 5197 | BL180: 1
C181: 17380 | D181: LA DORADA | E181: 4 | F181: 0 | G181: Natural | H181: 17 | I181: CALDAS | J181: Aprobado con subsidio | K181: MICRO | L181: 4541 | M181: COMERCIO AL POR MAYOR Y AL POR MENOR; REPARACIÓN DE VEHÍCULOS AUTOMOTORES Y MOTOCICLETAS | N181: G | O181: Comercio, mantenimiento y reparación de motocicletas y de sus partes, piezas y accesorios | P181: Comercio, mantenimiento y reparación de motocicletas y de sus partes, piezas y accesorios | Q181: 1 | R181: 3 | S181: 0 | AE181: 0 | AF181: 0 | AG181: 8001 | AH181: BARRANQUILLA | AI181: 5 | AJ181: 4 | AK181: Natural | AL181: 8 | AM181: ATLÁNTICO | AN181: Aprobado con subsidio | AO181: MICRO | AP181: 1630 | AQ181: INDUSTRIAS MANUFACTURERAS | AR181: C | AS181: Fabricación de partes y piezas de madera, de carpintería y ebanistería para la construcción | AT181: Transformación de la madera y fabricación de productos de madera y de corcho, excepto muebles; fabricación de artículos de cestería y espartería | AU181: 3 | AV181: 2 | AW181: 0 | BI181: 15491 | BJ181: 3 | BK181: 5480 | BL181: 1
C182: 17380 | D182: LA DORADA | E182: 1 | F182: 0 | G182: Natural | H182: 17 | I182: CALDAS | J182: Aprobado con subsidio | K182: MICRO | L182: 4923 | M182: TRANSPORTE Y ALMACENAMIENTO | N182: H | O182: Transporte terrestre publico automotor | P182: Transporte terrestre publico automotor | Q182: 0 | R182: 1 | S182: 0 | AE182: 0 | AF182: 0 | AG182: 8296 | AH182: GALAPA | AI182: 18 | AJ182: 0 | AK182: Natural | AL182: 8 | AM182: ATLÁNTICO | AN182: Aprobado con subsidio | AO182: PEQUEÑA | AP182: 3290 | AQ182: INDUSTRIAS MANUFACTURERAS | AR182: C | AS182: Otras industrias manufactureras n.c.p. | AT182: Otras industrias manufactureras | AU182: 4 | AV182: 14 | AW182: 0 | BI182: 15693 | BJ182: 1 | BK182: 76400 | BL182: 1
C183: 5310 | D183: GÓMEZ PLATA | E183: 7 | F183: 2 | G183: Natural | H183: 5 | I183: ANTIOQUIA | J183: Aprobado con subsidio | K183: MICRO | L183: 4661 | M183: COMERCIO AL POR MAYOR Y AL POR MENOR; REPARACIÓN DE VEHÍCULOS AUTOMOTORES Y MOTOCICLETAS | N183: G | O183: Comercio al por mayor especializado de otros productos | P183: Comercio al por mayor especializado de otros productos | Q183: 5 | R183: 2 | S183: 0 | AE183: 0 | AF183: 0 | AG183: 11001 | AH183: BOGOTÁ, D.C. | AI183: 38 | AJ183: 12 | AK183: Natural | AL183: 11 | AM183: BOGOTÁ, D.C. | AN183: Aprobado con subsidio | AO183: PEQUEÑA | AP183: 1081 | AQ183: INDUSTRIAS MANUFACTURERAS | AR183: C | AS183: Elaboración de otros productos alimenticios | AT183: Elaboración de productos alimenticios | AU183: 20 | AV183: 18 | AW183: 0 | BI183: 25269 | BJ183: 6 | BK183: 17877 | BL183: 1
C184: 11001 | D184: BOGOTÁ, D.C. | E184: 2 | F184: 1 | G184: Natural | H184: 11 | I184: BOGOTÁ, D.C. | J184: Aprobado con subsidio | K184: MICRO | L184: 9601 | M184: OTRAS ACTIVIDADES DE SERVICIOS | N184: S | O184: Otras actividades de servicios personales | P184: Otras actividades de servicios personales | Q184: 2 | R184: 0 | S184: 0 | AE184: 0 | AF184: 0 | AG184: 76001 | AH184: CALI | AI184: 5 | AJ184: 2 | AK184: Natural | AL184: 76 | AM184: VALLE DEL CAUCA | AN184: Aprobado con subsidio | AO184: MICRO | AP184: 1081 | AQ184: INDUSTRIAS MANUFACTURERAS | AR184: C | AS184: Elaboración de otros productos alimenticios | AT184: Elaboración de productos alimenticios | AU184: 1 | AV184: 4 | AW184: 0 | BI184: 5585 | BJ184: 1 | BK184: 5541 | BL184: 1
C185: 11001 | D185: BOGOTÁ, D.C. | E185: 3 | F185: 2 | G185: Natural | H185: 11 | I185: BOGOTÁ, D.C. | J185: Aprobado con subsidio | K185: MICRO | L185: 4774 | M185: COMERCIO AL POR MAYOR Y AL POR MENOR; REPARACIÓN DE VEHÍCULOS AUTOMOTORES Y MOTOCICLETAS | N185: G | O185: Comercio al por menor de otros productos en establecimientos especializados | P185: Comercio al por menor de otros productos en establecimientos especializados | Q185: 3 | R185: 0 | S185: 0 | AE185: 0 | AF185: 0 | AG185: 76001 | AH185: CALI | AI185: 1 | AJ185: 10 | AK185: Natural | AL185: 76 | AM185: VALLE DEL CAUCA | AN185: Aprobado con subsidio | AO185: PEQUEÑA | AP185: 2229 | AQ185: INDUSTRIAS MANUFACTURERAS | AR185: C | AS185: Fabricación de productos de plástico | AT185: Fabricación de productos de caucho y de plástico | AU185: 0 | AV185: 1 | AW185: 0 | BI185: 25740 | BJ185: 3 | BK185: 5264 | BL185: 1
C186: 11001 | D186: BOGOTÁ, D.C. | E186: 2 | F186: 0 | G186: Natural | H186: 11 | I186: BOGOTÁ, D.C. | J186: Aprobado con subsidio | K186: MICRO | L186: 4774 | M186: COMERCIO AL POR MAYOR Y AL POR MENOR; REPARACIÓN DE VEHÍCULOS AUTOMOTORES Y MOTOCICLETAS | N186: G | O186: Comercio al por menor de otros productos en establecimientos especializados | P186: Comercio al por menor de otros productos en establecimientos especializados | Q186: 2 | R186: 0 | S186: 0 | AE186: 0 | AF186: 0 | AG186: 76001 | AH186: CALI | AI186: 4 | AJ186: 1 | AK186: Natural | AL186: 76 | AM186: VALLE DEL CAUCA | AN186: Aprobado con subsidio | AO186: MICRO | AP186: 2221 | AQ186: INDUSTRIAS MANUFACTURERAS | AR186: C | AS186: Fabricación de productos de plástico | AT186: Fabricación de productos de caucho y de plástico | AU186: 0 | AV186: 4 | AW186: 0 | BI186: 25260 | BJ186: 2 | BK186: 5837 | BL186: 1
C187: 19001 | D187: POPAYÁN | E187: 3 | F187: 1 | G187: Natural | H187: 19 | I187: CAUCA | J187: Aprobado con subsidio | K187: MICRO | L187: 4651 | M187: COMERCIO AL POR MAYOR Y AL POR MENOR; REPARACIÓN DE VEHÍCULOS AUTOMOTORES Y MOTOCICLETAS | N187: G | O187: Comercio al por mayor de maquinaria y equipo | P187: Comercio al por mayor de maquinaria y equipo | Q187: 1 | R187: 2 | S187: 0 | AE187: 0 | AF187: 0 | AG187: 76001 | AH187: CALI | AI187: 5 | AJ187: 0 | AK187: Natural | AL187: 76 | AM187: VALLE DEL CAUCA | AN187: Aprobado con subsidio | AO187: MICRO | AP187: 1089 | AQ187: INDUSTRIAS MANUFACTURERAS | AR187: C | AS187: Elaboración de otros productos alimenticios | AT187: Elaboración de productos alimenticios | AU187: 0 | AV187: 5 | AW187: 0 | BI187: 85139 | BJ187: 2 | BK187: 19807 | BL187: 1
C188: 68001 | D188: BUCARAMANGA | E188: 2 | F188: 5 | G188: Natural | H188: 68 | I188: SANTANDER | J188: Aprobado con subsidio | K188: MICRO | L188: 8511 | M188: EDUCACIÓN | N188: P | O188: Educación de la primera infancia, preescolar y básica primaria | P188: Educación de la primera infancia, preescolar y básica primaria | Q188: 2 | R188: 0 | S188: 0 | AE188: 0 | AF188: 0 | AG188: 76001 | AH188: CALI | AI188: 3 | AJ188: 0 | AK188: Natural | AL188: 76 | AM188: VALLE DEL CAUCA | AN188: Aprobado con subsidio | AO188: MICRO | AP188: 1081 | AQ188: INDUSTRIAS MANUFACTURERAS | AR188: C | AS188: Elaboración de otros productos alimenticios | AT188: Elaboración de productos alimenticios | AU188: 2 | AV188: 1 | AW188: 0 | BI188: 8078 | BJ188: 1 | BK188: 18460 | BL188: 1
C189: 52001 | D189: PASTO | E189: 15 | F189: 0 | G189: Natural | H189: 52 | I189: NARIÑO | J189: Aprobado con subsidio | K189: PEQUEÑA | L189: 5611 | M189: ALOJAMIENTO Y SERVICIOS DE COMIDA | N189: I | O189: Actividades de restaurantes, cafeterías y servicio móvil de comidas | P189: Actividades de restaurantes, cafeterías y servicio móvil de comidas | Q189: 8 | R189: 7 | S189: 0 | AE189: 0 | AF189: 0 | AG189: 76001 | AH189: CALI | AI189: 14 | AJ189: 7 | AK189: Natural | AL189: 76 | AM189: VALLE DEL CAUCA | AN189: Aprobado con subsidio | AO189: PEQUEÑA | AP189: 1081 | AQ189: INDUSTRIAS MANUFACTURERAS | AR189: C | AS189: Elaboración de otros productos alimenticios | AT189: Elaboración de productos alimenticios | AU189: 9 | AV189: 5 | AW189: 0 | BI189: 25288 | BJ189: 0 | BK189: 25612 | BL189: 1
C190: 41551 | D190: PITALITO | E190: 9 | F190: 2 | G190: Natural | H190: 41 | I190: HUILA | J190: Aprobado con subsidio | K190: MICRO | L190: 4719 | M190: COMERCIO AL POR MAYOR Y AL POR MENOR; REPARACIÓN DE VEHÍCULOS AUTOMOTORES Y MOTOCICLETAS | N190: G | O190: Comercio al por menor en establecimientos no especializados | P190: Comercio al por menor en establecimientos no especializados | Q190: 4 | R190: 5 | S190: 0 | AE190: 0 | AF190: 0 | AG190: 76001 | AH190: CALI | AI190: 6 | AJ190: 0 | AK190: Natural | AL190: 76 | AM190: VALLE DEL CAUCA | AN190: Aprobado con subsidio | AO190: MICRO | AP190: 2023 | AQ190: INDUSTRIAS MANUFACTURERAS | AR190: C | AS190: Fabricación de otros productos químicos | AT190: Fabricación de sustancias y productos químicos | AU190: 2 | AV190: 4 | AW190: 0 | BI190: 25126 | BJ190: 12 | BK190: 25769 | BL190: 1
C191: 11001 | D191: BOGOTÁ, D.C. | E191: 7 | F191: 0 | G191: Natural | H191: 11 | I191: BOGOTÁ, D.C. | J191: Aprobado con subsidio | K191: MICRO | L191: 5511 | M191: ALOJAMIENTO Y SERVICIOS DE COMIDA | N191: I | O191: Actividades de alojamiento de estancias cortas | P191: Actividades de alojamiento de estancias cortas | Q191: 2 | R191: 5 | S191: 0 | AE191: 0 | AF191: 0 | AG191: 76001 | AH191: CALI | AI191: 8 | AJ191: 2 | AK191: Natural | AL191: 76 | AM191: VALLE DEL CAUCA | AN191: Aprobado con subsidio | AO191: MICRO | AP191: 1081 | AQ191: INDUSTRIAS MANUFACTURERAS | AR191: C | AS191: Elaboración de otros productos alimenticios | AT191: Elaboración de productos alimenticios | AU191: 7 | AV191: 1 | AW191: 0 | BI191: 99001 | BJ191: 1 | BK191: 23660 | BL191: 1
C192: 11001 | D192: BOGOTÁ, D.C. | E192: 3 | F192: 1 | G192: Natural | H192: 11 | I192: BOGOTÁ, D.C. | J192: Aprobado con subsidio | K192: MICRO | L192: 9601 | M192: OTRAS ACTIVIDADES DE SERVICIOS | N192: S | O192: Otras actividades de servicios personales | P192: Otras actividades de servicios personales | Q192: 3 | R192: 0 | S192: 0 | AE192: 0 | AF192: 0 | AG192: 76001 | AH192: CALI | AI192: 3 | AJ192: 0 | AK192: Natural | AL192: 76 | AM192: VALLE DEL CAUCA | AN192: Aprobado con subsidio | AO192: MICRO | AP192: 1051 | AQ192: INDUSTRIAS MANUFACTURERAS | AR192: C | AS192: Elaboración de productos de molinería, almidones y productos derivados del almidón | AT192: Elaboración de productos alimenticios | AU192: 2 | AV192: 1 | AW192: 0 | BI192: 54003 | BJ192: 1 | BK192: 17777 | BL192: 1
C193: 50573 | D193: PUERTO LÓPEZ | E193: 13 | F193: 15 | G193: Natural | H193: 50 | I193: META | J193: Aprobado con subsidio | K193: PEQUEÑA | L193: 4631 | M193: COMERCIO AL POR MAYOR Y AL POR MENOR; REPARACIÓN DE VEHÍCULOS AUTOMOTORES Y MOTOCICLETAS | N193: G | O193: Comercio al por mayor de alimentos, bebidas y tabaco | P193: Comercio al por mayor de alimentos, bebidas y tabaco | Q193: 9 | R193: 4 | S193: 0 | AE193: 0 | AF193: 0 | AG193: 11001 | AH193: BOGOTÁ, D.C. | AI193: 4 | AJ193: 1 | AK193: Natural | AL193: 11 | AM193: BOGOTÁ, D.C. | AN193: Aprobado con subsidio | AO193: MICRO | AP193: 3312 | AQ193: INDUSTRIAS MANUFACTURERAS | AR193: C | AS193: Mantenimiento y reparación especializado de productos elaborados en metal y de maquinaria y equipo | AT193: Instalación, mantenimiento y reparación especializado de maquinaria y equipo | AU193: 0 | AV193: 4 | AW193: 0 | BI193: 63690 | BJ193: 1 | BK193: 25645 | BL193: 1
C194: 52001 | D194: PASTO | E194: 4 | F194: 4 | G194: Natural | H194: 52 | I194: NARIÑO | J194: Aprobado con subsidio | K194: MICRO | L194: 5611 | M194: ALOJAMIENTO Y SERVICIOS DE COMIDA | N194: I | O194: Actividades de restaurantes, cafeterías y servicio móvil de comidas | P194: Actividades de restaurantes, cafeterías y servicio móvil de comidas | Q194: 4 | R194: 0 | S194: 0 | AE194: 0 | AF194: 0 | AG194: 11001 | AH194: BOGOTÁ, D.C. | AI194: 3 | AJ194: 1 | AK194: Natural | AL194: 11 | AM194: BOGOTÁ, D.C. | AN194: Aprobado con subsidio | AO194: MICRO | AP194: 1399 | AQ194: INDUSTRIAS MANUFACTURERAS | AR194: C | AS194: Fabricación de otros productos textiles | AT194: Fabricación de productos textiles | AU194: 2 | AV194: 1 | AW194: 0 | BI194: 52788 | BJ194: =COUNTIFS($AN$2:$AN$399999,"Aprobado con subsidio",$AG$2:$AG$399999,BI194) -> 1 | BK194: 68229 | BL194: 1
C195: 5045 | D195: APARTADÓ | E195: 22 | F195: 6 | G195: Natural | H195: 5 | I195: ANTIOQUIA | J195: Aprobado con subsidio | K195: PEQUEÑA | L195: 4752 | M195: COMERCIO AL POR MAYOR Y AL POR MENOR; REPARACIÓN DE VEHÍCULOS AUTOMOTORES Y MOTOCICLETAS | N195: G | O195: Comercio al por menor de otros enseres domésticos en establecimientos especializados | P195: Comercio al por menor de otros enseres domésticos en establecimientos especializados | Q195: 6 | R195: 16 | S195: 0 | AE195: 0 | AF195: 0 | AG195: 5001 | AH195: MEDELLÍN | AI195: 6 | AJ195: 2 | AK195: Natural | AL195: 5 | AM195: ANTIOQUIA | AN195: Aprobado con subsidio | AO195: MICRO | AP195: 1811 | AQ195: INDUSTRIAS MANUFACTURERAS | AR195: C | AS195: Actividades de impresión y actividades de servicios relacionados con la impresión | AT195: Actividades de impresión y de producción de copias a partir de grabaciones originales | AU195: 0 | AV195: 6 | AW195: 0 | BI195: 73168 | BJ195: 1 | BK195: 68077 | BL195: 1
C196: 17380 | D196: LA DORADA | E196: 3 | F196: 1 | G196: Natural | H196: 17 | I196: CALDAS | J196: Aprobado con subsidio | K196: MICRO | L196: 8699 | M196: ACTIVIDADES DE ATENCIÓN DE LA SALUD HUMANA Y DE ASISTENCIA SOCIAL | N196: Q | O196: Otras actividades de atención relacionadas con la salud humana | P196: Otras actividades de atención relacionadas con la salud humana | Q196: 2 | R196: 1 | S196: 0 | AE196: 0 | AF196: 0 | AG196: 5266 | AH196: ENVIGADO | AI196: 3 | AJ196: 2 | AK196: Natural | AL196: 5 | AM196: ANTIOQUIA | AN196: Aprobado con subsidio | AO196: MICRO | AP196: 1081 | AQ196: INDUSTRIAS MANUFACTURERAS | AR196: C | AS196: Elaboración de otros productos alimenticios | AT196: Elaboración de productos alimenticios | AU196: 3 | AV196: 0 | AW196: 0 | BI196: 13836 | BJ196: 7 | BK196: 23182 | BL196: 1
C197: 11001 | D197: BOGOTÁ, D.C. | E197: 5 | F197: 0 | G197: Natural | H197: 11 | I197: BOGOTÁ, D.C. | J197: Aprobado con subsidio | K197: MICRO | L197: 4520 | M197: COMERCIO AL POR MAYOR Y AL POR MENOR; REPARACIÓN DE VEHÍCULOS AUTOMOTORES Y MOTOCICLETAS | N197: G | O197: Mantenimiento y reparación de vehículos automotores | P197: Mantenimiento y reparación de vehículos automotores | Q197: 0 | R197: 5 | S197: 0 | AE197: 0 | AF197: 0 | AG197: 5001 | AH197: MEDELLÍN | AI197: 3 | AJ197: 1 | AK197: Natural | AL197: 5 | AM197: ANTIOQUIA | AN197: Aprobado con subsidio | AO197: MICRO | AP197: 1081 | AQ197: INDUSTRIAS MANUFACTURERAS | AR197: C | AS197: Elaboración de otros productos alimenticios | AT197: Elaboración de productos alimenticios | AU197: 2 | AV197: 1 | AW197: 0 | BI197: 68872 | BJ197: 1 | BK197: 23417 | BL197: 1
C198: 19517 | D198: PAEZ | E198: 4 | F198: 5 | G198: Natural | H198: 19 | I198: CAUCA | J198: Aprobado con subsidio | K198: MICRO | L198: 8899 | M198: ACTIVIDADES DE ATENCIÓN DE LA SALUD HUMANA Y DE ASISTENCIA SOCIAL | N198: Q | O198: Otras actividades de asistencia social sin alojamiento | P198: Otras actividades de asistencia social sin alojamiento | Q198: 2 | R198: 2 | S198: 0 | AE198: 0 | AF198: 0 | AG198: 5001 | AH198: MEDELLÍN | AI198: 10 | AJ198: 3 | AK198: Natural | AL198: 5 | AM198: ANTIOQUIA | AN198: Aprobado con subsidio | AO198: MICRO | AP198: 1410 | AQ198: INDUSTRIAS MANUFACTURERAS | AR198: C | AS198: Confección de prendas de vestir, excepto prendas de piel | AT198: Confección de prendas de vestir | AU198: 5 | AV198: 5 | AW198: 0 | BI198: 81001 | BJ198: 2 | BK198: 41298 | BL198: 1
C199: 85001 | D199: YOPAL | E199: 0 | F199: 0 | G199: Natural | H199: 85 | I199: CASANARE | J199: 0 | K199: 0 | L199: 7810 | M199: ACTIVIDADES DE SERVICIOS ADMINISTRATIVOS Y DE APOYO | N199: N | O199: Actividades de agencias de empleo | P199: Actividades de agencias de empleo | Q199: 0 | R199: 0 | S199: 0 | AE199: 0 | AF199: 0 | AG199: 5001 | AH199: MEDELLÍN | AI199: 4 | AJ199: 0 | AK199: Natural | AL199: 5 | AM199: ANTIOQUIA | AN199: Aprobado con subsidio | AO199: MICRO | AP199: 1089 | AQ199: INDUSTRIAS MANUFACTURERAS | AR199: C | AS199: Elaboración de otros productos alimenticios | AT199: Elaboración de productos alimenticios | AU199: 2 | AV199: 2 | AW199: 0 | BI199: 5756 | BJ199: 1 | BK199: 41797 | BL199: 1
C200: 11001 | D200: BOGOTÁ, D.C. | E200: 12 | F200: 5 | G200: Natural | H200: 11 | I200: BOGOTÁ, D.C. | J200: Aprobado con subsidio | K200: PEQUEÑA | L200: 4719 | M200: COMERCIO AL POR MAYOR Y AL POR MENOR; REPARACIÓN DE VEHÍCULOS AUTOMOTORES Y MOTOCICLETAS | N200: G | O200: Comercio al por menor en establecimientos no especializados | P200: Comercio al por menor en establecimientos no especializados | Q200: 8 | R200: 4 | S200: 0 | AE200: 0 | AF200: 0 | AG200: 5001 | AH200: MEDELLÍN | AI200: 3 | AJ200: 0 | AK200: Natural | AL200: 5 | AM200: ANTIOQUIA | AN200: Aprobado con subsidio | AO200: MICRO | AP200: 1051 | AQ200: INDUSTRIAS MANUFACTURERAS | AR200: C | AS200: Elaboración de productos de molinería, almidones y productos derivados del almidón | AT200: Elaboración de productos alimenticios | AU200: 2 | AV200: 1 | AW200: 0 | BI200: 25851 | BJ200: 1 | BK200: 76275 | BL200: 1
... 2050 more rows

Sheet Hoja4 (hidden)
A1: Descripción Sección Rev. 4 | B1: Sección Rev. 4 | C1: Nombre | D1: Seccion | E1: Total | G1: Nombre | H1: Seccion | I1: Total empleadores | J1: Empleadores % | K1: Total empleados | L1: Empleados % | M1: Monto | N1: Hombres | O1: Mujeres | P1: no disponible | Q1: Actividad | R1: Indice | T1: cod_dpto | U1: Departamento | V1: % empleadores general | W1: ="% empleadores sección "&Visor!$N$4 -> % empleadores sección C
A2: AGRICULTURA, GANADERÍA, CAZA, SILVICULTURA Y PESCA | B2: A | C2: Agricultura, ganadería, caza, silvicultura y pesca | D2: =B2 -> A | E2: =COUNTIFS(insumos2!$N$2:$N$399999,Hoja4!D2,insumos2!$J$2:$J$399999,"Aprobado con subsidio") -> 1086 | G2: =MID(VLOOKUP(H2,$B$2:$C$23,2,FALSE),1,36) -> Comercio al por mayor y al por menor | H2: =_xlfn._xlws.SORT($D$2:$E$23,2,-1) -> G | I2: 11263 | J2: =I2/$I$24 -> 0.2253095681 | K2: =SUMIFS(insumos2!$E$2:$E$399999,insumos2!$J$2:$J$399999,"Aprobado con subsidio",insumos2!$N$2:$N$399999,Hoja4!H2) -> 90410 | L2: =K2/$K$24 -> 0.1941945683 | M2: =SUMIFS(insumos1!$K$2:$K$372158,insumos1!$H$2:$H$372158,Hoja4!H2) -> 136987224000 | N2: =SUMIFS(insumos2!$R$2:$R$399999,insumos2!$J$2:$J$399999,"Aprobado con subsidio",insumos2!$N$2:$N$399999,Hoja4!H2) -> 50145 | O2: =SUMIFS(insumos2!$Q$2:$Q$399999,insumos2!$J$2:$J$399999,"Aprobado con subsidio",insumos2!$N$2:$N$399999,Hoja4!H2) -> 40265 | P2: =SUMIFS(insumos2!$S$2:$S$399999,insumos2!$J$2:$J$399999,"Aprobado con subsidio",insumos2!$N$2:$N$399999,Hoja4!H2) -> 0 | Q2: =G2 -> Comercio al por mayor y al por menor | R2: =O2/N2*100 -> 80.2971383 | T2: 11 | U2: BOGOTÁ, D.C. | V2: =(VLOOKUP(T2,_xlfn.ANCHORARRAY(insumos2!$W$2),2,0)/SUM(insumos2!$X$2:$X$34)) -> 0.3619196223 | W2: =VLOOKUP(T2,insumos2!$AY$2:$AZ$34,2,FALSE)/insumos2!$BF$30 -> 0.3773635153 | Z2: =_xlfn.UNIQUE(insumos1!F2:F5000) -> COMERCIO AL POR MAYOR Y AL POR MENOR; REPARACIÓN DE VEHÍCULOS AUTOMOTORES Y MOTOCICLETAS | AA2: =_xlfn.UNIQUE(insumos1!H2:H5000) -> G | AD2: =_xlfn._xlws.SORT(Z2:AA22,2,1) -> AGRICULTURA, GANADERÍA, CAZA, SILVICULTURA Y PESCA | AE2: A | AF2: =IFERROR(VLOOKUP(AE2,$B$2:$C$23,2,0),"") -> Agricultura, ganadería, caza, silvicultura y pesca
A3: EXPLOTACIÓN DE MINAS Y CANTERAS | B3: B | C3: Explotación de minas y canteras | D3: =B3 -> B | E3: =COUNTIFS(insumos2!$N$2:$N$399999,Hoja4!D3,insumos2!$J$2:$J$399999,"Aprobado con subsidio") -> 198 | G3: =MID(VLOOKUP(H3,$B$2:$C$23,2,FALSE),1,30) -> Industrias manufactureras | H3: C | I3: 7510 | J3: 0.1502330513 | K3: =SUMIFS(insumos2!$E$2:$E$399999,insumos2!$J$2:$J$399999,"Aprobado con subsidio",insumos2!$N$2:$N$399999,Hoja4!H3) -> 79745 | L3: =K3/$K$24 -> 0.1712868693 | M3: =SUMIFS(insumos1!$K$2:$K$372158,insumos1!$H$2:$H$372158,Hoja4!H3) -> 117957073000 | N3: =SUMIFS(insumos2!$R$2:$R$399999,insumos2!$J$2:$J$399999,"Aprobado con subsidio",insumos2!$N$2:$N$399999,Hoja4!H3) -> 47885 | O3: =SUMIFS(insumos2!$Q$2:$Q$399999,insumos2!$J$2:$J$399999,"Aprobado con subsidio",insumos2!$N$2:$N$399999,Hoja4!H3) -> 31860 | P3: =SUMIFS(insumos2!$S$2:$S$399999,insumos2!$J$2:$J$399999,"Aprobado con subsidio",insumos2!$N$2:$N$399999,Hoja4!H3) -> 0 | Q3: =G3 -> Industrias manufactureras | R3: 66.53440535 | T3: 5 | U3: ANTIOQUIA | V3: =(VLOOKUP(T3,_xlfn.ANCHORARRAY(insumos2!$W$2),2,0)/SUM(insumos2!$X$2:$X$34)) -> 0.1918822141 | W3: =VLOOKUP(T3,insumos2!$AY$2:$AZ$34,2,FALSE)/insumos2!$BF$30 -> 0.2312916112 | Z3: EDUCACIÓN | AA3: P | AD3: EXPLOTACIÓN DE MINAS Y CANTERAS | AE3: B | AF3: =IFERROR(VLOOKUP(AE3,$B$2:$C$23,2,0),"") -> Explotación de minas y canteras
A4: INDUSTRIAS MANUFACTURERAS | B4: C | C4: Industrias manufactureras | D4: C | E4: =COUNTIFS(insumos2!$N$2:$N$399999,Hoja4!D4,insumos2!$J$2:$J$399999,"Aprobado con subsidio") -> 7510 | G4: =MID(VLOOKUP(H4,$B$2:$C$23,2,FALSE),1,85) -> Actividades profesionales, científicas y técnicas | H4: M | I4: 5624 | J4: 0.112504751 | K4: =SUMIFS(insumos2!$E$2:$E$399999,insumos2!$J$2:$J$399999,"Aprobado con subsidio",insumos2!$N$2:$N$399999,Hoja4!H4) -> 40596 | L4: 0.08719746372 | M4: =SUMIFS(insumos1!$K$2:$K$372158,insumos1!$H$2:$H$372158,Hoja4!H4) -> 59082162000 | N4: =SUMIFS(insumos2!$R$2:$R$399999,insumos2!$J$2:$J$399999,"Aprobado con subsidio",insumos2!$N$2:$N$399999,Hoja4!H4) -> 20986 | O4: =SUMIFS(insumos2!$Q$2:$Q$399999,insumos2!$J$2:$J$399999,"Aprobado con subsidio",insumos2!$N$2:$N$399999,Hoja4!H4) -> 19610 | P4: =SUMIFS(insumos2!$S$2:$S$399999,insumos2!$J$2:$J$399999,"Aprobado con subsidio",insumos2!$N$2:$N$399999,Hoja4!H4) -> 0 | Q4: Actividades profesionales, científicas y técnicas | R4: 93.44324788 | T4: 76 | U4: VALLE DEL CAUCA | V4: =(VLOOKUP(T4,_xlfn.ANCHORARRAY(insumos2!$W$2),2,0)/SUM(insumos2!$X$2:$X$34)) -> 0.1056432415 | W4: =VLOOKUP(T4,insumos2!$AY$2:$AZ$34,2,FALSE)/insumos2!$BF$30 -> 0.1133155792 | Z4: ALOJAMIENTO Y SERVICIOS DE COMIDA | AA4: I | AD4: INDUSTRIAS MANUFACTURERAS | AE4: C | AF4: Industrias manufactureras
A5: SUMINISTRO DE ELECTRICIDAD, GAS, VAPOR Y AIRE ACONDICIONADO | B5: D | C5: Suministro de electricidad, gas, vapor y aire acondicionado | D5: D | E5: =COUNTIFS(insumos2!$N$2:$N$399999,Hoja4!D5,insumos2!$J$2:$J$399999,"Aprobado con subsidio") -> 45 | G5: =MID(VLOOKUP(H5,$B$2:$C$23,2,FALSE),1,30) -> Construcción | H5: F | I5: 4641 | J5: 0.09284042489 | K5: =SUMIFS(insumos2!$E$2:$E$399999,insumos2!$J$2:$J$399999,"Aprobado con subsidio",insumos2!$N$2:$N$399999,Hoja4!H5) -> 51417 | L5: 0.1104402402 | M5: =SUMIFS(insumos1!$K$2:$K$372158,insumos1!$H$2:$H$372158,Hoja4!H5) -> 67828330000 | N5: =SUMIFS(insumos2!$R$2:$R$399999,insumos2!$J$2:$J$399999,"Aprobado con subsidio",insumos2!$N$2:$N$399999,Hoja4!H5) -> 39189 | O5: =SUMIFS(insumos2!$Q$2:$Q$399999,insumos2!$J$2:$J$399999,"Aprobado con subsidio",insumos2!$N$2:$N$399999,Hoja4!H5) -> 12228 | P5: =SUMIFS(insumos2!$S$2:$S$399999,insumos2!$J$2:$J$399999,"Aprobado con subsidio",insumos2!$N$2:$N$399999,Hoja4!H5) -> 0 | Q5: Construcción | R5: 31.20263339 | T5: 8 | U5: ATLÁNTICO | V5: =(VLOOKUP(T5,_xlfn.ANCHORARRAY(insumos2!$W$2),2,0)/SUM(insumos2!$X$2:$X$34)) -> 0.04444977895 | W5: =VLOOKUP(T5,insumos2!$AY$2:$AZ$34,2,FALSE)/insumos2!$BF$30 -> 0.03754993342 | Z5: ACTIVIDADES DE SERVICIOS ADMINISTRATIVOS Y DE APOYO | AA5: N | AD5: SUMINISTRO DE ELECTRICIDAD, GAS, VAPOR Y AIRE ACONDICIONADO | AE5: D | AF5: Suministro de electricidad, gas, vapor y aire acondicionado
A6: DISTRIBUCIÓN DE AGUA; EVACUACIÓN Y TRATAMIENTO DE AGUAS RESIDUALES, GESTIÓN DE DESECHOS Y ACTIVIDADES DE SANEAMIENTO AMBIENTAL | B6: E | C6: Distribución de agua; evacuación y tratamiento de aguas residuales, gestión de desechos y actividades de saneamiento ambiental | D6: E | E6: =COUNTIFS(insumos2!$N$2:$N$399999,Hoja4!D6,insumos2!$J$2:$J$399999,"Aprobado con subsidio") -> 210 | G6: =MID(VLOOKUP(H6,$B$2:$C$23,2,FALSE),1,35) -> Actividades de atención de la salud | H6: Q | I6: 4349 | J6: 0.08699913981 | K6: =SUMIFS(insumos2!$E$2:$E$399999,insumos2!$J$2:$J$399999,"Aprobado con subsidio",insumos2!$N$2:$N$399999,Hoja4!H6) -> 40800 | L6: 0.08763564193 | M6: =SUMIFS(insumos1!$K$2:$K$372158,insumos1!$H$2:$H$372158,Hoja4!H6) -> 55683899000 | N6: =SUMIFS(insumos2!$R$2:$R$399999,insumos2!$J$2:$J$399999,"Aprobado con subsidio",insumos2!$N$2:$N$399999,Hoja4!H6) -> 17846 | O6: =SUMIFS(insumos2!$Q$2:$Q$399999,insumos2!$J$2:$J$399999,"Aprobado con subsidio",insumos2!$N$2:$N$399999,Hoja4!H6) -> 22954 | P6: =SUMIFS(insumos2!$S$2:$S$399999,insumos2!$J$2:$J$399999,"Aprobado con subsidio",insumos2!$N$2:$N$399999,Hoja4!H6) -> 0 | Q6: Actividades de atención de la salud | R6: 128.6226605 | T6: 25 | U6: CUNDINAMARCA | V6: =(VLOOKUP(T6,_xlfn.ANCHORARRAY(insumos2!$W$2),2,0)/SUM(insumos2!$X$2:$X$34)) -> 0.03792834424 | W6: =VLOOKUP(T6,insumos2!$AY$2:$AZ$34,2,FALSE)/insumos2!$BF$30 -> 0.03901464714 | Z6: ACTIVIDADES DE ATENCIÓN DE LA SALUD HUMANA Y DE ASISTENCIA SOCIAL | AA6: Q | AD6: DISTRIBUCIÓN DE AGUA; EVACUACIÓN Y TRATAMIENTO DE AGUAS RESIDUALES, GESTIÓN DE DESECHOS Y ACTIVIDADES DE SANEAMIENTO AMBIENTAL | AE6: E | AF6: Distribución de agua; evacuación y tratamiento de aguas residuales, gestión de desechos y actividades de saneamiento ambiental
A7: CONSTRUCCIÓN | B7: F | C7: Construcción | D7: F | E7: =COUNTIFS(insumos2!$N$2:$N$399999,Hoja4!D7,insumos2!$J$2:$J$399999,"Aprobado con subsidio") -> 4641 | G7: =MID(VLOOKUP(H7,$B$2:$C$23,2,FALSE),1,30) -> Alojamiento y servicios de com | H7: I | I7: 2788 | J7: 0.0557722699 | K7: =SUMIFS(insumos2!$E$2:$E$399999,insumos2!$J$2:$J$399999,"Aprobado con subsidio",insumos2!$N$2:$N$399999,Hoja4!H7) -> 26287 | L7: 0.05646269901 | M7: =SUMIFS(insumos1!$K$2:$K$372158,insumos1!$H$2:$H$372158,Hoja4!H7) -> 48020388000 | N7: =SUMIFS(insumos2!$R$2:$R$399999,insumos2!$J$2:$J$399999,"Aprobado con subsidio",insumos2!$N$2:$N$399999,Hoja4!H7) -> 10864 | O7: =SUMIFS(insumos2!$Q$2:$Q$399999,insumos2!$J$2:$J$399999,"Aprobado con subsidio",insumos2!$N$2:$N$399999,Hoja4!H7) -> 15423 | P7: =SUMIFS(insumos2!$S$2:$S$399999,insumos2!$J$2:$J$399999,"Aprobado con subsidio",insumos2!$N$2:$N$399999,Hoja4!H7) -> 0 | Q7: Alojamiento y servicios de com | R7: 141.9642857 | T7: 68 | U7: SANTANDER | V7: =(VLOOKUP(T7,_xlfn.ANCHORARRAY(insumos2!$W$2),2,0)/SUM(insumos2!$X$2:$X$34)) -> 0.04250935206 | W7: =VLOOKUP(T7,insumos2!$AY$2:$AZ$34,2,FALSE)/insumos2!$BF$30 -> 0.05019973369 | Z7: TRANSPORTE Y ALMACENAMIENTO | AA7: H | AD7: CONSTRUCCIÓN | AE7: F | AF7: Construcción
A8: COMERCIO AL POR MAYOR Y AL POR MENOR; REPARACIÓN DE VEHÍCULOS AUTOMOTORES Y MOTOCICLETAS | B8: G | C8: Comercio al por mayor y al por menor; reparación de vehículos automotores y motocicletas | D8: G | E8: =COUNTIFS(insumos2!$N$2:$N$399999,Hoja4!D8,insumos2!$J$2:$J$399999,"Aprobado con subsidio") -> 11263 | G8: =MID(VLOOKUP(H8,$B$2:$C$23,2,FALSE),1,40) -> Actividades de servicios administrativos | H8: N | I8: 2317 | J8: 0.04635019704 | K8: =SUMIFS(insumos2!$E$2:$E$399999,insumos2!$J$2:$J$399999,"Aprobado con subsidio",insumos2!$N$2:$N$399999,Hoja4!H8) -> 23378 | L8: 0.05021436365 | M8: =SUMIFS(insumos1!$K$2:$K$372158,insumos1!$H$2:$H$372158,Hoja4!H8) -> 38879349000 | N8: =SUMIFS(insumos2!$R$2:$R$399999,insumos2!$J$2:$J$399999,"Aprobado con subsidio",insumos2!$N$2:$N$399999,Hoja4!H8) -> 12944 | O8: =SUMIFS(insumos2!$Q$2:$Q$399999,insumos2!$J$2:$J$399999,"Aprobado con subsidio",insumos2!$N$2:$N$399999,Hoja4!H8) -> 10434 | P8: =SUMIFS(insumos2!$S$2:$S$399999,insumos2!$J$2:$J$399999,"Aprobado con subsidio",insumos2!$N$2:$N$399999,Hoja4!H8) -> 0 | Q8: Actividades de servicios administrativos | R8: 80.60877627 | T8: 13 | U8: BOLÍVAR | V8: =(VLOOKUP(T8,_xlfn.ANCHORARRAY(insumos2!$W$2),2,0)/SUM(insumos2!$X$2:$X$34)) -> 0.02784612615 | W8: =VLOOKUP(T8,insumos2!$AY$2:$AZ$34,2,FALSE)/insumos2!$BF$30 -> 0.01398135819 | Z8: ACTIVIDADES FINANCIERAS Y DE SEGUROS | AA8: K | AD8: COMERCIO AL POR MAYOR Y AL POR MENOR; REPARACIÓN DE VEHÍCULOS AUTOMOTORES Y MOTOCICLETAS | AE8: G | AF8: Comercio al por mayor y al por menor; reparación de vehículos automotores y motocicletas
A9: TRANSPORTE Y ALMACENAMIENTO | B9: H | C9: Transporte y almacenamiento | D9: H | E9: =COUNTIFS(insumos2!$N$2:$N$399999,Hoja4!D9,insumos2!$J$2:$J$399999,"Aprobado con subsidio") -> 2306 | G9: =MID(VLOOKUP(H9,$B$2:$C$23,2,FALSE),1,42) -> Transporte y almacenamiento | H9: H | I9: 2306 | J9: 0.04613014863 | K9: =SUMIFS(insumos2!$E$2:$E$399999,insumos2!$J$2:$J$399999,"Aprobado con subsidio",insumos2!$N$2:$N$399999,Hoja4!H9) -> 27927 | L9: 0.05998530814 | M9: =SUMIFS(insumos1!$K$2:$K$372158,insumos1!$H$2:$H$372158,Hoja4!H9) -> 41620384000 | N9: =SUMIFS(insumos2!$R$2:$R$399999,insumos2!$J$2:$J$399999,"Aprobado con subsidio",insumos2!$N$2:$N$399999,Hoja4!H9) -> 20788 | O9: =SUMIFS(insumos2!$Q$2:$Q$399999,insumos2!$J$2:$J$399999,"Aprobado con subsidio",insumos2!$N$2:$N$399999,Hoja4!H9) -> 7139 | P9: =SUMIFS(insumos2!$S$2:$S$399999,insumos2!$J$2:$J$399999,"Aprobado con subsidio",insumos2!$N$2:$N$399999,Hoja4!H9) -> 0 | Q9: Transporte y almacenamiento | R9: 34.34192804 | T9: 66 | U9: RISARALDA | V9: =(VLOOKUP(T9,_xlfn.ANCHORARRAY(insumos2!$W$2),2,0)/SUM(insumos2!$X$2:$X$34)) -> 0.02090459901 | W9: =VLOOKUP(T9,insumos2!$AY$2:$AZ$34,2,FALSE)/insumos2!$BF$30 -> 0.02343541944 | Z9: INDUSTRIAS MANUFACTURERAS | AA9: C | AD9: TRANSPORTE Y ALMACENAMIENTO | AE9: H | AF9: Transporte y almacenamiento
A10: ALOJAMIENTO Y SERVICIOS DE COMIDA | B10: I | C10: Alojamiento y servicios de comida | D10: I | E10: =COUNTIFS(insumos2!$N$2:$N$399999,Hoja4!D10,insumos2!$J$2:$J$399999,"Aprobado con subsidio") -> 2788 | G10: =MID(VLOOKUP(H10,$B$2:$C$23,2,FALSE),1,30) -> Educación | H10: P | I10: 2091 | J10: 0.04182920242 | K10: =SUMIFS(insumos2!$E$2:$E$399999,insumos2!$J$2:$J$399999,"Aprobado con subsidio",insumos2!$N$2:$N$399999,Hoja4!H10) -> 26167 | L10: 0.05620494712 | M10: =SUMIFS(insumos1!$K$2:$K$372158,insumos1!$H$2:$H$372158,Hoja4!H10) -> 54614752000 | N10: =SUMIFS(insumos2!$R$2:$R$399999,insumos2!$J$2:$J$399999,"Aprobado con subsidio",insumos2!$N$2:$N$399999,Hoja4!H10) -> 6756 | O10: =SUMIFS(insumos2!$Q$2:$Q$399999,insumos2!$J$2:$J$399999,"Aprobado con subsidio",insumos2!$N$2:$N$399999,Hoja4!H10) -> 19411 | P10: =SUMIFS(insumos2!$S$2:$S$399999,insumos2!$J$2:$J$399999,"Aprobado con subsidio",insumos2!$N$2:$N$399999,Hoja4!H10) -> 0 | Q10: Educación | R10: 287.3149793 | T10: 54 | U10: NORTE DE SANTANDER | V10: =(VLOOKUP(T10,_xlfn.ANCHORARRAY(insumos2!$W$2),2,0)/SUM(insumos2!$X$2:$X$34)) -> 0.01768389046 | W10: =VLOOKUP(T10,insumos2!$AY$2:$AZ$34,2,FALSE)/insumos2!$BF$30 -> 0.01597869507 | Z10: ACTIVIDADES PROFESIONALES, CIENTÍFICAS Y TÉCNICAS | AA10: M | AD10: ALOJAMIENTO Y SERVICIOS DE COMIDA | AE10: I | AF10: Alojamiento y servicios de comida
A11: INFORMACIÓN Y COMUNICACIONES | B11: J | C11: información y comunicaciones | D11: J | E11: =COUNTIFS(insumos2!$N$2:$N$399999,Hoja4!D11,insumos2!$J$2:$J$399999,"Aprobado con subsidio") -> 1437 | G11: =MID(VLOOKUP(H11,$B$2:$C$23,2,FALSE),1,30) -> Actividades inmobiliarias | H11: L | I11: 1457 | J11: 0.02914641221 | K11: =SUMIFS(insumos2!$E$2:$E$399999,insumos2!$J$2:$J$399999,"Aprobado con subsidio",insumos2!$N$2:$N$399999,Hoja4!H11) -> 9218 | L11: 0.01979964087 | M11: =SUMIFS(insumos1!$K$2:$K$372158,insumos1!$H$2:$H$372158,Hoja4!H11) -> 16422459000 | N11: =SUMIFS(insumos2!$R$2:$R$399999,insumos2!$J$2:$J$399999,"Aprobado con subsidio",insumos2!$N$2:$N$399999,Hoja4!H11) -> 4031 | O11: =SUMIFS(insumos2!$Q$2:$Q$399999,insumos2!$J$2:$J$399999,"Aprobado con subsidio",insumos2!$N$2:$N$399999,Hoja4!H11) -> 5187 | P11: =SUMIFS(insumos2!$S$2:$S$399999,insumos2!$J$2:$J$399999,"Aprobado con subsidio",insumos2!$N$2:$N$399999,Hoja4!H11) -> 0 | Q11: Actividades inmobiliarias | R11: 128.6777475 | T11: 15 | U11: BOYACÁ | V11: =(VLOOKUP(T11,_xlfn.ANCHORARRAY(insumos2!$W$2),2,0)/SUM(insumos2!$X$2:$X$34)) -> 0.01364300146 | W11: =VLOOKUP(T11,insumos2!$AY$2:$AZ$34,2,FALSE)/insumos2!$BF$30 -> 0.01025299601 | Z11: CONSTRUCCIÓN | AA11: F | AD11: INFORMACIÓN Y COMUNICACIONES | AE11: J | AF11: información y comunicaciones
A12: ACTIVIDADES FINANCIERAS Y DE SEGUROS | B12: K | C12: Actividades financieras y de seguros | D12: K | E12: =COUNTIFS(insumos2!$N$2:$N$399999,Hoja4!D12,insumos2!$J$2:$J$399999,"Aprobado con subsidio") -> 873 | G12: =MID(VLOOKUP(H12,$B$2:$C$23,2,FALSE),1,30) -> información y comunicaciones | H12: J | I12: 1437 | J12: 0.02874632419 | K12: =SUMIFS(insumos2!$E$2:$E$399999,insumos2!$J$2:$J$399999,"Aprobado con subsidio",insumos2!$N$2:$N$399999,Hoja4!H12) -> 12351 | L12: 0.02652911308 | M12: =SUMIFS(insumos1!$K$2:$K$372158,insumos1!$H$2:$H$372158,Hoja4!H12) -> 18631740000 | N12: =SUMIFS(insumos2!$R$2:$R$399999,insumos2!$J$2:$J$399999,"Aprobado con subsidio",insumos2!$N$2:$N$399999,Hoja4!H12) -> 6969 | O12: =SUMIFS(insumos2!$Q$2:$Q$399999,insumos2!$J$2:$J$399999,"Aprobado con subsidio",insumos2!$N$2:$N$399999,Hoja4!H12) -> 5382 | P12: =SUMIFS(insumos2!$S$2:$S$399999,insumos2!$J$2:$J$399999,"Aprobado con subsidio",insumos2!$N$2:$N$399999,Hoja4!H12) -> 0 | Q12: información y comunicaciones | R12: 77.22772277 | T12: 73 | U12: TOLIMA | V12: =(VLOOKUP(T12,_xlfn.ANCHORARRAY(insumos2!$W$2),2,0)/SUM(insumos2!$X$2:$X$34)) -> 0.01368301026 | W12: =VLOOKUP(T12,insumos2!$AY$2:$AZ$34,2,FALSE)/insumos2!$BF$30 -> 0.01025299601 | Z12: ACTIVIDADES INMOBILIARIAS | AA12: L | AD12: ACTIVIDADES FINANCIERAS Y DE SEGUROS | AE12: K | AF12: Actividades financieras y de seguros
A13: ACTIVIDADES INMOBILIARIAS | B13: L | C13: Actividades inmobiliarias | D13: L | E13: =COUNTIFS(insumos2!$N$2:$N$399999,Hoja4!D13,insumos2!$J$2:$J$399999,"Aprobado con subsidio") -> 1457 | G13: =MID(VLOOKUP(H13,$B$2:$C$23,2,FALSE),1,30) -> Otras actividades de servicios | H13: S | I13: 1200 | J13: 0.02400528116 | K13: =SUMIFS(insumos2!$E$2:$E$399999,insumos2!$J$2:$J$399999,"Aprobado con subsidio",insumos2!$N$2:$N$399999,Hoja4!H13) -> 9092 | L13: 0.01952900138 | M13: =SUMIFS(insumos1!$K$2:$K$372158,insumos1!$H$2:$H$372158,Hoja4!H13) -> 16502801000 | N13: =SUMIFS(insumos2!$R$2:$R$399999,insumos2!$J$2:$J$399999,"Aprobado con subsidio",insumos2!$N$2:$N$399999,Hoja4!H13) -> 3760 | O13: =SUMIFS(insumos2!$Q$2:$Q$399999,insumos2!$J$2:$J$399999,"Aprobado con subsidio",insumos2!$N$2:$N$399999,Hoja4!H13) -> 5332 | P13: =SUMIFS(insumos2!$S$2:$S$399999,insumos2!$J$2:$J$399999,"Aprobado con subsidio",insumos2!$N$2:$N$399999,Hoja4!H13) -> 0 | Q13: Otras actividades de servicios | R13: 141.8085106 | T13: 17 | U13: CALDAS | V13: =(VLOOKUP(T13,_xlfn.ANCHORARRAY(insumos2!$W$2),2,0)/SUM(insumos2!$X$2:$X$34)) -> 0.01226269779 | W13: =VLOOKUP(T13,insumos2!$AY$2:$AZ$34,2,FALSE)/insumos2!$BF$30 -> 0.01171770972 | Z13: ACTIVIDADES ARTÍSTICAS, DE ENTRETENIMIENTO Y RECREACIÓN | AA13: R | AD13: ACTIVIDADES INMOBILIARIAS | AE13: L | AF13: Actividades inmobiliarias
A14: ACTIVIDADES PROFESIONALES, CIENTÍFICAS Y TÉCNICAS | B14: M | C14: Actividades profesionales, científicas y técnicas | D14: M | E14: =COUNTIFS(insumos2!$N$2:$N$399999,Hoja4!D14,insumos2!$J$2:$J$399999,"Aprobado con subsidio") -> 5624 | G14: =MID(VLOOKUP(H14,$B$2:$C$23,2,FALSE),1,34) -> Agricultura, ganadería, caza, silv | H14: A | I14: 1086 | J14: 0.02172477945 | K14: =SUMIFS(insumos2!$E$2:$E$399999,insumos2!$J$2:$J$399999,"Aprobado con subsidio",insumos2!$N$2:$N$399999,Hoja4!H14) -> 11811 | L14: 0.02536922958 | M14: =SUMIFS(insumos1!$K$2:$K$372158,insumos1!$H$2:$H$372158,Hoja4!H14) -> 16159123000 | N14: =SUMIFS(insumos2!$R$2:$R$399999,insumos2!$J$2:$J$399999,"Aprobado con subsidio",insumos2!$N$2:$N$399999,Hoja4!H14) -> 9027 | O14: =SUMIFS(insumos2!$Q$2:$Q$399999,insumos2!$J$2:$J$399999,"Aprobado con subsidio",insumos2!$N$2:$N$399999,Hoja4!H14) -> 2784 | P14: =SUMIFS(insumos2!$S$2:$S$399999,insumos2!$J$2:$J$399999,"Aprobado con subsidio",insumos2!$N$2:$N$399999,Hoja4!H14) -> 0 | Q14: Agricultura, ganadería, caza, silv | R14: 30.8408109 | T14: 50 | U14: META | V14: =(VLOOKUP(T14,_xlfn.ANCHORARRAY(insumos2!$W$2),2,0)/SUM(insumos2!$X$2:$X$34)) -> 0.01460321271 | W14: =VLOOKUP(T14,insumos2!$AY$2:$AZ$34,2,FALSE)/insumos2!$BF$30 -> 0.007856191744 | Z14: INFORMACIÓN Y COMUNICACIONES | AA14: J | AD14: ACTIVIDADES PROFESIONALES, CIENTÍFICAS Y TÉCNICAS | AE14: M | AF14: Actividades profesionales, científicas y técnicas
A15: ACTIVIDADES DE SERVICIOS ADMINISTRATIVOS Y DE APOYO | B15: N | C15: Actividades de servicios administrativos y de apoyo | D15: N | E15: =COUNTIFS(insumos2!$N$2:$N$399999,Hoja4!D15,insumos2!$J$2:$J$399999,"Aprobado con subsidio") -> 2317 | G15: =MID(VLOOKUP(H15,$B$2:$C$23,2,FALSE),1,40) -> Actividades financieras y de seguros | H15: K | I15: 873 | J15: 0.01746384205 | K15: =SUMIFS(insumos2!$E$2:$E$399999,insumos2!$J$2:$J$399999,"Aprobado con subsidio",insumos2!$N$2:$N$399999,Hoja4!H15) -> 5192 | L15: 0.01115206502 | M15: =SUMIFS(insumos1!$K$2:$K$372158,insumos1!$H$2:$H$372158,Hoja4!H15) -> 8554301000 | N15: =SUMIFS(insumos2!$R$2:$R$399999,insumos2!$J$2:$J$399999,"Aprobado con subsidio",insumos2!$N$2:$N$399999,Hoja4!H15) -> 1783 | O15: =SUMIFS(insumos2!$Q$2:$Q$399999,insumos2!$J$2:$J$399999,"Aprobado con subsidio",insumos2!$N$2:$N$399999,Hoja4!H15) -> 3409 | P15: =SUMIFS(insumos2!$S$2:$S$399999,insumos2!$J$2:$J$399999,"Aprobado con subsidio",insumos2!$N$2:$N$399999,Hoja4!H15) -> 0 | Q15: Actividades financieras y de seguros | R15: 191.1946158 | T15: 41 | U15: HUILA | V15: =(VLOOKUP(T15,_xlfn.ANCHORARRAY(insumos2!$W$2),2,0)/SUM(insumos2!$X$2:$X$34)) -> 0.0123427154 | W15: =VLOOKUP(T15,insumos2!$AY$2:$AZ$34,2,FALSE)/insumos2!$BF$30 -> 0.009853528628 | Z15: EXPLOTACIÓN DE MINAS Y CANTERAS | AA15: B | AD15: ACTIVIDADES DE SERVICIOS ADMINISTRATIVOS Y DE APOYO | AE15: N | AF15: Actividades de servicios administrativos y de apoyo
A16: ADMINISTRACIÓN PÚBLICA Y DEFENSA; PLANES DE SEGURIDAD SOCIAL DE AFILIACIÓN OBLIGATORIA | B16: O | C16: Administración pública y defensa; planes de seguridad social de afiliación obligatoria | D16: O | E16: =COUNTIFS(insumos2!$N$2:$N$399999,Hoja4!D16,insumos2!$J$2:$J$399999,"Aprobado con subsidio") -> 49 | G16: =MID(VLOOKUP(H16,$B$2:$C$23,2,FALSE),1,35) -> Actividades artísticas de entreteni | H16: R | I16: 525 | J16: 0.01050231051 | K16: =SUMIFS(insumos2!$E$2:$E$399999,insumos2!$J$2:$J$399999,"Aprobado con subsidio",insumos2!$N$2:$N$399999,Hoja4!H16) -> 5008 | L16: 0.01075684546 | M16: =SUMIFS(insumos1!$K$2:$K$372158,insumos1!$H$2:$H$372158,Hoja4!H16) -> 8844374000 | N16: =SUMIFS(insumos2!$R$2:$R$399999,insumos2!$J$2:$J$399999,"Aprobado con subsidio",insumos2!$N$2:$N$399999,Hoja4!H16) -> 2333 | O16: =SUMIFS(insumos2!$Q$2:$Q$399999,insumos2!$J$2:$J$399999,"Aprobado con subsidio",insumos2!$N$2:$N$399999,Hoja4!H16) -> 2675 | P16: =SUMIFS(insumos2!$S$2:$S$399999,insumos2!$J$2:$J$399999,"Aprobado con subsidio",insumos2!$N$2:$N$399999,Hoja4!H16) -> 0 | Q16: Actividades artísticas de entreteni | R16: 114.659237 | T16: 52 | U16: NARIÑO | V16: =(VLOOKUP(T16,_xlfn.ANCHORARRAY(insumos2!$W$2),2,0)/SUM(insumos2!$X$2:$X$34)) -> 0.01136249975 | W16: =VLOOKUP(T16,insumos2!$AY$2:$AZ$34,2,FALSE)/insumos2!$BF$30 -> 0.008388814913 | Z16: OTRAS ACTIVIDADES DE SERVICIOS | AA16: S | AD16: ADMINISTRACIÓN PÚBLICA Y DEFENSA; PLANES DE SEGURIDAD SOCIAL DE AFILIACIÓN OBLIGATORIA | AE16: O | AF16: Administración pública y defensa; planes de seguridad social de afiliación obligatoria
A17: EDUCACIÓN | B17: P | C17: Educación | D17: P | E17: =COUNTIFS(insumos2!$N$2:$N$399999,Hoja4!D17,insumos2!$J$2:$J$399999,"Aprobado con subsidio") -> 2091 | G17: =MID(VLOOKUP(H17,$B$2:$C$23,2,FALSE),1,31) -> Distribución de agua; evacuació | H17: E | I17: 210 | J17: 0.004200924203 | K17: =SUMIFS(insumos2!$E$2:$E$399999,insumos2!$J$2:$J$399999,"Aprobado con subsidio",insumos2!$N$2:$N$399999,Hoja4!H17) -> 2002 | L17: 0.004300160665 | M17: =SUMIFS(insumos1!$K$2:$K$372158,insumos1!$H$2:$H$372158,Hoja4!H17) -> 2878347000 | N17: =SUMIFS(insumos2!$R$2:$R$399999,insumos2!$J$2:$J$399999,"Aprobado con subsidio",insumos2!$N$2:$N$399999,Hoja4!H17) -> 1397 | O17: =SUMIFS(insumos2!$Q$2:$Q$399999,insumos2!$J$2:$J$399999,"Aprobado con subsidio",insumos2!$N$2:$N$399999,Hoja4!H17) -> 605 | P17: =SUMIFS(insumos2!$S$2:$S$399999,insumos2!$J$2:$J$399999,"Aprobado con subsidio",insumos2!$N$2:$N$399999,Hoja4!H17) -> 0 | Q17: Distribución de agua; evacuació | R17: 43.30708661 | T17: 23 | U17: CÓRDOBA | V17: =(VLOOKUP(T17,_xlfn.ANCHORARRAY(insumos2!$W$2),2,0)/SUM(insumos2!$X$2:$X$34)) -> 0.01102242493 | W17: =VLOOKUP(T17,insumos2!$AY$2:$AZ$34,2,FALSE)/insumos2!$BF$30 -> 0.005326231691 | Z17: AGRICULTURA, GANADERÍA, CAZA, SILVICULTURA Y PESCA | AA17: A | AD17: OTRAS | AE17: Otras | AF17: Otras
A18: ACTIVIDADES DE ATENCIÓN DE LA SALUD HUMANA Y DE ASISTENCIA SOCIAL | B18: Q | C18: Actividades de atención de la salud humana y de asistencia social | D18: Q | E18: =COUNTIFS(insumos2!$N$2:$N$399999,Hoja4!D18,insumos2!$J$2:$J$399999,"Aprobado con subsidio") -> 4349 | G18: =MID(VLOOKUP(H18,$B$2:$C$23,2,FALSE),1,20) -> Explotación de minas | H18: B | I18: 198 | J18: 0.003960871392 | K18: =SUMIFS(insumos2!$E$2:$E$399999,insumos2!$J$2:$J$399999,"Aprobado con subsidio",insumos2!$N$2:$N$399999,Hoja4!H18) -> 2817 | L18: 0.006050725572 | M18: =SUMIFS(insumos1!$K$2:$K$372158,insumos1!$H$2:$H$372158,Hoja4!H18) -> 3752711000 | N18: =SUMIFS(insumos2!$R$2:$R$399999,insumos2!$J$2:$J$399999,"Aprobado con subsidio",insumos2!$N$2:$N$399999,Hoja4!H18) -> 2388 | O18: =SUMIFS(insumos2!$Q$2:$Q$399999,insumos2!$J$2:$J$399999,"Aprobado con subsidio",insumos2!$N$2:$N$399999,Hoja4!H18) -> 429 | P18: =SUMIFS(insumos2!$S$2:$S$399999,insumos2!$J$2:$J$399999,"Aprobado con subsidio",insumos2!$N$2:$N$399999,Hoja4!H18) -> 0 | Q18: Explotación de minas | R18: 17.96482412 | T18: 63 | U18: QUINDÍO | V18: =(VLOOKUP(T18,_xlfn.ANCHORARRAY(insumos2!$W$2),2,0)/SUM(insumos2!$X$2:$X$34)) -> 0.009462081658 | W18: =VLOOKUP(T18,insumos2!$AY$2:$AZ$34,2,FALSE)/insumos2!$BF$30 -> 0.009320905459 | Z18: ADMINISTRACIÓN PÚBLICA Y DEFENSA; PLANES DE SEGURIDAD SOCIAL DE AFILIACIÓN OBLIGATORIA | AA18: O | AD18: EDUCACIÓN | AE18: P | AF18: Educación
A19: ACTIVIDADES ARTÍSTICAS, DE ENTRETENIMIENTO Y RECREACIÓN | B19: R | C19: Actividades artísticas de entretenimiento y recreación | D19: R | E19: =COUNTIFS(insumos2!$N$2:$N$399999,Hoja4!D19,insumos2!$J$2:$J$399999,"Aprobado con subsidio") -> 525 | G19: =MID(VLOOKUP(H19,$B$2:$C$23,2,FALSE),1,32) -> Administración pública y defensa | H19: O | I19: 49 | J19: 0.0009802156474 | K19: =SUMIFS(insumos2!$E$2:$E$399999,insumos2!$J$2:$J$399999,"Aprobado con subsidio",insumos2!$N$2:$N$399999,Hoja4!H19) -> 708 | L19: 0.001520736139 | M19: =SUMIFS(insumos1!$K$2:$K$372158,insumos1!$H$2:$H$372158,Hoja4!H19) -> 1263826000 | N19: =SUMIFS(insumos2!$R$2:$R$399999,insumos2!$J$2:$J$399999,"Aprobado con subsidio",insumos2!$N$2:$N$399999,Hoja4!H19) -> 384 | O19: =SUMIFS(insumos2!$Q$2:$Q$399999,insumos2!$J$2:$J$399999,"Aprobado con subsidio",insumos2!$N$2:$N$399999,Hoja4!H19) -> 324 | P19: =SUMIFS(insumos2!$S$2:$S$399999,insumos2!$J$2:$J$399999,"Aprobado con subsidio",insumos2!$N$2:$N$399999,Hoja4!H19) -> 0 | Q19: Administración pública y defensa | R19: 84.375 | T19: 47 | U19: MAGDALENA | V19: =(VLOOKUP(T19,_xlfn.ANCHORARRAY(insumos2!$W$2),2,0)/SUM(insumos2!$X$2:$X$34)) -> 0.01068235012 | W19: =VLOOKUP(T19,insumos2!$AY$2:$AZ$34,2,FALSE)/insumos2!$BF$30 -> 0.006258322237 | Z19: DISTRIBUCIÓN DE AGUA; EVACUACIÓN Y TRATAMIENTO DE AGUAS RESIDUALES, GESTIÓN DE DESECHOS Y ACTIVIDADES DE SANEAMIENTO AMBIENTAL | AA19: E | AD19: ACTIVIDADES DE ATENCIÓN DE LA SALUD HUMANA Y DE ASISTENCIA SOCIAL | AE19: Q | AF19: Actividades de atención de la salud humana y de asistencia social
A20: OTRAS ACTIVIDADES DE SERVICIOS | B20: S | C20: Otras actividades de servicios | D20: S | E20: =COUNTIFS(insumos2!$N$2:$N$399999,Hoja4!D20,insumos2!$J$2:$J$399999,"Aprobado con subsidio") -> 1200 | G20: =MID(VLOOKUP(H20,$B$2:$C$23,2,FALSE),1,33) -> Suministro de electricidad, gas, | H20: D | I20: 45 | J20: 0.0009001980436 | K20: =SUMIFS(insumos2!$E$2:$E$399999,insumos2!$J$2:$J$399999,"Aprobado con subsidio",insumos2!$N$2:$N$399999,Hoja4!H20) -> 378 | L20: 0.0008119184473 | M20: =SUMIFS(insumos1!$K$2:$K$372158,insumos1!$H$2:$H$372158,Hoja4!H20) -> 548953000 | N20: =SUMIFS(insumos2!$R$2:$R$399999,insumos2!$J$2:$J$399999,"Aprobado con subsidio",insumos2!$N$2:$N$399999,Hoja4!H20) -> 276 | O20: =SUMIFS(insumos2!$Q$2:$Q$399999,insumos2!$J$2:$J$399999,"Aprobado con subsidio",insumos2!$N$2:$N$399999,Hoja4!H20) -> 102 | P20: =SUMIFS(insumos2!$S$2:$S$399999,insumos2!$J$2:$J$399999,"Aprobado con subsidio",insumos2!$N$2:$N$399999,Hoja4!H20) -> 0 | Q20: Suministro de electricidad, gas, | R20: 36.95652174 | T20: 20 | U20: CESAR | V20: =(VLOOKUP(T20,_xlfn.ANCHORARRAY(insumos2!$W$2),2,0)/SUM(insumos2!$X$2:$X$34)) -> 0.01016223569 | W20: =VLOOKUP(T20,insumos2!$AY$2:$AZ$34,2,FALSE)/insumos2!$BF$30 -> 0.004793608522 | Z20: SUMINISTRO DE ELECTRICIDAD, GAS, VAPOR Y AIRE ACONDICIONADO | AA20: D | AD20: ACTIVIDADES ARTÍSTICAS, DE ENTRETENIMIENTO Y RECREACIÓN | AE20: R | AF20: Actividades artísticas de entretenimiento y recreación
A21: ACTIVIDADES DE LOS HOGARES INDIVIDUALES EN CALIDAD DE EMPLEADORES; ACTIVIDADES NO DIFERENCIADAS DE LOS HOGARES INDIVIDUALES COMO PRODUCTORES DE BIENES Y SERVICIOS PARA USO PROPIO | B21: T | C21: Actividad de los hogares en calidad de empleadores; actividades no diferenciadas de los hogares individuales como productores de bienes y servicios para uso propio | D21: T | E21: =COUNTIFS(insumos2!$N$2:$N$399999,Hoja4!D21,insumos2!$J$2:$J$399999,"Aprobado con subsidio") -> 12 | G21: =MID(VLOOKUP(H21,$B$2:$C$23,2,FALSE),1,30) -> Actividad de los hogares en ca | H21: T | I21: 12 | J21: 0.0002400528116 | K21: =SUMIFS(insumos2!$E$2:$E$399999,insumos2!$J$2:$J$399999,"Aprobado con subsidio",insumos2!$N$2:$N$399999,Hoja4!H21) -> 197 | L21: 0.0004231426829 | M21: =SUMIFS(insumos1!$K$2:$K$372158,insumos1!$H$2:$H$372158,Hoja4!H21) -> 342797000 | N21: =SUMIFS(insumos2!$R$2:$R$399999,insumos2!$J$2:$J$399999,"Aprobado con subsidio",insumos2!$N$2:$N$399999,Hoja4!H21) -> 74 | O21: =SUMIFS(insumos2!$Q$2:$Q$399999,insumos2!$J$2:$J$399999,"Aprobado con subsidio",insumos2!$N$2:$N$399999,Hoja4!H21) -> 123 | P21: =SUMIFS(insumos2!$S$2:$S$399999,insumos2!$J$2:$J$399999,"Aprobado con subsidio",insumos2!$N$2:$N$399999,Hoja4!H21) -> 0 | Q21: Actividad de los hogares en ca | R21: 166.2162162 | T21: 19 | U21: CAUCA | V21: =(VLOOKUP(T21,_xlfn.ANCHORARRAY(insumos2!$W$2),2,0)/SUM(insumos2!$X$2:$X$34)) -> 0.007401628358 | W21: =VLOOKUP(T21,insumos2!$AY$2:$AZ$34,2,FALSE)/insumos2!$BF$30 -> 0.003994673768 | Z21: OTRAS | AA21: Otras | AD21: OTRAS ACTIVIDADES DE SERVICIOS | AE21: S | AF21: Otras actividades de servicios
A22: ACTIVIDADES DE ORGANIZACIONES Y ENTIDADES EXTRATERRITORIALES | B22: U | C22: Actividad de organizaciones y entidades extraterritoriales | D22: U | E22: =COUNTIFS(insumos2!$N$2:$N$399999,Hoja4!D22,insumos2!$J$2:$J$399999,"Aprobado con subsidio") -> 0 | G22: =MID(VLOOKUP(H22,$B$2:$C$23,2,FALSE),1,24) -> Otras | H22: Otras | I22: 8 | J22: 0.0001600352077 | K22: =SUMIFS(insumos2!$E$2:$E$399999,insumos2!$J$2:$J$399999,"Aprobado con subsidio",insumos2!$N$2:$N$399999,Hoja4!H22) -> 63 | L22: 0.0001353197412 | M22: =SUMIFS(insumos1!$K$2:$K$372158,insumos1!$H$2:$H$372158,Hoja4!H22) -> 106206000 | N22: =SUMIFS(insumos2!$R$2:$R$399999,insumos2!$J$2:$J$399999,"Aprobado con subsidio",insumos2!$N$2:$N$399999,Hoja4!H22) -> 36 | O22: =SUMIFS(insumos2!$Q$2:$Q$399999,insumos2!$J$2:$J$399999,"Aprobado con subsidio",insumos2!$N$2:$N$399999,Hoja4!H22) -> 27 | P22: =SUMIFS(insumos2!$S$2:$S$399999,insumos2!$J$2:$J$399999,"Aprobado con subsidio",insumos2!$N$2:$N$399999,Hoja4!H22) -> 0 | Q22: Otras | R22: 75 | T22: 85 | U22: CASANARE | V22: =(VLOOKUP(T22,_xlfn.ANCHORARRAY(insumos2!$W$2),2,0)/SUM(insumos2!$X$2:$X$34)) -> 0.005741263078 | W22: =VLOOKUP(T22,insumos2!$AY$2:$AZ$34,2,FALSE)/insumos2!$BF$30 -> 0.003062583222 | AD22: 0 | AE22: 0
A23: OTRAS | B23: Otras | C23: Otras | D23: Otras | E23: =COUNTIFS(insumos2!$N$2:$N$399999,Hoja4!D23,insumos2!$J$2:$J$399999,"Aprobado con subsidio") -> 8 | G23: =MID(VLOOKUP(H23,$B$2:$C$23,2,FALSE),1,45) -> Actividad de organizaciones y entidades extra | H23: U | I23: 0 | J23: 0 | K23: =SUMIFS(insumos2!$E$2:$E$399999,insumos2!$J$2:$J$399999,"Aprobado con subsidio",insumos2!$N$2:$N$399999,Hoja4!H23) -> 0 | L23: 0 | M23: =SUMIFS(insumos1!$K$2:$K$372158,insumos1!$H$2:$H$372158,Hoja4!H23) -> 0 | N23: =SUMIFS(insumos2!$R$2:$R$399999,insumos2!$J$2:$J$399999,"Aprobado con subsidio",insumos2!$N$2:$N$399999,Hoja4!H23) -> 0 | O23: =SUMIFS(insumos2!$Q$2:$Q$399999,insumos2!$J$2:$J$399999,"Aprobado con subsidio",insumos2!$N$2:$N$399999,Hoja4!H23) -> 0 | P23: =SUMIFS(insumos2!$S$2:$S$399999,insumos2!$J$2:$J$399999,"Aprobado con subsidio",insumos2!$N$2:$N$399999,Hoja4!H23) -> 0 | Q23: Actividad de organizaciones y entidades extra | T23: 70 | U23: SUCRE | V23: =(VLOOKUP(T23,_xlfn.ANCHORARRAY(insumos2!$W$2),2,0)/SUM(insumos2!$X$2:$X$34)) -> 0.00516113545 | W23: =VLOOKUP(T23,insumos2!$AY$2:$AZ$34,2,FALSE)/insumos2!$BF$30 -> 0.002796271638
E24: =SUM(E2:E23) -> 49989 | H24: General | I24: =SUM(I2:I23) -> 49989 | K24: =SUM(K2:K23) -> 465564 | M24: =SUM(M2:M23) -> 714681199000 | N24: =SUM(N2:N23) -> 259861 | O24: =SUM(O2:O23) -> 205703 | P24: =SUM(P2:P23) -> 0 | T24: 18 | U24: CAQUETÁ | V24: =(VLOOKUP(T24,_xlfn.ANCHORARRAY(insumos2!$W$2),2,0)/SUM(insumos2!$X$2:$X$34)) -> 0.002100462102 | W24: =VLOOKUP(T24,insumos2!$AY$2:$AZ$34,2,FALSE)/insumos2!$BF$30 -> 0.001464713715
T25: 44 | U25: LA GUAJIRA | V25: =(VLOOKUP(T25,_xlfn.ANCHORARRAY(insumos2!$W$2),2,0)/SUM(insumos2!$X$2:$X$34)) -> 0.002780611735 | W25: =VLOOKUP(T25,insumos2!$AY$2:$AZ$34,2,FALSE)/insumos2!$BF$30 -> 0.0007989347537
T26: 88 | U26: SAN ANDRÉS | V26: =(VLOOKUP(T26,_xlfn.ANCHORARRAY(insumos2!$W$2),2,0)/SUM(insumos2!$X$2:$X$34)) -> 0.001540338875 | W26: =VLOOKUP(T26,insumos2!$AY$2:$AZ$34,2,FALSE)/insumos2!$BF$30 -> 0.0003994673768
T27: 81 | U27: ARAUCA | V27: =(VLOOKUP(T27,_xlfn.ANCHORARRAY(insumos2!$W$2),2,0)/SUM(insumos2!$X$2:$X$34)) -> 0.001640360879 | W27: =VLOOKUP(T27,insumos2!$AY$2:$AZ$34,2,FALSE)/insumos2!$BF$30 -> 0.0003994673768
A28: Código | B28: Nombre | D28: Municipio | T28: 86 | U28: PUTUMAYO | V28: =(VLOOKUP(T28,_xlfn.ANCHORARRAY(insumos2!$W$2),2,0)/SUM(insumos2!$X$2:$X$34)) -> 0.001460321271 | W28: =VLOOKUP(T28,insumos2!$AY$2:$AZ$34,2,FALSE)/insumos2!$BF$30 -> 0.0001331557923
A29: 5 | B29: Antioquia | D29: Código | E29: Nombre | T29: 27 | U29: CHOCÓ | V29: =(VLOOKUP(T29,_xlfn.ANCHORARRAY(insumos2!$W$2),2,0)/SUM(insumos2!$X$2:$X$34)) -> 0.001100242053 | W29: =VLOOKUP(T29,insumos2!$AY$2:$AZ$34,2,FALSE)/insumos2!$BF$30 -> 0.0002663115846
A30: 8 | B30: Atlántico | D30: 5001 | E30: Medellín | T30: 91 | U30: AMAZONAS | V30: =(VLOOKUP(T30,_xlfn.ANCHORARRAY(insumos2!$W$2),2,0)/SUM(insumos2!$X$2:$X$34)) -> 0.0005401188261 | W30: =VLOOKUP(T30,insumos2!$AY$2:$AZ$34,2,FALSE)/insumos2!$BF$30 -> 0.0001331557923
A31: 11 | B31: Bogotá | D31: 5002 | E31: Abejorral | T31: 95 | U31: GUAVIARE | V31: =(VLOOKUP(T31,_xlfn.ANCHORARRAY(insumos2!$W$2),2,0)/SUM(insumos2!$X$2:$X$34)) -> 0.0002800616136 | W31: =VLOOKUP(T31,insumos2!$AY$2:$AZ$34,2,FALSE)/insumos2!$BF$30 -> 0.0001331557923
A32: 13 | B32: Bolívar | D32: 5004 | E32: Abriaquí | T32: 99 | U32: VICHADA | V32: =(VLOOKUP(T32,_xlfn.ANCHORARRAY(insumos2!$W$2),2,0)/SUM(insumos2!$X$2:$X$34)) -> 0.0001000220048 | W32: =VLOOKUP(T32,insumos2!$AY$2:$AZ$34,2,FALSE)/insumos2!$BF$30 -> 0.0001331557923
A33: 15 | B33: Boyacá | D33: 5021 | E33: Alejandría | T33: 94 | U33: GUAINÍA | V33: =(VLOOKUP(T33,_xlfn.ANCHORARRAY(insumos2!$W$2),2,0)/SUM(insumos2!$X$2:$X$34)) -> 0.0001200264058 | W33: =VLOOKUP(T33,insumos2!$AY$2:$AZ$34,2,FALSE)/insumos2!$BF$30 -> 0.0001331557923
A34: 17 | B34: Caldas | D34: 5030 | E34: Amagá | T34: 97 | U34: VAUPÉS | V34: =(VLOOKUP(T34,_xlfn.ANCHORARRAY(insumos2!$W$2),2,0)/SUM(insumos2!$X$2:$X$34)) -> 4.000880194e-05 | W34: =VLOOKUP(T34,insumos2!$AY$2:$AZ$34,2,FALSE)/insumos2!$BF$30 -> 0
A35: 18 | B35: Caquetá | D35: 5031 | E35: Amalfi | U35: Total general | V35: =SUM(V2:V34) -> 1 | W35: =SUM(W2:W34) -> 1
A36: 19 | B36: Cauca | D36: 5034 | E36: Andes
A37: 20 | B37: Cesar | D37: 5036 | E37: Angelópolis
A38: 23 | B38: Córdoba | D38: 5038 | E38: Angostura
A39: 25 | B39: Cundinamarca | D39: 5040 | E39: Anorí
A40: 27 | B40: Chocó | D40: 5042 | E40: Santa fé de anti
A41: 41 | B41: Huila | D41: 5044 | E41: Anzá
A42: 44 | B42: La guajira | D42: 5045 | E42: Apartadó
A43: 47 | B43: Magdalena | D43: 5051 | E43: Arboletes
A44: 50 | B44: Meta | D44: 5055 | E44: Argelia
A45: 52 | B45: Nariño | D45: 5059 | E45: Armenia
A46: 54 | B46: Norte de stder | D46: 5079 | E46: Barbosa
A47: 63 | B47: Quindío | D47: 5086 | E47: Belmira
A48: 66 | B48: Risaralda | D48: 5088 | E48: Bello
A49: 68 | B49: Santander | D49: 5091 | E49: Betania
A50: 70 | B50: Sucre | D50: 5093 | E50: Betulia
A51: 73 | B51: Tolima | D51: 5101 | E51: Ciudad bolívar
A52: 76 | B52: Valle del cauca | D52: 5107 | E52: Briceño
A53: 81 | B53: Arauca | D53: 5113 | E53: Buriticá
A54: 85 | B54: Casanare | D54: 5120 | E54: Cáceres
A55: 86 | B55: Putumayo | D55: 5125 | E55: Caicedo
A56: 88 | B56: San Andrés | D56: 5129 | E56: Caldas
A57: 91 | B57: Amazonas | D57: 5134 | E57: Campamento
A58: 94 | B58: Guainía | D58: 5138 | E58: Cañasgordas
A59: 95 | B59: Guaviare | D59: 5142 | E59: Caracolí
A60: 97 | B60: Vaupés | D60: 5145 | E60: Caramanta
A61: 99 | B61: Vichada | D61: 5147 | E61: Carepa
D62: 5148 | E62: El carmen de vib
D63: 5150 | E63: Carolina
D64: 5154 | E64: Caucasia
D65: 5172 | E65: Chigorodó
D66: 5190 | E66: Cisneros
D67: 5197 | E67: Cocorná
D68: 5206 | E68: Concepción
D69: 5209 | E69: Concordia
D70: 5212 | E70: Copacabana
D71: 5234 | E71: Dabeiba
D72: 5237 | E72: Donmatías
D73: 5240 | E73: Ebéjico
D74: 5250 | E74: El bagre
D75: 5264 | E75: Entrerríos
D76: 5266 | E76: Envigado
D77: 5282 | E77: Fredonia
D78: 5284 | E78: Frontino
D79: 5306 | E79: Giraldo
D80: 5308 | E80: Girardota
D81: 5310 | E81: Gómez plata
D82: 5313 | E82: Granada
D83: 5315 | E83: Guadalupe
D84: 5318 | E84: Guarne
D85: 5321 | E85: Guatapé
D86: 5347 | E86: Heliconia
D87: 5353 | E87: Hispania
D88: 5360 | E88: Itagüí
D89: 5361 | E89: Ituango
D90: 5364 | E90: Jardín
D91: 5368 | E91: Jericó
D92: 5376 | E92: La ceja
D93: 5380 | E93: La estrella
D94: 5390 | E94: La pintada
D95: 5400 | E95: La unión
D96: 5411 | E96: Liborina
D97: 5425 | E97: Maceo
D98: 5440 | E98: Marinilla
D99: 5467 | E99: Montebello
D100: 5475 | E100: Murindó
D101: 5480 | E101: Mutatá
D102: 5483 | E102: Nariño
D103: 5490 | E103: Necoclí
D104: 5495 | E104: Nechí
D105: 5501 | E105: Olaya
D106: 5541 | E106: Peñol
D107: 5543 | E107: Peque
D108: 5576 | E108: Pueblorrico
D109: 5579 | E109: Puerto berrío
D110: 5585 | E110: Puerto nare
D111: 5591 | E111: Puerto triunfo
D112: 5604 | E112: Remedios
D113: 5607 | E113: Retiro
D114: 5615 | E114: Rionegro
D115: 5628 | E115: Sabanalarga
D116: 5631 | E116: Sabaneta
D117: 5642 | E117: Salgar
D118: 5647 | E118: San andrés de cu
D119: 5649 | E119: San carlos
D120: 5652 | E120: San francisco
D121: 5656 | E121: San jerónimo
D122: 5658 | E122: San josé de la m
D123: 5659 | E123: San juan de urab
D124: 5660 | E124: San luis
D125: 5664 | E125: San pedro de los
D126: 5665 | E126: San pedro de ura
D127: 5667 | E127: San rafael
D128: 5670 | E128: San roque
D129: 5674 | E129: San vicente ferr
D130: 5679 | E130: Santa bárbara
D131: 5686 | E131: Santa rosa de os
D132: 5690 | E132: Santo domingo
D133: 5697 | E133: El santuario
D134: 5736 | E134: Segovia
D135: 5756 | E135: Sonsón
D136: 5761 | E136: Sopetrán
D137: 5789 | E137: Támesis
D138: 5790 | E138: Tarazá
D139: 5792 | E139: Tarso
D140: 5809 | E140: Titiribí
D141: 5819 | E141: Toledo
D142: 5837 | E142: Turbo
D143: 5842 | E143: Uramita
D144: 5847 | E144: Urrao
D145: 5854 | E145: Valdivia
D146: 5856 | E146: Valparaíso
D147: 5858 | E147: Vegachí
D148: 5861 | E148: Venecia
D149: 5873 | E149: Vigía del fuerte
D150: 5885 | E150: Yalí
D151: 5887 | E151: Yarumal
D152: 5890 | E152: Yolombó
D153: 5893 | E153: Yondó
D154: 5895 | E154: Zaragoza
D155: 8001 | E155: Barranquilla
D156: 8078 | E156: Baranoa
D157: 8137 | E157: Campo de la cruz
D158: 8141 | E158: Candelaria
D159: 8296 | E159: Galapa
D160: 8372 | E160: Juan de acosta
D161: 8421 | E161: Luruaco
D162: 8433 | E162: Malambo
D163: 8436 | E163: Manatí
D164: 8520 | E164: Palmar de varela
D165: 8549 | E165: Piojó
D166: 8558 | E166: Polonuevo
D167: 8560 | E167: Ponedera
D168: 8573 | E168: Puerto colombia
D169: 8606 | E169: Repelón
D170: 8634 | E170: Sabanagrande
D171: 8638 | E171: Sabanalarga
D172: 8675 | E172: Santa lucía
D173: 8685 | E173: Santo tomás
D174: 8758 | E174: Soledad
D175: 8770 | E175: Suan
D176: 8832 | E176: Tubará
D177: 8849 | E177: Usiacurí
D178: 11001 | E178: Bogotá, d.c.
D179: 13001 | E179: Cartagena de ind
D180: 13006 | E180: Achí
D181: 13030 | E181: Altos del rosari
D182: 13042 | E182: Arenal
D183: 13052 | E183: Arjona
D184: 13062 | E184: Arroyohondo
D185: 13074 | E185: Barranco de loba
D186: 13140 | E186: Calamar
D187: 13160 | E187: Cantagallo
D188: 13188 | E188: Cicuco
D189: 13212 | E189: Córdoba
D190: 13222 | E190: Clemencia
D191: 13244 | E191: El carmen de bol
D192: 13248 | E192: El guamo
D193: 13268 | E193: El peñón
D194: 13300 | E194: Hatillo de loba
D195: 13430 | E195: Magangué
D196: 13433 | E196: Mahates
D197: 13440 | E197: Margarita
D198: 13442 | E198: María la baja
